Workbook

Sheet Setup | Print
A2: Which Game # do you want | C2: Which Quarter(s) do you want stats for?
A3: to Import data from? | C3: Select up to 4 quarters
A4: (This Game file MUST be OPEN) | C4: Quarter 1 | D4: Yes
A5: 4 | C5: Quarter 2 | D5: Yes
A6: Must be 1-16 | C6: Quarter 3 | D6: Yes
C7: Quarter 4 | D7: Yes
D8: Must be Yes or No
A11: Print one or several reports at once. Click a print button below and select the reports to print. | C11: Reports print in order of the first column, then the second column | E11: Stats will print for these quarters
G13: Yes
G14: No
E16: =IF(OR(D$4="Yes"),"1st Qtr","") -> 1st Qtr | F16: =IF(OR(D$6="Yes"),"3rd Qtr","") -> 3rd Qtr
E17: =IF(OR(D$5="Yes"),"2nd Qtr","") -> 2nd Qtr | F17: =IF(OR(D$7="Yes"),"4th Qtr","") -> 4th Qtr
A20: Instructions
A22: 1 - Enter the Game number in blue cell A5 to import stats from
A23: 2 - Click on "Click here to reset team colors" to reset colors on each page
A24: 3 - Choose Yes or No in cells D4 to D7 to select which quarters stats are for
A25: - The chosen quarters will appear on every stats sheet you print
A26: 4 - Print reports with the buttons above for the chosen quarters in the chosen Game
A28: Note - "Play-by-Play Summary" will print many blank pages
A29: - "Our Plays" and "Their Plays" will print many blank pages

Sheet Teams
B3: Date: | C3: =LOOKUP(D10,[2]Schedule!$A$8:$A$22,[2]Schedule!$B$8:$B$22) -> 2020-10-30
B4: Home/Away: | C4: =LOOKUP(D10,[2]Schedule!$A$8:$A$22,[2]Schedule!$E$8:$E$22) -> Home
B5: Site: | C5: =INDIRECT("[Game"&$D$10&".xlsm]Game_Setup!$B$5") -> Valor Stadium
B6: City/State: | C6: =INDIRECT("[Game"&$D$10&".xlsm]Game_Setup!$B$6") -> Highland Ranch, CO
B7: Attendance: | C7: =INDIRECT("[Game"&$D$10&".xlsm]Game_Setup!$B$7") -> 300
B8: Weather: | C8: =INDIRECT("[Game"&$D$10&".xlsm]Game_Setup!$B$8") -> Clear, 45
A10: Our Team - (automated) | B10: Their Team Name (automated) | D10: ='Setup | Print'!$A$5 -> 4
A11: =+[2]Roster!$A$2 -> Valor Christian | B11: =LOOKUP(D10,[2]Schedule!$A$8:$A$22,[2]Schedule!$C$8:$C$22) -> Castle View
A12: Abbreviation (automated) | B12: Abbreviation (automated)
A13: =+[2]Roster!$A$4 -> Valor | B13: =LOOKUP(D10,[2]Schedule!$A$8:$A$22,[2]Schedule!$D$8:$D$22) -> CastleV
A14: Enter "our" rosters & change team colors on | B14: =B11&" Roster" -> Castle View Roster
A15: file: Configuration_and_Setup.xlsm | B15: Number | C15: Name | D15: Auto-check Name
A16: =+[2]Roster!$A6&" - "&[2]Roster!$B6 -> 0 - Team | B16: 0 | C16: =_xlfn.LET(_xlpm.x,INDIRECT("[Game"&$D$10&".xlsm]Game_Setup!$C"&ROW(B16)),IF(ISBLANK(_xlpm.x),"",_xlpm.x)) -> Team | D16: =IF(C16="","Name?",C16) -> Team
A17: =+[2]Roster!$A7&" - "&[2]Roster!$B7 -> 1 - | B17: 1 | C17: =_xlfn.LET(_xlpm.x,INDIRECT("[Game"&$D$10&".xlsm]Game_Setup!$C"&ROW(B17)),IF(ISBLANK(_xlpm.x),"",_xlpm.x)) -> Herschel Craig III | D17: =IF(C17="","Name?",C17) -> Herschel Craig III
A18: =+[2]Roster!$A8&" - "&[2]Roster!$B8 -> 2 - Landon Turnwall | B18: 2 | C18: =_xlfn.LET(_xlpm.x,INDIRECT("[Game"&$D$10&".xlsm]Game_Setup!$C"&ROW(B18)),IF(ISBLANK(_xlpm.x),"",_xlpm.x)) -> Brycen Aten | D18: Brycen Aten
A19: =+[2]Roster!$A9&" - "&[2]Roster!$B9 -> 3 - Ethan Carlson | B19: 3 | C19: =_xlfn.LET(_xlpm.x,INDIRECT("[Game"&$D$10&".xlsm]Game_Setup!$C"&ROW(B19)),IF(ISBLANK(_xlpm.x),"",_xlpm.x)) -> Ethan Anderson | D19: Ethan Anderson
A20: =+[2]Roster!$A10&" - "&[2]Roster!$B10 -> 4 - Robbie Dunbar | B20: 4 | C20: =_xlfn.LET(_xlpm.x,INDIRECT("[Game"&$D$10&".xlsm]Game_Setup!$C"&ROW(B20)),IF(ISBLANK(_xlpm.x),"",_xlpm.x)) -> Jens Anderson | D20: Jens Anderson
A21: =+[2]Roster!$A11&" - "&[2]Roster!$B11 -> 5 - Zaire Jackson | B21: 5 | C21: =_xlfn.LET(_xlpm.x,INDIRECT("[Game"&$D$10&".xlsm]Game_Setup!$C"&ROW(B21)),IF(ISBLANK(_xlpm.x),"",_xlpm.x)) -> David Brunell | D21: David Brunell
A22: =+[2]Roster!$A12&" - "&[2]Roster!$B12 -> 6 - Tyler Larson | B22: 6 | C22: =_xlfn.LET(_xlpm.x,INDIRECT("[Game"&$D$10&".xlsm]Game_Setup!$C"&ROW(B22)),IF(ISBLANK(_xlpm.x),"",_xlpm.x)) -> Johnny Colombi | D22: Johnny Colombi
A23: =+[2]Roster!$A13&" - "&[2]Roster!$B13 -> 7 - Eli Hamilton | B23: 7 | C23: =_xlfn.LET(_xlpm.x,INDIRECT("[Game"&$D$10&".xlsm]Game_Setup!$C"&ROW(B23)),IF(ISBLANK(_xlpm.x),"",_xlpm.x)) -> Blake Haggerty | D23: Blake Haggerty
A24: =+[2]Roster!$A14&" - "&[2]Roster!$B14 -> 8 - Jackson Dorr | B24: 8 | C24: =_xlfn.LET(_xlpm.x,INDIRECT("[Game"&$D$10&".xlsm]Game_Setup!$C"&ROW(B24)),IF(ISBLANK(_xlpm.x),"",_xlpm.x)) ->  | D24: Name?
A25: =+[2]Roster!$A15&" - "&[2]Roster!$B15 -> 9 - Sean McNair | B25: 9 | C25: =_xlfn.LET(_xlpm.x,INDIRECT("[Game"&$D$10&".xlsm]Game_Setup!$C"&ROW(B25)),IF(ISBLANK(_xlpm.x),"",_xlpm.x)) -> Keaton Cazer | D25: Keaton Cazer
A26: =+[2]Roster!$A16&" - "&[2]Roster!$B16 -> 10 - Jackson Zimmermann | B26: 10 | C26: =_xlfn.LET(_xlpm.x,INDIRECT("[Game"&$D$10&".xlsm]Game_Setup!$C"&ROW(B26)),IF(ISBLANK(_xlpm.x),"",_xlpm.x)) -> Josh Perkins | D26: Josh Perkins
A27: =+[2]Roster!$A17&" - "&[2]Roster!$B17 -> 11 - Matt Smith | B27: 11 | C27: =_xlfn.LET(_xlpm.x,INDIRECT("[Game"&$D$10&".xlsm]Game_Setup!$C"&ROW(B27)),IF(ISBLANK(_xlpm.x),"",_xlpm.x)) -> Ethan Plummer | D27: Ethan Plummer
A28: =+[2]Roster!$A18&" - "&[2]Roster!$B18 -> 12 - Trey Stott | B28: 12 | C28: =_xlfn.LET(_xlpm.x,INDIRECT("[Game"&$D$10&".xlsm]Game_Setup!$C"&ROW(B28)),IF(ISBLANK(_xlpm.x),"",_xlpm.x)) -> Ryan Hess | D28: Ryan Hess
A29: =+[2]Roster!$A19&" - "&[2]Roster!$B19 -> 13 - Jackson Reinheimer | B29: 13 | C29: =_xlfn.LET(_xlpm.x,INDIRECT("[Game"&$D$10&".xlsm]Game_Setup!$C"&ROW(B29)),IF(ISBLANK(_xlpm.x),"",_xlpm.x)) -> Sam Knox | D29: Sam Knox
A30: =+[2]Roster!$A20&" - "&[2]Roster!$B20 -> 14 - Josh Hall | B30: 14 | C30: =_xlfn.LET(_xlpm.x,INDIRECT("[Game"&$D$10&".xlsm]Game_Setup!$C"&ROW(B30)),IF(ISBLANK(_xlpm.x),"",_xlpm.x)) -> Marc Wessbecker | D30: Marc Wessbecker
A31: =+[2]Roster!$A21&" - "&[2]Roster!$B21 -> 15 - Max McDonald | B31: 15 | C31: =_xlfn.LET(_xlpm.x,INDIRECT("[Game"&$D$10&".xlsm]Game_Setup!$C"&ROW(B31)),IF(ISBLANK(_xlpm.x),"",_xlpm.x)) -> Beto Ledezma | D31: Beto Ledezma
A32: =+[2]Roster!$A22&" - "&[2]Roster!$B22 -> 16 - Griffin Meier | B32: 16 | C32: =_xlfn.LET(_xlpm.x,INDIRECT("[Game"&$D$10&".xlsm]Game_Setup!$C"&ROW(B32)),IF(ISBLANK(_xlpm.x),"",_xlpm.x)) -> Phoenix Hammontree | D32: Phoenix Hammontree
A33: =+[2]Roster!$A23&" - "&[2]Roster!$B23 -> 17 - Mitch Gutgsell | B33: 17 | C33: =_xlfn.LET(_xlpm.x,INDIRECT("[Game"&$D$10&".xlsm]Game_Setup!$C"&ROW(B33)),IF(ISBLANK(_xlpm.x),"",_xlpm.x)) -> Ethan Goodman | D33: Ethan Goodman
A34: =+[2]Roster!$A24&" - "&[2]Roster!$B24 -> 18 - Max House | B34: 18 | C34: =_xlfn.LET(_xlpm.x,INDIRECT("[Game"&$D$10&".xlsm]Game_Setup!$C"&ROW(B34)),IF(ISBLANK(_xlpm.x),"",_xlpm.x)) -> Payton Slavin | D34: Payton Slavin
A35: =+[2]Roster!$A25&" - "&[2]Roster!$B25 -> 19 - Colton Allen | B35: 19 | C35: =_xlfn.LET(_xlpm.x,INDIRECT("[Game"&$D$10&".xlsm]Game_Setup!$C"&ROW(B35)),IF(ISBLANK(_xlpm.x),"",_xlpm.x)) -> Bryce Lutz | D35: Bryce Lutz
A36: =+[2]Roster!$A26&" - "&[2]Roster!$B26 -> 20 - Sean Fields | B36: 20 | C36: =_xlfn.LET(_xlpm.x,INDIRECT("[Game"&$D$10&".xlsm]Game_Setup!$C"&ROW(B36)),IF(ISBLANK(_xlpm.x),"",_xlpm.x)) -> Kevin Tashie | D36: Kevin Tashie
A37: =+[2]Roster!$A27&" - "&[2]Roster!$B27 -> 21 - Andrew Hale | B37: 21 | C37: =_xlfn.LET(_xlpm.x,INDIRECT("[Game"&$D$10&".xlsm]Game_Setup!$C"&ROW(B37)),IF(ISBLANK(_xlpm.x),"",_xlpm.x)) -> Nick Vasil | D37: Nick Vasil
A38: =+[2]Roster!$A28&" - "&[2]Roster!$B28 -> 22 - Grant Simmons | B38: 22 | C38: =_xlfn.LET(_xlpm.x,INDIRECT("[Game"&$D$10&".xlsm]Game_Setup!$C"&ROW(B38)),IF(ISBLANK(_xlpm.x),"",_xlpm.x)) -> Zane Wodark | D38: Zane Wodark
A39: =+[2]Roster!$A29&" - "&[2]Roster!$B29 -> 23 - | B39: 23 | C39: =_xlfn.LET(_xlpm.x,INDIRECT("[Game"&$D$10&".xlsm]Game_Setup!$C"&ROW(B39)),IF(ISBLANK(_xlpm.x),"",_xlpm.x)) -> Ace Malone | D39: Ace Malone
A40: =+[2]Roster!$A30&" - "&[2]Roster!$B30 -> 24 - Gabe Sawchuck | B40: 24 | C40: =_xlfn.LET(_xlpm.x,INDIRECT("[Game"&$D$10&".xlsm]Game_Setup!$C"&ROW(B40)),IF(ISBLANK(_xlpm.x),"",_xlpm.x)) -> Richard Fosco | D40: Richard Fosco
A41: =+[2]Roster!$A31&" - "&[2]Roster!$B31 -> 25 - Gavin Bibik | B41: 25 | C41: =_xlfn.LET(_xlpm.x,INDIRECT("[Game"&$D$10&".xlsm]Game_Setup!$C"&ROW(B41)),IF(ISBLANK(_xlpm.x),"",_xlpm.x)) -> Logan Kraus | D41: Logan Kraus
A42: =+[2]Roster!$A32&" - "&[2]Roster!$B32 -> 26 - Colby Reynolds | B42: 26 | C42: =_xlfn.LET(_xlpm.x,INDIRECT("[Game"&$D$10&".xlsm]Game_Setup!$C"&ROW(B42)),IF(ISBLANK(_xlpm.x),"",_xlpm.x)) -> Robert Collitt | D42: Robert Collitt
A43: =+[2]Roster!$A33&" - "&[2]Roster!$B33 -> 27 - Gavin Sawchuk | B43: 27 | C43: =_xlfn.LET(_xlpm.x,INDIRECT("[Game"&$D$10&".xlsm]Game_Setup!$C"&ROW(B43)),IF(ISBLANK(_xlpm.x),"",_xlpm.x)) -> Dominic Madonia | D43: Dominic Madonia
A44: =+[2]Roster!$A34&" - "&[2]Roster!$B34 -> 28 - Jackson Oriol | B44: 28 | C44: =_xlfn.LET(_xlpm.x,INDIRECT("[Game"&$D$10&".xlsm]Game_Setup!$C"&ROW(B44)),IF(ISBLANK(_xlpm.x),"",_xlpm.x)) -> Noah Jamero | D44: Noah Jamero
A45: =+[2]Roster!$A35&" - "&[2]Roster!$B35 -> 29 - Wolf Sopcich | B45: 29 | C45: =_xlfn.LET(_xlpm.x,INDIRECT("[Game"&$D$10&".xlsm]Game_Setup!$C"&ROW(B45)),IF(ISBLANK(_xlpm.x),"",_xlpm.x)) -> Tanner Showers | D45: Tanner Showers
A46: =+[2]Roster!$A36&" - "&[2]Roster!$B36 -> 30 - Jordan Norwood | B46: 30 | C46: =_xlfn.LET(_xlpm.x,INDIRECT("[Game"&$D$10&".xlsm]Game_Setup!$C"&ROW(B46)),IF(ISBLANK(_xlpm.x),"",_xlpm.x)) -> Randall Perez | D46: Randall Perez
A47: =+[2]Roster!$A37&" - "&[2]Roster!$B37 -> 31 - Mitch Bigelow | B47: 31 | C47: =_xlfn.LET(_xlpm.x,INDIRECT("[Game"&$D$10&".xlsm]Game_Setup!$C"&ROW(B47)),IF(ISBLANK(_xlpm.x),"",_xlpm.x)) -> Danny Martinez | D47: Danny Martinez
A48: =+[2]Roster!$A38&" - "&[2]Roster!$B38 -> 32 - Zach Wiley | B48: 32 | C48: =_xlfn.LET(_xlpm.x,INDIRECT("[Game"&$D$10&".xlsm]Game_Setup!$C"&ROW(B48)),IF(ISBLANK(_xlpm.x),"",_xlpm.x)) -> Brody Ashworth | D48: Brody Ashworth
A49: =+[2]Roster!$A39&" - "&[2]Roster!$B39 -> 33 - Max Soderquist | B49: 33 | C49: =_xlfn.LET(_xlpm.x,INDIRECT("[Game"&$D$10&".xlsm]Game_Setup!$C"&ROW(B49)),IF(ISBLANK(_xlpm.x),"",_xlpm.x)) -> Thomas Martinez | D49: Thomas Martinez
A50: =+[2]Roster!$A40&" - "&[2]Roster!$B40 -> 34 - Roman Bradley | B50: 34 | C50: =_xlfn.LET(_xlpm.x,INDIRECT("[Game"&$D$10&".xlsm]Game_Setup!$C"&ROW(B50)),IF(ISBLANK(_xlpm.x),"",_xlpm.x)) -> Dillon Moody | D50: Dillon Moody
A51: =+[2]Roster!$A41&" - "&[2]Roster!$B41 -> 35 - Maverik Hoehn | B51: 35 | C51: =_xlfn.LET(_xlpm.x,INDIRECT("[Game"&$D$10&".xlsm]Game_Setup!$C"&ROW(B51)),IF(ISBLANK(_xlpm.x),"",_xlpm.x)) -> Ben Knox | D51: Ben Knox
A52: =+[2]Roster!$A42&" - "&[2]Roster!$B42 -> 36 - Greg McDonald | B52: 36 | C52: =_xlfn.LET(_xlpm.x,INDIRECT("[Game"&$D$10&".xlsm]Game_Setup!$C"&ROW(B52)),IF(ISBLANK(_xlpm.x),"",_xlpm.x)) -> Casey Knoll | D52: Casey Knoll
A53: =+[2]Roster!$A43&" - "&[2]Roster!$B43 -> 37 - | B53: 37 | C53: =_xlfn.LET(_xlpm.x,INDIRECT("[Game"&$D$10&".xlsm]Game_Setup!$C"&ROW(B53)),IF(ISBLANK(_xlpm.x),"",_xlpm.x)) -> Cameron Jackson | D53: Cameron Jackson
A54: =+[2]Roster!$A44&" - "&[2]Roster!$B44 -> 38 - Adam Perez | B54: 38 | C54: =_xlfn.LET(_xlpm.x,INDIRECT("[Game"&$D$10&".xlsm]Game_Setup!$C"&ROW(B54)),IF(ISBLANK(_xlpm.x),"",_xlpm.x)) -> Matthew Laughlin | D54: Matthew Laughlin
A55: =+[2]Roster!$A45&" - "&[2]Roster!$B45 -> 39 - AJ Schebler | B55: 39 | C55: =_xlfn.LET(_xlpm.x,INDIRECT("[Game"&$D$10&".xlsm]Game_Setup!$C"&ROW(B55)),IF(ISBLANK(_xlpm.x),"",_xlpm.x)) -> Rory Panepinto | D55: Rory Panepinto
A56: =+[2]Roster!$A46&" - "&[2]Roster!$B46 -> 40 - | B56: 40 | C56: =_xlfn.LET(_xlpm.x,INDIRECT("[Game"&$D$10&".xlsm]Game_Setup!$C"&ROW(B56)),IF(ISBLANK(_xlpm.x),"",_xlpm.x)) -> Lily Brace | D56: Lily Brace
A57: =+[2]Roster!$A47&" - "&[2]Roster!$B47 -> 41 - Cayden Hawkins | B57: 41 | C57: =_xlfn.LET(_xlpm.x,INDIRECT("[Game"&$D$10&".xlsm]Game_Setup!$C"&ROW(B57)),IF(ISBLANK(_xlpm.x),"",_xlpm.x)) ->  | D57: Name?
A58: =+[2]Roster!$A48&" - "&[2]Roster!$B48 -> 42 - | B58: 42 | C58: =_xlfn.LET(_xlpm.x,INDIRECT("[Game"&$D$10&".xlsm]Game_Setup!$C"&ROW(B58)),IF(ISBLANK(_xlpm.x),"",_xlpm.x)) -> Isaac Urrutia | D58: Isaac Urrutia
A59: =+[2]Roster!$A49&" - "&[2]Roster!$B49 -> 43 - Carter Forsythe | B59: 43 | C59: =_xlfn.LET(_xlpm.x,INDIRECT("[Game"&$D$10&".xlsm]Game_Setup!$C"&ROW(B59)),IF(ISBLANK(_xlpm.x),"",_xlpm.x)) -> Josef Thornton | D59: Josef Thornton
A60: =+[2]Roster!$A50&" - "&[2]Roster!$B50 -> 44 - Sims Hunter | B60: 44 | C60: =_xlfn.LET(_xlpm.x,INDIRECT("[Game"&$D$10&".xlsm]Game_Setup!$C"&ROW(B60)),IF(ISBLANK(_xlpm.x),"",_xlpm.x)) -> Lucas Eftekhar | D60: Lucas Eftekhar
A61: =+[2]Roster!$A51&" - "&[2]Roster!$B51 -> 45 - Sam Hamilton | B61: 45 | C61: =_xlfn.LET(_xlpm.x,INDIRECT("[Game"&$D$10&".xlsm]Game_Setup!$C"&ROW(B61)),IF(ISBLANK(_xlpm.x),"",_xlpm.x)) -> Payton Walker | D61: Payton Walker
A62: =+[2]Roster!$A52&" - "&[2]Roster!$B52 -> 46 - | B62: 46 | C62: =_xlfn.LET(_xlpm.x,INDIRECT("[Game"&$D$10&".xlsm]Game_Setup!$C"&ROW(B62)),IF(ISBLANK(_xlpm.x),"",_xlpm.x)) -> Jackson Wisler | D62: Jackson Wisler
A63: =+[2]Roster!$A53&" - "&[2]Roster!$B53 -> 47 - Luke Meyer | B63: 47 | C63: =_xlfn.LET(_xlpm.x,INDIRECT("[Game"&$D$10&".xlsm]Game_Setup!$C"&ROW(B63)),IF(ISBLANK(_xlpm.x),"",_xlpm.x)) -> Connor Bracken | D63: Connor Bracken
A64: =+[2]Roster!$A54&" - "&[2]Roster!$B54 -> 48 - Joe Fellner | B64: 48 | C64: =_xlfn.LET(_xlpm.x,INDIRECT("[Game"&$D$10&".xlsm]Game_Setup!$C"&ROW(B64)),IF(ISBLANK(_xlpm.x),"",_xlpm.x)) -> Joe Ursetta | D64: Joe Ursetta
A65: =+[2]Roster!$A55&" - "&[2]Roster!$B55 -> 49 - | B65: 49 | C65: =_xlfn.LET(_xlpm.x,INDIRECT("[Game"&$D$10&".xlsm]Game_Setup!$C"&ROW(B65)),IF(ISBLANK(_xlpm.x),"",_xlpm.x)) -> Nathan Mounce | D65: Nathan Mounce
A66: =+[2]Roster!$A56&" - "&[2]Roster!$B56 -> 50 - | B66: 50 | C66: =_xlfn.LET(_xlpm.x,INDIRECT("[Game"&$D$10&".xlsm]Game_Setup!$C"&ROW(B66)),IF(ISBLANK(_xlpm.x),"",_xlpm.x)) -> Peter Ulrich | D66: Peter Ulrich
A67: =+[2]Roster!$A57&" - "&[2]Roster!$B57 -> 51 - Kaiden Parrish | B67: 51 | C67: =_xlfn.LET(_xlpm.x,INDIRECT("[Game"&$D$10&".xlsm]Game_Setup!$C"&ROW(B67)),IF(ISBLANK(_xlpm.x),"",_xlpm.x)) -> Ren Miller | D67: Ren Miller
A68: =+[2]Roster!$A58&" - "&[2]Roster!$B58 -> 52 - | B68: 52 | C68: =_xlfn.LET(_xlpm.x,INDIRECT("[Game"&$D$10&".xlsm]Game_Setup!$C"&ROW(B68)),IF(ISBLANK(_xlpm.x),"",_xlpm.x)) -> Cullen Rusovick | D68: Cullen Rusovick
A69: =+[2]Roster!$A59&" - "&[2]Roster!$B59 -> 53 - | B69: 53 | C69: =_xlfn.LET(_xlpm.x,INDIRECT("[Game"&$D$10&".xlsm]Game_Setup!$C"&ROW(B69)),IF(ISBLANK(_xlpm.x),"",_xlpm.x)) -> Sean Hoffman | D69: Sean Hoffman
A70: =+[2]Roster!$A60&" - "&[2]Roster!$B60 -> 54 - | B70: 54 | C70: =_xlfn.LET(_xlpm.x,INDIRECT("[Game"&$D$10&".xlsm]Game_Setup!$C"&ROW(B70)),IF(ISBLANK(_xlpm.x),"",_xlpm.x)) -> Kohen Gave | D70: Kohen Gave
A71: =+[2]Roster!$A61&" - "&[2]Roster!$B61 -> 55 - Cruz Masten | B71: 55 | C71: =_xlfn.LET(_xlpm.x,INDIRECT("[Game"&$D$10&".xlsm]Game_Setup!$C"&ROW(B71)),IF(ISBLANK(_xlpm.x),"",_xlpm.x)) -> Taj Tinnin | D71: Taj Tinnin
A72: =+[2]Roster!$A62&" - "&[2]Roster!$B62 -> 56 - Mitchell Knox | B72: 56 | C72: =_xlfn.LET(_xlpm.x,INDIRECT("[Game"&$D$10&".xlsm]Game_Setup!$C"&ROW(B72)),IF(ISBLANK(_xlpm.x),"",_xlpm.x)) -> Quin Samuelson | D72: Quin Samuelson
A73: =+[2]Roster!$A63&" - "&[2]Roster!$B63 -> 57 - Christian Benedetto | B73: 57 | C73: =_xlfn.LET(_xlpm.x,INDIRECT("[Game"&$D$10&".xlsm]Game_Setup!$C"&ROW(B73)),IF(ISBLANK(_xlpm.x),"",_xlpm.x)) -> Nicholas Ramos | D73: Nicholas Ramos
A74: =+[2]Roster!$A64&" - "&[2]Roster!$B64 -> 58 - | B74: 58 | C74: =_xlfn.LET(_xlpm.x,INDIRECT("[Game"&$D$10&".xlsm]Game_Setup!$C"&ROW(B74)),IF(ISBLANK(_xlpm.x),"",_xlpm.x)) -> Jason Guillory | D74: Jason Guillory
A75: =+[2]Roster!$A65&" - "&[2]Roster!$B65 -> 59 - | B75: 59 | C75: =_xlfn.LET(_xlpm.x,INDIRECT("[Game"&$D$10&".xlsm]Game_Setup!$C"&ROW(B75)),IF(ISBLANK(_xlpm.x),"",_xlpm.x)) -> Holden Warfield | D75: Holden Warfield
A76: =+[2]Roster!$A66&" - "&[2]Roster!$B66 -> 60 - | B76: 60 | C76: =_xlfn.LET(_xlpm.x,INDIRECT("[Game"&$D$10&".xlsm]Game_Setup!$C"&ROW(B76)),IF(ISBLANK(_xlpm.x),"",_xlpm.x)) -> Garrison Mckenney | D76: Garrison Mckenney
A77: =+[2]Roster!$A67&" - "&[2]Roster!$B67 -> 61 - | B77: 61 | C77: =_xlfn.LET(_xlpm.x,INDIRECT("[Game"&$D$10&".xlsm]Game_Setup!$C"&ROW(B77)),IF(ISBLANK(_xlpm.x),"",_xlpm.x)) -> Armaan Sharma | D77: Armaan Sharma
A78: =+[2]Roster!$A68&" - "&[2]Roster!$B68 -> 62 - Nick Lyon | B78: 62 | C78: =_xlfn.LET(_xlpm.x,INDIRECT("[Game"&$D$10&".xlsm]Game_Setup!$C"&ROW(B78)),IF(ISBLANK(_xlpm.x),"",_xlpm.x)) -> Cole Verbrugge | D78: Cole Verbrugge
A79: =+[2]Roster!$A69&" - "&[2]Roster!$B69 -> 63 - Jackson Anderson | B79: 63 | C79: =_xlfn.LET(_xlpm.x,INDIRECT("[Game"&$D$10&".xlsm]Game_Setup!$C"&ROW(B79)),IF(ISBLANK(_xlpm.x),"",_xlpm.x)) -> William Harry | D79: William Harry
A80: =+[2]Roster!$A70&" - "&[2]Roster!$B70 -> 64 - Ty Barwind | B80: 64 | C80: =_xlfn.LET(_xlpm.x,INDIRECT("[Game"&$D$10&".xlsm]Game_Setup!$C"&ROW(B80)),IF(ISBLANK(_xlpm.x),"",_xlpm.x)) -> Isaac Alvarado | D80: Isaac Alvarado
A81: =+[2]Roster!$A71&" - "&[2]Roster!$B71 -> 65 - | B81: 65 | C81: =_xlfn.LET(_xlpm.x,INDIRECT("[Game"&$D$10&".xlsm]Game_Setup!$C"&ROW(B81)),IF(ISBLANK(_xlpm.x),"",_xlpm.x)) -> Braedyn Vildibill | D81: Braedyn Vildibill
A82: =+[2]Roster!$A72&" - "&[2]Roster!$B72 -> 66 - Nick Chapdelaine | B82: 66 | C82: =_xlfn.LET(_xlpm.x,INDIRECT("[Game"&$D$10&".xlsm]Game_Setup!$C"&ROW(B82)),IF(ISBLANK(_xlpm.x),"",_xlpm.x)) -> Ezra Neal | D82: =IF(C82="","Name?",C82) -> Ezra Neal
A83: =+[2]Roster!$A73&" - "&[2]Roster!$B73 -> 67 - | B83: 67 | C83: =_xlfn.LET(_xlpm.x,INDIRECT("[Game"&$D$10&".xlsm]Game_Setup!$C"&ROW(B83)),IF(ISBLANK(_xlpm.x),"",_xlpm.x)) -> Zack Breed | D83: Zack Breed
A84: =+[2]Roster!$A74&" - "&[2]Roster!$B74 -> 68 - Griffin Schermerhorn | B84: 68 | C84: =_xlfn.LET(_xlpm.x,INDIRECT("[Game"&$D$10&".xlsm]Game_Setup!$C"&ROW(B84)),IF(ISBLANK(_xlpm.x),"",_xlpm.x)) -> Alejandro Chavez | D84: Alejandro Chavez
A85: =+[2]Roster!$A75&" - "&[2]Roster!$B75 -> 69 - | B85: 69 | C85: =_xlfn.LET(_xlpm.x,INDIRECT("[Game"&$D$10&".xlsm]Game_Setup!$C"&ROW(B85)),IF(ISBLANK(_xlpm.x),"",_xlpm.x)) ->  | D85: Name?
A86: =+[2]Roster!$A76&" - "&[2]Roster!$B76 -> 70 - | B86: 70 | C86: =_xlfn.LET(_xlpm.x,INDIRECT("[Game"&$D$10&".xlsm]Game_Setup!$C"&ROW(B86)),IF(ISBLANK(_xlpm.x),"",_xlpm.x)) -> Luke Wagnon | D86: Luke Wagnon
A87: =+[2]Roster!$A77&" - "&[2]Roster!$B77 -> 71 - | B87: 71 | C87: =_xlfn.LET(_xlpm.x,INDIRECT("[Game"&$D$10&".xlsm]Game_Setup!$C"&ROW(B87)),IF(ISBLANK(_xlpm.x),"",_xlpm.x)) -> Roland Herrera | D87: Roland Herrera
A88: =+[2]Roster!$A78&" - "&[2]Roster!$B78 -> 72 - Jack Martell | B88: 72 | C88: =_xlfn.LET(_xlpm.x,INDIRECT("[Game"&$D$10&".xlsm]Game_Setup!$C"&ROW(B88)),IF(ISBLANK(_xlpm.x),"",_xlpm.x)) -> Matt Grout | D88: Matt Grout
A89: =+[2]Roster!$A79&" - "&[2]Roster!$B79 -> 73 - Truman Ritter | B89: 73 | C89: =_xlfn.LET(_xlpm.x,INDIRECT("[Game"&$D$10&".xlsm]Game_Setup!$C"&ROW(B89)),IF(ISBLANK(_xlpm.x),"",_xlpm.x)) -> Jasper Pasion | D89: Jasper Pasion
A90: =+[2]Roster!$A80&" - "&[2]Roster!$B80 -> 74 - | B90: 74 | C90: =_xlfn.LET(_xlpm.x,INDIRECT("[Game"&$D$10&".xlsm]Game_Setup!$C"&ROW(B90)),IF(ISBLANK(_xlpm.x),"",_xlpm.x)) -> Michael Santana | D90: Michael Santana
A91: =+[2]Roster!$A81&" - "&[2]Roster!$B81 -> 75 - Jake Maikkula | B91: 75 | C91: =_xlfn.LET(_xlpm.x,INDIRECT("[Game"&$D$10&".xlsm]Game_Setup!$C"&ROW(B91)),IF(ISBLANK(_xlpm.x),"",_xlpm.x)) -> Jackson McConnell | D91: Jackson McConnell
A92: =+[2]Roster!$A82&" - "&[2]Roster!$B82 -> 76 - Tanner Reddan | B92: 76 | C92: =_xlfn.LET(_xlpm.x,INDIRECT("[Game"&$D$10&".xlsm]Game_Setup!$C"&ROW(B92)),IF(ISBLANK(_xlpm.x),"",_xlpm.x)) -> Davion Garcia | D92: Davion Garcia
A93: =+[2]Roster!$A83&" - "&[2]Roster!$B83 -> 77 - | B93: 77 | C93: =_xlfn.LET(_xlpm.x,INDIRECT("[Game"&$D$10&".xlsm]Game_Setup!$C"&ROW(B93)),IF(ISBLANK(_xlpm.x),"",_xlpm.x)) -> Noah Gottberg | D93: Noah Gottberg
A94: =+[2]Roster!$A84&" - "&[2]Roster!$B84 -> 78 - | B94: 78 | C94: =_xlfn.LET(_xlpm.x,INDIRECT("[Game"&$D$10&".xlsm]Game_Setup!$C"&ROW(B94)),IF(ISBLANK(_xlpm.x),"",_xlpm.x)) -> Austin Kimball | D94: Austin Kimball
A95: =+[2]Roster!$A85&" - "&[2]Roster!$B85 -> 79 - | B95: 79 | C95: =_xlfn.LET(_xlpm.x,INDIRECT("[Game"&$D$10&".xlsm]Game_Setup!$C"&ROW(B95)),IF(ISBLANK(_xlpm.x),"",_xlpm.x)) -> James Conner | D95: James Conner
A96: =+[2]Roster!$A86&" - "&[2]Roster!$B86 -> 80 - | B96: 80 | C96: =_xlfn.LET(_xlpm.x,INDIRECT("[Game"&$D$10&".xlsm]Game_Setup!$C"&ROW(B96)),IF(ISBLANK(_xlpm.x),"",_xlpm.x)) -> Wesley Hyre | D96: Wesley Hyre
A97: =+[2]Roster!$A87&" - "&[2]Roster!$B87 -> 81 - | B97: 81 | C97: =_xlfn.LET(_xlpm.x,INDIRECT("[Game"&$D$10&".xlsm]Game_Setup!$C"&ROW(B97)),IF(ISBLANK(_xlpm.x),"",_xlpm.x)) -> Micah Nanninga | D97: Micah Nanninga
A98: =+[2]Roster!$A88&" - "&[2]Roster!$B88 -> 82 - | B98: 82 | C98: =_xlfn.LET(_xlpm.x,INDIRECT("[Game"&$D$10&".xlsm]Game_Setup!$C"&ROW(B98)),IF(ISBLANK(_xlpm.x),"",_xlpm.x)) -> Caden Lewis | D98: Caden Lewis
A99: =+[2]Roster!$A89&" - "&[2]Roster!$B89 -> 83 - | B99: 83 | C99: =_xlfn.LET(_xlpm.x,INDIRECT("[Game"&$D$10&".xlsm]Game_Setup!$C"&ROW(B99)),IF(ISBLANK(_xlpm.x),"",_xlpm.x)) -> Josiah Billington | D99: Josiah Billington
A100: =+[2]Roster!$A90&" - "&[2]Roster!$B90 -> 84 - | B100: 84 | C100: =_xlfn.LET(_xlpm.x,INDIRECT("[Game"&$D$10&".xlsm]Game_Setup!$C"&ROW(B100)),IF(ISBLANK(_xlpm.x),"",_xlpm.x)) -> Caleb Austin | D100: Caleb Austin
A101: =+[2]Roster!$A91&" - "&[2]Roster!$B91 -> 85 - Gabe Kirschke | B101: 85 | C101: =_xlfn.LET(_xlpm.x,INDIRECT("[Game"&$D$10&".xlsm]Game_Setup!$C"&ROW(B101)),IF(ISBLANK(_xlpm.x),"",_xlpm.x)) -> Parker Christensen | D101: Parker Christensen
A102: =+[2]Roster!$A92&" - "&[2]Roster!$B92 -> 86 - | B102: 86 | C102: =_xlfn.LET(_xlpm.x,INDIRECT("[Game"&$D$10&".xlsm]Game_Setup!$C"&ROW(B102)),IF(ISBLANK(_xlpm.x),"",_xlpm.x)) -> Trent Wilkinson | D102: Trent Wilkinson
A103: =+[2]Roster!$A93&" - "&[2]Roster!$B93 -> 87 - | B103: 87 | C103: =_xlfn.LET(_xlpm.x,INDIRECT("[Game"&$D$10&".xlsm]Game_Setup!$C"&ROW(B103)),IF(ISBLANK(_xlpm.x),"",_xlpm.x)) -> Owen Clarke | D103: Owen Clarke
A104: =+[2]Roster!$A94&" - "&[2]Roster!$B94 -> 88 - Rowdy Beers | B104: 88 | C104: =_xlfn.LET(_xlpm.x,INDIRECT("[Game"&$D$10&".xlsm]Game_Setup!$C"&ROW(B104)),IF(ISBLANK(_xlpm.x),"",_xlpm.x)) -> Dylan March | D104: Dylan March
A105: =+[2]Roster!$A95&" - "&[2]Roster!$B95 -> 89 - Jeremy Claycamp | B105: 89 | C105: =_xlfn.LET(_xlpm.x,INDIRECT("[Game"&$D$10&".xlsm]Game_Setup!$C"&ROW(B105)),IF(ISBLANK(_xlpm.x),"",_xlpm.x)) -> Owen Van Natter | D105: Owen Van Natter
A106: =+[2]Roster!$A96&" - "&[2]Roster!$B96 -> 90 - Watson McBride | B106: 90 | C106: =_xlfn.LET(_xlpm.x,INDIRECT("[Game"&$D$10&".xlsm]Game_Setup!$C"&ROW(B106)),IF(ISBLANK(_xlpm.x),"",_xlpm.x)) -> Wyatt Vaughn | D106: Wyatt Vaughn
A107: =+[2]Roster!$A97&" - "&[2]Roster!$B97 -> 91 - | B107: 91 | C107: =_xlfn.LET(_xlpm.x,INDIRECT("[Game"&$D$10&".xlsm]Game_Setup!$C"&ROW(B107)),IF(ISBLANK(_xlpm.x),"",_xlpm.x)) -> Kevin Harvey | D107: Kevin Harvey
A108: =+[2]Roster!$A98&" - "&[2]Roster!$B98 -> 92 - | B108: 92 | C108: =_xlfn.LET(_xlpm.x,INDIRECT("[Game"&$D$10&".xlsm]Game_Setup!$C"&ROW(B108)),IF(ISBLANK(_xlpm.x),"",_xlpm.x)) -> Cooper Harrison | D108: Cooper Harrison
A109: =+[2]Roster!$A99&" - "&[2]Roster!$B99 -> 93 - Brody Bliek | B109: 93 | C109: =_xlfn.LET(_xlpm.x,INDIRECT("[Game"&$D$10&".xlsm]Game_Setup!$C"&ROW(B109)),IF(ISBLANK(_xlpm.x),"",_xlpm.x)) ->  | D109: Name?
A110: =+[2]Roster!$A100&" - "&[2]Roster!$B100 -> 94 - | B110: 94 | C110: =_xlfn.LET(_xlpm.x,INDIRECT("[Game"&$D$10&".xlsm]Game_Setup!$C"&ROW(B110)),IF(ISBLANK(_xlpm.x),"",_xlpm.x)) ->  | D110: Name?
A111: =+[2]Roster!$A101&" - "&[2]Roster!$B101 -> 95 - Colton Rose | B111: 95 | C111: =_xlfn.LET(_xlpm.x,INDIRECT("[Game"&$D$10&".xlsm]Game_Setup!$C"&ROW(B111)),IF(ISBLANK(_xlpm.x),"",_xlpm.x)) ->  | D111: Name?
A112: =+[2]Roster!$A102&" - "&[2]Roster!$B102 -> 96 - | B112: 96 | C112: =_xlfn.LET(_xlpm.x,INDIRECT("[Game"&$D$10&".xlsm]Game_Setup!$C"&ROW(B112)),IF(ISBLANK(_xlpm.x),"",_xlpm.x)) ->  | D112: Name?
A113: =+[2]Roster!$A103&" - "&[2]Roster!$B103 -> 97 - | B113: 97 | C113: =_xlfn.LET(_xlpm.x,INDIRECT("[Game"&$D$10&".xlsm]Game_Setup!$C"&ROW(B113)),IF(ISBLANK(_xlpm.x),"",_xlpm.x)) ->  | D113: Name?
A114: =+[2]Roster!$A104&" - "&[2]Roster!$B104 -> 98 - | B114: 98 | C114: =_xlfn.LET(_xlpm.x,INDIRECT("[Game"&$D$10&".xlsm]Game_Setup!$C"&ROW(B114)),IF(ISBLANK(_xlpm.x),"",_xlpm.x)) ->  | D114: Name?
A115: =+[2]Roster!$A105&" - "&[2]Roster!$B105 -> 99 - Winston McBride | B115: 99 | C115: =_xlfn.LET(_xlpm.x,INDIRECT("[Game"&$D$10&".xlsm]Game_Setup!$C"&ROW(B115)),IF(ISBLANK(_xlpm.x),"",_xlpm.x)) -> Toby McTamney | D115: Toby McTamney
A121: =CELL("filename",B3) -> C:\Users\jon\Documents\Sports\Football\Valor\2020\Varsity\[Stats by Quarter.xlsm]Teams | I121: =A11&" Colors" -> Valor Christian Colors
J122: OutLine Colors RGB | L122: Interior Colors RGB
J123: Fill 1 | K123: Font 1 | L123: Fill 2 | M123: Font 2
I124: R | J124: =+[2]Schedule!H36 -> 0 | K124: =+[2]Schedule!I36 -> 255 | L124: =+[2]Schedule!J36 -> 197 | M124: =+[2]Schedule!K36 -> 0
I125: G | J125: =+[2]Schedule!H37 -> 0 | K125: =+[2]Schedule!I37 -> 255 | L125: =+[2]Schedule!J37 -> 217 | M125: =+[2]Schedule!K37 -> 0
I126: B | J126: =+[2]Schedule!H38 -> 70 | K126: =+[2]Schedule!I38 -> 255 | L126: =+[2]Schedule!J38 -> 241 | M126: =+[2]Schedule!K38 -> 70
I129: =B11&" Colors" -> Castle View Colors
J130: OutLine Colors RGB | L130: Interior Colors RGB
J131: Fill 1 | K131: Font 1 | L131: Fill 2 | M131: Font 2
I132: R | J132: =INDIRECT("J"&$D$10*5+133) -> 192 | K132: =INDIRECT("k"&$D$10*5+133) -> 255 | L132: =INDIRECT("l"&$D$10*5+133) -> 255 | M132: =INDIRECT("m"&$D$10*5+133) -> 0
I133: G | J133: =INDIRECT("J"&$D$10*5+134) -> 0 | K133: =INDIRECT("k"&$D$10*5+134) -> 255 | L133: =INDIRECT("l"&$D$10*5+134) -> 240 | M133: =INDIRECT("m"&$D$10*5+134) -> 0
I134: B | J134: =INDIRECT("J"&$D$10*5+135) -> 0 | K134: =INDIRECT("k"&$D$10*5+135) -> 255 | L134: =INDIRECT("l"&$D$10*5+135) -> 225 | M134: =INDIRECT("m"&$D$10*5+135) -> 0
I136: Their Team | J136: OutLine Colors RGB | L136: Interior Colors RGB
I137: Game 1 | J137: Fill 1 | K137: Font 1 | L137: Fill 2 | M137: Font 2
I138: R | J138: =[2]Schedule!H43 -> 0 | K138: =[2]Schedule!I43 -> 153 | L138: =[2]Schedule!J43 -> 153 | M138: =[2]Schedule!K43 -> 0
I139: G | J139: =[2]Schedule!H44 -> 32 | K139: =[2]Schedule!I44 -> 255 | L139: =[2]Schedule!J44 -> 255 | M139: =[2]Schedule!K44 -> 32
I140: B | J140: =[2]Schedule!H45 -> 96 | K140: =[2]Schedule!I45 -> 153 | L140: =[2]Schedule!J45 -> 153 | M140: =[2]Schedule!K45 -> 96
I141: Their Team | J141: OutLine Colors RGB | L141: Interior Colors RGB
I142: Game 2 | J142: Fill 1 | K142: Font 1 | L142: Fill 2 | M142: Font 2
I143: R | J143: =[2]Schedule!H48 -> 0 | K143: =[2]Schedule!I48 -> 184 | L143: =[2]Schedule!J48 -> 229 | M143: =[2]Schedule!K48 -> 0
I144: G | J144: =[2]Schedule!H49 -> 0 | K144: =[2]Schedule!I49 -> 166 | L144: =[2]Schedule!J49 -> 223 | M144: =[2]Schedule!K49 -> 0
I145: B | J145: =[2]Schedule!H50 -> 0 | K145: =[2]Schedule!I50 -> 126 | L145: =[2]Schedule!J50 -> 209 | M145: =[2]Schedule!K50 -> 0
I146: Their Team | J146: OutLine Colors RGB | L146: Interior Colors RGB
I147: Game 3 | J147: Fill 1 | K147: Font 1 | L147: Fill 2 | M147: Font 2
I148: R | J148: =[2]Schedule!H53 -> 0 | K148: =[2]Schedule!I53 -> 184 | L148: =[2]Schedule!J53 -> 229 | M148: =[2]Schedule!K53 -> 0
I149: G | J149: =[2]Schedule!H54 -> 102 | K149: =[2]Schedule!I54 -> 166 | L149: =[2]Schedule!J54 -> 223 | M149: =[2]Schedule!K54 -> 102
I150: B | J150: =[2]Schedule!H55 -> 0 | K150: =[2]Schedule!I55 -> 126 | L150: =[2]Schedule!J55 -> 209 | M150: =[2]Schedule!K55 -> 0
I151: Their Team | J151: OutLine Colors RGB | L151: Interior Colors RGB
I152: Game 4 | J152: Fill 1 | K152: Font 1 | L152: Fill 2 | M152: Font 2
I153: R | J153: =[2]Schedule!H58 -> 192 | K153: =[2]Schedule!I58 -> 255 | L153: =[2]Schedule!J58 -> 255 | M153: =[2]Schedule!K58 -> 0
I154: G | J154: =[2]Schedule!H59 -> 0 | K154: =[2]Schedule!I59 -> 255 | L154: =[2]Schedule!J59 -> 240 | M154: =[2]Schedule!K59 -> 0
I155: B | J155: =[2]Schedule!H60 -> 0 | K155: =[2]Schedule!I60 -> 255 | L155: =[2]Schedule!J60 -> 225 | M155: =[2]Schedule!K60 -> 0
I156: Their Team | J156: OutLine Colors RGB | L156: Interior Colors RGB
I157: Game 5 | J157: Fill 1 | K157: Font 1 | L157: Fill 2 | M157: Font 2
I158: R | J158: =[2]Schedule!H63 -> 0 | K158: =[2]Schedule!I63 -> 242 | L158: =[2]Schedule!J63 -> 242 | M158: =[2]Schedule!K63 -> 0
I159: G | J159: =[2]Schedule!H64 -> 0 | K159: =[2]Schedule!I64 -> 242 | L159: =[2]Schedule!J64 -> 242 | M159: =[2]Schedule!K64 -> 0
I160: B | J160: =[2]Schedule!H65 -> 102 | K160: =[2]Schedule!I65 -> 242 | L160: =[2]Schedule!J65 -> 242 | M160: =[2]Schedule!K65 -> 102
I161: Their Team | J161: OutLine Colors RGB | L161: Interior Colors RGB
I162: Game 6 | J162: Fill 1 | K162: Font 1 | L162: Fill 2 | M162: Font 2
I163: R | J163: =[2]Schedule!H68 -> 22 | K163: =[2]Schedule!I68 -> 255 | L163: =[2]Schedule!J68 -> 242 | M163: =[2]Schedule!K68 -> 0
I164: G | J164: =[2]Schedule!H69 -> 54 | K164: =[2]Schedule!I69 -> 204 | L164: =[2]Schedule!J69 -> 220 | M164: =[2]Schedule!K69 -> 0
I165: B | J165: =[2]Schedule!H70 -> 92 | K165: =[2]Schedule!I70 -> 204 | L165: =[2]Schedule!J70 -> 219 | M165: =[2]Schedule!K70 -> 102
I166: Their Team | J166: OutLine Colors RGB | L166: Interior Colors RGB
I167: Game 7 | J167: Fill 1 | K167: Font 1 | L167: Fill 2 | M167: Font 2
I168: R | J168: =[2]Schedule!H73 -> 36 | K168: =[2]Schedule!I73 -> 255 | L168: =[2]Schedule!J73 -> 255 | M168: =[2]Schedule!K73 -> 255
I169: G | J169: =[2]Schedule!H74 -> 64 | K169: =[2]Schedule!I74 -> 255 | L169: =[2]Schedule!J74 -> 255 | M169: =[2]Schedule!K74 -> 51
I170: B | J170: =[2]Schedule!H75 -> 98 | K170: =[2]Schedule!I75 -> 255 | L170: =[2]Schedule!J75 -> 255 | M170: =[2]Schedule!K75 -> 0
I171: Their Team | J171: OutLine Colors RGB | L171: Interior Colors RGB
I172: Game 8 | J172: Fill 1 | K172: Font 1 | L172: Fill 2 | M172: Font 2
I173: R | J173: =[2]Schedule!H78 -> 0 | K173: =[2]Schedule!I78 -> 255 | L173: =[2]Schedule!J78 -> 255 | M173: =[2]Schedule!K78 -> 255
I174: G | J174: =[2]Schedule!H79 -> 0 | K174: =[2]Schedule!I79 -> 255 | L174: =[2]Schedule!J79 -> 255 | M174: =[2]Schedule!K79 -> 0
F175: Teams | I175: B | J175: =[2]Schedule!H80 -> 255 | K175: =[2]Schedule!I80 -> 255 | L175: =[2]Schedule!J80 -> 255 | M175: =[2]Schedule!K80 -> 0
F176: Seminoles | I176: Their Team | J176: OutLine Colors RGB | L176: Interior Colors RGB
F177: 49ers | I177: Game 9 | J177: Fill 1 | K177: Font 1 | L177: Fill 2 | M177: Font 2
F178: Bears | I178: R | J178: =[2]Schedule!H83 -> 0 | K178: =[2]Schedule!I83 -> 166 | L178: =[2]Schedule!J83 -> 166 | M178: =[2]Schedule!K83 -> 0
F179: Bengals | I179: G | J179: =[2]Schedule!H84 -> 0 | K179: =[2]Schedule!I84 -> 174 | L179: =[2]Schedule!J84 -> 174 | M179: =[2]Schedule!K84 -> 0
F180: Bills | I180: B | J180: =[2]Schedule!H85 -> 0 | K180: =[2]Schedule!I85 -> 176 | L180: =[2]Schedule!J85 -> 176 | M180: =[2]Schedule!K85 -> 0
F181: Broncos | I181: Their Team | J181: OutLine Colors RGB | L181: Interior Colors RGB
F182: Browns | I182: Game 10 | J182: Fill 1 | K182: Font 1 | L182: Fill 2 | M182: Font 2
F183: Buccaneers | I183: R | J183: =[2]Schedule!H88 -> 0 | K183: =[2]Schedule!I88 -> 166 | L183: =[2]Schedule!J88 -> 166 | M183: =[2]Schedule!K88 -> 0
F184: Cardinals | I184: G | J184: =[2]Schedule!H89 -> 0 | K184: =[2]Schedule!I89 -> 174 | L184: =[2]Schedule!J89 -> 174 | M184: =[2]Schedule!K89 -> 0
F185: Chargers | I185: B | J185: =[2]Schedule!H90 -> 0 | K185: =[2]Schedule!I90 -> 176 | L185: =[2]Schedule!J90 -> 176 | M185: =[2]Schedule!K90 -> 0
F186: Chiefs | I186: Their Team | J186: OutLine Colors RGB | L186: Interior Colors RGB
F187: Colts | I187: Game 11 | J187: Fill 1 | K187: Font 1 | L187: Fill 2 | M187: Font 2
F188: Cowboys | I188: R | J188: =[2]Schedule!H93 -> 0 | K188: =[2]Schedule!I93 -> 166 | L188: =[2]Schedule!J93 -> 166 | M188: =[2]Schedule!K93 -> 0
F189: Dolphins | I189: G | J189: =[2]Schedule!H94 -> 0 | K189: =[2]Schedule!I94 -> 174 | L189: =[2]Schedule!J94 -> 174 | M189: =[2]Schedule!K94 -> 0
F190: Eagles | I190: B | J190: =[2]Schedule!H95 -> 0 | K190: =[2]Schedule!I95 -> 176 | L190: =[2]Schedule!J95 -> 176 | M190: =[2]Schedule!K95 -> 0
F191: Falcons | I191: Their Team | J191: OutLine Colors RGB | L191: Interior Colors RGB
F192: Giants | I192: Game 12 | J192: Fill 1 | K192: Font 1 | L192: Fill 2 | M192: Font 2
F193: Jaguars | I193: R | J193: =[2]Schedule!H98 -> 0 | K193: =[2]Schedule!I98 -> 166 | L193: =[2]Schedule!J98 -> 166 | M193: =[2]Schedule!K98 -> 0
F194: Jets | I194: G | J194: =[2]Schedule!H99 -> 0 | K194: =[2]Schedule!I99 -> 174 | L194: =[2]Schedule!J99 -> 174 | M194: =[2]Schedule!K99 -> 0
F195: Lions | I195: B | J195: =[2]Schedule!H100 -> 0 | K195: =[2]Schedule!I100 -> 176 | L195: =[2]Schedule!J100 -> 176 | M195: =[2]Schedule!K100 -> 0
F196: Packers | I196: Their Team | J196: OutLine Colors RGB | L196: Interior Colors RGB
F197: Panthers | I197: Game 13 | J197: Fill 1 | K197: Font 1 | L197: Fill 2 | M197: Font 2
F198: Patriots | I198: R | J198: =[2]Schedule!H103 -> 0 | K198: =[2]Schedule!I103 -> 166 | L198: =[2]Schedule!J103 -> 166 | M198: =[2]Schedule!K103 -> 0
F199: Raiders | I199: G | J199: =[2]Schedule!H104 -> 0 | K199: =[2]Schedule!I104 -> 174 | L199: =[2]Schedule!J104 -> 174 | M199: =[2]Schedule!K104 -> 0
F200: Rams | I200: B | J200: =[2]Schedule!H105 -> 0 | K200: =[2]Schedule!I105 -> 176 | L200: =[2]Schedule!J105 -> 176 | M200: =[2]Schedule!K105 -> 0
F201: Ravens | I201: Their Team | J201: OutLine Colors RGB | L201: Interior Colors RGB
F202: Redskins | I202: Game 14 | J202: Fill 1 | K202: Font 1 | L202: Fill 2 | M202: Font 2
F203: Saints | I203: R | J203: =[2]Schedule!H108 -> 0 | K203: =[2]Schedule!I108 -> 166 | L203: =[2]Schedule!J108 -> 166 | M203: =[2]Schedule!K108 -> 0
F204: Seahawks | I204: G | J204: =[2]Schedule!H109 -> 0 | K204: =[2]Schedule!I109 -> 174 | L204: =[2]Schedule!J109 -> 174 | M204: =[2]Schedule!K109 -> 0
F205: Steelers | I205: B | J205: =[2]Schedule!H110 -> 0 | K205: =[2]Schedule!I110 -> 176 | L205: =[2]Schedule!J110 -> 176 | M205: =[2]Schedule!K110 -> 0
F206: Texans | I206: Their Team | J206: OutLine Colors RGB | L206: Interior Colors RGB
F207: Titans | I207: Game 15 | J207: Fill 1 | K207: Font 1 | L207: Fill 2 | M207: Font 2
F208: Vikings | I208: R | J208: =[2]Schedule!H113 -> 0 | K208: =[2]Schedule!I113 -> 166 | L208: =[2]Schedule!J113 -> 166 | M208: =[2]Schedule!K113 -> 0
F209: Texas A&M | I209: G | J209: =[2]Schedule!H114 -> 0 | K209: =[2]Schedule!I114 -> 174 | L209: =[2]Schedule!J114 -> 174 | M209: =[2]Schedule!K114 -> 0
F210: Default | I210: B | J210: =[2]Schedule!H115 -> 0 | K210: =[2]Schedule!I115 -> 176 | L210: =[2]Schedule!J115 -> 176 | M210: =[2]Schedule!K115 -> 0
I211: Their Team | J211: OutLine Colors RGB | L211: Interior Colors RGB
... 4 more rows

Sheet Game Stats
A1: Date: | B1: =+Teams!C3 -> 2020-10-30
A2: Home/Away: | B2: =+Teams!C4 -> Home
A3: Site: | B3: =IF(+Teams!C5="Overwrite Cell with Site","Change on Game Setup Tab",+Teams!C5) -> Valor Stadium
A4: City/State: | B4: =IF(+Teams!C6="Overwrite Cell with City/State","Change on Game Setup Tab",+Teams!C6) -> Highland Ranch, CO
A5: Attendance: | B5: =+Teams!C7 -> 300
A6: Weather: | B6: =+Teams!C8 -> Clear, 45
B7: ='Setup | Print'!E16&" "&'Setup | Print'!E17&" "&'Setup | Print'!F16&" "&'Setup | Print'!F17 -> 1st Qtr 2nd Qtr 3rd Qtr 4th Qtr
B8: =+Teams!A13 -> Valor | C8: =+Teams!B13 -> CastleV | H8: 0 | I8: 0
A9: Score: Total | B9: =+'Play Entry'!BF404 -> 63 | C9: =+'Play Entry'!BG404 -> 21 | H9: =IF(E9="",H8+0.001,I9) -> 0.001 | I9: =IF(E9="",I8,I8+1) -> 0
A10: Score by Quarter - 1st / 2nd / 3rd / 4th / OT | B10: 1 / 2 / 3 / 4 / OT | C10: 1 / 2 / 3 / 4 / OT | H10: 0.002 | I10: 0
A11: =IF('Play Entry'!CH405="","Score by Quarter - 1st / 2nd / 3rd / 4th","Score by Quarter - 1st / 2nd / 3rd / 4th / OTs") -> Score by Quarter - 1st / 2nd / 3rd / 4th | B11: =IF('Play Entry'!CH405<>"",+B12&" / "&B13&" / "&B14&" / "&B15&" / "&B16,+B12&" / "&B13&" / "&B14&" / "&B15) -> 7 / 28 / 21 / 7 | C11: =IF('Play Entry'!CI405<>"",+C12&" / "&C13&" / "&C14&" / "&C15&" / "&C16,+C12&" / "&C13&" / "&C14&" / "&C15) -> 7 / 7 / 0 / 7 | H11: 0.003 | I11: 0
A12: Points 1st Quarter | B12: =+'Play Entry'!BZ404 -> 7 | C12: =+'Play Entry'!CD404 -> 7 | H12: 0.004 | I12: 0
A13: Points 2nd Quarter | B13: =+'Play Entry'!CA404 -> 28 | C13: =+'Play Entry'!CE404 -> 7 | H13: 0.005 | I13: 0
A14: Points 3rd Quarter | B14: =+'Play Entry'!CB404 -> 21 | C14: =+'Play Entry'!CF404 -> 0 | H14: 0.006 | I14: 0
A15: Points 4th Quarter | B15: =+'Play Entry'!CC404 -> 7 | C15: =+'Play Entry'!CG404 -> 7 | H15: 0.007 | I15: 0
A16: Points Overtime | B16: =+'Play Entry'!CH404 -> 0 | C16: =+'Play Entry'!CI404 -> 0 | H16: 0.008 | I16: 0
A17: First Downs: Total | B17: =SUM(B19:B21) -> 20 | C17: =SUM(C19:C21) -> 13 | H17: 0.009 | I17: 0
A18: First Downs: Rush / Pass / Penalty | B18: =+B19&" / "&B20&" / "&B21 -> 13 / 7 / 0 | C18: =+C19&" / "&C20&" / "&C21 -> 6 / 5 / 2 | H18: 0.01 | I18: 0
A19: First Downs - Rushing | B19: =+'Play Entry'!$BH405 -> 13 | C19: =+'Play Entry'!$BI405 -> 6 | H19: 0.011 | I19: 0
A20: First Downs - Passing | B20: =+'Play Entry'!$BH404 -> 7 | C20: =+'Play Entry'!$BI404 -> 5 | H20: 0.012 | I20: 0
A21: First Downs - Penalty | B21: =+'Play Entry'!$BH406 -> 0 | C21: =+'Play Entry'!$BI406 -> 2 | H21: 0.013 | I21: 0
A22: Rushing Attempts | B22: =+'Raw Stats'!J103 -> 22 | C22: =+'Raw Stats'!J206 -> 44 | H22: 0.014 | I22: 0
A23: Net Yards Rushing | B23: =+'Raw Stats'!K103 -> 304 | C23: =+'Raw Stats'!K206 -> 204 | H23: 0.015 | I23: 0
A24: Yards per Rush | B24: =IF($B22=0,"",+B23/B22) -> 13.81818182 | C24: =IF($C22=0,"",+C23/C22) -> 4.636363636 | H24: 0.016 | I24: 0
A25: Longest Rush | B25: =+'Raw Stats'!BG103 -> 71 | C25: =+'Raw Stats'!BG206 -> 71 | H25: 0.017 | I25: 0
A26: Rushing Touchdowns | B26: =+'Raw Stats'!L103 -> 7 | C26: =+'Raw Stats'!L206 -> 3 | H26: 0.018 | I26: 0
A27: Rushing Yards after Contact | B27: =+'Raw Stats'!BM103 -> 0 | C27: =+'Raw Stats'!BM206 -> 0 | H27: 0.019 | I27: 0
A28: Passing: Net Yards | B28: =+'Raw Stats'!H103 -> 162 | C28: =+'Raw Stats'!H206 -> 108 | H28: 0.02 | I28: 0
A29: Passing: Completed - Attempted - Intercepted | B29: =+B31&" / "&B30&" / "&B35 -> 11 / 16 / 0 | C29: =+C31&" / "&C30&" / "&C35 -> 9 / 16 / 1 | H29: 0.021 | I29: 0
A30: Passes Attempted | B30: =+'Raw Stats'!D103 -> 16 | C30: =+'Raw Stats'!D206 -> 16 | H30: 0.022 | I30: 0
A31: Passes Completed | B31: =+'Raw Stats'!F103 -> 11 | C31: =+'Raw Stats'!F206 -> 9 | H31: 0.023 | I31: 0
A32: Yards per Completion | B32: =IF($B31=0,"",+B28/B31) -> 14.72727273 | C32: =IF($C31=0,"",+C28/C31) -> 12 | H32: 0.024 | I32: 0
A33: Longest Pass Completion | B33: =+'Raw Stats'!BE103 -> 48 | C33: =+'Raw Stats'!BE206 -> 24 | H33: 0.025 | I33: 0
A34: Passing: Touchdowns | B34: =+'Raw Stats'!I103 -> 1 | C34: =+'Raw Stats'!I206 -> 0 | H34: 0.026 | I34: 0
A35: Had Intercepted | B35: =+'Raw Stats'!G103 -> 0 | C35: =+'Raw Stats'!G206 -> 1 | H35: 0.027 | I35: 0
A36: Yards after Catch | B36: =+'Raw Stats'!BL103 -> 0 | C36: =+'Raw Stats'!BL206 -> 0 | H36: 0.028 | I36: 0
A37: Pass Efficiency Rating | B37: =IF($B30=0,"",(B28/B30*8.4)+(B31/B30*100)+(B34/B30*100*3.3)-(B35/B30*100*2)) -> 174.425 | C37: =IF($C30=0,"",(C28/C30*8.4)+(C31/C30*100)+(C34/C30*100*3.3)-(C35/C30*100*2)) -> 100.45 | H37: 0.029 | I37: 0
A38: Total Offensive Plays | B38: =+B22+B30 -> 38 | C38: =+C22+C30 -> 60 | H38: 0.03 | I38: 0
A39: Total Net Yards | B39: =+B23+B28 -> 466 | C39: =+C23+C28 -> 312 | H39: 0.031 | I39: 0
A40: Average Gain per Play | B40: =IF($B38=0,"",+B39/B38) -> 12.26315789 | C40: =IF($C38=0,"",C39/C38) -> 5.2 | H40: 0.032 | I40: 0
A41: 1st Down Plays: Number / Average Yds. | B41: =+'Play Entry'!CJ405&" / "&'Play Entry'!CJ407 -> 21 / 11.1 | C41: =+'Play Entry'!CK405&" / "&'Play Entry'!CK407 -> 23 / 3.6 | H41: =IF(E41="",H40+0.001,I41) -> 0.033 | I41: =IF(E41="",I40,I40+1) -> 0
A42: 2nd Down Plays: Number / Average Yds. | B42: =+'Play Entry'!CL405&" / "&'Play Entry'!CL407 -> 11 / 7.4 | C42: =+'Play Entry'!CM405&" / "&'Play Entry'!CM407 -> 20 / 7.7 | H42: 0.034 | I42: 0
A43: 3rd Down Plays: Number / Average Yds. | B43: =+'Play Entry'!CN405&" / "&'Play Entry'!CN407 -> 5 / 28 | C43: =+'Play Entry'!CO405&" / "&'Play Entry'!CO407 -> 11 / 6.5 | H43: 0.035 | I43: 0
A44: 4th Down Plays: Number / Average Yds. | B44: =+'Play Entry'!CP405&" / "&'Play Entry'!CP407 -> 1 / 12 | C44: =+'Play Entry'!CQ405&" / "&'Play Entry'!CQ407 -> 6 / 1 | H44: 0.036 | I44: 0
A45: Fumbles: Number/Lost | B45: =+B46&" / "&B47 -> 1 / 1 | C45: =+C46&" / "&C47 -> 1 / 0 | H45: 0.037 | I45: 0
A46: Fumbles - Number | B46: =+'Raw Stats'!AY206+'Raw Stats'!BU103 -> 1 | C46: =+'Raw Stats'!AY103+'Raw Stats'!BU206 -> 1 | H46: 0.038 | I46: 0
A47: Fumbles - Lost | B47: =+'Raw Stats'!AY206 -> 1 | C47: =+'Raw Stats'!AY103 -> 0 | H47: 0.039 | I47: 0
A48: Total Turnovers (fumbles lost & INTs) | B48: =+B47+B35 -> 1 | C48: =+C47+C35 -> 1 | H48: 0.04 | I48: 0
A49: Turnover Margin (fumbles & INTs) | B49: =IF(B48=C48,"even",IF(B48>C48,"-"&B48-C48,"+"&ABS(B48-C48))) -> even | C49: =IF(C48=B48,"even",IF(C48>B48,"-"&C48-B48,"+"&ABS(C48-B48))) -> even | H49: 0.041 | I49: 0
A50: Penalties - Total Number | B50: =+B53+B56 -> 8 | C50: =+C53+C56 -> 1 | H50: 0.042 | I50: 0
A51: Total Yards Penalized | B51: =+B54+B57 -> 80 | C51: =+C54+C57 -> 5 | H51: 0.043 | I51: 0
A52: All Penalties: Number - Yards | B52: =+B50&" - "&B51 -> 8 - 80 | C52: =+C50&" - "&C51 -> 1 - 5 | H52: 0.044 | I52: 0
A53: Offensive Penalties - Number | B53: =+'Our Penalty Worksheet'!I4 -> 3 | C53: =+'Their Penalty Worksheet'!I4 -> 1 | H53: 0.045 | I53: 0
A54: Offensive Penalties - Yards | B54: =+'Our Penalty Worksheet'!I3 -> 25 | C54: =+'Their Penalty Worksheet'!I3 -> 5 | H54: 0.046 | I54: 0
A55: Offensive Penalties: Number - Yards | B55: =+B53&" - "&B54 -> 3 - 25 | C55: =+C53&" - "&C54 -> 1 - 5 | H55: 0.047 | I55: 0
A56: Defensive Penalties - Number | B56: =+'Our Penalty Worksheet'!H4 -> 5 | C56: =+'Their Penalty Worksheet'!H4 -> 0 | H56: 0.048 | I56: 0
A57: Defensive Penalties - Yards | B57: =+'Our Penalty Worksheet'!H3 -> 55 | C57: =+'Their Penalty Worksheet'!H3 -> 0 | H57: 0.049 | I57: 0
A58: Defensive Penalties: Number - Yards | B58: =+B56&" - "&B57 -> 5 - 55 | C58: =+C56&" - "&C57 -> 0 - 0 | H58: 0.05 | I58: 0
A59: Punts: Number - Yards - Long | B59: =+'Raw Stats'!Y103&" - "&+'Raw Stats'!Z103&" - "&+'Raw Stats'!BH103 -> 0 - 0 - 0 | C59: =+'Raw Stats'!Y206&" - "&+'Raw Stats'!Z206&" - "&+'Raw Stats'!BH206 -> 2 - 49 - 29 | H59: 0.051 | I59: 0
A60: Yards per Punt | B60: =IF('Raw Stats'!Y103=0,"",+'Raw Stats'!Z103/'Raw Stats'!Y103) ->  | C60: =IF('Raw Stats'!Y206=0,"",+'Raw Stats'!Z206/'Raw Stats'!Y206) -> 24.5 | H60: 0.052 | I60: 0
A61: Punts inside 20 | B61: =+'Raw Stats'!AA103 -> 0 | C61: =+'Raw Stats'!AA206 -> 0 | H61: 0.053 | I61: 0
A62: Punt Returns: Number - Yards - Long | B62: =+'Raw Stats'!AH103&" - "&+'Raw Stats'!AI103&" - "&+'Raw Stats'!BI103 -> 1 - 3 - 3 | C62: =+'Raw Stats'!AH206&" - "&+'Raw Stats'!AI206&" - "&+'Raw Stats'!BI206 -> 0 - 0 - 0 | H62: 0.054 | I62: 0
A63: Punt Returns: Average Return | B63: =IF('Raw Stats'!AH103=0,"",+'Raw Stats'!AI103/'Raw Stats'!AH103) -> 3 | C63: =IF('Raw Stats'!AH206=0,"",+'Raw Stats'!AI206/'Raw Stats'!AH206) ->  | H63: 0.055 | I63: 0
A64: Punt Returns: Touchdowns | B64: =+'Raw Stats'!AJ103 -> 0 | C64: =+'Raw Stats'!AJ206 -> 0 | H64: 0.056 | I64: 0
A65: Kick Returns: Number - Yards - Long | B65: =+'Raw Stats'!AE103&" - "&+'Raw Stats'!AF103&" - "&+'Raw Stats'!BJ103 -> 2 - 105 - 14 | C65: =+'Raw Stats'!AE206&" - "&+'Raw Stats'!AF206&" - "&+'Raw Stats'!BJ206 -> 10 - 142 - 19 | H65: 0.057 | I65: 0
A66: Kickoff Returns: Average Return | B66: =IF('Raw Stats'!AE103=0,"",+'Raw Stats'!AF103/'Raw Stats'!AE103) -> 52.5 | C66: =IF('Raw Stats'!AE206=0,"",+'Raw Stats'!AF206/'Raw Stats'!AE206) -> 14.2 | H66: 0.058 | I66: 0
A67: Kickoff Returns: Touchdowns | B67: =+'Raw Stats'!AG103 -> 1 | C67: =+'Raw Stats'!AG206 -> 0 | H67: 0.059 | I67: 0
A68: Interceptions: Number - Yards - TDs | B68: =+B69&" - "&B70&" - "&B71 -> 1 - 0 - 0 | C68: =+C69&" - "&C70&" - "&C71 -> 0 - 0 - 0 | H68: 0.06 | I68: 0
A69: Interceptions - Number | B69: =+'Raw Stats'!AU103 -> 1 | C69: =+'Raw Stats'!AU206 -> 0 | H69: 0.061 | I69: 0
A70: Interceptions - Total Return Yards | B70: =+'Raw Stats'!AV103 -> 0 | C70: =+'Raw Stats'!AV206 -> 0 | H70: 0.062 | I70: 0
A71: Interceptions - Touchdowns | B71: =+'Raw Stats'!AW103 -> 0 | C71: =+'Raw Stats'!AW206 -> 0 | H71: 0.063 | I71: 0
A72: Fumble Recoveries: Number - Yards - TDs | B72: =+B73&" - "&B74&" - "&B75 -> 0 - 0 - 0 | C72: =+C73&" - "&C74&" - "&C75 -> 1 - 0 - 0 | H72: 0.064 | I72: 0
A73: Fumble Recovery - Number | B73: =+'Raw Stats'!AY103 -> 0 | C73: =+'Raw Stats'!AY206 -> 1 | H73: =IF(E73="",H72+0.001,I73) -> 0.065 | I73: =IF(E73="",I72,I72+1) -> 0
A74: Fumble Recovery - Total Return Yards | B74: =+'Raw Stats'!AZ103 -> 0 | C74: =+'Raw Stats'!AZ206 -> 0 | H74: 0.066 | I74: 0
A75: Fumble Recovery - Touchdowns | B75: =+'Raw Stats'!BA103 -> 0 | C75: =+'Raw Stats'!BA206 -> 0 | H75: 0.067 | I75: 0
A76: Time of Possession: Total | B76: =SUM(B77:B78) -> 0.6631944444 | C76: =SUM(C77:C78) -> 1.336805556 | H76: 0.068 | I76: 0
A77: Time of Possession: 1st Half | B77: =+'Play Entry'!BT404 -> 0.1666666667 | C77: =+'Play Entry'!BV404 -> 0.8333333333 | H77: 0.069 | I77: 0
A78: Time of Possession: 2nd Half | B78: =+'Play Entry'!BU404 -> 0.4965277778 | C78: =+'Play Entry'!BW404 -> 0.5034722222 | H78: 0.07 | I78: 0
A79: 3rd Downs: Number Converted / Number | B79: =+B81&" / "&B80 -> 4 / 5 | C79: =+C81&" / "&C80 -> 3 / 11 | H79: 0.071 | I79: 0
A80: Number of 3rd Downs | B80: =+'Play Entry'!BX404+'Play Entry'!BX405 -> 5 | C80: =+'Play Entry'!BY404+'Play Entry'!BY405 -> 11 | H80: 0.072 | I80: 0
A81: Number of 3rd Downs Converted | B81: =+'Play Entry'!BX404 -> 4 | C81: =+'Play Entry'!BY404 -> 3 | H81: 0.073 | I81: 0
A82: 3rd Down Conversion Percentage | B82: =IF(B80=0,"",+B81/B80) -> 0.8 | C82: =IF(C80=0,"",+C81/C80) -> 0.2727272727 | H82: 0.074 | I82: 0
A83: 4th Downs: Number Converted / Number | B83: =+B85&" / "&B84 -> 1 / 1 | C83: =+C85&" / "&C84 -> 3 / 6 | H83: 0.075 | I83: 0
A84: Number of 4th Downs (attempted) | B84: =+'Play Entry'!BX406+'Play Entry'!BX407 -> 1 | C84: =+'Play Entry'!BY406+'Play Entry'!BY407 -> 6 | H84: 0.076 | I84: 0
A85: Number of 4th Downs Converted | B85: =+'Play Entry'!BX406 -> 1 | C85: =+'Play Entry'!BY406 -> 3 | H85: 0.077 | I85: 0
A86: 4th Down Conversion Percentage | B86: =IF(B84=0,"",+B85/B84) -> 1 | C86: =IF(C84=0,"",+C85/C84) -> 0.5 | H86: 0.078 | I86: 0
A87: Sacks (by): Number & Yards | B87: =+B88&" for "&B89&" yds." -> 2 for -3 yds. | C87: =+C88&" for "&C89&" yds." -> 1 for -1 yds. | H87: 0.079 | I87: 0
A88: Sacks (by): Number | B88: =+'Raw Stats'!AM103+'Raw Stats'!AN103 -> 2 | C88: =+'Raw Stats'!AM206+'Raw Stats'!AN206 -> 1 | H88: 0.08 | I88: 0
A89: Sacks (by): Yards | B89: =+'Raw Stats'!AO103 -> -3 | C89: =+'Raw Stats'!AO206 -> -1 | H89: 0.081 | I89: 0
A90: Tackle for Loss (by): Number & Yds (no sacks) | B90: =+B91&" for "&B92&" yds." -> 4 for -20 yds. | C90: =+C91&" for "&C92&" yds." -> 0 for 0 yds. | H90: 0.082 | I90: 0
A91: Tackle for Loss: Number (no sacks) | B91: =+'Raw Stats'!AP103+'Raw Stats'!AQ103 -> 4 | C91: =+'Raw Stats'!AP206+'Raw Stats'!AQ206 -> 0 | H91: 0.083 | I91: 0
A92: Tackle for Loss: Yards (no sacks) | B92: =+'Raw Stats'!AR103 -> -20 | C92: =+'Raw Stats'!AR206 -> 0 | H92: 0.084 | I92: 0
A93: Field Goals: Made - Attempted | B93: =+B94&" - "&B95 -> 0 - 0 | C93: =+C94&" - "&C95 -> 0 - 0 | H93: 0.085 | I93: 0
A94: Field Goals Made | B94: =+'Raw Stats'!Q103 -> 0 | C94: =+'Raw Stats'!Q206 -> 0 | H94: 0.086 | I94: 0
A95: Field Goals Attempted | B95: =+'Raw Stats'!Q103+'Raw Stats'!R103 -> 0 | C95: =+'Raw Stats'!Q206+'Raw Stats'!R206 -> 0 | H95: 0.087 | I95: 0
A96: Longest Field Goal Made | B96: =+'Raw Stats'!S103 -> 0 | C96: =+'Raw Stats'!S206 -> 0 | H96: 0.088 | I96: 0
A97: Extra Points: Made - Attempted | B97: =+B98&" - "&B99 -> 9 - 9 | C97: =+C98&" - "&C99 -> 3 - 3 | H97: 0.089 | I97: 0
A98: Extra Points Made | B98: =+'Raw Stats'!T103 -> 9 | C98: =+'Raw Stats'!T206 -> 3 | H98: 0.09 | I98: 0
A99: Extra Points Attempted | B99: =+'Raw Stats'!T103+'Raw Stats'!U103 -> 9 | C99: =+'Raw Stats'!T206+'Raw Stats'!U206 -> 3 | H99: 0.091 | I99: 0
A100: Number of Drives | B100: =+'Play-by-Play Summary'!M403 -> 9 | C100: =+'Play-by-Play Summary'!M404 -> 12 | H100: 0.092 | I100: 0
A101: Average Drive Start | B101: =IF('Play-by-Play Summary'!N403<=50,'Play-by-Play Summary'!N403,"* "&100-'Play-by-Play Summary'!N403) -> 49 | C101: =IF('Play-by-Play Summary'!N404<=50,'Play-by-Play Summary'!N404,"* "&100-'Play-by-Play Summary'!N404) -> 27.83333333 | H101: 0.093 | I101: 0
A102: Red Zone Chances - Scores | B102: =+'Play Entry'!$CV$410&"-"&'Play Entry'!$CV$412 -> 4-4 | C102: =+'Play Entry'!$CV$411&"-"&'Play Entry'!$CV$413 -> 2-2 | H102: 0.094 | I102: 0
A103: Red Zone Scores Breakdown | B103: ="TDs: "&'Play Entry'!$CV$406&", FGs: "&'Play Entry'!$CV$408 -> TDs: 4, FGs: 0 | C103: ="TDs: "&'Play Entry'!$CV$407&", FGs: "&'Play Entry'!$CV$409 -> TDs: 2, FGs: 0 | H103: 0.095 | I103: 0
A104: Attendance | B104: =IF(B2="home",B5,"") -> 300 | C104: =IF(B2="Away",B5,"") ->  | H104: 0.096 | I104: 0

Sheet GSws (hidden)
A1: Count | B1: Poss | C1: Plays | D1: Yards | E1: Down | F1: Distance | O1: Current | P1: Current | Q1: Current | R1: Current drive | S1: Current drive | U1: Last: | Y1: Rusher | AD1: Passer | AK1: Receiver | AR1: Rusher | AX1: Passer | BF1: Receiver | BM1: Tackler or Sacker 1 | CI1: Tackler or Sacker 2 | DE1: Kicker or Punter
A2: =IF('Play Entry'!J8="","",+'Play-by-Play Summary'!C7) -> 1 | B2: ='Play Entry'!I8 -> 0 | C2: =+'Play-by-Play Summary'!Q7 -> 0 | D2: =+'Play-by-Play Summary'!P7 -> 0 | E2: =+'Play-by-Play Summary'!J7 ->  | F2: =+'Play Entry'!L8 ->  | G2: =+'Play Entry'!J8 -> CastleV | H2: =+'Play-by-Play Summary'!R7 ->  | I2: =+'Play-by-Play Summary'!AE7 -> Kicked off by 20 (Sean Fields) to the 4; returned by 7 (Blake Haggerty) to the 20 yard line | O2: Down | P2: Distance | Q2: Yardline | R2: plays | S2: yards | T2: Poss | U2: =LARGE(A2:A400,1)-10 -> 146 | X2: Last Plays | Y2: Number | Z2: Name | AA2: Rushes | AB2: Yards | AC2: TDS | AD2: Number | AE2: Name | AF2: Passes | AG2: Completions | AH2: Yards | AI2: TDs | AJ2: INTs | AK2: Number | AL2: Name | AM2: Targeted | AN2: Completions | AO2: Yards | AP2: TDs
A3: =IF('Play Entry'!J9="","",+'Play-by-Play Summary'!C8) -> 2 | B3: ='Play Entry'!I9 -> 0 | C3: =+'Play-by-Play Summary'!Q8 -> 1 | D3: =+'Play-by-Play Summary'!P8 -> 8 | E3: =+'Play-by-Play Summary'!J8 -> 1st | F3: =+'Play Entry'!L9 -> 10 | G3: =+'Play Entry'!J9 -> CastleV | H3: =+'Play-by-Play Summary'!R8 -> from the 20 yard line | I3: =+'Play-by-Play Summary'!AE8 -> Rush (left) by 28 (Noah Jamero) for a gain of 8. Tackle by 7 (Eli Hamilton) | O3: =LOOKUP(MAX($A$1:$A$397),$A$1:$A$397,$E$1:$E$397) -> 1st | P3: =LOOKUP(MAX($A$1:$A$397),$A$1:$A$397,$F$1:$F$397) -> 10 | Q3: =LOOKUP(MAX($A$1:$A$397),$A$1:$A$397,$H$1:$H$397) -> from the 35 yard line | R3: =IF(LOOKUP(MAX($A$1:$A$397),$A$1:$A$397,$C$1:$C$397)="",LOOKUP(LARGE($A$1:$A$397,2),$A$1:$A$397,$C$1:$C$397),LOOKUP(LARGE($A$1:$A$397,1),$A$1:$A$397,$C$1:$C$397)) -> 1 | S3: =IF(LOOKUP(MAX($A$1:$A$397),$A$1:$A$397,$D$1:$D$397)="",LOOKUP(LARGE($A$1:$A$397,2),$A$1:$A$397,$D$1:$D$397),LOOKUP(LARGE($A$1:$A$397,1),$A$1:$A$397,$D$1:$D$397)) -> 19 | T3: =LOOKUP(LARGE($A$1:$A$397,1),$A$1:$A$397,$G$1:$G$397) -> CastleV | U3: =IF(MAX(A$1:A$397)<1,"",LOOKUP(LARGE($A$1:$A$397,1),$A$1:$A$397,$E$1:$E$397)) -> 1st | V3: =LOOKUP(LARGE($A$1:$A$397,1),$A$1:$A$397,$F$1:$F$397) -> 10 | W3: =LOOKUP(LARGE($A$1:$A$397,1),$A$1:$A$397,$H$1:$H$397) -> from the 35 yard line | X3: =IF(MAX(A$1:A$397)<1,"",LOOKUP(LARGE($A$1:$A$397,1),$A$1:$A$397,$I$1:$I$397)) -> Rush (right) by 28 (Noah Jamero) for a gain of 4. Tackles by 33 (Max Soderquist), 34 (Roman Bradley) | AR3: Y/N | AS3: Number | AT3: Name | AU3: Rushes | AV3: Yards | AW3: TDs | AX3: Y/N | AY3: Number | AZ3: Name | BA3: Passes | BB3: Completions | BC3: Yards | BD3: TDs | BE3: INTs | BF3: Y/N | BG3: Number | BH3: Name | BI3: Targeted | BJ3: Completions | BK3: Yards | BL3: TDs | BM3: Y/N | BN3: Tackle1 | BO3: Sack1 | BP3: Number | BQ3: Name | BR3: All Unassisted Tackles | BS3: All assists | BT3: Unassisted Sacks | BU3: Sack Assists | BV3: Sack Yards | BW3: Unassisted TFL (no sacks) | BX3: TFL Assists (no sacks) | BY3: TFL Yards (no sacks) | BZ3: QB Hurries | CA3: Breakups | CB3: INTs | CC3: INT return Yards | CD3: INT Return TDs | CE3: Fumbles Caused | CF3: Fumbles Recovered | CG3: Fumble return Yards | CH3: Fumble Return TDs | CI3: Y/N | CJ3: Tackle2 | CK3: Sack2 | CL3: Number | CM3: Name | CN3: All Unassisted Tackles | CO3: All assists | CP3: Unassisted Sacks | CQ3: Sack Assists | CR3: Sack Yards | CS3: Unassisted TFL (no sacks) | CT3: TFL Assists (no sacks) | CU3: TFL Yards (no sacks) | CV3: QB Hurries | CW3: Breakups | CX3: INTs | CY3: INT return Yards | CZ3: INT Return TDs | DA3: Fumbles Caused | DB3: Fumbles Recovered | DC3: Fumble return Yards | DD3: Fumble Return TDs | DE3: Y/N | DF3: Number | DG3: Name | DH3: Field Goals Made | DI3: Field Goals Missed | DJ3: Max FG | DK3: Xtra PTs Made | DL3: Xtra PTs Missed | DM3: Kickoffs | DN3: K-off Yards Total | DO3: Touch-backs | DP3: Punts | DQ3: Punt Yards Total | DR3: Punts Inside 20 | DS3: Punts Fair Caught | DT3: Punts T-backs | DU3: Punts Downed
A4: =IF('Play Entry'!J10="","",+'Play-by-Play Summary'!C9) -> 3 | B4: ='Play Entry'!I10 -> 0 | C4: =+'Play-by-Play Summary'!Q9 -> 2 | D4: =+'Play-by-Play Summary'!P9 -> 12 | E4: =+'Play-by-Play Summary'!J9 -> 2nd | F4: =+'Play Entry'!L10 -> 2 | G4: =+'Play Entry'!J10 -> CastleV | H4: =+'Play-by-Play Summary'!R9 -> from the 28 yard line | I4: =+'Play-by-Play Summary'!AE9 -> Pass (screen right) from 6 (Johnny Colombi) intended for 4 (Jens Anderson) complete for a gain of 4. Tackles by 7 (Eli Hamilton), 41 (Cayden Hawkins) | T4: =LOOKUP(LARGE($A$1:$A$397,2),$A$1:$A$397,$G$1:$G$397) -> CastleV | U4: =IF(MAX(A$1:A$397)<2,"",LOOKUP(LARGE($A$1:$A$397,2),$A$1:$A$397,$E$1:$E$397)) -> 1st | V4: =LOOKUP(LARGE($A$1:$A$397,2),$A$1:$A$397,$F$1:$F$397) -> 5 | W4: =LOOKUP(LARGE($A$1:$A$397,2),$A$1:$A$397,$H$1:$H$397) -> from the 40 yard line | X4: =IF(MAX(A$1:A$397)<2,"",LOOKUP(LARGE($A$1:$A$397,2),$A$1:$A$397,$I$1:$I$397)) -> 5 yard penalty assessed on the offense.. Comment: false start | Y4: =IF(MAX($A$1:$A$397)<2,"",LOOKUP(LARGE($A$1:$A$397,2),$A$1:$A$397,AS$1:AS$397)) ->  | Z4: =IF(MAX($A$1:$A$397)<2,"",LOOKUP(LARGE($A$1:$A$397,2),$A$1:$A$397,AT$1:AT$397)) ->  | AA4: =IF(MAX($A$1:$A$397)<2,"",LOOKUP(LARGE($A$1:$A$397,2),$A$1:$A$397,AU$1:AU$397)) ->  | AB4: =IF(MAX($A$1:$A$397)<2,"",LOOKUP(LARGE($A$1:$A$397,2),$A$1:$A$397,$AV$1:$AV$397)) ->  | AC4: =IF(MAX($A$1:$A$397)<2,"",LOOKUP(LARGE($A$1:$A$397,2),$A$1:$A$397,$AW$1:$AW$397)) ->  | AD4: =IF(MAX($A$1:$A$397)<2,"",LOOKUP(LARGE($A$1:$A$397,2),$A$1:$A$397,AY$1:AY$397)) ->  | AK4: =IF(MAX($A$1:$A$397)<2,"",LOOKUP(LARGE($A$1:$A$397,2),$A$1:$A$397,BG$1:BG$397)) ->  | AR4: =IF('Play-by-Play Summary'!AS9="","",'Play-by-Play Summary'!AS9) ->  | AS4: =IF($AR4="","",LOOKUP($AR4,'Raw Stats'!$B$3:$B$205,'Raw Stats'!A$3:A$205)) ->  | AT4: =IF($AR4="","",LOOKUP($AR4,'Raw Stats'!$B$3:$B$205,'Raw Stats'!C$3:C$205)) ->  | AU4: =IF($AR4="","",LOOKUP($AR4,'Raw Stats'!$B$3:$B$205,'Raw Stats'!J$3:J$205)) ->  | AV4: =IF($AR4="","",LOOKUP($AR4,'Raw Stats'!$B$3:$B$205,'Raw Stats'!K$3:K$205)) ->  | AW4: =IF($AR4="","",LOOKUP($AR4,'Raw Stats'!$B$3:$B$205,'Raw Stats'!L$3:L$205)) ->  | AX4: =IF('Play-by-Play Summary'!AN9="","",'Play-by-Play Summary'!AN9) -> 106 | AY4: =IF($AX4="","",LOOKUP($AX4,'Raw Stats'!$B$3:$B$205,'Raw Stats'!A$3:A$205)) -> 6 | AZ4: =IF($AX4="","",LOOKUP($AX4,'Raw Stats'!$B$3:$B$205,'Raw Stats'!C$3:C$205)) -> Johnny Colombi | BA4: =IF($AX4="","",LOOKUP($AX4,'Raw Stats'!$B$3:$B$205,'Raw Stats'!D$3:D$205)) -> 15 | BB4: =IF($AX4="","",LOOKUP($AX4,'Raw Stats'!$B$3:$B$205,'Raw Stats'!F$3:F$205)) -> 8 | BC4: =IF($AX4="","",LOOKUP($AX4,'Raw Stats'!$B$3:$B$205,'Raw Stats'!H$3:H$205)) -> 88 | BD4: =IF($AX4="","",LOOKUP($AX4,'Raw Stats'!$B$3:$B$205,'Raw Stats'!I$3:I$205)) -> 0 | BE4: =IF($AX4="","",LOOKUP($AX4,'Raw Stats'!$B$3:$B$205,'Raw Stats'!G$3:G$205)) -> 1 | BF4: =IF('Play-by-Play Summary'!AV9="","",'Play-by-Play Summary'!AV9) -> 104 | BG4: =IF($BF4="","",LOOKUP($BF4,'Raw Stats'!$B$3:$B$205,'Raw Stats'!A$3:A$205)) -> 4 | BH4: =IF($BF4="","",LOOKUP($BF4,'Raw Stats'!$B$3:$B$205,'Raw Stats'!C$3:C$205)) -> Jens Anderson | BI4: =IF($BF4="","",LOOKUP($BF4,'Raw Stats'!$B$3:$B$205,'Raw Stats'!M$3:M$205)) -> 6 | BJ4: =IF($BF4="","",LOOKUP($BF4,'Raw Stats'!$B$3:$B$205,'Raw Stats'!N$3:N$205)) -> 4 | BK4: =IF($BF4="","",LOOKUP($BF4,'Raw Stats'!$B$3:$B$205,'Raw Stats'!O$3:O$205)) -> 32 | BL4: =IF($BF4="","",LOOKUP($BF4,'Raw Stats'!$B$3:$B$205,'Raw Stats'!P$3:P$205)) -> 0 | BM4: =IF(BO4="",BN4,BO4) -> 7 | BN4: =IF('Play Entry'!$W10="","",IF($G4=Teams!$B$13,'Play Entry'!$W10,IF($G4=Teams!$A$13,'Play Entry'!$W10+100,""))) -> 7 | BO4: =IF('Play Entry'!$Z10="","",IF($G4=Teams!$B$13,'Play Entry'!$Z10,IF($G4=Teams!$A$13,'Play Entry'!$Z10+100,""))) ->  | BP4: =IF($BM4="","",LOOKUP($BM4,'Raw Stats'!$B$3:$B$205,'Raw Stats'!A$3:A$205)) -> 7 | BQ4: =IF($BM4="","",LOOKUP($BM4,'Raw Stats'!$B$3:$B$205,'Raw Stats'!C$3:C$205)) -> Eli Hamilton | BR4: =IF($BM4="","",LOOKUP($BM4,'Raw Stats'!$B$3:$B$205,'Raw Stats'!AK$3:AK$205)) -> 3 | BS4: =IF($BM4="","",LOOKUP($BM4,'Raw Stats'!$B$3:$B$205,'Raw Stats'!AL$3:AL$205)) -> 14 | BT4: =IF($BM4="","",LOOKUP($BM4,'Raw Stats'!$B$3:$B$205,'Raw Stats'!AM$3:AM$205)) -> 0 | BU4: =IF($BM4="","",LOOKUP($BM4,'Raw Stats'!$B$3:$B$205,'Raw Stats'!AN$3:AN$205)) -> 0 | BV4: =IF($BM4="","",LOOKUP($BM4,'Raw Stats'!$B$3:$B$205,'Raw Stats'!AO$3:AO$205)) -> 0 | BW4: =IF($BM4="","",LOOKUP($BM4,'Raw Stats'!$B$3:$B$205,'Raw Stats'!AP$3:AP$205)) -> 1 | BX4: =IF($BM4="","",LOOKUP($BM4,'Raw Stats'!$B$3:$B$205,'Raw Stats'!AQ$3:AQ$205)) -> 0 | BY4: =IF($BM4="","",LOOKUP($BM4,'Raw Stats'!$B$3:$B$205,'Raw Stats'!AR$3:AR$205)) -> -2 | BZ4: =IF($BM4="","",LOOKUP($BM4,'Raw Stats'!$B$3:$B$205,'Raw Stats'!AS$3:AS$205)) -> 0 | CA4: =IF($BM4="","",LOOKUP($BM4,'Raw Stats'!$B$3:$B$205,'Raw Stats'!AT$3:AT$205)) -> 0 | CB4: =IF($BM4="","",LOOKUP($BM4,'Raw Stats'!$B$3:$B$205,'Raw Stats'!AU$3:AU$205)) -> 0 | CC4: =IF($BM4="","",LOOKUP($BM4,'Raw Stats'!$B$3:$B$205,'Raw Stats'!AV$3:AV$205)) -> 0 | CD4: =IF($BM4="","",LOOKUP($BM4,'Raw Stats'!$B$3:$B$205,'Raw Stats'!AW$3:AW$205)) -> 0 | CE4: =IF($BM4="","",LOOKUP($BM4,'Raw Stats'!$B$3:$B$205,'Raw Stats'!AX$3:AX$205)) -> 1 | CF4: =IF($BM4="","",LOOKUP($BM4,'Raw Stats'!$B$3:$B$205,'Raw Stats'!AY$3:AY$205)) -> 0 | CG4: =IF($BM4="","",LOOKUP($BM4,'Raw Stats'!$B$3:$B$205,'Raw Stats'!AZ$3:AZ$205)) -> 0 | CH4: =IF($BM4="","",LOOKUP($BM4,'Raw Stats'!$B$3:$B$205,'Raw Stats'!BA$3:BA$205)) -> 0 | CI4: =IF(CK4="",CJ4,CK4) -> 41 | CJ4: =IF('Play Entry'!$X10="","",IF($G4=Teams!$B$13,'Play Entry'!$X10,IF($G4=Teams!$A$13,'Play Entry'!$X10+100,""))) -> 41 | CK4: =IF('Play Entry'!$AA10="","",IF($G4=Teams!$B$13,'Play Entry'!$AA10,IF($G4=Teams!$A$13,'Play Entry'!$AA10+100,""))) ->  | CL4: =IF($CI4="","",LOOKUP($CI4,'Raw Stats'!$B$3:$B$205,'Raw Stats'!A$3:A$205)) -> 41 | CM4: =IF($CI4="","",LOOKUP($CI4,'Raw Stats'!$B$3:$B$205,'Raw Stats'!C$3:C$205)) -> Cayden Hawkins | CN4: =IF($CI4="","",LOOKUP($CI4,'Raw Stats'!$B$3:$B$205,'Raw Stats'!AK$3:AK$205)) -> 0 | CO4: =IF($CI4="","",LOOKUP($CI4,'Raw Stats'!$B$3:$B$205,'Raw Stats'!AL$3:AL$205)) -> 2 | CP4: =IF($CI4="","",LOOKUP($CI4,'Raw Stats'!$B$3:$B$205,'Raw Stats'!AM$3:AM$205)) -> 0 | CQ4: =IF($CI4="","",LOOKUP($CI4,'Raw Stats'!$B$3:$B$205,'Raw Stats'!AN$3:AN$205)) -> 0 | CR4: =IF($CI4="","",LOOKUP($CI4,'Raw Stats'!$B$3:$B$205,'Raw Stats'!AO$3:AO$205)) -> 0 | CS4: =IF($CI4="","",LOOKUP($CI4,'Raw Stats'!$B$3:$B$205,'Raw Stats'!AP$3:AP$205)) -> 0 | CT4: =IF($CI4="","",LOOKUP($CI4,'Raw Stats'!$B$3:$B$205,'Raw Stats'!AQ$3:AQ$205)) -> 0 | CU4: =IF($CI4="","",LOOKUP($CI4,'Raw Stats'!$B$3:$B$205,'Raw Stats'!AR$3:AR$205)) -> 0 | CV4: =IF($CI4="","",LOOKUP($CI4,'Raw Stats'!$B$3:$B$205,'Raw Stats'!AS$3:AS$205)) -> 0 | CW4: =IF($CI4="","",LOOKUP($CI4,'Raw Stats'!$B$3:$B$205,'Raw Stats'!AT$3:AT$205)) -> 0 | CX4: =IF($CI4="","",LOOKUP($CI4,'Raw Stats'!$B$3:$B$205,'Raw Stats'!AU$3:AU$205)) -> 0 | CY4: =IF($CI4="","",LOOKUP($CI4,'Raw Stats'!$B$3:$B$205,'Raw Stats'!AV$3:AV$205)) -> 0 | CZ4: =IF($CI4="","",LOOKUP($CI4,'Raw Stats'!$B$3:$B$205,'Raw Stats'!AW$3:AW$205)) -> 0 | DA4: =IF($CI4="","",LOOKUP($CI4,'Raw Stats'!$B$3:$B$205,'Raw Stats'!AX$3:AX$205)) -> 0 | DB4: =IF($CI4="","",LOOKUP($CI4,'Raw Stats'!$B$3:$B$205,'Raw Stats'!AY$3:AY$205)) -> 0 | DC4: =IF($CI4="","",LOOKUP($CI4,'Raw Stats'!$B$3:$B$205,'Raw Stats'!AZ$3:AZ$205)) -> 0 | DD4: =IF($CI4="","",LOOKUP($CI4,'Raw Stats'!$B$3:$B$205,'Raw Stats'!BA$3:BA$205)) -> 0 | DE4: =IF('Play-by-Play Summary'!AZ9<>"",'Play-by-Play Summary'!AZ9,IF('Play-by-Play Summary'!BA9<>"",'Play-by-Play Summary'!BA9,IF('Play-by-Play Summary'!BD9<>"",'Play-by-Play Summary'!BD9,IF('Play-by-Play Summary'!BE9<>"",'Play-by-Play Summary'!BE9,IF('Play-by-Play Summary'!BF9<>"",'Play-by-Play Summary'!BF9,IF('Play-by-Play Summary'!BI9<>"",'Play-by-Play Summary'!BI9,"")))))) ->  | DF4: =IF($DE4="","",LOOKUP($DE4,'Raw Stats'!$B$3:$B$205,'Raw Stats'!A$3:A$205)) ->  | DG4: =IF($DE4="","",LOOKUP($DE4,'Raw Stats'!$B$3:$B$205,'Raw Stats'!C$3:C$205)) ->  | DH4: =IF($DE4="","",LOOKUP($DE4,'Raw Stats'!$B$3:$B$205,'Raw Stats'!Q$3:Q$205)) ->  | DI4: =IF($DE4="","",LOOKUP($DE4,'Raw Stats'!$B$3:$B$205,'Raw Stats'!R$3:R$205)) ->  | DJ4: =IF($DE4="","",LOOKUP($DE4,'Raw Stats'!$B$3:$B$205,'Raw Stats'!S$3:S$205)) ->  | DK4: =IF($DE4="","",LOOKUP($DE4,'Raw Stats'!$B$3:$B$205,'Raw Stats'!T$3:T$205)) ->  | DL4: =IF($DE4="","",LOOKUP($DE4,'Raw Stats'!$B$3:$B$205,'Raw Stats'!U$3:U$205)) ->  | DM4: =IF($DE4="","",LOOKUP($DE4,'Raw Stats'!$B$3:$B$205,'Raw Stats'!V$3:V$205)) ->  | DN4: =IF($DE4="","",LOOKUP($DE4,'Raw Stats'!$B$3:$B$205,'Raw Stats'!W$3:W$205)) ->  | DO4: =IF($DE4="","",LOOKUP($DE4,'Raw Stats'!$B$3:$B$205,'Raw Stats'!X$3:X$205)) ->  | DP4: =IF($DE4="","",LOOKUP($DE4,'Raw Stats'!$B$3:$B$205,'Raw Stats'!Y$3:Y$205)) ->  | DQ4: =IF($DE4="","",LOOKUP($DE4,'Raw Stats'!$B$3:$B$205,'Raw Stats'!Z$3:Z$205)) ->  | DR4: =IF($DE4="","",LOOKUP($DE4,'Raw Stats'!$B$3:$B$205,'Raw Stats'!AA$3:AA$205)) ->  | DS4: =IF($DE4="","",LOOKUP($DE4,'Raw Stats'!$B$3:$B$205,'Raw Stats'!AB$3:AB$205)) ->  | DT4: =IF($DE4="","",LOOKUP($DE4,'Raw Stats'!$B$3:$B$205,'Raw Stats'!AC$3:AC$205)) ->  | DU4: =IF($DE4="","",LOOKUP($DE4,'Raw Stats'!$B$3:$B$205,'Raw Stats'!AD$3:AD$205)) -> 
A5: =IF('Play Entry'!J11="","",+'Play-by-Play Summary'!C10) -> 4 | B5: ='Play Entry'!I11 -> 0 | C5: =+'Play-by-Play Summary'!Q10 -> 3 | D5: =+'Play-by-Play Summary'!P10 -> 15 | E5: =+'Play-by-Play Summary'!J10 -> 1st | F5: =+'Play Entry'!L11 -> 10 | G5: =+'Play Entry'!J11 -> CastleV | H5: =+'Play-by-Play Summary'!R10 -> from the 32 yard line | I5: =+'Play-by-Play Summary'!AE10 -> Rush (left) by 14 (Marc Wessbecker) for a gain of 3. Tackles by 30 (Jordan Norwood), 7 (Eli Hamilton) | T5: =LOOKUP(LARGE($A$1:$A$397,3),$A$1:$A$397,$G$1:$G$397) -> CastleV | U5: =IF(MAX(A$1:A$397)<3,"",LOOKUP(LARGE($A$1:$A$397,3),$A$1:$A$397,$E$1:$E$397)) -> 1st | V5: =LOOKUP(LARGE($A$1:$A$397,3),$A$1:$A$397,$F$1:$F$397) -> 10 | W5: =LOOKUP(LARGE($A$1:$A$397,3),$A$1:$A$397,$H$1:$H$397) -> from the 35 yard line | X5: =IF(MAX(A$1:A$397)<3,"",LOOKUP(LARGE($A$1:$A$397,3),$A$1:$A$397,$I$1:$I$397)) -> 5 yard penalty assessed on the defense.. Comment: illegal substitution | Y5: =IF(MAX($A$1:$A$397)<2,"",LOOKUP(LARGE($A$1:$A$397,2),$A$1:$A$397,AR$1:AR$397)) ->  | Z5: =IF($Y$5="","",LOOKUP($Y$5,'Raw Stats'!$B$1:'Raw Stats'!$B$205,'Raw Stats'!$BV$1:'Raw Stats'!$BV$205)) ->  | AA5: =IF($Y$5="","",LOOKUP($Y$5,'Raw Stats'!$B$1:'Raw Stats'!$B$205,'Raw Stats'!$BW$1:'Raw Stats'!$BW$205)) ->  | AB5: =IF($Y$5="","",LOOKUP($Y$5,'Raw Stats'!$B$1:'Raw Stats'!$B$205,'Raw Stats'!$BX$1:'Raw Stats'!$BX$205)) ->  | AD5: =IF(MAX($A$1:$A$397)<2,"",LOOKUP(LARGE($A$1:$A$397,2),$A$1:$A$397,AX$1:AX$397)) ->  | AE5: =IF($AD$5="","",LOOKUP($AD$5,'Raw Stats'!$B$1:'Raw Stats'!$B$205,'Raw Stats'!$BV$1:'Raw Stats'!$BV$205)) ->  | AF5: =IF($AD$5="","",LOOKUP($AD$5,'Raw Stats'!$B$1:'Raw Stats'!$B$205,'Raw Stats'!$BW$1:'Raw Stats'!$BW$205)) ->  | AG5: =IF($AD$5="","",LOOKUP($AD$5,'Raw Stats'!$B$1:'Raw Stats'!$B$205,'Raw Stats'!$BX$1:'Raw Stats'!$BX$205)) ->  | AK5: =IF(MAX($A$1:$A$397)<2,"",LOOKUP(LARGE($A$1:$A$397,2),$A$1:$A$397,BF$1:BF$397)) ->  | AL5: =IF($AK$5="","",LOOKUP($AK$5,'Raw Stats'!$B$1:'Raw Stats'!$B$205,'Raw Stats'!$BV$1:'Raw Stats'!$BV$205)) ->  | AM5: =IF($AK$5="","",LOOKUP($AK$5,'Raw Stats'!$B$1:'Raw Stats'!$B$205,'Raw Stats'!$BW$1:'Raw Stats'!$BW$205)) ->  | AN5: =IF($AK$5="","",LOOKUP($AK$5,'Raw Stats'!$B$1:'Raw Stats'!$B$205,'Raw Stats'!$BX$1:'Raw Stats'!$BX$205)) ->  | AR5: =IF('Play-by-Play Summary'!AS10="","",'Play-by-Play Summary'!AS10) -> 114 | AS5: =IF($AR5="","",LOOKUP($AR5,'Raw Stats'!$B$3:$B$205,'Raw Stats'!A$3:A$205)) -> 14 | AT5: =IF($AR5="","",LOOKUP($AR5,'Raw Stats'!$B$3:$B$205,'Raw Stats'!C$3:C$205)) -> Marc Wessbecker | AU5: =IF($AR5="","",LOOKUP($AR5,'Raw Stats'!$B$3:$B$205,'Raw Stats'!J$3:J$205)) -> 18 | AV5: =IF($AR5="","",LOOKUP($AR5,'Raw Stats'!$B$3:$B$205,'Raw Stats'!K$3:K$205)) -> 158 | AW5: =IF($AR5="","",LOOKUP($AR5,'Raw Stats'!$B$3:$B$205,'Raw Stats'!L$3:L$205)) -> 2 | AX5: =IF('Play-by-Play Summary'!AN10="","",'Play-by-Play Summary'!AN10) ->  | AY5: =IF($AX5="","",LOOKUP($AX5,'Raw Stats'!$B$3:$B$205,'Raw Stats'!A$3:A$205)) ->  | AZ5: =IF($AX5="","",LOOKUP($AX5,'Raw Stats'!$B$3:$B$205,'Raw Stats'!C$3:C$205)) ->  | BA5: =IF($AX5="","",LOOKUP($AX5,'Raw Stats'!$B$3:$B$205,'Raw Stats'!D$3:D$205)) ->  | BB5: =IF($AX5="","",LOOKUP($AX5,'Raw Stats'!$B$3:$B$205,'Raw Stats'!F$3:F$205)) ->  | BC5: =IF($AX5="","",LOOKUP($AX5,'Raw Stats'!$B$3:$B$205,'Raw Stats'!H$3:H$205)) ->  | BD5: =IF($AX5="","",LOOKUP($AX5,'Raw Stats'!$B$3:$B$205,'Raw Stats'!I$3:I$205)) ->  | BE5: =IF($AX5="","",LOOKUP($AX5,'Raw Stats'!$B$3:$B$205,'Raw Stats'!G$3:G$205)) ->  | BF5: =IF('Play-by-Play Summary'!AV10="","",'Play-by-Play Summary'!AV10) ->  | BG5: =IF($BF5="","",LOOKUP($BF5,'Raw Stats'!$B$3:$B$205,'Raw Stats'!A$3:A$205)) ->  | BH5: =IF($BF5="","",LOOKUP($BF5,'Raw Stats'!$B$3:$B$205,'Raw Stats'!C$3:C$205)) ->  | BI5: =IF($BF5="","",LOOKUP($BF5,'Raw Stats'!$B$3:$B$205,'Raw Stats'!M$3:M$205)) ->  | BJ5: =IF($BF5="","",LOOKUP($BF5,'Raw Stats'!$B$3:$B$205,'Raw Stats'!N$3:N$205)) ->  | BK5: =IF($BF5="","",LOOKUP($BF5,'Raw Stats'!$B$3:$B$205,'Raw Stats'!O$3:O$205)) ->  | BL5: =IF($BF5="","",LOOKUP($BF5,'Raw Stats'!$B$3:$B$205,'Raw Stats'!P$3:P$205)) ->  | BM5: =IF(BO5="",BN5,BO5) -> 30 | BN5: =IF('Play Entry'!$W11="","",IF($G5=Teams!$B$13,'Play Entry'!$W11,IF($G5=Teams!$A$13,'Play Entry'!$W11+100,""))) -> 30 | BO5: =IF('Play Entry'!$Z11="","",IF($G5=Teams!$B$13,'Play Entry'!$Z11,IF($G5=Teams!$A$13,'Play Entry'!$Z11+100,""))) ->  | BP5: =IF($BM5="","",LOOKUP($BM5,'Raw Stats'!$B$3:$B$205,'Raw Stats'!A$3:A$205)) -> 30 | BQ5: =IF($BM5="","",LOOKUP($BM5,'Raw Stats'!$B$3:$B$205,'Raw Stats'!C$3:C$205)) -> Jordan Norwood | BR5: =IF($BM5="","",LOOKUP($BM5,'Raw Stats'!$B$3:$B$205,'Raw Stats'!AK$3:AK$205)) -> 4 | BS5: =IF($BM5="","",LOOKUP($BM5,'Raw Stats'!$B$3:$B$205,'Raw Stats'!AL$3:AL$205)) -> 5 | BT5: =IF($BM5="","",LOOKUP($BM5,'Raw Stats'!$B$3:$B$205,'Raw Stats'!AM$3:AM$205)) -> 1 | BU5: =IF($BM5="","",LOOKUP($BM5,'Raw Stats'!$B$3:$B$205,'Raw Stats'!AN$3:AN$205)) -> 0 | BV5: =IF($BM5="","",LOOKUP($BM5,'Raw Stats'!$B$3:$B$205,'Raw Stats'!AO$3:AO$205)) -> -1 | BW5: =IF($BM5="","",LOOKUP($BM5,'Raw Stats'!$B$3:$B$205,'Raw Stats'!AP$3:AP$205)) -> 0 | BX5: =IF($BM5="","",LOOKUP($BM5,'Raw Stats'!$B$3:$B$205,'Raw Stats'!AQ$3:AQ$205)) -> 0 | BY5: =IF($BM5="","",LOOKUP($BM5,'Raw Stats'!$B$3:$B$205,'Raw Stats'!AR$3:AR$205)) -> 0 | BZ5: =IF($BM5="","",LOOKUP($BM5,'Raw Stats'!$B$3:$B$205,'Raw Stats'!AS$3:AS$205)) -> 1 | CA5: =IF($BM5="","",LOOKUP($BM5,'Raw Stats'!$B$3:$B$205,'Raw Stats'!AT$3:AT$205)) -> 0 | CB5: =IF($BM5="","",LOOKUP($BM5,'Raw Stats'!$B$3:$B$205,'Raw Stats'!AU$3:AU$205)) -> 0 | CC5: =IF($BM5="","",LOOKUP($BM5,'Raw Stats'!$B$3:$B$205,'Raw Stats'!AV$3:AV$205)) -> 0 | CD5: =IF($BM5="","",LOOKUP($BM5,'Raw Stats'!$B$3:$B$205,'Raw Stats'!AW$3:AW$205)) -> 0 | CE5: =IF($BM5="","",LOOKUP($BM5,'Raw Stats'!$B$3:$B$205,'Raw Stats'!AX$3:AX$205)) -> 0 | CF5: =IF($BM5="","",LOOKUP($BM5,'Raw Stats'!$B$3:$B$205,'Raw Stats'!AY$3:AY$205)) -> 0 | CG5: =IF($BM5="","",LOOKUP($BM5,'Raw Stats'!$B$3:$B$205,'Raw Stats'!AZ$3:AZ$205)) -> 0 | CH5: =IF($BM5="","",LOOKUP($BM5,'Raw Stats'!$B$3:$B$205,'Raw Stats'!BA$3:BA$205)) -> 0 | CI5: =IF(CK5="",CJ5,CK5) -> 7 | CJ5: =IF('Play Entry'!$X11="","",IF($G5=Teams!$B$13,'Play Entry'!$X11,IF($G5=Teams!$A$13,'Play Entry'!$X11+100,""))) -> 7 | CK5: =IF('Play Entry'!$AA11="","",IF($G5=Teams!$B$13,'Play Entry'!$AA11,IF($G5=Teams!$A$13,'Play Entry'!$AA11+100,""))) ->  | CL5: =IF($CI5="","",LOOKUP($CI5,'Raw Stats'!$B$3:$B$205,'Raw Stats'!A$3:A$205)) -> 7 | CM5: =IF($CI5="","",LOOKUP($CI5,'Raw Stats'!$B$3:$B$205,'Raw Stats'!C$3:C$205)) -> Eli Hamilton | CN5: =IF($CI5="","",LOOKUP($CI5,'Raw Stats'!$B$3:$B$205,'Raw Stats'!AK$3:AK$205)) -> 3 | CO5: =IF($CI5="","",LOOKUP($CI5,'Raw Stats'!$B$3:$B$205,'Raw Stats'!AL$3:AL$205)) -> 14 | CP5: =IF($CI5="","",LOOKUP($CI5,'Raw Stats'!$B$3:$B$205,'Raw Stats'!AM$3:AM$205)) -> 0 | CQ5: =IF($CI5="","",LOOKUP($CI5,'Raw Stats'!$B$3:$B$205,'Raw Stats'!AN$3:AN$205)) -> 0 | CR5: =IF($CI5="","",LOOKUP($CI5,'Raw Stats'!$B$3:$B$205,'Raw Stats'!AO$3:AO$205)) -> 0 | CS5: =IF($CI5="","",LOOKUP($CI5,'Raw Stats'!$B$3:$B$205,'Raw Stats'!AP$3:AP$205)) -> 1 | CT5: =IF($CI5="","",LOOKUP($CI5,'Raw Stats'!$B$3:$B$205,'Raw Stats'!AQ$3:AQ$205)) -> 0 | CU5: =IF($CI5="","",LOOKUP($CI5,'Raw Stats'!$B$3:$B$205,'Raw Stats'!AR$3:AR$205)) -> -2 | CV5: =IF($CI5="","",LOOKUP($CI5,'Raw Stats'!$B$3:$B$205,'Raw Stats'!AS$3:AS$205)) -> 0 | CW5: =IF($CI5="","",LOOKUP($CI5,'Raw Stats'!$B$3:$B$205,'Raw Stats'!AT$3:AT$205)) -> 0 | CX5: =IF($CI5="","",LOOKUP($CI5,'Raw Stats'!$B$3:$B$205,'Raw Stats'!AU$3:AU$205)) -> 0 | CY5: =IF($CI5="","",LOOKUP($CI5,'Raw Stats'!$B$3:$B$205,'Raw Stats'!AV$3:AV$205)) -> 0 | CZ5: =IF($CI5="","",LOOKUP($CI5,'Raw Stats'!$B$3:$B$205,'Raw Stats'!AW$3:AW$205)) -> 0 | DA5: =IF($CI5="","",LOOKUP($CI5,'Raw Stats'!$B$3:$B$205,'Raw Stats'!AX$3:AX$205)) -> 1 | DB5: =IF($CI5="","",LOOKUP($CI5,'Raw Stats'!$B$3:$B$205,'Raw Stats'!AY$3:AY$205)) -> 0 | DC5: =IF($CI5="","",LOOKUP($CI5,'Raw Stats'!$B$3:$B$205,'Raw Stats'!AZ$3:AZ$205)) -> 0 | DD5: =IF($CI5="","",LOOKUP($CI5,'Raw Stats'!$B$3:$B$205,'Raw Stats'!BA$3:BA$205)) -> 0 | DE5: =IF('Play-by-Play Summary'!AZ10<>"",'Play-by-Play Summary'!AZ10,IF('Play-by-Play Summary'!BA10<>"",'Play-by-Play Summary'!BA10,IF('Play-by-Play Summary'!BD10<>"",'Play-by-Play Summary'!BD10,IF('Play-by-Play Summary'!BE10<>"",'Play-by-Play Summary'!BE10,IF('Play-by-Play Summary'!BF10<>"",'Play-by-Play Summary'!BF10,IF('Play-by-Play Summary'!BI10<>"",'Play-by-Play Summary'!BI10,"")))))) ->  | DF5: =IF($DE5="","",LOOKUP($DE5,'Raw Stats'!$B$3:$B$205,'Raw Stats'!A$3:A$205)) ->  | DG5: =IF($DE5="","",LOOKUP($DE5,'Raw Stats'!$B$3:$B$205,'Raw Stats'!C$3:C$205)) ->  | DH5: =IF($DE5="","",LOOKUP($DE5,'Raw Stats'!$B$3:$B$205,'Raw Stats'!Q$3:Q$205)) ->  | DI5: =IF($DE5="","",LOOKUP($DE5,'Raw Stats'!$B$3:$B$205,'Raw Stats'!R$3:R$205)) ->  | DJ5: =IF($DE5="","",LOOKUP($DE5,'Raw Stats'!$B$3:$B$205,'Raw Stats'!S$3:S$205)) ->  | DK5: =IF($DE5="","",LOOKUP($DE5,'Raw Stats'!$B$3:$B$205,'Raw Stats'!T$3:T$205)) ->  | DL5: =IF($DE5="","",LOOKUP($DE5,'Raw Stats'!$B$3:$B$205,'Raw Stats'!U$3:U$205)) ->  | DM5: =IF($DE5="","",LOOKUP($DE5,'Raw Stats'!$B$3:$B$205,'Raw Stats'!V$3:V$205)) ->  | DN5: =IF($DE5="","",LOOKUP($DE5,'Raw Stats'!$B$3:$B$205,'Raw Stats'!W$3:W$205)) ->  | DO5: =IF($DE5="","",LOOKUP($DE5,'Raw Stats'!$B$3:$B$205,'Raw Stats'!X$3:X$205)) ->  | DP5: =IF($DE5="","",LOOKUP($DE5,'Raw Stats'!$B$3:$B$205,'Raw Stats'!Y$3:Y$205)) ->  | DQ5: =IF($DE5="","",LOOKUP($DE5,'Raw Stats'!$B$3:$B$205,'Raw Stats'!Z$3:Z$205)) ->  | DR5: =IF($DE5="","",LOOKUP($DE5,'Raw Stats'!$B$3:$B$205,'Raw Stats'!AA$3:AA$205)) ->  | DS5: =IF($DE5="","",LOOKUP($DE5,'Raw Stats'!$B$3:$B$205,'Raw Stats'!AB$3:AB$205)) ->  | DT5: =IF($DE5="","",LOOKUP($DE5,'Raw Stats'!$B$3:$B$205,'Raw Stats'!AC$3:AC$205)) ->  | DU5: =IF($DE5="","",LOOKUP($DE5,'Raw Stats'!$B$3:$B$205,'Raw Stats'!AD$3:AD$205)) -> 
A6: =IF('Play Entry'!J12="","",+'Play-by-Play Summary'!C11) -> 5 | B6: ='Play Entry'!I12 -> 0 | C6: =+'Play-by-Play Summary'!Q11 -> 4 | D6: =+'Play-by-Play Summary'!P11 -> 16 | E6: =+'Play-by-Play Summary'!J11 -> 2nd | F6: =+'Play Entry'!L12 -> 7 | G6: =+'Play Entry'!J12 -> CastleV | H6: =+'Play-by-Play Summary'!R11 -> from the 35 yard line | I6: =+'Play-by-Play Summary'!AE11 -> Rush (right) by 14 (Marc Wessbecker) for a gain of 1. Tackle by 30 (Jordan Norwood) | T6: =LOOKUP(LARGE($A$1:$A$397,4),$A$1:$A$397,$G$1:$G$397) -> CastleV | U6: =IF(MAX(A$1:A$397)<4,"",LOOKUP(LARGE($A$1:$A$397,4),$A$1:$A$397,$E$1:$E$397)) -> 1st | V6: =LOOKUP(LARGE($A$1:$A$397,4),$A$1:$A$397,$F$1:$F$397) -> 10 | W6: =LOOKUP(LARGE($A$1:$A$397,4),$A$1:$A$397,$H$1:$H$397) -> from the 20 yard line | X6: =IF(MAX(A$1:A$397)<4,"",LOOKUP(LARGE($A$1:$A$397,4),$A$1:$A$397,$I$1:$I$397)) -> 15 yard penalty assessed on the defense.. Comment: personal foul | AR6: =IF('Play-by-Play Summary'!AS11="","",'Play-by-Play Summary'!AS11) -> 114 | AS6: =IF($AR6="","",LOOKUP($AR6,'Raw Stats'!$B$3:$B$205,'Raw Stats'!A$3:A$205)) -> 14 | AT6: =IF($AR6="","",LOOKUP($AR6,'Raw Stats'!$B$3:$B$205,'Raw Stats'!C$3:C$205)) -> Marc Wessbecker | AU6: =IF($AR6="","",LOOKUP($AR6,'Raw Stats'!$B$3:$B$205,'Raw Stats'!J$3:J$205)) -> 18 | AV6: =IF($AR6="","",LOOKUP($AR6,'Raw Stats'!$B$3:$B$205,'Raw Stats'!K$3:K$205)) -> 158 | AW6: =IF($AR6="","",LOOKUP($AR6,'Raw Stats'!$B$3:$B$205,'Raw Stats'!L$3:L$205)) -> 2 | AX6: =IF('Play-by-Play Summary'!AN11="","",'Play-by-Play Summary'!AN11) ->  | AY6: =IF($AX6="","",LOOKUP($AX6,'Raw Stats'!$B$3:$B$205,'Raw Stats'!A$3:A$205)) ->  | AZ6: =IF($AX6="","",LOOKUP($AX6,'Raw Stats'!$B$3:$B$205,'Raw Stats'!C$3:C$205)) ->  | BA6: =IF($AX6="","",LOOKUP($AX6,'Raw Stats'!$B$3:$B$205,'Raw Stats'!D$3:D$205)) ->  | BB6: =IF($AX6="","",LOOKUP($AX6,'Raw Stats'!$B$3:$B$205,'Raw Stats'!F$3:F$205)) ->  | BC6: =IF($AX6="","",LOOKUP($AX6,'Raw Stats'!$B$3:$B$205,'Raw Stats'!H$3:H$205)) ->  | BD6: =IF($AX6="","",LOOKUP($AX6,'Raw Stats'!$B$3:$B$205,'Raw Stats'!I$3:I$205)) ->  | BE6: =IF($AX6="","",LOOKUP($AX6,'Raw Stats'!$B$3:$B$205,'Raw Stats'!G$3:G$205)) ->  | BF6: =IF('Play-by-Play Summary'!AV11="","",'Play-by-Play Summary'!AV11) ->  | BG6: =IF($BF6="","",LOOKUP($BF6,'Raw Stats'!$B$3:$B$205,'Raw Stats'!A$3:A$205)) ->  | BH6: =IF($BF6="","",LOOKUP($BF6,'Raw Stats'!$B$3:$B$205,'Raw Stats'!C$3:C$205)) ->  | BI6: =IF($BF6="","",LOOKUP($BF6,'Raw Stats'!$B$3:$B$205,'Raw Stats'!M$3:M$205)) ->  | BJ6: =IF($BF6="","",LOOKUP($BF6,'Raw Stats'!$B$3:$B$205,'Raw Stats'!N$3:N$205)) ->  | BK6: =IF($BF6="","",LOOKUP($BF6,'Raw Stats'!$B$3:$B$205,'Raw Stats'!O$3:O$205)) ->  | BL6: =IF($BF6="","",LOOKUP($BF6,'Raw Stats'!$B$3:$B$205,'Raw Stats'!P$3:P$205)) ->  | BM6: 30 | BN6: =IF('Play Entry'!$W12="","",IF($G6=Teams!$B$13,'Play Entry'!$W12,IF($G6=Teams!$A$13,'Play Entry'!$W12+100,""))) -> 30 | BO6: =IF('Play Entry'!$Z12="","",IF($G6=Teams!$B$13,'Play Entry'!$Z12,IF($G6=Teams!$A$13,'Play Entry'!$Z12+100,""))) ->  | BP6: =IF($BM6="","",LOOKUP($BM6,'Raw Stats'!$B$3:$B$205,'Raw Stats'!A$3:A$205)) -> 30 | BQ6: =IF($BM6="","",LOOKUP($BM6,'Raw Stats'!$B$3:$B$205,'Raw Stats'!C$3:C$205)) -> Jordan Norwood | BR6: =IF($BM6="","",LOOKUP($BM6,'Raw Stats'!$B$3:$B$205,'Raw Stats'!AK$3:AK$205)) -> 4 | BS6: =IF($BM6="","",LOOKUP($BM6,'Raw Stats'!$B$3:$B$205,'Raw Stats'!AL$3:AL$205)) -> 5 | BT6: =IF($BM6="","",LOOKUP($BM6,'Raw Stats'!$B$3:$B$205,'Raw Stats'!AM$3:AM$205)) -> 1 | BU6: =IF($BM6="","",LOOKUP($BM6,'Raw Stats'!$B$3:$B$205,'Raw Stats'!AN$3:AN$205)) -> 0 | BV6: =IF($BM6="","",LOOKUP($BM6,'Raw Stats'!$B$3:$B$205,'Raw Stats'!AO$3:AO$205)) -> -1 | BW6: =IF($BM6="","",LOOKUP($BM6,'Raw Stats'!$B$3:$B$205,'Raw Stats'!AP$3:AP$205)) -> 0 | BX6: =IF($BM6="","",LOOKUP($BM6,'Raw Stats'!$B$3:$B$205,'Raw Stats'!AQ$3:AQ$205)) -> 0 | BY6: =IF($BM6="","",LOOKUP($BM6,'Raw Stats'!$B$3:$B$205,'Raw Stats'!AR$3:AR$205)) -> 0 | BZ6: =IF($BM6="","",LOOKUP($BM6,'Raw Stats'!$B$3:$B$205,'Raw Stats'!AS$3:AS$205)) -> 1 | CA6: =IF($BM6="","",LOOKUP($BM6,'Raw Stats'!$B$3:$B$205,'Raw Stats'!AT$3:AT$205)) -> 0 | CB6: =IF($BM6="","",LOOKUP($BM6,'Raw Stats'!$B$3:$B$205,'Raw Stats'!AU$3:AU$205)) -> 0 | CC6: =IF($BM6="","",LOOKUP($BM6,'Raw Stats'!$B$3:$B$205,'Raw Stats'!AV$3:AV$205)) -> 0 | CD6: =IF($BM6="","",LOOKUP($BM6,'Raw Stats'!$B$3:$B$205,'Raw Stats'!AW$3:AW$205)) -> 0 | CE6: =IF($BM6="","",LOOKUP($BM6,'Raw Stats'!$B$3:$B$205,'Raw Stats'!AX$3:AX$205)) -> 0 | CF6: =IF($BM6="","",LOOKUP($BM6,'Raw Stats'!$B$3:$B$205,'Raw Stats'!AY$3:AY$205)) -> 0 | CG6: =IF($BM6="","",LOOKUP($BM6,'Raw Stats'!$B$3:$B$205,'Raw Stats'!AZ$3:AZ$205)) -> 0 | CH6: =IF($BM6="","",LOOKUP($BM6,'Raw Stats'!$B$3:$B$205,'Raw Stats'!BA$3:BA$205)) -> 0 | CJ6: =IF('Play Entry'!$X12="","",IF($G6=Teams!$B$13,'Play Entry'!$X12,IF($G6=Teams!$A$13,'Play Entry'!$X12+100,""))) ->  | CK6: =IF('Play Entry'!$AA12="","",IF($G6=Teams!$B$13,'Play Entry'!$AA12,IF($G6=Teams!$A$13,'Play Entry'!$AA12+100,""))) ->  | CL6: =IF($CI6="","",LOOKUP($CI6,'Raw Stats'!$B$3:$B$205,'Raw Stats'!A$3:A$205)) ->  | CM6: =IF($CI6="","",LOOKUP($CI6,'Raw Stats'!$B$3:$B$205,'Raw Stats'!C$3:C$205)) ->  | CN6: =IF($CI6="","",LOOKUP($CI6,'Raw Stats'!$B$3:$B$205,'Raw Stats'!AK$3:AK$205)) ->  | CO6: =IF($CI6="","",LOOKUP($CI6,'Raw Stats'!$B$3:$B$205,'Raw Stats'!AL$3:AL$205)) ->  | CP6: =IF($CI6="","",LOOKUP($CI6,'Raw Stats'!$B$3:$B$205,'Raw Stats'!AM$3:AM$205)) ->  | CQ6: =IF($CI6="","",LOOKUP($CI6,'Raw Stats'!$B$3:$B$205,'Raw Stats'!AN$3:AN$205)) ->  | CR6: =IF($CI6="","",LOOKUP($CI6,'Raw Stats'!$B$3:$B$205,'Raw Stats'!AO$3:AO$205)) ->  | CS6: =IF($CI6="","",LOOKUP($CI6,'Raw Stats'!$B$3:$B$205,'Raw Stats'!AP$3:AP$205)) ->  | CT6: =IF($CI6="","",LOOKUP($CI6,'Raw Stats'!$B$3:$B$205,'Raw Stats'!AQ$3:AQ$205)) ->  | CU6: =IF($CI6="","",LOOKUP($CI6,'Raw Stats'!$B$3:$B$205,'Raw Stats'!AR$3:AR$205)) ->  | CV6: =IF($CI6="","",LOOKUP($CI6,'Raw Stats'!$B$3:$B$205,'Raw Stats'!AS$3:AS$205)) ->  | CW6: =IF($CI6="","",LOOKUP($CI6,'Raw Stats'!$B$3:$B$205,'Raw Stats'!AT$3:AT$205)) ->  | CX6: =IF($CI6="","",LOOKUP($CI6,'Raw Stats'!$B$3:$B$205,'Raw Stats'!AU$3:AU$205)) ->  | CY6: =IF($CI6="","",LOOKUP($CI6,'Raw Stats'!$B$3:$B$205,'Raw Stats'!AV$3:AV$205)) ->  | CZ6: =IF($CI6="","",LOOKUP($CI6,'Raw Stats'!$B$3:$B$205,'Raw Stats'!AW$3:AW$205)) ->  | DA6: =IF($CI6="","",LOOKUP($CI6,'Raw Stats'!$B$3:$B$205,'Raw Stats'!AX$3:AX$205)) ->  | DB6: =IF($CI6="","",LOOKUP($CI6,'Raw Stats'!$B$3:$B$205,'Raw Stats'!AY$3:AY$205)) ->  | DC6: =IF($CI6="","",LOOKUP($CI6,'Raw Stats'!$B$3:$B$205,'Raw Stats'!AZ$3:AZ$205)) ->  | DD6: =IF($CI6="","",LOOKUP($CI6,'Raw Stats'!$B$3:$B$205,'Raw Stats'!BA$3:BA$205)) ->  | DE6: =IF('Play-by-Play Summary'!AZ11<>"",'Play-by-Play Summary'!AZ11,IF('Play-by-Play Summary'!BA11<>"",'Play-by-Play Summary'!BA11,IF('Play-by-Play Summary'!BD11<>"",'Play-by-Play Summary'!BD11,IF('Play-by-Play Summary'!BE11<>"",'Play-by-Play Summary'!BE11,IF('Play-by-Play Summary'!BF11<>"",'Play-by-Play Summary'!BF11,IF('Play-by-Play Summary'!BI11<>"",'Play-by-Play Summary'!BI11,"")))))) ->  | DF6: =IF($DE6="","",LOOKUP($DE6,'Raw Stats'!$B$3:$B$205,'Raw Stats'!A$3:A$205)) ->  | DG6: =IF($DE6="","",LOOKUP($DE6,'Raw Stats'!$B$3:$B$205,'Raw Stats'!C$3:C$205)) ->  | DH6: =IF($DE6="","",LOOKUP($DE6,'Raw Stats'!$B$3:$B$205,'Raw Stats'!Q$3:Q$205)) ->  | DI6: =IF($DE6="","",LOOKUP($DE6,'Raw Stats'!$B$3:$B$205,'Raw Stats'!R$3:R$205)) ->  | DJ6: =IF($DE6="","",LOOKUP($DE6,'Raw Stats'!$B$3:$B$205,'Raw Stats'!S$3:S$205)) ->  | DK6: =IF($DE6="","",LOOKUP($DE6,'Raw Stats'!$B$3:$B$205,'Raw Stats'!T$3:T$205)) ->  | DL6: =IF($DE6="","",LOOKUP($DE6,'Raw Stats'!$B$3:$B$205,'Raw Stats'!U$3:U$205)) ->  | DM6: =IF($DE6="","",LOOKUP($DE6,'Raw Stats'!$B$3:$B$205,'Raw Stats'!V$3:V$205)) ->  | DN6: =IF($DE6="","",LOOKUP($DE6,'Raw Stats'!$B$3:$B$205,'Raw Stats'!W$3:W$205)) ->  | DO6: =IF($DE6="","",LOOKUP($DE6,'Raw Stats'!$B$3:$B$205,'Raw Stats'!X$3:X$205)) ->  | DP6: =IF($DE6="","",LOOKUP($DE6,'Raw Stats'!$B$3:$B$205,'Raw Stats'!Y$3:Y$205)) ->  | DQ6: =IF($DE6="","",LOOKUP($DE6,'Raw Stats'!$B$3:$B$205,'Raw Stats'!Z$3:Z$205)) ->  | DR6: =IF($DE6="","",LOOKUP($DE6,'Raw Stats'!$B$3:$B$205,'Raw Stats'!AA$3:AA$205)) ->  | DS6: =IF($DE6="","",LOOKUP($DE6,'Raw Stats'!$B$3:$B$205,'Raw Stats'!AB$3:AB$205)) ->  | DT6: =IF($DE6="","",LOOKUP($DE6,'Raw Stats'!$B$3:$B$205,'Raw Stats'!AC$3:AC$205)) ->  | DU6: =IF($DE6="","",LOOKUP($DE6,'Raw Stats'!$B$3:$B$205,'Raw Stats'!AD$3:AD$205)) -> 
A7: =IF('Play Entry'!J13="","",+'Play-by-Play Summary'!C12) -> 6 | B7: ='Play Entry'!I13 -> 0 | C7: =+'Play-by-Play Summary'!Q12 -> 5 | D7: =+'Play-by-Play Summary'!P12 -> 16 | E7: =+'Play-by-Play Summary'!J12 -> 3rd | F7: =+'Play Entry'!L13 -> 6 | G7: =+'Play Entry'!J13 -> CastleV | H7: =+'Play-by-Play Summary'!R12 -> from the 36 yard line | I7: =+'Play-by-Play Summary'!AE12 -> Pass (short center) from 6 (Johnny Colombi) intended for 7 (Blake Haggerty) incomplete | T7: =LOOKUP(LARGE($A$1:$A$397,5),$A$1:$A$397,$G$1:$G$397) -> CastleV | U7: =IF(MAX(A$1:A$397)<5,"",LOOKUP(LARGE($A$1:$A$397,5),$A$1:$A$397,$E$1:$E$397)) ->  | V7: =LOOKUP(LARGE($A$1:$A$397,5),$A$1:$A$397,$F$1:$F$397) ->  | W7: =LOOKUP(LARGE($A$1:$A$397,5),$A$1:$A$397,$H$1:$H$397) ->  | X7: =IF(MAX(A$1:A$397)<5,"",LOOKUP(LARGE($A$1:$A$397,5),$A$1:$A$397,$I$1:$I$397)) -> Kicked off by 89 (Jeremy Claycamp) to the 5; returned by 28 (Noah Jamero) to the 20 yard line | Y7: Defender 1 | AR7: =IF('Play-by-Play Summary'!AS12="","",'Play-by-Play Summary'!AS12) ->  | AS7: =IF($AR7="","",LOOKUP($AR7,'Raw Stats'!$B$3:$B$205,'Raw Stats'!A$3:A$205)) ->  | AT7: =IF($AR7="","",LOOKUP($AR7,'Raw Stats'!$B$3:$B$205,'Raw Stats'!C$3:C$205)) ->  | AU7: =IF($AR7="","",LOOKUP($AR7,'Raw Stats'!$B$3:$B$205,'Raw Stats'!J$3:J$205)) ->  | AV7: =IF($AR7="","",LOOKUP($AR7,'Raw Stats'!$B$3:$B$205,'Raw Stats'!K$3:K$205)) ->  | AW7: =IF($AR7="","",LOOKUP($AR7,'Raw Stats'!$B$3:$B$205,'Raw Stats'!L$3:L$205)) ->  | AX7: =IF('Play-by-Play Summary'!AN12="","",'Play-by-Play Summary'!AN12) -> 106 | AY7: =IF($AX7="","",LOOKUP($AX7,'Raw Stats'!$B$3:$B$205,'Raw Stats'!A$3:A$205)) -> 6 | AZ7: =IF($AX7="","",LOOKUP($AX7,'Raw Stats'!$B$3:$B$205,'Raw Stats'!C$3:C$205)) -> Johnny Colombi | BA7: =IF($AX7="","",LOOKUP($AX7,'Raw Stats'!$B$3:$B$205,'Raw Stats'!D$3:D$205)) -> 15 | BB7: =IF($AX7="","",LOOKUP($AX7,'Raw Stats'!$B$3:$B$205,'Raw Stats'!F$3:F$205)) -> 8 | BC7: =IF($AX7="","",LOOKUP($AX7,'Raw Stats'!$B$3:$B$205,'Raw Stats'!H$3:H$205)) -> 88 | BD7: =IF($AX7="","",LOOKUP($AX7,'Raw Stats'!$B$3:$B$205,'Raw Stats'!I$3:I$205)) -> 0 | BE7: =IF($AX7="","",LOOKUP($AX7,'Raw Stats'!$B$3:$B$205,'Raw Stats'!G$3:G$205)) -> 1 | BF7: =IF('Play-by-Play Summary'!AV12="","",'Play-by-Play Summary'!AV12) -> 107 | BG7: =IF($BF7="","",LOOKUP($BF7,'Raw Stats'!$B$3:$B$205,'Raw Stats'!A$3:A$205)) -> 7 | BH7: =IF($BF7="","",LOOKUP($BF7,'Raw Stats'!$B$3:$B$205,'Raw Stats'!C$3:C$205)) -> Blake Haggerty | BI7: =IF($BF7="","",LOOKUP($BF7,'Raw Stats'!$B$3:$B$205,'Raw Stats'!M$3:M$205)) -> 5 | BJ7: =IF($BF7="","",LOOKUP($BF7,'Raw Stats'!$B$3:$B$205,'Raw Stats'!N$3:N$205)) -> 2 | BK7: =IF($BF7="","",LOOKUP($BF7,'Raw Stats'!$B$3:$B$205,'Raw Stats'!O$3:O$205)) -> 30 | BL7: =IF($BF7="","",LOOKUP($BF7,'Raw Stats'!$B$3:$B$205,'Raw Stats'!P$3:P$205)) -> 0 | BN7: =IF('Play Entry'!$W13="","",IF($G7=Teams!$B$13,'Play Entry'!$W13,IF($G7=Teams!$A$13,'Play Entry'!$W13+100,""))) ->  | BO7: =IF('Play Entry'!$Z13="","",IF($G7=Teams!$B$13,'Play Entry'!$Z13,IF($G7=Teams!$A$13,'Play Entry'!$Z13+100,""))) ->  | BP7: =IF($BM7="","",LOOKUP($BM7,'Raw Stats'!$B$3:$B$205,'Raw Stats'!A$3:A$205)) ->  | BQ7: =IF($BM7="","",LOOKUP($BM7,'Raw Stats'!$B$3:$B$205,'Raw Stats'!C$3:C$205)) ->  | BR7: =IF($BM7="","",LOOKUP($BM7,'Raw Stats'!$B$3:$B$205,'Raw Stats'!AK$3:AK$205)) ->  | BS7: =IF($BM7="","",LOOKUP($BM7,'Raw Stats'!$B$3:$B$205,'Raw Stats'!AL$3:AL$205)) ->  | BT7: =IF($BM7="","",LOOKUP($BM7,'Raw Stats'!$B$3:$B$205,'Raw Stats'!AM$3:AM$205)) ->  | BU7: =IF($BM7="","",LOOKUP($BM7,'Raw Stats'!$B$3:$B$205,'Raw Stats'!AN$3:AN$205)) ->  | BV7: =IF($BM7="","",LOOKUP($BM7,'Raw Stats'!$B$3:$B$205,'Raw Stats'!AO$3:AO$205)) ->  | BW7: =IF($BM7="","",LOOKUP($BM7,'Raw Stats'!$B$3:$B$205,'Raw Stats'!AP$3:AP$205)) ->  | BX7: =IF($BM7="","",LOOKUP($BM7,'Raw Stats'!$B$3:$B$205,'Raw Stats'!AQ$3:AQ$205)) ->  | BY7: =IF($BM7="","",LOOKUP($BM7,'Raw Stats'!$B$3:$B$205,'Raw Stats'!AR$3:AR$205)) ->  | BZ7: =IF($BM7="","",LOOKUP($BM7,'Raw Stats'!$B$3:$B$205,'Raw Stats'!AS$3:AS$205)) ->  | CA7: =IF($BM7="","",LOOKUP($BM7,'Raw Stats'!$B$3:$B$205,'Raw Stats'!AT$3:AT$205)) ->  | CB7: =IF($BM7="","",LOOKUP($BM7,'Raw Stats'!$B$3:$B$205,'Raw Stats'!AU$3:AU$205)) ->  | CC7: =IF($BM7="","",LOOKUP($BM7,'Raw Stats'!$B$3:$B$205,'Raw Stats'!AV$3:AV$205)) ->  | CD7: =IF($BM7="","",LOOKUP($BM7,'Raw Stats'!$B$3:$B$205,'Raw Stats'!AW$3:AW$205)) ->  | CE7: =IF($BM7="","",LOOKUP($BM7,'Raw Stats'!$B$3:$B$205,'Raw Stats'!AX$3:AX$205)) ->  | CF7: =IF($BM7="","",LOOKUP($BM7,'Raw Stats'!$B$3:$B$205,'Raw Stats'!AY$3:AY$205)) ->  | CG7: =IF($BM7="","",LOOKUP($BM7,'Raw Stats'!$B$3:$B$205,'Raw Stats'!AZ$3:AZ$205)) ->  | CH7: =IF($BM7="","",LOOKUP($BM7,'Raw Stats'!$B$3:$B$205,'Raw Stats'!BA$3:BA$205)) ->  | CJ7: =IF('Play Entry'!$X13="","",IF($G7=Teams!$B$13,'Play Entry'!$X13,IF($G7=Teams!$A$13,'Play Entry'!$X13+100,""))) ->  | CK7: =IF('Play Entry'!$AA13="","",IF($G7=Teams!$B$13,'Play Entry'!$AA13,IF($G7=Teams!$A$13,'Play Entry'!$AA13+100,""))) ->  | CL7: =IF($CI7="","",LOOKUP($CI7,'Raw Stats'!$B$3:$B$205,'Raw Stats'!A$3:A$205)) ->  | CM7: =IF($CI7="","",LOOKUP($CI7,'Raw Stats'!$B$3:$B$205,'Raw Stats'!C$3:C$205)) ->  | CN7: =IF($CI7="","",LOOKUP($CI7,'Raw Stats'!$B$3:$B$205,'Raw Stats'!AK$3:AK$205)) ->  | CO7: =IF($CI7="","",LOOKUP($CI7,'Raw Stats'!$B$3:$B$205,'Raw Stats'!AL$3:AL$205)) ->  | CP7: =IF($CI7="","",LOOKUP($CI7,'Raw Stats'!$B$3:$B$205,'Raw Stats'!AM$3:AM$205)) ->  | CQ7: =IF($CI7="","",LOOKUP($CI7,'Raw Stats'!$B$3:$B$205,'Raw Stats'!AN$3:AN$205)) ->  | CR7: =IF($CI7="","",LOOKUP($CI7,'Raw Stats'!$B$3:$B$205,'Raw Stats'!AO$3:AO$205)) ->  | CS7: =IF($CI7="","",LOOKUP($CI7,'Raw Stats'!$B$3:$B$205,'Raw Stats'!AP$3:AP$205)) ->  | CT7: =IF($CI7="","",LOOKUP($CI7,'Raw Stats'!$B$3:$B$205,'Raw Stats'!AQ$3:AQ$205)) ->  | CU7: =IF($CI7="","",LOOKUP($CI7,'Raw Stats'!$B$3:$B$205,'Raw Stats'!AR$3:AR$205)) ->  | CV7: =IF($CI7="","",LOOKUP($CI7,'Raw Stats'!$B$3:$B$205,'Raw Stats'!AS$3:AS$205)) ->  | CW7: =IF($CI7="","",LOOKUP($CI7,'Raw Stats'!$B$3:$B$205,'Raw Stats'!AT$3:AT$205)) ->  | CX7: =IF($CI7="","",LOOKUP($CI7,'Raw Stats'!$B$3:$B$205,'Raw Stats'!AU$3:AU$205)) ->  | CY7: =IF($CI7="","",LOOKUP($CI7,'Raw Stats'!$B$3:$B$205,'Raw Stats'!AV$3:AV$205)) ->  | CZ7: =IF($CI7="","",LOOKUP($CI7,'Raw Stats'!$B$3:$B$205,'Raw Stats'!AW$3:AW$205)) ->  | DA7: =IF($CI7="","",LOOKUP($CI7,'Raw Stats'!$B$3:$B$205,'Raw Stats'!AX$3:AX$205)) ->  | DB7: =IF($CI7="","",LOOKUP($CI7,'Raw Stats'!$B$3:$B$205,'Raw Stats'!AY$3:AY$205)) ->  | DC7: =IF($CI7="","",LOOKUP($CI7,'Raw Stats'!$B$3:$B$205,'Raw Stats'!AZ$3:AZ$205)) ->  | DD7: =IF($CI7="","",LOOKUP($CI7,'Raw Stats'!$B$3:$B$205,'Raw Stats'!BA$3:BA$205)) ->  | DE7: =IF('Play-by-Play Summary'!AZ12<>"",'Play-by-Play Summary'!AZ12,IF('Play-by-Play Summary'!BA12<>"",'Play-by-Play Summary'!BA12,IF('Play-by-Play Summary'!BD12<>"",'Play-by-Play Summary'!BD12,IF('Play-by-Play Summary'!BE12<>"",'Play-by-Play Summary'!BE12,IF('Play-by-Play Summary'!BF12<>"",'Play-by-Play Summary'!BF12,IF('Play-by-Play Summary'!BI12<>"",'Play-by-Play Summary'!BI12,"")))))) ->  | DF7: =IF($DE7="","",LOOKUP($DE7,'Raw Stats'!$B$3:$B$205,'Raw Stats'!A$3:A$205)) ->  | DG7: =IF($DE7="","",LOOKUP($DE7,'Raw Stats'!$B$3:$B$205,'Raw Stats'!C$3:C$205)) ->  | DH7: =IF($DE7="","",LOOKUP($DE7,'Raw Stats'!$B$3:$B$205,'Raw Stats'!Q$3:Q$205)) ->  | DI7: =IF($DE7="","",LOOKUP($DE7,'Raw Stats'!$B$3:$B$205,'Raw Stats'!R$3:R$205)) ->  | DJ7: =IF($DE7="","",LOOKUP($DE7,'Raw Stats'!$B$3:$B$205,'Raw Stats'!S$3:S$205)) ->  | DK7: =IF($DE7="","",LOOKUP($DE7,'Raw Stats'!$B$3:$B$205,'Raw Stats'!T$3:T$205)) ->  | DL7: =IF($DE7="","",LOOKUP($DE7,'Raw Stats'!$B$3:$B$205,'Raw Stats'!U$3:U$205)) ->  | DM7: =IF($DE7="","",LOOKUP($DE7,'Raw Stats'!$B$3:$B$205,'Raw Stats'!V$3:V$205)) ->  | DN7: =IF($DE7="","",LOOKUP($DE7,'Raw Stats'!$B$3:$B$205,'Raw Stats'!W$3:W$205)) ->  | DO7: =IF($DE7="","",LOOKUP($DE7,'Raw Stats'!$B$3:$B$205,'Raw Stats'!X$3:X$205)) ->  | DP7: =IF($DE7="","",LOOKUP($DE7,'Raw Stats'!$B$3:$B$205,'Raw Stats'!Y$3:Y$205)) ->  | DQ7: =IF($DE7="","",LOOKUP($DE7,'Raw Stats'!$B$3:$B$205,'Raw Stats'!Z$3:Z$205)) ->  | DR7: =IF($DE7="","",LOOKUP($DE7,'Raw Stats'!$B$3:$B$205,'Raw Stats'!AA$3:AA$205)) ->  | DS7: =IF($DE7="","",LOOKUP($DE7,'Raw Stats'!$B$3:$B$205,'Raw Stats'!AB$3:AB$205)) ->  | DT7: =IF($DE7="","",LOOKUP($DE7,'Raw Stats'!$B$3:$B$205,'Raw Stats'!AC$3:AC$205)) ->  | DU7: =IF($DE7="","",LOOKUP($DE7,'Raw Stats'!$B$3:$B$205,'Raw Stats'!AD$3:AD$205)) -> 
A8: =IF('Play Entry'!J14="","",+'Play-by-Play Summary'!C13) -> 7 | B8: ='Play Entry'!I14 -> 0 | C8: =+'Play-by-Play Summary'!Q13 -> 5 | D8: =+'Play-by-Play Summary'!P13 -> 16 | E8: =+'Play-by-Play Summary'!J13 -> 4th | F8: =+'Play Entry'!L14 -> 6 | G8: =+'Play Entry'!J14 -> CastleV | H8: =+'Play-by-Play Summary'!R13 -> from the 36 yard line | I8: =+'Play-by-Play Summary'!AE13 -> Punt by 85 (Parker Christensen) to the 44; no return | T8: =LOOKUP(LARGE($A$1:$A$397,6),$A$1:$A$397,$G$1:$G$397) -> Valor | U8: =IF(MAX(A$1:A$397)<6,"",LOOKUP(LARGE($A$1:$A$397,6),$A$1:$A$397,$E$1:$E$397)) ->  | V8: =LOOKUP(LARGE($A$1:$A$397,6),$A$1:$A$397,$F$1:$F$397) ->  | W8: =LOOKUP(LARGE($A$1:$A$397,6),$A$1:$A$397,$H$1:$H$397) ->  | X8: =IF(MAX(A$1:A$397)<6,"",LOOKUP(LARGE($A$1:$A$397,6),$A$1:$A$397,$I$1:$I$397)) -> Extra point attempt by Sean Fields is good | Y8: Number | Z8: Name | AA8: All Unassisted Tackles | AB8: All assists | AC8: Unassisted Sacks | AD8: Sack Assists | AE8: Sack Yards | AF8: Unassisted TFL (no sacks) | AG8: TFL Assists (no sacks) | AH8: TFL Yards (no sacks) | AI8: QB Hurries | AJ8: Breakups | AK8: INTs | AL8: INT return Yards | AM8: INT Return TDs | AN8: Fumbles Caused | AO8: Fumbles Recovered | AP8: Fumble return Yards | AQ8: Fumble Return TDs | AR8: =IF('Play-by-Play Summary'!AS13="","",'Play-by-Play Summary'!AS13) ->  | AS8: =IF($AR8="","",LOOKUP($AR8,'Raw Stats'!$B$3:$B$205,'Raw Stats'!A$3:A$205)) ->  | AT8: =IF($AR8="","",LOOKUP($AR8,'Raw Stats'!$B$3:$B$205,'Raw Stats'!C$3:C$205)) ->  | AU8: =IF($AR8="","",LOOKUP($AR8,'Raw Stats'!$B$3:$B$205,'Raw Stats'!J$3:J$205)) ->  | AV8: =IF($AR8="","",LOOKUP($AR8,'Raw Stats'!$B$3:$B$205,'Raw Stats'!K$3:K$205)) ->  | AW8: =IF($AR8="","",LOOKUP($AR8,'Raw Stats'!$B$3:$B$205,'Raw Stats'!L$3:L$205)) ->  | AX8: =IF('Play-by-Play Summary'!AN13="","",'Play-by-Play Summary'!AN13) ->  | AY8: =IF($AX8="","",LOOKUP($AX8,'Raw Stats'!$B$3:$B$205,'Raw Stats'!A$3:A$205)) ->  | AZ8: =IF($AX8="","",LOOKUP($AX8,'Raw Stats'!$B$3:$B$205,'Raw Stats'!C$3:C$205)) ->  | BA8: =IF($AX8="","",LOOKUP($AX8,'Raw Stats'!$B$3:$B$205,'Raw Stats'!D$3:D$205)) ->  | BB8: =IF($AX8="","",LOOKUP($AX8,'Raw Stats'!$B$3:$B$205,'Raw Stats'!F$3:F$205)) ->  | BC8: =IF($AX8="","",LOOKUP($AX8,'Raw Stats'!$B$3:$B$205,'Raw Stats'!H$3:H$205)) ->  | BD8: =IF($AX8="","",LOOKUP($AX8,'Raw Stats'!$B$3:$B$205,'Raw Stats'!I$3:I$205)) ->  | BE8: =IF($AX8="","",LOOKUP($AX8,'Raw Stats'!$B$3:$B$205,'Raw Stats'!G$3:G$205)) ->  | BF8: =IF('Play-by-Play Summary'!AV13="","",'Play-by-Play Summary'!AV13) ->  | BG8: =IF($BF8="","",LOOKUP($BF8,'Raw Stats'!$B$3:$B$205,'Raw Stats'!A$3:A$205)) ->  | BH8: =IF($BF8="","",LOOKUP($BF8,'Raw Stats'!$B$3:$B$205,'Raw Stats'!C$3:C$205)) ->  | BI8: =IF($BF8="","",LOOKUP($BF8,'Raw Stats'!$B$3:$B$205,'Raw Stats'!M$3:M$205)) ->  | BJ8: =IF($BF8="","",LOOKUP($BF8,'Raw Stats'!$B$3:$B$205,'Raw Stats'!N$3:N$205)) ->  | BK8: =IF($BF8="","",LOOKUP($BF8,'Raw Stats'!$B$3:$B$205,'Raw Stats'!O$3:O$205)) ->  | BL8: =IF($BF8="","",LOOKUP($BF8,'Raw Stats'!$B$3:$B$205,'Raw Stats'!P$3:P$205)) ->  | BN8: =IF('Play Entry'!$W14="","",IF($G8=Teams!$B$13,'Play Entry'!$W14,IF($G8=Teams!$A$13,'Play Entry'!$W14+100,""))) ->  | BO8: =IF('Play Entry'!$Z14="","",IF($G8=Teams!$B$13,'Play Entry'!$Z14,IF($G8=Teams!$A$13,'Play Entry'!$Z14+100,""))) ->  | BP8: =IF($BM8="","",LOOKUP($BM8,'Raw Stats'!$B$3:$B$205,'Raw Stats'!A$3:A$205)) ->  | BQ8: =IF($BM8="","",LOOKUP($BM8,'Raw Stats'!$B$3:$B$205,'Raw Stats'!C$3:C$205)) ->  | BR8: =IF($BM8="","",LOOKUP($BM8,'Raw Stats'!$B$3:$B$205,'Raw Stats'!AK$3:AK$205)) ->  | BS8: =IF($BM8="","",LOOKUP($BM8,'Raw Stats'!$B$3:$B$205,'Raw Stats'!AL$3:AL$205)) ->  | BT8: =IF($BM8="","",LOOKUP($BM8,'Raw Stats'!$B$3:$B$205,'Raw Stats'!AM$3:AM$205)) ->  | BU8: =IF($BM8="","",LOOKUP($BM8,'Raw Stats'!$B$3:$B$205,'Raw Stats'!AN$3:AN$205)) ->  | BV8: =IF($BM8="","",LOOKUP($BM8,'Raw Stats'!$B$3:$B$205,'Raw Stats'!AO$3:AO$205)) ->  | BW8: =IF($BM8="","",LOOKUP($BM8,'Raw Stats'!$B$3:$B$205,'Raw Stats'!AP$3:AP$205)) ->  | BX8: =IF($BM8="","",LOOKUP($BM8,'Raw Stats'!$B$3:$B$205,'Raw Stats'!AQ$3:AQ$205)) ->  | BY8: =IF($BM8="","",LOOKUP($BM8,'Raw Stats'!$B$3:$B$205,'Raw Stats'!AR$3:AR$205)) ->  | BZ8: =IF($BM8="","",LOOKUP($BM8,'Raw Stats'!$B$3:$B$205,'Raw Stats'!AS$3:AS$205)) ->  | CA8: =IF($BM8="","",LOOKUP($BM8,'Raw Stats'!$B$3:$B$205,'Raw Stats'!AT$3:AT$205)) ->  | CB8: =IF($BM8="","",LOOKUP($BM8,'Raw Stats'!$B$3:$B$205,'Raw Stats'!AU$3:AU$205)) ->  | CC8: =IF($BM8="","",LOOKUP($BM8,'Raw Stats'!$B$3:$B$205,'Raw Stats'!AV$3:AV$205)) ->  | CD8: =IF($BM8="","",LOOKUP($BM8,'Raw Stats'!$B$3:$B$205,'Raw Stats'!AW$3:AW$205)) ->  | CE8: =IF($BM8="","",LOOKUP($BM8,'Raw Stats'!$B$3:$B$205,'Raw Stats'!AX$3:AX$205)) ->  | CF8: =IF($BM8="","",LOOKUP($BM8,'Raw Stats'!$B$3:$B$205,'Raw Stats'!AY$3:AY$205)) ->  | CG8: =IF($BM8="","",LOOKUP($BM8,'Raw Stats'!$B$3:$B$205,'Raw Stats'!AZ$3:AZ$205)) ->  | CH8: =IF($BM8="","",LOOKUP($BM8,'Raw Stats'!$B$3:$B$205,'Raw Stats'!BA$3:BA$205)) ->  | CJ8: =IF('Play Entry'!$X14="","",IF($G8=Teams!$B$13,'Play Entry'!$X14,IF($G8=Teams!$A$13,'Play Entry'!$X14+100,""))) ->  | CK8: =IF('Play Entry'!$AA14="","",IF($G8=Teams!$B$13,'Play Entry'!$AA14,IF($G8=Teams!$A$13,'Play Entry'!$AA14+100,""))) ->  | CL8: =IF($CI8="","",LOOKUP($CI8,'Raw Stats'!$B$3:$B$205,'Raw Stats'!A$3:A$205)) ->  | CM8: =IF($CI8="","",LOOKUP($CI8,'Raw Stats'!$B$3:$B$205,'Raw Stats'!C$3:C$205)) ->  | CN8: =IF($CI8="","",LOOKUP($CI8,'Raw Stats'!$B$3:$B$205,'Raw Stats'!AK$3:AK$205)) ->  | CO8: =IF($CI8="","",LOOKUP($CI8,'Raw Stats'!$B$3:$B$205,'Raw Stats'!AL$3:AL$205)) ->  | CP8: =IF($CI8="","",LOOKUP($CI8,'Raw Stats'!$B$3:$B$205,'Raw Stats'!AM$3:AM$205)) ->  | CQ8: =IF($CI8="","",LOOKUP($CI8,'Raw Stats'!$B$3:$B$205,'Raw Stats'!AN$3:AN$205)) ->  | CR8: =IF($CI8="","",LOOKUP($CI8,'Raw Stats'!$B$3:$B$205,'Raw Stats'!AO$3:AO$205)) ->  | CS8: =IF($CI8="","",LOOKUP($CI8,'Raw Stats'!$B$3:$B$205,'Raw Stats'!AP$3:AP$205)) ->  | CT8: =IF($CI8="","",LOOKUP($CI8,'Raw Stats'!$B$3:$B$205,'Raw Stats'!AQ$3:AQ$205)) ->  | CU8: =IF($CI8="","",LOOKUP($CI8,'Raw Stats'!$B$3:$B$205,'Raw Stats'!AR$3:AR$205)) ->  | CV8: =IF($CI8="","",LOOKUP($CI8,'Raw Stats'!$B$3:$B$205,'Raw Stats'!AS$3:AS$205)) ->  | CW8: =IF($CI8="","",LOOKUP($CI8,'Raw Stats'!$B$3:$B$205,'Raw Stats'!AT$3:AT$205)) ->  | CX8: =IF($CI8="","",LOOKUP($CI8,'Raw Stats'!$B$3:$B$205,'Raw Stats'!AU$3:AU$205)) ->  | CY8: =IF($CI8="","",LOOKUP($CI8,'Raw Stats'!$B$3:$B$205,'Raw Stats'!AV$3:AV$205)) ->  | CZ8: =IF($CI8="","",LOOKUP($CI8,'Raw Stats'!$B$3:$B$205,'Raw Stats'!AW$3:AW$205)) ->  | DA8: =IF($CI8="","",LOOKUP($CI8,'Raw Stats'!$B$3:$B$205,'Raw Stats'!AX$3:AX$205)) ->  | DB8: =IF($CI8="","",LOOKUP($CI8,'Raw Stats'!$B$3:$B$205,'Raw Stats'!AY$3:AY$205)) ->  | DC8: =IF($CI8="","",LOOKUP($CI8,'Raw Stats'!$B$3:$B$205,'Raw Stats'!AZ$3:AZ$205)) ->  | DD8: =IF($CI8="","",LOOKUP($CI8,'Raw Stats'!$B$3:$B$205,'Raw Stats'!BA$3:BA$205)) ->  | DE8: =IF('Play-by-Play Summary'!AZ13<>"",'Play-by-Play Summary'!AZ13,IF('Play-by-Play Summary'!BA13<>"",'Play-by-Play Summary'!BA13,IF('Play-by-Play Summary'!BD13<>"",'Play-by-Play Summary'!BD13,IF('Play-by-Play Summary'!BE13<>"",'Play-by-Play Summary'!BE13,IF('Play-by-Play Summary'!BF13<>"",'Play-by-Play Summary'!BF13,IF('Play-by-Play Summary'!BI13<>"",'Play-by-Play Summary'!BI13,"")))))) -> 185 | DF8: =IF($DE8="","",LOOKUP($DE8,'Raw Stats'!$B$3:$B$205,'Raw Stats'!A$3:A$205)) -> 85 | DG8: =IF($DE8="","",LOOKUP($DE8,'Raw Stats'!$B$3:$B$205,'Raw Stats'!C$3:C$205)) -> Parker Christensen | DH8: =IF($DE8="","",LOOKUP($DE8,'Raw Stats'!$B$3:$B$205,'Raw Stats'!Q$3:Q$205)) -> 0 | DI8: =IF($DE8="","",LOOKUP($DE8,'Raw Stats'!$B$3:$B$205,'Raw Stats'!R$3:R$205)) -> 0 | DJ8: =IF($DE8="","",LOOKUP($DE8,'Raw Stats'!$B$3:$B$205,'Raw Stats'!S$3:S$205)) -> 0 | DK8: =IF($DE8="","",LOOKUP($DE8,'Raw Stats'!$B$3:$B$205,'Raw Stats'!T$3:T$205)) -> 0 | DL8: =IF($DE8="","",LOOKUP($DE8,'Raw Stats'!$B$3:$B$205,'Raw Stats'!U$3:U$205)) -> 0 | DM8: =IF($DE8="","",LOOKUP($DE8,'Raw Stats'!$B$3:$B$205,'Raw Stats'!V$3:V$205)) -> 0 | DN8: =IF($DE8="","",LOOKUP($DE8,'Raw Stats'!$B$3:$B$205,'Raw Stats'!W$3:W$205)) -> 0 | DO8: =IF($DE8="","",LOOKUP($DE8,'Raw Stats'!$B$3:$B$205,'Raw Stats'!X$3:X$205)) -> 0 | DP8: =IF($DE8="","",LOOKUP($DE8,'Raw Stats'!$B$3:$B$205,'Raw Stats'!Y$3:Y$205)) -> 2 | DQ8: =IF($DE8="","",LOOKUP($DE8,'Raw Stats'!$B$3:$B$205,'Raw Stats'!Z$3:Z$205)) -> 49 | DR8: =IF($DE8="","",LOOKUP($DE8,'Raw Stats'!$B$3:$B$205,'Raw Stats'!AA$3:AA$205)) -> 0 | DS8: =IF($DE8="","",LOOKUP($DE8,'Raw Stats'!$B$3:$B$205,'Raw Stats'!AB$3:AB$205)) -> 0 | DT8: =IF($DE8="","",LOOKUP($DE8,'Raw Stats'!$B$3:$B$205,'Raw Stats'!AC$3:AC$205)) -> 0 | DU8: =IF($DE8="","",LOOKUP($DE8,'Raw Stats'!$B$3:$B$205,'Raw Stats'!AD$3:AD$205)) -> 1
A9: =IF('Play Entry'!J15="","",+'Play-by-Play Summary'!C14) ->  | B9: ='Play Entry'!I15 -> 1 | C9: =+'Play-by-Play Summary'!Q14 -> 0 | D9: =+'Play-by-Play Summary'!P14 -> 16 | E9: =+'Play-by-Play Summary'!J14 ->  | F9: =+'Play Entry'!L15 ->  | G9: =+'Play Entry'!J15 ->  | H9: =+'Play-by-Play Summary'!R14 ->  | I9: =+'Play-by-Play Summary'!AE14 -> Drive Summary: 16 yards in 5 plays. Score: Valor 0, CastleV 0 | T9: =LOOKUP(LARGE($A$1:$A$397,7),$A$1:$A$397,$G$1:$G$397) -> Valor | U9: =IF(MAX(A$1:A$397)<7,"",LOOKUP(LARGE($A$1:$A$397,7),$A$1:$A$397,$E$1:$E$397)) -> 1st | V9: =LOOKUP(LARGE($A$1:$A$397,7),$A$1:$A$397,$F$1:$F$397) -> 10 | W9: =LOOKUP(LARGE($A$1:$A$397,7),$A$1:$A$397,$H$1:$H$397) -> from the +36 yard line | X9: =IF(MAX(A$1:A$397)<7,"",LOOKUP(LARGE($A$1:$A$397,7),$A$1:$A$397,$I$1:$I$397)) -> Rush (left) by 32 (Zach Wiley) for a gain of 36 and a touchdown! | Y9: =IF(MAX($A$1:$A$397)<2,"",LOOKUP(LARGE($A$1:$A$397,2),$A$1:$A$397,BP$1:BP$397)) ->  | Z9: =IF(MAX($A$1:$A$397)<2,"",LOOKUP(LARGE($A$1:$A$397,2),$A$1:$A$397,BQ$1:BQ$397)) ->  | AA9: =IF(MAX($A$1:$A$397)<2,"",LOOKUP(LARGE($A$1:$A$397,2),$A$1:$A$397,BR$1:BR$397)) ->  | AR9: =IF('Play-by-Play Summary'!AS14="","",'Play-by-Play Summary'!AS14) ->  | AS9: =IF($AR9="","",LOOKUP($AR9,'Raw Stats'!$B$3:$B$205,'Raw Stats'!A$3:A$205)) ->  | AT9: =IF($AR9="","",LOOKUP($AR9,'Raw Stats'!$B$3:$B$205,'Raw Stats'!C$3:C$205)) ->  | AU9: =IF($AR9="","",LOOKUP($AR9,'Raw Stats'!$B$3:$B$205,'Raw Stats'!J$3:J$205)) ->  | AV9: =IF($AR9="","",LOOKUP($AR9,'Raw Stats'!$B$3:$B$205,'Raw Stats'!K$3:K$205)) ->  | AW9: =IF($AR9="","",LOOKUP($AR9,'Raw Stats'!$B$3:$B$205,'Raw Stats'!L$3:L$205)) ->  | AX9: =IF('Play-by-Play Summary'!AN14="","",'Play-by-Play Summary'!AN14) ->  | AY9: =IF($AX9="","",LOOKUP($AX9,'Raw Stats'!$B$3:$B$205,'Raw Stats'!A$3:A$205)) ->  | AZ9: =IF($AX9="","",LOOKUP($AX9,'Raw Stats'!$B$3:$B$205,'Raw Stats'!C$3:C$205)) ->  | BA9: =IF($AX9="","",LOOKUP($AX9,'Raw Stats'!$B$3:$B$205,'Raw Stats'!D$3:D$205)) ->  | BB9: =IF($AX9="","",LOOKUP($AX9,'Raw Stats'!$B$3:$B$205,'Raw Stats'!F$3:F$205)) ->  | BC9: =IF($AX9="","",LOOKUP($AX9,'Raw Stats'!$B$3:$B$205,'Raw Stats'!H$3:H$205)) ->  | BD9: =IF($AX9="","",LOOKUP($AX9,'Raw Stats'!$B$3:$B$205,'Raw Stats'!I$3:I$205)) ->  | BE9: =IF($AX9="","",LOOKUP($AX9,'Raw Stats'!$B$3:$B$205,'Raw Stats'!G$3:G$205)) ->  | BF9: =IF('Play-by-Play Summary'!AV14="","",'Play-by-Play Summary'!AV14) ->  | BG9: =IF($BF9="","",LOOKUP($BF9,'Raw Stats'!$B$3:$B$205,'Raw Stats'!A$3:A$205)) ->  | BH9: =IF($BF9="","",LOOKUP($BF9,'Raw Stats'!$B$3:$B$205,'Raw Stats'!C$3:C$205)) ->  | BI9: =IF($BF9="","",LOOKUP($BF9,'Raw Stats'!$B$3:$B$205,'Raw Stats'!M$3:M$205)) ->  | BJ9: =IF($BF9="","",LOOKUP($BF9,'Raw Stats'!$B$3:$B$205,'Raw Stats'!N$3:N$205)) ->  | BK9: =IF($BF9="","",LOOKUP($BF9,'Raw Stats'!$B$3:$B$205,'Raw Stats'!O$3:O$205)) ->  | BL9: =IF($BF9="","",LOOKUP($BF9,'Raw Stats'!$B$3:$B$205,'Raw Stats'!P$3:P$205)) ->  | BN9: =IF('Play Entry'!$W15="","",IF($G9=Teams!$B$13,'Play Entry'!$W15,IF($G9=Teams!$A$13,'Play Entry'!$W15+100,""))) ->  | BO9: =IF('Play Entry'!$Z15="","",IF($G9=Teams!$B$13,'Play Entry'!$Z15,IF($G9=Teams!$A$13,'Play Entry'!$Z15+100,""))) ->  | BP9: =IF($BM9="","",LOOKUP($BM9,'Raw Stats'!$B$3:$B$205,'Raw Stats'!A$3:A$205)) ->  | BQ9: =IF($BM9="","",LOOKUP($BM9,'Raw Stats'!$B$3:$B$205,'Raw Stats'!C$3:C$205)) ->  | BR9: =IF($BM9="","",LOOKUP($BM9,'Raw Stats'!$B$3:$B$205,'Raw Stats'!AK$3:AK$205)) ->  | BS9: =IF($BM9="","",LOOKUP($BM9,'Raw Stats'!$B$3:$B$205,'Raw Stats'!AL$3:AL$205)) ->  | BT9: =IF($BM9="","",LOOKUP($BM9,'Raw Stats'!$B$3:$B$205,'Raw Stats'!AM$3:AM$205)) ->  | BU9: =IF($BM9="","",LOOKUP($BM9,'Raw Stats'!$B$3:$B$205,'Raw Stats'!AN$3:AN$205)) ->  | BV9: =IF($BM9="","",LOOKUP($BM9,'Raw Stats'!$B$3:$B$205,'Raw Stats'!AO$3:AO$205)) ->  | BW9: =IF($BM9="","",LOOKUP($BM9,'Raw Stats'!$B$3:$B$205,'Raw Stats'!AP$3:AP$205)) ->  | BX9: =IF($BM9="","",LOOKUP($BM9,'Raw Stats'!$B$3:$B$205,'Raw Stats'!AQ$3:AQ$205)) ->  | BY9: =IF($BM9="","",LOOKUP($BM9,'Raw Stats'!$B$3:$B$205,'Raw Stats'!AR$3:AR$205)) ->  | BZ9: =IF($BM9="","",LOOKUP($BM9,'Raw Stats'!$B$3:$B$205,'Raw Stats'!AS$3:AS$205)) ->  | CA9: =IF($BM9="","",LOOKUP($BM9,'Raw Stats'!$B$3:$B$205,'Raw Stats'!AT$3:AT$205)) ->  | CB9: =IF($BM9="","",LOOKUP($BM9,'Raw Stats'!$B$3:$B$205,'Raw Stats'!AU$3:AU$205)) ->  | CC9: =IF($BM9="","",LOOKUP($BM9,'Raw Stats'!$B$3:$B$205,'Raw Stats'!AV$3:AV$205)) ->  | CD9: =IF($BM9="","",LOOKUP($BM9,'Raw Stats'!$B$3:$B$205,'Raw Stats'!AW$3:AW$205)) ->  | CE9: =IF($BM9="","",LOOKUP($BM9,'Raw Stats'!$B$3:$B$205,'Raw Stats'!AX$3:AX$205)) ->  | CF9: =IF($BM9="","",LOOKUP($BM9,'Raw Stats'!$B$3:$B$205,'Raw Stats'!AY$3:AY$205)) ->  | CG9: =IF($BM9="","",LOOKUP($BM9,'Raw Stats'!$B$3:$B$205,'Raw Stats'!AZ$3:AZ$205)) ->  | CH9: =IF($BM9="","",LOOKUP($BM9,'Raw Stats'!$B$3:$B$205,'Raw Stats'!BA$3:BA$205)) ->  | CJ9: =IF('Play Entry'!$X15="","",IF($G9=Teams!$B$13,'Play Entry'!$X15,IF($G9=Teams!$A$13,'Play Entry'!$X15+100,""))) ->  | CK9: =IF('Play Entry'!$AA15="","",IF($G9=Teams!$B$13,'Play Entry'!$AA15,IF($G9=Teams!$A$13,'Play Entry'!$AA15+100,""))) ->  | CL9: =IF($CI9="","",LOOKUP($CI9,'Raw Stats'!$B$3:$B$205,'Raw Stats'!A$3:A$205)) ->  | CM9: =IF($CI9="","",LOOKUP($CI9,'Raw Stats'!$B$3:$B$205,'Raw Stats'!C$3:C$205)) ->  | CN9: =IF($CI9="","",LOOKUP($CI9,'Raw Stats'!$B$3:$B$205,'Raw Stats'!AK$3:AK$205)) ->  | CO9: =IF($CI9="","",LOOKUP($CI9,'Raw Stats'!$B$3:$B$205,'Raw Stats'!AL$3:AL$205)) ->  | CP9: =IF($CI9="","",LOOKUP($CI9,'Raw Stats'!$B$3:$B$205,'Raw Stats'!AM$3:AM$205)) ->  | CQ9: =IF($CI9="","",LOOKUP($CI9,'Raw Stats'!$B$3:$B$205,'Raw Stats'!AN$3:AN$205)) ->  | CR9: =IF($CI9="","",LOOKUP($CI9,'Raw Stats'!$B$3:$B$205,'Raw Stats'!AO$3:AO$205)) ->  | CS9: =IF($CI9="","",LOOKUP($CI9,'Raw Stats'!$B$3:$B$205,'Raw Stats'!AP$3:AP$205)) ->  | CT9: =IF($CI9="","",LOOKUP($CI9,'Raw Stats'!$B$3:$B$205,'Raw Stats'!AQ$3:AQ$205)) ->  | CU9: =IF($CI9="","",LOOKUP($CI9,'Raw Stats'!$B$3:$B$205,'Raw Stats'!AR$3:AR$205)) ->  | CV9: =IF($CI9="","",LOOKUP($CI9,'Raw Stats'!$B$3:$B$205,'Raw Stats'!AS$3:AS$205)) ->  | CW9: =IF($CI9="","",LOOKUP($CI9,'Raw Stats'!$B$3:$B$205,'Raw Stats'!AT$3:AT$205)) ->  | CX9: =IF($CI9="","",LOOKUP($CI9,'Raw Stats'!$B$3:$B$205,'Raw Stats'!AU$3:AU$205)) ->  | CY9: =IF($CI9="","",LOOKUP($CI9,'Raw Stats'!$B$3:$B$205,'Raw Stats'!AV$3:AV$205)) ->  | CZ9: =IF($CI9="","",LOOKUP($CI9,'Raw Stats'!$B$3:$B$205,'Raw Stats'!AW$3:AW$205)) ->  | DA9: =IF($CI9="","",LOOKUP($CI9,'Raw Stats'!$B$3:$B$205,'Raw Stats'!AX$3:AX$205)) ->  | DB9: =IF($CI9="","",LOOKUP($CI9,'Raw Stats'!$B$3:$B$205,'Raw Stats'!AY$3:AY$205)) ->  | DC9: =IF($CI9="","",LOOKUP($CI9,'Raw Stats'!$B$3:$B$205,'Raw Stats'!AZ$3:AZ$205)) ->  | DD9: =IF($CI9="","",LOOKUP($CI9,'Raw Stats'!$B$3:$B$205,'Raw Stats'!BA$3:BA$205)) ->  | DE9: =IF('Play-by-Play Summary'!AZ14<>"",'Play-by-Play Summary'!AZ14,IF('Play-by-Play Summary'!BA14<>"",'Play-by-Play Summary'!BA14,IF('Play-by-Play Summary'!BD14<>"",'Play-by-Play Summary'!BD14,IF('Play-by-Play Summary'!BE14<>"",'Play-by-Play Summary'!BE14,IF('Play-by-Play Summary'!BF14<>"",'Play-by-Play Summary'!BF14,IF('Play-by-Play Summary'!BI14<>"",'Play-by-Play Summary'!BI14,"")))))) ->  | DF9: =IF($DE9="","",LOOKUP($DE9,'Raw Stats'!$B$3:$B$205,'Raw Stats'!A$3:A$205)) ->  | DG9: =IF($DE9="","",LOOKUP($DE9,'Raw Stats'!$B$3:$B$205,'Raw Stats'!C$3:C$205)) ->  | DH9: =IF($DE9="","",LOOKUP($DE9,'Raw Stats'!$B$3:$B$205,'Raw Stats'!Q$3:Q$205)) ->  | DI9: =IF($DE9="","",LOOKUP($DE9,'Raw Stats'!$B$3:$B$205,'Raw Stats'!R$3:R$205)) ->  | DJ9: =IF($DE9="","",LOOKUP($DE9,'Raw Stats'!$B$3:$B$205,'Raw Stats'!S$3:S$205)) ->  | DK9: =IF($DE9="","",LOOKUP($DE9,'Raw Stats'!$B$3:$B$205,'Raw Stats'!T$3:T$205)) ->  | DL9: =IF($DE9="","",LOOKUP($DE9,'Raw Stats'!$B$3:$B$205,'Raw Stats'!U$3:U$205)) ->  | DM9: =IF($DE9="","",LOOKUP($DE9,'Raw Stats'!$B$3:$B$205,'Raw Stats'!V$3:V$205)) ->  | DN9: =IF($DE9="","",LOOKUP($DE9,'Raw Stats'!$B$3:$B$205,'Raw Stats'!W$3:W$205)) ->  | DO9: =IF($DE9="","",LOOKUP($DE9,'Raw Stats'!$B$3:$B$205,'Raw Stats'!X$3:X$205)) ->  | DP9: =IF($DE9="","",LOOKUP($DE9,'Raw Stats'!$B$3:$B$205,'Raw Stats'!Y$3:Y$205)) ->  | DQ9: =IF($DE9="","",LOOKUP($DE9,'Raw Stats'!$B$3:$B$205,'Raw Stats'!Z$3:Z$205)) ->  | DR9: =IF($DE9="","",LOOKUP($DE9,'Raw Stats'!$B$3:$B$205,'Raw Stats'!AA$3:AA$205)) ->  | DS9: =IF($DE9="","",LOOKUP($DE9,'Raw Stats'!$B$3:$B$205,'Raw Stats'!AB$3:AB$205)) ->  | DT9: =IF($DE9="","",LOOKUP($DE9,'Raw Stats'!$B$3:$B$205,'Raw Stats'!AC$3:AC$205)) ->  | DU9: =IF($DE9="","",LOOKUP($DE9,'Raw Stats'!$B$3:$B$205,'Raw Stats'!AD$3:AD$205)) -> 
A10: =IF('Play Entry'!J16="","",+'Play-by-Play Summary'!C15) -> 9 | B10: ='Play Entry'!I16 -> 1 | C10: =+'Play-by-Play Summary'!Q15 -> 1 | D10: =+'Play-by-Play Summary'!P15 -> 10 | E10: =+'Play-by-Play Summary'!J15 -> 1st | F10: =+'Play Entry'!L16 -> 10 | G10: =+'Play Entry'!J16 -> Valor | H10: =+'Play-by-Play Summary'!R15 -> from the 44 yard line | I10: =+'Play-by-Play Summary'!AE15 -> Pass (screen right) from 9 (Sean McNair) intended for 6 (Tyler Larson) complete for a gain of 10. Tackle by 32 (Brody Ashworth) | T10: =LOOKUP(LARGE($A$1:$A$397,8),$A$1:$A$397,$G$1:$G$397) -> Valor | U10: =IF(MAX(A$1:A$397)<8,"",LOOKUP(LARGE($A$1:$A$397,8),$A$1:$A$397,$E$1:$E$397)) -> 1st | V10: =LOOKUP(LARGE($A$1:$A$397,8),$A$1:$A$397,$F$1:$F$397) -> 10 | W10: =LOOKUP(LARGE($A$1:$A$397,8),$A$1:$A$397,$H$1:$H$397) -> from the 49 yard line | X10: =IF(MAX(A$1:A$397)<8,"",LOOKUP(LARGE($A$1:$A$397,8),$A$1:$A$397,$I$1:$I$397)) -> Rush (center) by 32 (Zach Wiley) for a gain of 15. Tackle by 30 (Randall Perez) | Y10: =IF(MAX($A$1:$A$397)<2,"",LOOKUP(LARGE($A$1:$A$397,2),$A$1:$A$397,BM$1:BM$397)) ->  | Z10: =IF($Y$10="","",LOOKUP($Y$10,'Raw Stats'!$B$1:'Raw Stats'!$B$205,'Raw Stats'!$BV$1:'Raw Stats'!$BV$205)) ->  | AA10: =IF($Y$10="","",LOOKUP($Y$10,'Raw Stats'!$B$1:'Raw Stats'!$B$205,'Raw Stats'!$BW$1:'Raw Stats'!$BW$205)) ->  | AB10: =IF($Y$10="","",LOOKUP($Y$10,'Raw Stats'!$B$1:'Raw Stats'!$B$205,'Raw Stats'!$BX$1:'Raw Stats'!$BX$205)) ->  | AR10: =IF('Play-by-Play Summary'!AS15="","",'Play-by-Play Summary'!AS15) ->  | AS10: =IF($AR10="","",LOOKUP($AR10,'Raw Stats'!$B$3:$B$205,'Raw Stats'!A$3:A$205)) ->  | AT10: =IF($AR10="","",LOOKUP($AR10,'Raw Stats'!$B$3:$B$205,'Raw Stats'!C$3:C$205)) ->  | AU10: =IF($AR10="","",LOOKUP($AR10,'Raw Stats'!$B$3:$B$205,'Raw Stats'!J$3:J$205)) ->  | AV10: =IF($AR10="","",LOOKUP($AR10,'Raw Stats'!$B$3:$B$205,'Raw Stats'!K$3:K$205)) ->  | AW10: =IF($AR10="","",LOOKUP($AR10,'Raw Stats'!$B$3:$B$205,'Raw Stats'!L$3:L$205)) ->  | AX10: =IF('Play-by-Play Summary'!AN15="","",'Play-by-Play Summary'!AN15) -> 9 | AY10: =IF($AX10="","",LOOKUP($AX10,'Raw Stats'!$B$3:$B$205,'Raw Stats'!A$3:A$205)) -> 9 | AZ10: =IF($AX10="","",LOOKUP($AX10,'Raw Stats'!$B$3:$B$205,'Raw Stats'!C$3:C$205)) -> Sean McNair | BA10: =IF($AX10="","",LOOKUP($AX10,'Raw Stats'!$B$3:$B$205,'Raw Stats'!D$3:D$205)) -> 16 | BB10: =IF($AX10="","",LOOKUP($AX10,'Raw Stats'!$B$3:$B$205,'Raw Stats'!F$3:F$205)) -> 11 | BC10: =IF($AX10="","",LOOKUP($AX10,'Raw Stats'!$B$3:$B$205,'Raw Stats'!H$3:H$205)) -> 162 | BD10: =IF($AX10="","",LOOKUP($AX10,'Raw Stats'!$B$3:$B$205,'Raw Stats'!I$3:I$205)) -> 1 | BE10: =IF($AX10="","",LOOKUP($AX10,'Raw Stats'!$B$3:$B$205,'Raw Stats'!G$3:G$205)) -> 0 | BF10: =IF('Play-by-Play Summary'!AV15="","",'Play-by-Play Summary'!AV15) -> 6 | BG10: =IF($BF10="","",LOOKUP($BF10,'Raw Stats'!$B$3:$B$205,'Raw Stats'!A$3:A$205)) -> 6 | BH10: =IF($BF10="","",LOOKUP($BF10,'Raw Stats'!$B$3:$B$205,'Raw Stats'!C$3:C$205)) -> Tyler Larson | BI10: =IF($BF10="","",LOOKUP($BF10,'Raw Stats'!$B$3:$B$205,'Raw Stats'!M$3:M$205)) -> 4 | BJ10: =IF($BF10="","",LOOKUP($BF10,'Raw Stats'!$B$3:$B$205,'Raw Stats'!N$3:N$205)) -> 3 | BK10: =IF($BF10="","",LOOKUP($BF10,'Raw Stats'!$B$3:$B$205,'Raw Stats'!O$3:O$205)) -> 81 | BL10: =IF($BF10="","",LOOKUP($BF10,'Raw Stats'!$B$3:$B$205,'Raw Stats'!P$3:P$205)) -> 1 | BM10: 132 | BN10: =IF('Play Entry'!$W16="","",IF($G10=Teams!$B$13,'Play Entry'!$W16,IF($G10=Teams!$A$13,'Play Entry'!$W16+100,""))) -> 132 | BO10: =IF('Play Entry'!$Z16="","",IF($G10=Teams!$B$13,'Play Entry'!$Z16,IF($G10=Teams!$A$13,'Play Entry'!$Z16+100,""))) ->  | BP10: =IF($BM10="","",LOOKUP($BM10,'Raw Stats'!$B$3:$B$205,'Raw Stats'!A$3:A$205)) -> 32 | BQ10: =IF($BM10="","",LOOKUP($BM10,'Raw Stats'!$B$3:$B$205,'Raw Stats'!C$3:C$205)) -> Brody Ashworth | BR10: =IF($BM10="","",LOOKUP($BM10,'Raw Stats'!$B$3:$B$205,'Raw Stats'!AK$3:AK$205)) -> 4 | BS10: =IF($BM10="","",LOOKUP($BM10,'Raw Stats'!$B$3:$B$205,'Raw Stats'!AL$3:AL$205)) -> 2 | BT10: =IF($BM10="","",LOOKUP($BM10,'Raw Stats'!$B$3:$B$205,'Raw Stats'!AM$3:AM$205)) -> 1 | BU10: =IF($BM10="","",LOOKUP($BM10,'Raw Stats'!$B$3:$B$205,'Raw Stats'!AN$3:AN$205)) -> 0 | BV10: =IF($BM10="","",LOOKUP($BM10,'Raw Stats'!$B$3:$B$205,'Raw Stats'!AO$3:AO$205)) -> -1 | BW10: =IF($BM10="","",LOOKUP($BM10,'Raw Stats'!$B$3:$B$205,'Raw Stats'!AP$3:AP$205)) -> 0 | BX10: =IF($BM10="","",LOOKUP($BM10,'Raw Stats'!$B$3:$B$205,'Raw Stats'!AQ$3:AQ$205)) -> 0 | BY10: =IF($BM10="","",LOOKUP($BM10,'Raw Stats'!$B$3:$B$205,'Raw Stats'!AR$3:AR$205)) -> 0 | BZ10: =IF($BM10="","",LOOKUP($BM10,'Raw Stats'!$B$3:$B$205,'Raw Stats'!AS$3:AS$205)) -> 0 | CA10: =IF($BM10="","",LOOKUP($BM10,'Raw Stats'!$B$3:$B$205,'Raw Stats'!AT$3:AT$205)) -> 0 | CB10: =IF($BM10="","",LOOKUP($BM10,'Raw Stats'!$B$3:$B$205,'Raw Stats'!AU$3:AU$205)) -> 0 | CC10: =IF($BM10="","",LOOKUP($BM10,'Raw Stats'!$B$3:$B$205,'Raw Stats'!AV$3:AV$205)) -> 0 | CD10: =IF($BM10="","",LOOKUP($BM10,'Raw Stats'!$B$3:$B$205,'Raw Stats'!AW$3:AW$205)) -> 0 | CE10: =IF($BM10="","",LOOKUP($BM10,'Raw Stats'!$B$3:$B$205,'Raw Stats'!AX$3:AX$205)) -> 0 | CF10: =IF($BM10="","",LOOKUP($BM10,'Raw Stats'!$B$3:$B$205,'Raw Stats'!AY$3:AY$205)) -> 0 | CG10: =IF($BM10="","",LOOKUP($BM10,'Raw Stats'!$B$3:$B$205,'Raw Stats'!AZ$3:AZ$205)) -> 0 | CH10: =IF($BM10="","",LOOKUP($BM10,'Raw Stats'!$B$3:$B$205,'Raw Stats'!BA$3:BA$205)) -> 0 | CJ10: =IF('Play Entry'!$X16="","",IF($G10=Teams!$B$13,'Play Entry'!$X16,IF($G10=Teams!$A$13,'Play Entry'!$X16+100,""))) ->  | CK10: =IF('Play Entry'!$AA16="","",IF($G10=Teams!$B$13,'Play Entry'!$AA16,IF($G10=Teams!$A$13,'Play Entry'!$AA16+100,""))) ->  | CL10: =IF($CI10="","",LOOKUP($CI10,'Raw Stats'!$B$3:$B$205,'Raw Stats'!A$3:A$205)) ->  | CM10: =IF($CI10="","",LOOKUP($CI10,'Raw Stats'!$B$3:$B$205,'Raw Stats'!C$3:C$205)) ->  | CN10: =IF($CI10="","",LOOKUP($CI10,'Raw Stats'!$B$3:$B$205,'Raw Stats'!AK$3:AK$205)) ->  | CO10: =IF($CI10="","",LOOKUP($CI10,'Raw Stats'!$B$3:$B$205,'Raw Stats'!AL$3:AL$205)) ->  | CP10: =IF($CI10="","",LOOKUP($CI10,'Raw Stats'!$B$3:$B$205,'Raw Stats'!AM$3:AM$205)) ->  | CQ10: =IF($CI10="","",LOOKUP($CI10,'Raw Stats'!$B$3:$B$205,'Raw Stats'!AN$3:AN$205)) ->  | CR10: =IF($CI10="","",LOOKUP($CI10,'Raw Stats'!$B$3:$B$205,'Raw Stats'!AO$3:AO$205)) ->  | CS10: =IF($CI10="","",LOOKUP($CI10,'Raw Stats'!$B$3:$B$205,'Raw Stats'!AP$3:AP$205)) ->  | CT10: =IF($CI10="","",LOOKUP($CI10,'Raw Stats'!$B$3:$B$205,'Raw Stats'!AQ$3:AQ$205)) ->  | CU10: =IF($CI10="","",LOOKUP($CI10,'Raw Stats'!$B$3:$B$205,'Raw Stats'!AR$3:AR$205)) ->  | CV10: =IF($CI10="","",LOOKUP($CI10,'Raw Stats'!$B$3:$B$205,'Raw Stats'!AS$3:AS$205)) ->  | CW10: =IF($CI10="","",LOOKUP($CI10,'Raw Stats'!$B$3:$B$205,'Raw Stats'!AT$3:AT$205)) ->  | CX10: =IF($CI10="","",LOOKUP($CI10,'Raw Stats'!$B$3:$B$205,'Raw Stats'!AU$3:AU$205)) ->  | CY10: =IF($CI10="","",LOOKUP($CI10,'Raw Stats'!$B$3:$B$205,'Raw Stats'!AV$3:AV$205)) ->  | CZ10: =IF($CI10="","",LOOKUP($CI10,'Raw Stats'!$B$3:$B$205,'Raw Stats'!AW$3:AW$205)) ->  | DA10: =IF($CI10="","",LOOKUP($CI10,'Raw Stats'!$B$3:$B$205,'Raw Stats'!AX$3:AX$205)) ->  | DB10: =IF($CI10="","",LOOKUP($CI10,'Raw Stats'!$B$3:$B$205,'Raw Stats'!AY$3:AY$205)) ->  | DC10: =IF($CI10="","",LOOKUP($CI10,'Raw Stats'!$B$3:$B$205,'Raw Stats'!AZ$3:AZ$205)) ->  | DD10: =IF($CI10="","",LOOKUP($CI10,'Raw Stats'!$B$3:$B$205,'Raw Stats'!BA$3:BA$205)) ->  | DE10: =IF('Play-by-Play Summary'!AZ15<>"",'Play-by-Play Summary'!AZ15,IF('Play-by-Play Summary'!BA15<>"",'Play-by-Play Summary'!BA15,IF('Play-by-Play Summary'!BD15<>"",'Play-by-Play Summary'!BD15,IF('Play-by-Play Summary'!BE15<>"",'Play-by-Play Summary'!BE15,IF('Play-by-Play Summary'!BF15<>"",'Play-by-Play Summary'!BF15,IF('Play-by-Play Summary'!BI15<>"",'Play-by-Play Summary'!BI15,"")))))) ->  | DF10: =IF($DE10="","",LOOKUP($DE10,'Raw Stats'!$B$3:$B$205,'Raw Stats'!A$3:A$205)) ->  | DG10: =IF($DE10="","",LOOKUP($DE10,'Raw Stats'!$B$3:$B$205,'Raw Stats'!C$3:C$205)) ->  | DH10: =IF($DE10="","",LOOKUP($DE10,'Raw Stats'!$B$3:$B$205,'Raw Stats'!Q$3:Q$205)) ->  | DI10: =IF($DE10="","",LOOKUP($DE10,'Raw Stats'!$B$3:$B$205,'Raw Stats'!R$3:R$205)) ->  | DJ10: =IF($DE10="","",LOOKUP($DE10,'Raw Stats'!$B$3:$B$205,'Raw Stats'!S$3:S$205)) ->  | DK10: =IF($DE10="","",LOOKUP($DE10,'Raw Stats'!$B$3:$B$205,'Raw Stats'!T$3:T$205)) ->  | DL10: =IF($DE10="","",LOOKUP($DE10,'Raw Stats'!$B$3:$B$205,'Raw Stats'!U$3:U$205)) ->  | DM10: =IF($DE10="","",LOOKUP($DE10,'Raw Stats'!$B$3:$B$205,'Raw Stats'!V$3:V$205)) ->  | DN10: =IF($DE10="","",LOOKUP($DE10,'Raw Stats'!$B$3:$B$205,'Raw Stats'!W$3:W$205)) ->  | DO10: =IF($DE10="","",LOOKUP($DE10,'Raw Stats'!$B$3:$B$205,'Raw Stats'!X$3:X$205)) ->  | DP10: =IF($DE10="","",LOOKUP($DE10,'Raw Stats'!$B$3:$B$205,'Raw Stats'!Y$3:Y$205)) ->  | DQ10: =IF($DE10="","",LOOKUP($DE10,'Raw Stats'!$B$3:$B$205,'Raw Stats'!Z$3:Z$205)) ->  | DR10: =IF($DE10="","",LOOKUP($DE10,'Raw Stats'!$B$3:$B$205,'Raw Stats'!AA$3:AA$205)) ->  | DS10: =IF($DE10="","",LOOKUP($DE10,'Raw Stats'!$B$3:$B$205,'Raw Stats'!AB$3:AB$205)) ->  | DT10: =IF($DE10="","",LOOKUP($DE10,'Raw Stats'!$B$3:$B$205,'Raw Stats'!AC$3:AC$205)) ->  | DU10: =IF($DE10="","",LOOKUP($DE10,'Raw Stats'!$B$3:$B$205,'Raw Stats'!AD$3:AD$205)) -> 
A11: =IF('Play Entry'!J17="","",+'Play-by-Play Summary'!C16) -> 10 | B11: ='Play Entry'!I17 -> 1 | C11: =+'Play-by-Play Summary'!Q16 -> 2 | D11: =+'Play-by-Play Summary'!P16 -> 13 | E11: =+'Play-by-Play Summary'!J16 -> 1st | F11: =+'Play Entry'!L17 -> 10 | G11: =+'Play Entry'!J17 -> Valor | H11: =+'Play-by-Play Summary'!R16 -> from the +46 yard line | I11: =+'Play-by-Play Summary'!AE16 -> Rush (center) by 27 (Gavin Sawchuk) for a gain of 3. Tackle by 13 (Sam Knox) | T11: =LOOKUP(LARGE($A$1:$A$397,9),$A$1:$A$397,$G$1:$G$397) -> Valor | U11: =IF(MAX(A$1:A$397)<9,"",LOOKUP(LARGE($A$1:$A$397,9),$A$1:$A$397,$E$1:$E$397)) -> 1st | V11: =LOOKUP(LARGE($A$1:$A$397,9),$A$1:$A$397,$F$1:$F$397) -> 10 | W11: =LOOKUP(LARGE($A$1:$A$397,9),$A$1:$A$397,$H$1:$H$397) -> from the 36 yard line | X11: =IF(MAX(A$1:A$397)<9,"",LOOKUP(LARGE($A$1:$A$397,9),$A$1:$A$397,$I$1:$I$397)) -> Rush (left) by 32 (Zach Wiley) for a gain of 13. Tackles by 14 (Marc Wessbecker), 56 (Quin Samuelson) | Y11: Defender 2 | AR11: =IF('Play-by-Play Summary'!AS16="","",'Play-by-Play Summary'!AS16) -> 27 | AS11: =IF($AR11="","",LOOKUP($AR11,'Raw Stats'!$B$3:$B$205,'Raw Stats'!A$3:A$205)) -> 27 | AT11: =IF($AR11="","",LOOKUP($AR11,'Raw Stats'!$B$3:$B$205,'Raw Stats'!C$3:C$205)) -> Gavin Sawchuk | AU11: =IF($AR11="","",LOOKUP($AR11,'Raw Stats'!$B$3:$B$205,'Raw Stats'!J$3:J$205)) -> 13 | AV11: =IF($AR11="","",LOOKUP($AR11,'Raw Stats'!$B$3:$B$205,'Raw Stats'!K$3:K$205)) -> 185 | AW11: =IF($AR11="","",LOOKUP($AR11,'Raw Stats'!$B$3:$B$205,'Raw Stats'!L$3:L$205)) -> 5 | AX11: =IF('Play-by-Play Summary'!AN16="","",'Play-by-Play Summary'!AN16) ->  | AY11: =IF($AX11="","",LOOKUP($AX11,'Raw Stats'!$B$3:$B$205,'Raw Stats'!A$3:A$205)) ->  | AZ11: =IF($AX11="","",LOOKUP($AX11,'Raw Stats'!$B$3:$B$205,'Raw Stats'!C$3:C$205)) ->  | BA11: =IF($AX11="","",LOOKUP($AX11,'Raw Stats'!$B$3:$B$205,'Raw Stats'!D$3:D$205)) ->  | BB11: =IF($AX11="","",LOOKUP($AX11,'Raw Stats'!$B$3:$B$205,'Raw Stats'!F$3:F$205)) ->  | BC11: =IF($AX11="","",LOOKUP($AX11,'Raw Stats'!$B$3:$B$205,'Raw Stats'!H$3:H$205)) ->  | BD11: =IF($AX11="","",LOOKUP($AX11,'Raw Stats'!$B$3:$B$205,'Raw Stats'!I$3:I$205)) ->  | BE11: =IF($AX11="","",LOOKUP($AX11,'Raw Stats'!$B$3:$B$205,'Raw Stats'!G$3:G$205)) ->  | BF11: =IF('Play-by-Play Summary'!AV16="","",'Play-by-Play Summary'!AV16) ->  | BG11: =IF($BF11="","",LOOKUP($BF11,'Raw Stats'!$B$3:$B$205,'Raw Stats'!A$3:A$205)) ->  | BH11: =IF($BF11="","",LOOKUP($BF11,'Raw Stats'!$B$3:$B$205,'Raw Stats'!C$3:C$205)) ->  | BI11: =IF($BF11="","",LOOKUP($BF11,'Raw Stats'!$B$3:$B$205,'Raw Stats'!M$3:M$205)) ->  | BJ11: =IF($BF11="","",LOOKUP($BF11,'Raw Stats'!$B$3:$B$205,'Raw Stats'!N$3:N$205)) ->  | BK11: =IF($BF11="","",LOOKUP($BF11,'Raw Stats'!$B$3:$B$205,'Raw Stats'!O$3:O$205)) ->  | BL11: =IF($BF11="","",LOOKUP($BF11,'Raw Stats'!$B$3:$B$205,'Raw Stats'!P$3:P$205)) ->  | BM11: 113 | BN11: =IF('Play Entry'!$W17="","",IF($G11=Teams!$B$13,'Play Entry'!$W17,IF($G11=Teams!$A$13,'Play Entry'!$W17+100,""))) -> 113 | BO11: =IF('Play Entry'!$Z17="","",IF($G11=Teams!$B$13,'Play Entry'!$Z17,IF($G11=Teams!$A$13,'Play Entry'!$Z17+100,""))) ->  | BP11: =IF($BM11="","",LOOKUP($BM11,'Raw Stats'!$B$3:$B$205,'Raw Stats'!A$3:A$205)) -> 13 | BQ11: =IF($BM11="","",LOOKUP($BM11,'Raw Stats'!$B$3:$B$205,'Raw Stats'!C$3:C$205)) -> Sam Knox | BR11: =IF($BM11="","",LOOKUP($BM11,'Raw Stats'!$B$3:$B$205,'Raw Stats'!AK$3:AK$205)) -> 1 | BS11: =IF($BM11="","",LOOKUP($BM11,'Raw Stats'!$B$3:$B$205,'Raw Stats'!AL$3:AL$205)) -> 1 | BT11: =IF($BM11="","",LOOKUP($BM11,'Raw Stats'!$B$3:$B$205,'Raw Stats'!AM$3:AM$205)) -> 0 | BU11: =IF($BM11="","",LOOKUP($BM11,'Raw Stats'!$B$3:$B$205,'Raw Stats'!AN$3:AN$205)) -> 0 | BV11: =IF($BM11="","",LOOKUP($BM11,'Raw Stats'!$B$3:$B$205,'Raw Stats'!AO$3:AO$205)) -> 0 | BW11: =IF($BM11="","",LOOKUP($BM11,'Raw Stats'!$B$3:$B$205,'Raw Stats'!AP$3:AP$205)) -> 0 | BX11: =IF($BM11="","",LOOKUP($BM11,'Raw Stats'!$B$3:$B$205,'Raw Stats'!AQ$3:AQ$205)) -> 0 | BY11: =IF($BM11="","",LOOKUP($BM11,'Raw Stats'!$B$3:$B$205,'Raw Stats'!AR$3:AR$205)) -> 0 | BZ11: =IF($BM11="","",LOOKUP($BM11,'Raw Stats'!$B$3:$B$205,'Raw Stats'!AS$3:AS$205)) -> 0 | CA11: =IF($BM11="","",LOOKUP($BM11,'Raw Stats'!$B$3:$B$205,'Raw Stats'!AT$3:AT$205)) -> 0 | CB11: =IF($BM11="","",LOOKUP($BM11,'Raw Stats'!$B$3:$B$205,'Raw Stats'!AU$3:AU$205)) -> 0 | CC11: =IF($BM11="","",LOOKUP($BM11,'Raw Stats'!$B$3:$B$205,'Raw Stats'!AV$3:AV$205)) -> 0 | CD11: =IF($BM11="","",LOOKUP($BM11,'Raw Stats'!$B$3:$B$205,'Raw Stats'!AW$3:AW$205)) -> 0 | CE11: =IF($BM11="","",LOOKUP($BM11,'Raw Stats'!$B$3:$B$205,'Raw Stats'!AX$3:AX$205)) -> 0 | CF11: =IF($BM11="","",LOOKUP($BM11,'Raw Stats'!$B$3:$B$205,'Raw Stats'!AY$3:AY$205)) -> 0 | CG11: =IF($BM11="","",LOOKUP($BM11,'Raw Stats'!$B$3:$B$205,'Raw Stats'!AZ$3:AZ$205)) -> 0 | CH11: =IF($BM11="","",LOOKUP($BM11,'Raw Stats'!$B$3:$B$205,'Raw Stats'!BA$3:BA$205)) -> 0 | CJ11: =IF('Play Entry'!$X17="","",IF($G11=Teams!$B$13,'Play Entry'!$X17,IF($G11=Teams!$A$13,'Play Entry'!$X17+100,""))) ->  | CK11: =IF('Play Entry'!$AA17="","",IF($G11=Teams!$B$13,'Play Entry'!$AA17,IF($G11=Teams!$A$13,'Play Entry'!$AA17+100,""))) ->  | CL11: =IF($CI11="","",LOOKUP($CI11,'Raw Stats'!$B$3:$B$205,'Raw Stats'!A$3:A$205)) ->  | CM11: =IF($CI11="","",LOOKUP($CI11,'Raw Stats'!$B$3:$B$205,'Raw Stats'!C$3:C$205)) ->  | CN11: =IF($CI11="","",LOOKUP($CI11,'Raw Stats'!$B$3:$B$205,'Raw Stats'!AK$3:AK$205)) ->  | CO11: =IF($CI11="","",LOOKUP($CI11,'Raw Stats'!$B$3:$B$205,'Raw Stats'!AL$3:AL$205)) ->  | CP11: =IF($CI11="","",LOOKUP($CI11,'Raw Stats'!$B$3:$B$205,'Raw Stats'!AM$3:AM$205)) ->  | CQ11: =IF($CI11="","",LOOKUP($CI11,'Raw Stats'!$B$3:$B$205,'Raw Stats'!AN$3:AN$205)) ->  | CR11: =IF($CI11="","",LOOKUP($CI11,'Raw Stats'!$B$3:$B$205,'Raw Stats'!AO$3:AO$205)) ->  | CS11: =IF($CI11="","",LOOKUP($CI11,'Raw Stats'!$B$3:$B$205,'Raw Stats'!AP$3:AP$205)) ->  | CT11: =IF($CI11="","",LOOKUP($CI11,'Raw Stats'!$B$3:$B$205,'Raw Stats'!AQ$3:AQ$205)) ->  | CU11: =IF($CI11="","",LOOKUP($CI11,'Raw Stats'!$B$3:$B$205,'Raw Stats'!AR$3:AR$205)) ->  | CV11: =IF($CI11="","",LOOKUP($CI11,'Raw Stats'!$B$3:$B$205,'Raw Stats'!AS$3:AS$205)) ->  | CW11: =IF($CI11="","",LOOKUP($CI11,'Raw Stats'!$B$3:$B$205,'Raw Stats'!AT$3:AT$205)) ->  | CX11: =IF($CI11="","",LOOKUP($CI11,'Raw Stats'!$B$3:$B$205,'Raw Stats'!AU$3:AU$205)) ->  | CY11: =IF($CI11="","",LOOKUP($CI11,'Raw Stats'!$B$3:$B$205,'Raw Stats'!AV$3:AV$205)) ->  | CZ11: =IF($CI11="","",LOOKUP($CI11,'Raw Stats'!$B$3:$B$205,'Raw Stats'!AW$3:AW$205)) ->  | DA11: =IF($CI11="","",LOOKUP($CI11,'Raw Stats'!$B$3:$B$205,'Raw Stats'!AX$3:AX$205)) ->  | DB11: =IF($CI11="","",LOOKUP($CI11,'Raw Stats'!$B$3:$B$205,'Raw Stats'!AY$3:AY$205)) ->  | DC11: =IF($CI11="","",LOOKUP($CI11,'Raw Stats'!$B$3:$B$205,'Raw Stats'!AZ$3:AZ$205)) ->  | DD11: =IF($CI11="","",LOOKUP($CI11,'Raw Stats'!$B$3:$B$205,'Raw Stats'!BA$3:BA$205)) ->  | DE11: =IF('Play-by-Play Summary'!AZ16<>"",'Play-by-Play Summary'!AZ16,IF('Play-by-Play Summary'!BA16<>"",'Play-by-Play Summary'!BA16,IF('Play-by-Play Summary'!BD16<>"",'Play-by-Play Summary'!BD16,IF('Play-by-Play Summary'!BE16<>"",'Play-by-Play Summary'!BE16,IF('Play-by-Play Summary'!BF16<>"",'Play-by-Play Summary'!BF16,IF('Play-by-Play Summary'!BI16<>"",'Play-by-Play Summary'!BI16,"")))))) ->  | DF11: =IF($DE11="","",LOOKUP($DE11,'Raw Stats'!$B$3:$B$205,'Raw Stats'!A$3:A$205)) ->  | DG11: =IF($DE11="","",LOOKUP($DE11,'Raw Stats'!$B$3:$B$205,'Raw Stats'!C$3:C$205)) ->  | DH11: =IF($DE11="","",LOOKUP($DE11,'Raw Stats'!$B$3:$B$205,'Raw Stats'!Q$3:Q$205)) ->  | DI11: =IF($DE11="","",LOOKUP($DE11,'Raw Stats'!$B$3:$B$205,'Raw Stats'!R$3:R$205)) ->  | DJ11: =IF($DE11="","",LOOKUP($DE11,'Raw Stats'!$B$3:$B$205,'Raw Stats'!S$3:S$205)) ->  | DK11: =IF($DE11="","",LOOKUP($DE11,'Raw Stats'!$B$3:$B$205,'Raw Stats'!T$3:T$205)) ->  | DL11: =IF($DE11="","",LOOKUP($DE11,'Raw Stats'!$B$3:$B$205,'Raw Stats'!U$3:U$205)) ->  | DM11: =IF($DE11="","",LOOKUP($DE11,'Raw Stats'!$B$3:$B$205,'Raw Stats'!V$3:V$205)) ->  | DN11: =IF($DE11="","",LOOKUP($DE11,'Raw Stats'!$B$3:$B$205,'Raw Stats'!W$3:W$205)) ->  | DO11: =IF($DE11="","",LOOKUP($DE11,'Raw Stats'!$B$3:$B$205,'Raw Stats'!X$3:X$205)) ->  | DP11: =IF($DE11="","",LOOKUP($DE11,'Raw Stats'!$B$3:$B$205,'Raw Stats'!Y$3:Y$205)) ->  | DQ11: =IF($DE11="","",LOOKUP($DE11,'Raw Stats'!$B$3:$B$205,'Raw Stats'!Z$3:Z$205)) ->  | DR11: =IF($DE11="","",LOOKUP($DE11,'Raw Stats'!$B$3:$B$205,'Raw Stats'!AA$3:AA$205)) ->  | DS11: =IF($DE11="","",LOOKUP($DE11,'Raw Stats'!$B$3:$B$205,'Raw Stats'!AB$3:AB$205)) ->  | DT11: =IF($DE11="","",LOOKUP($DE11,'Raw Stats'!$B$3:$B$205,'Raw Stats'!AC$3:AC$205)) ->  | DU11: =IF($DE11="","",LOOKUP($DE11,'Raw Stats'!$B$3:$B$205,'Raw Stats'!AD$3:AD$205)) -> 
A12: =IF('Play Entry'!J18="","",+'Play-by-Play Summary'!C17) -> 11 | B12: ='Play Entry'!I18 -> 1 | C12: =+'Play-by-Play Summary'!Q17 -> 3 | D12: =+'Play-by-Play Summary'!P17 -> 14 | E12: =+'Play-by-Play Summary'!J17 -> 2nd | F12: =+'Play Entry'!L18 -> 7 | G12: =+'Play Entry'!J18 -> Valor | H12: =+'Play-by-Play Summary'!R17 -> from the +43 yard line | I12: =+'Play-by-Play Summary'!AE17 -> Pass (screen left) from 9 (Sean McNair) intended for 22 (Grant Simmons) complete for a gain of 1. Tackle by 7 (Blake Haggerty) | T12: =LOOKUP(LARGE($A$1:$A$397,10),$A$1:$A$397,$G$1:$G$397) -> Valor | U12: =IF(MAX(A$1:A$397)<10,"",LOOKUP(LARGE($A$1:$A$397,10),$A$1:$A$397,$E$1:$E$397)) -> 2nd | V12: =LOOKUP(LARGE($A$1:$A$397,10),$A$1:$A$397,$F$1:$F$397) -> 7 | W12: =LOOKUP(LARGE($A$1:$A$397,10),$A$1:$A$397,$H$1:$H$397) -> from the 26 yard line | X12: =IF(MAX(A$1:A$397)<10,"",LOOKUP(LARGE($A$1:$A$397,10),$A$1:$A$397,$I$1:$I$397)) -> Rush (center) by 32 (Zach Wiley) for a gain of 10. Tackles by 4 (Jens Anderson), 30 (Randall Perez) | Y12: Number | Z12: Name | AA12: All Unassisted Tackles | AB12: All assists | AC12: Unassisted Sacks | AD12: Sack Assists | AE12: Sack Yards | AF12: Unassisted TFL (no sacks) | AG12: TFL Assists (no sacks) | AH12: TFL Yards (no sacks) | AI12: QB Hurries | AJ12: Breakups | AK12: INTs | AL12: INT return Yards | AM12: INT Return TDs | AN12: Fumbles Caused | AO12: Fumbles Recovered | AP12: Fumble return Yards | AQ12: Fumble Return TDs | AR12: =IF('Play-by-Play Summary'!AS17="","",'Play-by-Play Summary'!AS17) ->  | AS12: =IF($AR12="","",LOOKUP($AR12,'Raw Stats'!$B$3:$B$205,'Raw Stats'!A$3:A$205)) ->  | AT12: =IF($AR12="","",LOOKUP($AR12,'Raw Stats'!$B$3:$B$205,'Raw Stats'!C$3:C$205)) ->  | AU12: =IF($AR12="","",LOOKUP($AR12,'Raw Stats'!$B$3:$B$205,'Raw Stats'!J$3:J$205)) ->  | AV12: =IF($AR12="","",LOOKUP($AR12,'Raw Stats'!$B$3:$B$205,'Raw Stats'!K$3:K$205)) ->  | AW12: =IF($AR12="","",LOOKUP($AR12,'Raw Stats'!$B$3:$B$205,'Raw Stats'!L$3:L$205)) ->  | AX12: =IF('Play-by-Play Summary'!AN17="","",'Play-by-Play Summary'!AN17) -> 9 | AY12: =IF($AX12="","",LOOKUP($AX12,'Raw Stats'!$B$3:$B$205,'Raw Stats'!A$3:A$205)) -> 9 | AZ12: =IF($AX12="","",LOOKUP($AX12,'Raw Stats'!$B$3:$B$205,'Raw Stats'!C$3:C$205)) -> Sean McNair | BA12: =IF($AX12="","",LOOKUP($AX12,'Raw Stats'!$B$3:$B$205,'Raw Stats'!D$3:D$205)) -> 16 | BB12: =IF($AX12="","",LOOKUP($AX12,'Raw Stats'!$B$3:$B$205,'Raw Stats'!F$3:F$205)) -> 11 | BC12: =IF($AX12="","",LOOKUP($AX12,'Raw Stats'!$B$3:$B$205,'Raw Stats'!H$3:H$205)) -> 162 | BD12: =IF($AX12="","",LOOKUP($AX12,'Raw Stats'!$B$3:$B$205,'Raw Stats'!I$3:I$205)) -> 1 | BE12: =IF($AX12="","",LOOKUP($AX12,'Raw Stats'!$B$3:$B$205,'Raw Stats'!G$3:G$205)) -> 0 | BF12: =IF('Play-by-Play Summary'!AV17="","",'Play-by-Play Summary'!AV17) -> 22 | BG12: =IF($BF12="","",LOOKUP($BF12,'Raw Stats'!$B$3:$B$205,'Raw Stats'!A$3:A$205)) -> 22 | BH12: =IF($BF12="","",LOOKUP($BF12,'Raw Stats'!$B$3:$B$205,'Raw Stats'!C$3:C$205)) -> Grant Simmons | BI12: =IF($BF12="","",LOOKUP($BF12,'Raw Stats'!$B$3:$B$205,'Raw Stats'!M$3:M$205)) -> 3 | BJ12: =IF($BF12="","",LOOKUP($BF12,'Raw Stats'!$B$3:$B$205,'Raw Stats'!N$3:N$205)) -> 2 | BK12: =IF($BF12="","",LOOKUP($BF12,'Raw Stats'!$B$3:$B$205,'Raw Stats'!O$3:O$205)) -> 13 | BL12: =IF($BF12="","",LOOKUP($BF12,'Raw Stats'!$B$3:$B$205,'Raw Stats'!P$3:P$205)) -> 0 | BM12: 107 | BN12: =IF('Play Entry'!$W18="","",IF($G12=Teams!$B$13,'Play Entry'!$W18,IF($G12=Teams!$A$13,'Play Entry'!$W18+100,""))) -> 107 | BO12: =IF('Play Entry'!$Z18="","",IF($G12=Teams!$B$13,'Play Entry'!$Z18,IF($G12=Teams!$A$13,'Play Entry'!$Z18+100,""))) ->  | BP12: =IF($BM12="","",LOOKUP($BM12,'Raw Stats'!$B$3:$B$205,'Raw Stats'!A$3:A$205)) -> 7 | BQ12: =IF($BM12="","",LOOKUP($BM12,'Raw Stats'!$B$3:$B$205,'Raw Stats'!C$3:C$205)) -> Blake Haggerty | BR12: =IF($BM12="","",LOOKUP($BM12,'Raw Stats'!$B$3:$B$205,'Raw Stats'!AK$3:AK$205)) -> 3 | BS12: =IF($BM12="","",LOOKUP($BM12,'Raw Stats'!$B$3:$B$205,'Raw Stats'!AL$3:AL$205)) -> 1 | BT12: =IF($BM12="","",LOOKUP($BM12,'Raw Stats'!$B$3:$B$205,'Raw Stats'!AM$3:AM$205)) -> 0 | BU12: =IF($BM12="","",LOOKUP($BM12,'Raw Stats'!$B$3:$B$205,'Raw Stats'!AN$3:AN$205)) -> 0 | BV12: =IF($BM12="","",LOOKUP($BM12,'Raw Stats'!$B$3:$B$205,'Raw Stats'!AO$3:AO$205)) -> 0 | BW12: =IF($BM12="","",LOOKUP($BM12,'Raw Stats'!$B$3:$B$205,'Raw Stats'!AP$3:AP$205)) -> 0 | BX12: =IF($BM12="","",LOOKUP($BM12,'Raw Stats'!$B$3:$B$205,'Raw Stats'!AQ$3:AQ$205)) -> 0 | BY12: =IF($BM12="","",LOOKUP($BM12,'Raw Stats'!$B$3:$B$205,'Raw Stats'!AR$3:AR$205)) -> 0 | BZ12: =IF($BM12="","",LOOKUP($BM12,'Raw Stats'!$B$3:$B$205,'Raw Stats'!AS$3:AS$205)) -> 0 | CA12: =IF($BM12="","",LOOKUP($BM12,'Raw Stats'!$B$3:$B$205,'Raw Stats'!AT$3:AT$205)) -> 0 | CB12: =IF($BM12="","",LOOKUP($BM12,'Raw Stats'!$B$3:$B$205,'Raw Stats'!AU$3:AU$205)) -> 0 | CC12: =IF($BM12="","",LOOKUP($BM12,'Raw Stats'!$B$3:$B$205,'Raw Stats'!AV$3:AV$205)) -> 0 | CD12: =IF($BM12="","",LOOKUP($BM12,'Raw Stats'!$B$3:$B$205,'Raw Stats'!AW$3:AW$205)) -> 0 | CE12: =IF($BM12="","",LOOKUP($BM12,'Raw Stats'!$B$3:$B$205,'Raw Stats'!AX$3:AX$205)) -> 0 | CF12: =IF($BM12="","",LOOKUP($BM12,'Raw Stats'!$B$3:$B$205,'Raw Stats'!AY$3:AY$205)) -> 0 | CG12: =IF($BM12="","",LOOKUP($BM12,'Raw Stats'!$B$3:$B$205,'Raw Stats'!AZ$3:AZ$205)) -> 0 | CH12: =IF($BM12="","",LOOKUP($BM12,'Raw Stats'!$B$3:$B$205,'Raw Stats'!BA$3:BA$205)) -> 0 | CJ12: =IF('Play Entry'!$X18="","",IF($G12=Teams!$B$13,'Play Entry'!$X18,IF($G12=Teams!$A$13,'Play Entry'!$X18+100,""))) ->  | CK12: =IF('Play Entry'!$AA18="","",IF($G12=Teams!$B$13,'Play Entry'!$AA18,IF($G12=Teams!$A$13,'Play Entry'!$AA18+100,""))) ->  | CL12: =IF($CI12="","",LOOKUP($CI12,'Raw Stats'!$B$3:$B$205,'Raw Stats'!A$3:A$205)) ->  | CM12: =IF($CI12="","",LOOKUP($CI12,'Raw Stats'!$B$3:$B$205,'Raw Stats'!C$3:C$205)) ->  | CN12: =IF($CI12="","",LOOKUP($CI12,'Raw Stats'!$B$3:$B$205,'Raw Stats'!AK$3:AK$205)) ->  | CO12: =IF($CI12="","",LOOKUP($CI12,'Raw Stats'!$B$3:$B$205,'Raw Stats'!AL$3:AL$205)) ->  | CP12: =IF($CI12="","",LOOKUP($CI12,'Raw Stats'!$B$3:$B$205,'Raw Stats'!AM$3:AM$205)) ->  | CQ12: =IF($CI12="","",LOOKUP($CI12,'Raw Stats'!$B$3:$B$205,'Raw Stats'!AN$3:AN$205)) ->  | CR12: =IF($CI12="","",LOOKUP($CI12,'Raw Stats'!$B$3:$B$205,'Raw Stats'!AO$3:AO$205)) ->  | CS12: =IF($CI12="","",LOOKUP($CI12,'Raw Stats'!$B$3:$B$205,'Raw Stats'!AP$3:AP$205)) ->  | CT12: =IF($CI12="","",LOOKUP($CI12,'Raw Stats'!$B$3:$B$205,'Raw Stats'!AQ$3:AQ$205)) ->  | CU12: =IF($CI12="","",LOOKUP($CI12,'Raw Stats'!$B$3:$B$205,'Raw Stats'!AR$3:AR$205)) ->  | CV12: =IF($CI12="","",LOOKUP($CI12,'Raw Stats'!$B$3:$B$205,'Raw Stats'!AS$3:AS$205)) ->  | CW12: =IF($CI12="","",LOOKUP($CI12,'Raw Stats'!$B$3:$B$205,'Raw Stats'!AT$3:AT$205)) ->  | CX12: =IF($CI12="","",LOOKUP($CI12,'Raw Stats'!$B$3:$B$205,'Raw Stats'!AU$3:AU$205)) ->  | CY12: =IF($CI12="","",LOOKUP($CI12,'Raw Stats'!$B$3:$B$205,'Raw Stats'!AV$3:AV$205)) ->  | CZ12: =IF($CI12="","",LOOKUP($CI12,'Raw Stats'!$B$3:$B$205,'Raw Stats'!AW$3:AW$205)) ->  | DA12: =IF($CI12="","",LOOKUP($CI12,'Raw Stats'!$B$3:$B$205,'Raw Stats'!AX$3:AX$205)) ->  | DB12: =IF($CI12="","",LOOKUP($CI12,'Raw Stats'!$B$3:$B$205,'Raw Stats'!AY$3:AY$205)) ->  | DC12: =IF($CI12="","",LOOKUP($CI12,'Raw Stats'!$B$3:$B$205,'Raw Stats'!AZ$3:AZ$205)) ->  | DD12: =IF($CI12="","",LOOKUP($CI12,'Raw Stats'!$B$3:$B$205,'Raw Stats'!BA$3:BA$205)) ->  | DE12: =IF('Play-by-Play Summary'!AZ17<>"",'Play-by-Play Summary'!AZ17,IF('Play-by-Play Summary'!BA17<>"",'Play-by-Play Summary'!BA17,IF('Play-by-Play Summary'!BD17<>"",'Play-by-Play Summary'!BD17,IF('Play-by-Play Summary'!BE17<>"",'Play-by-Play Summary'!BE17,IF('Play-by-Play Summary'!BF17<>"",'Play-by-Play Summary'!BF17,IF('Play-by-Play Summary'!BI17<>"",'Play-by-Play Summary'!BI17,"")))))) ->  | DF12: =IF($DE12="","",LOOKUP($DE12,'Raw Stats'!$B$3:$B$205,'Raw Stats'!A$3:A$205)) ->  | DG12: =IF($DE12="","",LOOKUP($DE12,'Raw Stats'!$B$3:$B$205,'Raw Stats'!C$3:C$205)) ->  | DH12: =IF($DE12="","",LOOKUP($DE12,'Raw Stats'!$B$3:$B$205,'Raw Stats'!Q$3:Q$205)) ->  | DI12: =IF($DE12="","",LOOKUP($DE12,'Raw Stats'!$B$3:$B$205,'Raw Stats'!R$3:R$205)) ->  | DJ12: =IF($DE12="","",LOOKUP($DE12,'Raw Stats'!$B$3:$B$205,'Raw Stats'!S$3:S$205)) ->  | DK12: =IF($DE12="","",LOOKUP($DE12,'Raw Stats'!$B$3:$B$205,'Raw Stats'!T$3:T$205)) ->  | DL12: =IF($DE12="","",LOOKUP($DE12,'Raw Stats'!$B$3:$B$205,'Raw Stats'!U$3:U$205)) ->  | DM12: =IF($DE12="","",LOOKUP($DE12,'Raw Stats'!$B$3:$B$205,'Raw Stats'!V$3:V$205)) ->  | DN12: =IF($DE12="","",LOOKUP($DE12,'Raw Stats'!$B$3:$B$205,'Raw Stats'!W$3:W$205)) ->  | DO12: =IF($DE12="","",LOOKUP($DE12,'Raw Stats'!$B$3:$B$205,'Raw Stats'!X$3:X$205)) ->  | DP12: =IF($DE12="","",LOOKUP($DE12,'Raw Stats'!$B$3:$B$205,'Raw Stats'!Y$3:Y$205)) ->  | DQ12: =IF($DE12="","",LOOKUP($DE12,'Raw Stats'!$B$3:$B$205,'Raw Stats'!Z$3:Z$205)) ->  | DR12: =IF($DE12="","",LOOKUP($DE12,'Raw Stats'!$B$3:$B$205,'Raw Stats'!AA$3:AA$205)) ->  | DS12: =IF($DE12="","",LOOKUP($DE12,'Raw Stats'!$B$3:$B$205,'Raw Stats'!AB$3:AB$205)) ->  | DT12: =IF($DE12="","",LOOKUP($DE12,'Raw Stats'!$B$3:$B$205,'Raw Stats'!AC$3:AC$205)) ->  | DU12: =IF($DE12="","",LOOKUP($DE12,'Raw Stats'!$B$3:$B$205,'Raw Stats'!AD$3:AD$205)) -> 
A13: =IF('Play Entry'!J19="","",+'Play-by-Play Summary'!C18) -> 12 | B13: ='Play Entry'!I19 -> 1 | C13: =+'Play-by-Play Summary'!Q18 -> 4 | D13: =+'Play-by-Play Summary'!P18 -> 56 | E13: =+'Play-by-Play Summary'!J18 -> 3rd | F13: =+'Play Entry'!L19 -> 6 | G13: =+'Play Entry'!J19 -> Valor | H13: =+'Play-by-Play Summary'!R18 -> from the +42 yard line | I13: =+'Play-by-Play Summary'!AE18 -> Rush (left) by 27 (Gavin Sawchuk) for a gain of 42 and a touchdown! | T13: =LOOKUP(LARGE($A$1:$A$397,11),$A$1:$A$397,$G$1:$G$397) -> Valor | U13: =IF(MAX(A$1:A$397)<11,"",LOOKUP(LARGE($A$1:$A$397,11),$A$1:$A$397,$E$1:$E$397)) -> 1st | V13: =LOOKUP(LARGE($A$1:$A$397,11),$A$1:$A$397,$F$1:$F$397) -> 10 | W13: =LOOKUP(LARGE($A$1:$A$397,11),$A$1:$A$397,$H$1:$H$397) -> from the 23 yard line | X13: =IF(MAX(A$1:A$397)<11,"",LOOKUP(LARGE($A$1:$A$397,11),$A$1:$A$397,$I$1:$I$397)) -> Rush (left) by 32 (Zach Wiley) for a gain of 3. Tackle by 81 (Micah Nanninga) | Y13: =IF(MAX($A$1:$A$397)<2,"",LOOKUP(LARGE($A$1:$A$397,2),$A$1:$A$397,CL$1:CL$397)) ->  | Z13: =IF(MAX($A$1:$A$397)<2,"",LOOKUP(LARGE($A$1:$A$397,2),$A$1:$A$397,CM$1:CM$397)) ->  | AA13: =IF(MAX($A$1:$A$397)<2,"",LOOKUP(LARGE($A$1:$A$397,2),$A$1:$A$397,CN$1:CN$397)) ->  | AB13: =IF(MAX($A$1:$A$397)<2,"",LOOKUP(LARGE($A$1:$A$397,2),$A$1:$A$397,CO$1:CO$397)) ->  | AR13: =IF('Play-by-Play Summary'!AS18="","",'Play-by-Play Summary'!AS18) -> 27 | AS13: =IF($AR13="","",LOOKUP($AR13,'Raw Stats'!$B$3:$B$205,'Raw Stats'!A$3:A$205)) -> 27 | AT13: =IF($AR13="","",LOOKUP($AR13,'Raw Stats'!$B$3:$B$205,'Raw Stats'!C$3:C$205)) -> Gavin Sawchuk | AU13: =IF($AR13="","",LOOKUP($AR13,'Raw Stats'!$B$3:$B$205,'Raw Stats'!J$3:J$205)) -> 13 | AV13: =IF($AR13="","",LOOKUP($AR13,'Raw Stats'!$B$3:$B$205,'Raw Stats'!K$3:K$205)) -> 185 | AW13: =IF($AR13="","",LOOKUP($AR13,'Raw Stats'!$B$3:$B$205,'Raw Stats'!L$3:L$205)) -> 5 | AX13: =IF('Play-by-Play Summary'!AN18="","",'Play-by-Play Summary'!AN18) ->  | AY13: =IF($AX13="","",LOOKUP($AX13,'Raw Stats'!$B$3:$B$205,'Raw Stats'!A$3:A$205)) ->  | AZ13: =IF($AX13="","",LOOKUP($AX13,'Raw Stats'!$B$3:$B$205,'Raw Stats'!C$3:C$205)) ->  | BA13: =IF($AX13="","",LOOKUP($AX13,'Raw Stats'!$B$3:$B$205,'Raw Stats'!D$3:D$205)) ->  | BB13: =IF($AX13="","",LOOKUP($AX13,'Raw Stats'!$B$3:$B$205,'Raw Stats'!F$3:F$205)) ->  | BC13: =IF($AX13="","",LOOKUP($AX13,'Raw Stats'!$B$3:$B$205,'Raw Stats'!H$3:H$205)) ->  | BD13: =IF($AX13="","",LOOKUP($AX13,'Raw Stats'!$B$3:$B$205,'Raw Stats'!I$3:I$205)) ->  | BE13: =IF($AX13="","",LOOKUP($AX13,'Raw Stats'!$B$3:$B$205,'Raw Stats'!G$3:G$205)) ->  | BF13: =IF('Play-by-Play Summary'!AV18="","",'Play-by-Play Summary'!AV18) ->  | BG13: =IF($BF13="","",LOOKUP($BF13,'Raw Stats'!$B$3:$B$205,'Raw Stats'!A$3:A$205)) ->  | BH13: =IF($BF13="","",LOOKUP($BF13,'Raw Stats'!$B$3:$B$205,'Raw Stats'!C$3:C$205)) ->  | BI13: =IF($BF13="","",LOOKUP($BF13,'Raw Stats'!$B$3:$B$205,'Raw Stats'!M$3:M$205)) ->  | BJ13: =IF($BF13="","",LOOKUP($BF13,'Raw Stats'!$B$3:$B$205,'Raw Stats'!N$3:N$205)) ->  | BK13: =IF($BF13="","",LOOKUP($BF13,'Raw Stats'!$B$3:$B$205,'Raw Stats'!O$3:O$205)) ->  | BL13: =IF($BF13="","",LOOKUP($BF13,'Raw Stats'!$B$3:$B$205,'Raw Stats'!P$3:P$205)) ->  | BN13: =IF('Play Entry'!$W19="","",IF($G13=Teams!$B$13,'Play Entry'!$W19,IF($G13=Teams!$A$13,'Play Entry'!$W19+100,""))) ->  | BO13: =IF('Play Entry'!$Z19="","",IF($G13=Teams!$B$13,'Play Entry'!$Z19,IF($G13=Teams!$A$13,'Play Entry'!$Z19+100,""))) ->  | BP13: =IF($BM13="","",LOOKUP($BM13,'Raw Stats'!$B$3:$B$205,'Raw Stats'!A$3:A$205)) ->  | BQ13: =IF($BM13="","",LOOKUP($BM13,'Raw Stats'!$B$3:$B$205,'Raw Stats'!C$3:C$205)) ->  | BR13: =IF($BM13="","",LOOKUP($BM13,'Raw Stats'!$B$3:$B$205,'Raw Stats'!AK$3:AK$205)) ->  | BS13: =IF($BM13="","",LOOKUP($BM13,'Raw Stats'!$B$3:$B$205,'Raw Stats'!AL$3:AL$205)) ->  | BT13: =IF($BM13="","",LOOKUP($BM13,'Raw Stats'!$B$3:$B$205,'Raw Stats'!AM$3:AM$205)) ->  | BU13: =IF($BM13="","",LOOKUP($BM13,'Raw Stats'!$B$3:$B$205,'Raw Stats'!AN$3:AN$205)) ->  | BV13: =IF($BM13="","",LOOKUP($BM13,'Raw Stats'!$B$3:$B$205,'Raw Stats'!AO$3:AO$205)) ->  | BW13: =IF($BM13="","",LOOKUP($BM13,'Raw Stats'!$B$3:$B$205,'Raw Stats'!AP$3:AP$205)) ->  | BX13: =IF($BM13="","",LOOKUP($BM13,'Raw Stats'!$B$3:$B$205,'Raw Stats'!AQ$3:AQ$205)) ->  | BY13: =IF($BM13="","",LOOKUP($BM13,'Raw Stats'!$B$3:$B$205,'Raw Stats'!AR$3:AR$205)) ->  | BZ13: =IF($BM13="","",LOOKUP($BM13,'Raw Stats'!$B$3:$B$205,'Raw Stats'!AS$3:AS$205)) ->  | CA13: =IF($BM13="","",LOOKUP($BM13,'Raw Stats'!$B$3:$B$205,'Raw Stats'!AT$3:AT$205)) ->  | CB13: =IF($BM13="","",LOOKUP($BM13,'Raw Stats'!$B$3:$B$205,'Raw Stats'!AU$3:AU$205)) ->  | CC13: =IF($BM13="","",LOOKUP($BM13,'Raw Stats'!$B$3:$B$205,'Raw Stats'!AV$3:AV$205)) ->  | CD13: =IF($BM13="","",LOOKUP($BM13,'Raw Stats'!$B$3:$B$205,'Raw Stats'!AW$3:AW$205)) ->  | CE13: =IF($BM13="","",LOOKUP($BM13,'Raw Stats'!$B$3:$B$205,'Raw Stats'!AX$3:AX$205)) ->  | CF13: =IF($BM13="","",LOOKUP($BM13,'Raw Stats'!$B$3:$B$205,'Raw Stats'!AY$3:AY$205)) ->  | CG13: =IF($BM13="","",LOOKUP($BM13,'Raw Stats'!$B$3:$B$205,'Raw Stats'!AZ$3:AZ$205)) ->  | CH13: =IF($BM13="","",LOOKUP($BM13,'Raw Stats'!$B$3:$B$205,'Raw Stats'!BA$3:BA$205)) ->  | CJ13: =IF('Play Entry'!$X19="","",IF($G13=Teams!$B$13,'Play Entry'!$X19,IF($G13=Teams!$A$13,'Play Entry'!$X19+100,""))) ->  | CK13: =IF('Play Entry'!$AA19="","",IF($G13=Teams!$B$13,'Play Entry'!$AA19,IF($G13=Teams!$A$13,'Play Entry'!$AA19+100,""))) ->  | CL13: =IF($CI13="","",LOOKUP($CI13,'Raw Stats'!$B$3:$B$205,'Raw Stats'!A$3:A$205)) ->  | CM13: =IF($CI13="","",LOOKUP($CI13,'Raw Stats'!$B$3:$B$205,'Raw Stats'!C$3:C$205)) ->  | CN13: =IF($CI13="","",LOOKUP($CI13,'Raw Stats'!$B$3:$B$205,'Raw Stats'!AK$3:AK$205)) ->  | CO13: =IF($CI13="","",LOOKUP($CI13,'Raw Stats'!$B$3:$B$205,'Raw Stats'!AL$3:AL$205)) ->  | CP13: =IF($CI13="","",LOOKUP($CI13,'Raw Stats'!$B$3:$B$205,'Raw Stats'!AM$3:AM$205)) ->  | CQ13: =IF($CI13="","",LOOKUP($CI13,'Raw Stats'!$B$3:$B$205,'Raw Stats'!AN$3:AN$205)) ->  | CR13: =IF($CI13="","",LOOKUP($CI13,'Raw Stats'!$B$3:$B$205,'Raw Stats'!AO$3:AO$205)) ->  | CS13: =IF($CI13="","",LOOKUP($CI13,'Raw Stats'!$B$3:$B$205,'Raw Stats'!AP$3:AP$205)) ->  | CT13: =IF($CI13="","",LOOKUP($CI13,'Raw Stats'!$B$3:$B$205,'Raw Stats'!AQ$3:AQ$205)) ->  | CU13: =IF($CI13="","",LOOKUP($CI13,'Raw Stats'!$B$3:$B$205,'Raw Stats'!AR$3:AR$205)) ->  | CV13: =IF($CI13="","",LOOKUP($CI13,'Raw Stats'!$B$3:$B$205,'Raw Stats'!AS$3:AS$205)) ->  | CW13: =IF($CI13="","",LOOKUP($CI13,'Raw Stats'!$B$3:$B$205,'Raw Stats'!AT$3:AT$205)) ->  | CX13: =IF($CI13="","",LOOKUP($CI13,'Raw Stats'!$B$3:$B$205,'Raw Stats'!AU$3:AU$205)) ->  | CY13: =IF($CI13="","",LOOKUP($CI13,'Raw Stats'!$B$3:$B$205,'Raw Stats'!AV$3:AV$205)) ->  | CZ13: =IF($CI13="","",LOOKUP($CI13,'Raw Stats'!$B$3:$B$205,'Raw Stats'!AW$3:AW$205)) ->  | DA13: =IF($CI13="","",LOOKUP($CI13,'Raw Stats'!$B$3:$B$205,'Raw Stats'!AX$3:AX$205)) ->  | DB13: =IF($CI13="","",LOOKUP($CI13,'Raw Stats'!$B$3:$B$205,'Raw Stats'!AY$3:AY$205)) ->  | DC13: =IF($CI13="","",LOOKUP($CI13,'Raw Stats'!$B$3:$B$205,'Raw Stats'!AZ$3:AZ$205)) ->  | DD13: =IF($CI13="","",LOOKUP($CI13,'Raw Stats'!$B$3:$B$205,'Raw Stats'!BA$3:BA$205)) ->  | DE13: =IF('Play-by-Play Summary'!AZ18<>"",'Play-by-Play Summary'!AZ18,IF('Play-by-Play Summary'!BA18<>"",'Play-by-Play Summary'!BA18,IF('Play-by-Play Summary'!BD18<>"",'Play-by-Play Summary'!BD18,IF('Play-by-Play Summary'!BE18<>"",'Play-by-Play Summary'!BE18,IF('Play-by-Play Summary'!BF18<>"",'Play-by-Play Summary'!BF18,IF('Play-by-Play Summary'!BI18<>"",'Play-by-Play Summary'!BI18,"")))))) ->  | DF13: =IF($DE13="","",LOOKUP($DE13,'Raw Stats'!$B$3:$B$205,'Raw Stats'!A$3:A$205)) ->  | DG13: =IF($DE13="","",LOOKUP($DE13,'Raw Stats'!$B$3:$B$205,'Raw Stats'!C$3:C$205)) ->  | DH13: =IF($DE13="","",LOOKUP($DE13,'Raw Stats'!$B$3:$B$205,'Raw Stats'!Q$3:Q$205)) ->  | DI13: =IF($DE13="","",LOOKUP($DE13,'Raw Stats'!$B$3:$B$205,'Raw Stats'!R$3:R$205)) ->  | DJ13: =IF($DE13="","",LOOKUP($DE13,'Raw Stats'!$B$3:$B$205,'Raw Stats'!S$3:S$205)) ->  | DK13: =IF($DE13="","",LOOKUP($DE13,'Raw Stats'!$B$3:$B$205,'Raw Stats'!T$3:T$205)) ->  | DL13: =IF($DE13="","",LOOKUP($DE13,'Raw Stats'!$B$3:$B$205,'Raw Stats'!U$3:U$205)) ->  | DM13: =IF($DE13="","",LOOKUP($DE13,'Raw Stats'!$B$3:$B$205,'Raw Stats'!V$3:V$205)) ->  | DN13: =IF($DE13="","",LOOKUP($DE13,'Raw Stats'!$B$3:$B$205,'Raw Stats'!W$3:W$205)) ->  | DO13: =IF($DE13="","",LOOKUP($DE13,'Raw Stats'!$B$3:$B$205,'Raw Stats'!X$3:X$205)) ->  | DP13: =IF($DE13="","",LOOKUP($DE13,'Raw Stats'!$B$3:$B$205,'Raw Stats'!Y$3:Y$205)) ->  | DQ13: =IF($DE13="","",LOOKUP($DE13,'Raw Stats'!$B$3:$B$205,'Raw Stats'!Z$3:Z$205)) ->  | DR13: =IF($DE13="","",LOOKUP($DE13,'Raw Stats'!$B$3:$B$205,'Raw Stats'!AA$3:AA$205)) ->  | DS13: =IF($DE13="","",LOOKUP($DE13,'Raw Stats'!$B$3:$B$205,'Raw Stats'!AB$3:AB$205)) ->  | DT13: =IF($DE13="","",LOOKUP($DE13,'Raw Stats'!$B$3:$B$205,'Raw Stats'!AC$3:AC$205)) ->  | DU13: =IF($DE13="","",LOOKUP($DE13,'Raw Stats'!$B$3:$B$205,'Raw Stats'!AD$3:AD$205)) -> 
A14: =IF('Play Entry'!J20="","",+'Play-by-Play Summary'!C19) -> 13 | B14: ='Play Entry'!I20 -> 1 | C14: =+'Play-by-Play Summary'!Q19 -> 4 | D14: =+'Play-by-Play Summary'!P19 -> 56 | E14: =+'Play-by-Play Summary'!J19 ->  | F14: =+'Play Entry'!L20 ->  | G14: =+'Play Entry'!J20 -> Valor | H14: =+'Play-by-Play Summary'!R19 ->  | I14: =+'Play-by-Play Summary'!AE19 -> Extra point attempt by Sean Fields is good | T14: =LOOKUP(LARGE($A$1:$A$397,12),$A$1:$A$397,$G$1:$G$397) -> Valor | U14: =IF(MAX(A$1:A$397)<12,"",LOOKUP(LARGE($A$1:$A$397,12),$A$1:$A$397,$E$1:$E$397)) ->  | V14: =LOOKUP(LARGE($A$1:$A$397,12),$A$1:$A$397,$F$1:$F$397) ->  | W14: =LOOKUP(LARGE($A$1:$A$397,12),$A$1:$A$397,$H$1:$H$397) ->  | X14: =IF(MAX(A$1:A$397)<12,"",LOOKUP(LARGE($A$1:$A$397,12),$A$1:$A$397,$I$1:$I$397)) -> Kicked off by 99 (Toby McTamney) to the 17; returned by 22 (Grant Simmons) to the 23 yard line | Y14: =IF(MAX($A$1:$A$397)<2,"",LOOKUP(LARGE($A$1:$A$397,2),$A$1:$A$397,CI$1:CI$397)) ->  | Z14: =IF($Y$14="","",LOOKUP($Y$14,'Raw Stats'!$B$1:'Raw Stats'!$B$205,'Raw Stats'!$BV$1:'Raw Stats'!$BV$205)) ->  | AA14: =IF($Y$14="","",LOOKUP($Y$14,'Raw Stats'!$B$1:'Raw Stats'!$B$205,'Raw Stats'!$BW$1:'Raw Stats'!$BW$205)) ->  | AB14: =IF($Y$14="","",LOOKUP($Y$14,'Raw Stats'!$B$1:'Raw Stats'!$B$205,'Raw Stats'!$BX$1:'Raw Stats'!$BX$205)) ->  | AR14: =IF('Play-by-Play Summary'!AS19="","",'Play-by-Play Summary'!AS19) ->  | AS14: =IF($AR14="","",LOOKUP($AR14,'Raw Stats'!$B$3:$B$205,'Raw Stats'!A$3:A$205)) ->  | AT14: =IF($AR14="","",LOOKUP($AR14,'Raw Stats'!$B$3:$B$205,'Raw Stats'!C$3:C$205)) ->  | AU14: =IF($AR14="","",LOOKUP($AR14,'Raw Stats'!$B$3:$B$205,'Raw Stats'!J$3:J$205)) ->  | AV14: =IF($AR14="","",LOOKUP($AR14,'Raw Stats'!$B$3:$B$205,'Raw Stats'!K$3:K$205)) ->  | AW14: =IF($AR14="","",LOOKUP($AR14,'Raw Stats'!$B$3:$B$205,'Raw Stats'!L$3:L$205)) ->  | AX14: =IF('Play-by-Play Summary'!AN19="","",'Play-by-Play Summary'!AN19) ->  | AY14: =IF($AX14="","",LOOKUP($AX14,'Raw Stats'!$B$3:$B$205,'Raw Stats'!A$3:A$205)) ->  | AZ14: =IF($AX14="","",LOOKUP($AX14,'Raw Stats'!$B$3:$B$205,'Raw Stats'!C$3:C$205)) ->  | BA14: =IF($AX14="","",LOOKUP($AX14,'Raw Stats'!$B$3:$B$205,'Raw Stats'!D$3:D$205)) ->  | BB14: =IF($AX14="","",LOOKUP($AX14,'Raw Stats'!$B$3:$B$205,'Raw Stats'!F$3:F$205)) ->  | BC14: =IF($AX14="","",LOOKUP($AX14,'Raw Stats'!$B$3:$B$205,'Raw Stats'!H$3:H$205)) ->  | BD14: =IF($AX14="","",LOOKUP($AX14,'Raw Stats'!$B$3:$B$205,'Raw Stats'!I$3:I$205)) ->  | BE14: =IF($AX14="","",LOOKUP($AX14,'Raw Stats'!$B$3:$B$205,'Raw Stats'!G$3:G$205)) ->  | BF14: =IF('Play-by-Play Summary'!AV19="","",'Play-by-Play Summary'!AV19) ->  | BG14: =IF($BF14="","",LOOKUP($BF14,'Raw Stats'!$B$3:$B$205,'Raw Stats'!A$3:A$205)) ->  | BH14: =IF($BF14="","",LOOKUP($BF14,'Raw Stats'!$B$3:$B$205,'Raw Stats'!C$3:C$205)) ->  | BI14: =IF($BF14="","",LOOKUP($BF14,'Raw Stats'!$B$3:$B$205,'Raw Stats'!M$3:M$205)) ->  | BJ14: =IF($BF14="","",LOOKUP($BF14,'Raw Stats'!$B$3:$B$205,'Raw Stats'!N$3:N$205)) ->  | BK14: =IF($BF14="","",LOOKUP($BF14,'Raw Stats'!$B$3:$B$205,'Raw Stats'!O$3:O$205)) ->  | BL14: =IF($BF14="","",LOOKUP($BF14,'Raw Stats'!$B$3:$B$205,'Raw Stats'!P$3:P$205)) ->  | BN14: =IF('Play Entry'!$W20="","",IF($G14=Teams!$B$13,'Play Entry'!$W20,IF($G14=Teams!$A$13,'Play Entry'!$W20+100,""))) ->  | BO14: =IF('Play Entry'!$Z20="","",IF($G14=Teams!$B$13,'Play Entry'!$Z20,IF($G14=Teams!$A$13,'Play Entry'!$Z20+100,""))) ->  | BP14: =IF($BM14="","",LOOKUP($BM14,'Raw Stats'!$B$3:$B$205,'Raw Stats'!A$3:A$205)) ->  | BQ14: =IF($BM14="","",LOOKUP($BM14,'Raw Stats'!$B$3:$B$205,'Raw Stats'!C$3:C$205)) ->  | BR14: =IF($BM14="","",LOOKUP($BM14,'Raw Stats'!$B$3:$B$205,'Raw Stats'!AK$3:AK$205)) ->  | BS14: =IF($BM14="","",LOOKUP($BM14,'Raw Stats'!$B$3:$B$205,'Raw Stats'!AL$3:AL$205)) ->  | BT14: =IF($BM14="","",LOOKUP($BM14,'Raw Stats'!$B$3:$B$205,'Raw Stats'!AM$3:AM$205)) ->  | BU14: =IF($BM14="","",LOOKUP($BM14,'Raw Stats'!$B$3:$B$205,'Raw Stats'!AN$3:AN$205)) ->  | BV14: =IF($BM14="","",LOOKUP($BM14,'Raw Stats'!$B$3:$B$205,'Raw Stats'!AO$3:AO$205)) ->  | BW14: =IF($BM14="","",LOOKUP($BM14,'Raw Stats'!$B$3:$B$205,'Raw Stats'!AP$3:AP$205)) ->  | BX14: =IF($BM14="","",LOOKUP($BM14,'Raw Stats'!$B$3:$B$205,'Raw Stats'!AQ$3:AQ$205)) ->  | BY14: =IF($BM14="","",LOOKUP($BM14,'Raw Stats'!$B$3:$B$205,'Raw Stats'!AR$3:AR$205)) ->  | BZ14: =IF($BM14="","",LOOKUP($BM14,'Raw Stats'!$B$3:$B$205,'Raw Stats'!AS$3:AS$205)) ->  | CA14: =IF($BM14="","",LOOKUP($BM14,'Raw Stats'!$B$3:$B$205,'Raw Stats'!AT$3:AT$205)) ->  | CB14: =IF($BM14="","",LOOKUP($BM14,'Raw Stats'!$B$3:$B$205,'Raw Stats'!AU$3:AU$205)) ->  | CC14: =IF($BM14="","",LOOKUP($BM14,'Raw Stats'!$B$3:$B$205,'Raw Stats'!AV$3:AV$205)) ->  | CD14: =IF($BM14="","",LOOKUP($BM14,'Raw Stats'!$B$3:$B$205,'Raw Stats'!AW$3:AW$205)) ->  | CE14: =IF($BM14="","",LOOKUP($BM14,'Raw Stats'!$B$3:$B$205,'Raw Stats'!AX$3:AX$205)) ->  | CF14: =IF($BM14="","",LOOKUP($BM14,'Raw Stats'!$B$3:$B$205,'Raw Stats'!AY$3:AY$205)) ->  | CG14: =IF($BM14="","",LOOKUP($BM14,'Raw Stats'!$B$3:$B$205,'Raw Stats'!AZ$3:AZ$205)) ->  | CH14: =IF($BM14="","",LOOKUP($BM14,'Raw Stats'!$B$3:$B$205,'Raw Stats'!BA$3:BA$205)) ->  | CJ14: =IF('Play Entry'!$X20="","",IF($G14=Teams!$B$13,'Play Entry'!$X20,IF($G14=Teams!$A$13,'Play Entry'!$X20+100,""))) ->  | CK14: =IF('Play Entry'!$AA20="","",IF($G14=Teams!$B$13,'Play Entry'!$AA20,IF($G14=Teams!$A$13,'Play Entry'!$AA20+100,""))) ->  | CL14: =IF($CI14="","",LOOKUP($CI14,'Raw Stats'!$B$3:$B$205,'Raw Stats'!A$3:A$205)) ->  | CM14: =IF($CI14="","",LOOKUP($CI14,'Raw Stats'!$B$3:$B$205,'Raw Stats'!C$3:C$205)) ->  | CN14: =IF($CI14="","",LOOKUP($CI14,'Raw Stats'!$B$3:$B$205,'Raw Stats'!AK$3:AK$205)) ->  | CO14: =IF($CI14="","",LOOKUP($CI14,'Raw Stats'!$B$3:$B$205,'Raw Stats'!AL$3:AL$205)) ->  | CP14: =IF($CI14="","",LOOKUP($CI14,'Raw Stats'!$B$3:$B$205,'Raw Stats'!AM$3:AM$205)) ->  | CQ14: =IF($CI14="","",LOOKUP($CI14,'Raw Stats'!$B$3:$B$205,'Raw Stats'!AN$3:AN$205)) ->  | CR14: =IF($CI14="","",LOOKUP($CI14,'Raw Stats'!$B$3:$B$205,'Raw Stats'!AO$3:AO$205)) ->  | CS14: =IF($CI14="","",LOOKUP($CI14,'Raw Stats'!$B$3:$B$205,'Raw Stats'!AP$3:AP$205)) ->  | CT14: =IF($CI14="","",LOOKUP($CI14,'Raw Stats'!$B$3:$B$205,'Raw Stats'!AQ$3:AQ$205)) ->  | CU14: =IF($CI14="","",LOOKUP($CI14,'Raw Stats'!$B$3:$B$205,'Raw Stats'!AR$3:AR$205)) ->  | CV14: =IF($CI14="","",LOOKUP($CI14,'Raw Stats'!$B$3:$B$205,'Raw Stats'!AS$3:AS$205)) ->  | CW14: =IF($CI14="","",LOOKUP($CI14,'Raw Stats'!$B$3:$B$205,'Raw Stats'!AT$3:AT$205)) ->  | CX14: =IF($CI14="","",LOOKUP($CI14,'Raw Stats'!$B$3:$B$205,'Raw Stats'!AU$3:AU$205)) ->  | CY14: =IF($CI14="","",LOOKUP($CI14,'Raw Stats'!$B$3:$B$205,'Raw Stats'!AV$3:AV$205)) ->  | CZ14: =IF($CI14="","",LOOKUP($CI14,'Raw Stats'!$B$3:$B$205,'Raw Stats'!AW$3:AW$205)) ->  | DA14: =IF($CI14="","",LOOKUP($CI14,'Raw Stats'!$B$3:$B$205,'Raw Stats'!AX$3:AX$205)) ->  | DB14: =IF($CI14="","",LOOKUP($CI14,'Raw Stats'!$B$3:$B$205,'Raw Stats'!AY$3:AY$205)) ->  | DC14: =IF($CI14="","",LOOKUP($CI14,'Raw Stats'!$B$3:$B$205,'Raw Stats'!AZ$3:AZ$205)) ->  | DD14: =IF($CI14="","",LOOKUP($CI14,'Raw Stats'!$B$3:$B$205,'Raw Stats'!BA$3:BA$205)) ->  | DE14: =IF('Play-by-Play Summary'!AZ19<>"",'Play-by-Play Summary'!AZ19,IF('Play-by-Play Summary'!BA19<>"",'Play-by-Play Summary'!BA19,IF('Play-by-Play Summary'!BD19<>"",'Play-by-Play Summary'!BD19,IF('Play-by-Play Summary'!BE19<>"",'Play-by-Play Summary'!BE19,IF('Play-by-Play Summary'!BF19<>"",'Play-by-Play Summary'!BF19,IF('Play-by-Play Summary'!BI19<>"",'Play-by-Play Summary'!BI19,"")))))) -> 20 | DF14: =IF($DE14="","",LOOKUP($DE14,'Raw Stats'!$B$3:$B$205,'Raw Stats'!A$3:A$205)) -> 20 | DG14: =IF($DE14="","",LOOKUP($DE14,'Raw Stats'!$B$3:$B$205,'Raw Stats'!C$3:C$205)) -> Sean Fields | DH14: =IF($DE14="","",LOOKUP($DE14,'Raw Stats'!$B$3:$B$205,'Raw Stats'!Q$3:Q$205)) -> 0 | DI14: =IF($DE14="","",LOOKUP($DE14,'Raw Stats'!$B$3:$B$205,'Raw Stats'!R$3:R$205)) -> 0 | DJ14: =IF($DE14="","",LOOKUP($DE14,'Raw Stats'!$B$3:$B$205,'Raw Stats'!S$3:S$205)) -> 0 | DK14: =IF($DE14="","",LOOKUP($DE14,'Raw Stats'!$B$3:$B$205,'Raw Stats'!T$3:T$205)) -> 9 | DL14: =IF($DE14="","",LOOKUP($DE14,'Raw Stats'!$B$3:$B$205,'Raw Stats'!U$3:U$205)) -> 0 | DM14: =IF($DE14="","",LOOKUP($DE14,'Raw Stats'!$B$3:$B$205,'Raw Stats'!V$3:V$205)) -> 4 | DN14: =IF($DE14="","",LOOKUP($DE14,'Raw Stats'!$B$3:$B$205,'Raw Stats'!W$3:W$205)) -> 192 | DO14: =IF($DE14="","",LOOKUP($DE14,'Raw Stats'!$B$3:$B$205,'Raw Stats'!X$3:X$205)) -> 0 | DP14: =IF($DE14="","",LOOKUP($DE14,'Raw Stats'!$B$3:$B$205,'Raw Stats'!Y$3:Y$205)) -> 0 | DQ14: =IF($DE14="","",LOOKUP($DE14,'Raw Stats'!$B$3:$B$205,'Raw Stats'!Z$3:Z$205)) -> 0 | DR14: =IF($DE14="","",LOOKUP($DE14,'Raw Stats'!$B$3:$B$205,'Raw Stats'!AA$3:AA$205)) -> 0 | DS14: =IF($DE14="","",LOOKUP($DE14,'Raw Stats'!$B$3:$B$205,'Raw Stats'!AB$3:AB$205)) -> 0 | DT14: =IF($DE14="","",LOOKUP($DE14,'Raw Stats'!$B$3:$B$205,'Raw Stats'!AC$3:AC$205)) -> 0 | DU14: =IF($DE14="","",LOOKUP($DE14,'Raw Stats'!$B$3:$B$205,'Raw Stats'!AD$3:AD$205)) -> 0
A15: =IF('Play Entry'!J21="","",+'Play-by-Play Summary'!C20) ->  | B15: ='Play Entry'!I21 -> 2 | C15: =+'Play-by-Play Summary'!Q20 -> 0 | D15: =+'Play-by-Play Summary'!P20 -> 56 | E15: =+'Play-by-Play Summary'!J20 ->  | F15: =+'Play Entry'!L21 ->  | G15: =+'Play Entry'!J21 ->  | H15: =+'Play-by-Play Summary'!R20 ->  | I15: =+'Play-by-Play Summary'!AE20 -> Drive Summary: 56 yards in 4 plays. Score: Valor 7, CastleV 0 | T15: =LOOKUP(LARGE($A$1:$A$397,13),$A$1:$A$397,$G$1:$G$397) -> CastleV | U15: =IF(MAX(A$1:A$397)<13,"",LOOKUP(LARGE($A$1:$A$397,13),$A$1:$A$397,$E$1:$E$397)) ->  | V15: =LOOKUP(LARGE($A$1:$A$397,13),$A$1:$A$397,$F$1:$F$397) ->  | W15: =LOOKUP(LARGE($A$1:$A$397,13),$A$1:$A$397,$H$1:$H$397) ->  | X15: =IF(MAX(A$1:A$397)<13,"",LOOKUP(LARGE($A$1:$A$397,13),$A$1:$A$397,$I$1:$I$397)) -> Extra point attempt by Toby McTamney is good | AR15: =IF('Play-by-Play Summary'!AS20="","",'Play-by-Play Summary'!AS20) ->  | AS15: =IF($AR15="","",LOOKUP($AR15,'Raw Stats'!$B$3:$B$205,'Raw Stats'!A$3:A$205)) ->  | AT15: =IF($AR15="","",LOOKUP($AR15,'Raw Stats'!$B$3:$B$205,'Raw Stats'!C$3:C$205)) ->  | AU15: =IF($AR15="","",LOOKUP($AR15,'Raw Stats'!$B$3:$B$205,'Raw Stats'!J$3:J$205)) ->  | AV15: =IF($AR15="","",LOOKUP($AR15,'Raw Stats'!$B$3:$B$205,'Raw Stats'!K$3:K$205)) ->  | AW15: =IF($AR15="","",LOOKUP($AR15,'Raw Stats'!$B$3:$B$205,'Raw Stats'!L$3:L$205)) ->  | AX15: =IF('Play-by-Play Summary'!AN20="","",'Play-by-Play Summary'!AN20) ->  | AY15: =IF($AX15="","",LOOKUP($AX15,'Raw Stats'!$B$3:$B$205,'Raw Stats'!A$3:A$205)) ->  | AZ15: =IF($AX15="","",LOOKUP($AX15,'Raw Stats'!$B$3:$B$205,'Raw Stats'!C$3:C$205)) ->  | BA15: =IF($AX15="","",LOOKUP($AX15,'Raw Stats'!$B$3:$B$205,'Raw Stats'!D$3:D$205)) ->  | BB15: =IF($AX15="","",LOOKUP($AX15,'Raw Stats'!$B$3:$B$205,'Raw Stats'!F$3:F$205)) ->  | BC15: =IF($AX15="","",LOOKUP($AX15,'Raw Stats'!$B$3:$B$205,'Raw Stats'!H$3:H$205)) ->  | BD15: =IF($AX15="","",LOOKUP($AX15,'Raw Stats'!$B$3:$B$205,'Raw Stats'!I$3:I$205)) ->  | BE15: =IF($AX15="","",LOOKUP($AX15,'Raw Stats'!$B$3:$B$205,'Raw Stats'!G$3:G$205)) ->  | BF15: =IF('Play-by-Play Summary'!AV20="","",'Play-by-Play Summary'!AV20) ->  | BG15: =IF($BF15="","",LOOKUP($BF15,'Raw Stats'!$B$3:$B$205,'Raw Stats'!A$3:A$205)) ->  | BH15: =IF($BF15="","",LOOKUP($BF15,'Raw Stats'!$B$3:$B$205,'Raw Stats'!C$3:C$205)) ->  | BI15: =IF($BF15="","",LOOKUP($BF15,'Raw Stats'!$B$3:$B$205,'Raw Stats'!M$3:M$205)) ->  | BJ15: =IF($BF15="","",LOOKUP($BF15,'Raw Stats'!$B$3:$B$205,'Raw Stats'!N$3:N$205)) ->  | BK15: =IF($BF15="","",LOOKUP($BF15,'Raw Stats'!$B$3:$B$205,'Raw Stats'!O$3:O$205)) ->  | BL15: =IF($BF15="","",LOOKUP($BF15,'Raw Stats'!$B$3:$B$205,'Raw Stats'!P$3:P$205)) ->  | BN15: =IF('Play Entry'!$W21="","",IF($G15=Teams!$B$13,'Play Entry'!$W21,IF($G15=Teams!$A$13,'Play Entry'!$W21+100,""))) ->  | BO15: =IF('Play Entry'!$Z21="","",IF($G15=Teams!$B$13,'Play Entry'!$Z21,IF($G15=Teams!$A$13,'Play Entry'!$Z21+100,""))) ->  | BP15: =IF($BM15="","",LOOKUP($BM15,'Raw Stats'!$B$3:$B$205,'Raw Stats'!A$3:A$205)) ->  | BQ15: =IF($BM15="","",LOOKUP($BM15,'Raw Stats'!$B$3:$B$205,'Raw Stats'!C$3:C$205)) ->  | BR15: =IF($BM15="","",LOOKUP($BM15,'Raw Stats'!$B$3:$B$205,'Raw Stats'!AK$3:AK$205)) ->  | BS15: =IF($BM15="","",LOOKUP($BM15,'Raw Stats'!$B$3:$B$205,'Raw Stats'!AL$3:AL$205)) ->  | BT15: =IF($BM15="","",LOOKUP($BM15,'Raw Stats'!$B$3:$B$205,'Raw Stats'!AM$3:AM$205)) ->  | BU15: =IF($BM15="","",LOOKUP($BM15,'Raw Stats'!$B$3:$B$205,'Raw Stats'!AN$3:AN$205)) ->  | BV15: =IF($BM15="","",LOOKUP($BM15,'Raw Stats'!$B$3:$B$205,'Raw Stats'!AO$3:AO$205)) ->  | BW15: =IF($BM15="","",LOOKUP($BM15,'Raw Stats'!$B$3:$B$205,'Raw Stats'!AP$3:AP$205)) ->  | BX15: =IF($BM15="","",LOOKUP($BM15,'Raw Stats'!$B$3:$B$205,'Raw Stats'!AQ$3:AQ$205)) ->  | BY15: =IF($BM15="","",LOOKUP($BM15,'Raw Stats'!$B$3:$B$205,'Raw Stats'!AR$3:AR$205)) ->  | BZ15: =IF($BM15="","",LOOKUP($BM15,'Raw Stats'!$B$3:$B$205,'Raw Stats'!AS$3:AS$205)) ->  | CA15: =IF($BM15="","",LOOKUP($BM15,'Raw Stats'!$B$3:$B$205,'Raw Stats'!AT$3:AT$205)) ->  | CB15: =IF($BM15="","",LOOKUP($BM15,'Raw Stats'!$B$3:$B$205,'Raw Stats'!AU$3:AU$205)) ->  | CC15: =IF($BM15="","",LOOKUP($BM15,'Raw Stats'!$B$3:$B$205,'Raw Stats'!AV$3:AV$205)) ->  | CD15: =IF($BM15="","",LOOKUP($BM15,'Raw Stats'!$B$3:$B$205,'Raw Stats'!AW$3:AW$205)) ->  | CE15: =IF($BM15="","",LOOKUP($BM15,'Raw Stats'!$B$3:$B$205,'Raw Stats'!AX$3:AX$205)) ->  | CF15: =IF($BM15="","",LOOKUP($BM15,'Raw Stats'!$B$3:$B$205,'Raw Stats'!AY$3:AY$205)) ->  | CG15: =IF($BM15="","",LOOKUP($BM15,'Raw Stats'!$B$3:$B$205,'Raw Stats'!AZ$3:AZ$205)) ->  | CH15: =IF($BM15="","",LOOKUP($BM15,'Raw Stats'!$B$3:$B$205,'Raw Stats'!BA$3:BA$205)) ->  | CJ15: =IF('Play Entry'!$X21="","",IF($G15=Teams!$B$13,'Play Entry'!$X21,IF($G15=Teams!$A$13,'Play Entry'!$X21+100,""))) ->  | CK15: =IF('Play Entry'!$AA21="","",IF($G15=Teams!$B$13,'Play Entry'!$AA21,IF($G15=Teams!$A$13,'Play Entry'!$AA21+100,""))) ->  | CL15: =IF($CI15="","",LOOKUP($CI15,'Raw Stats'!$B$3:$B$205,'Raw Stats'!A$3:A$205)) ->  | CM15: =IF($CI15="","",LOOKUP($CI15,'Raw Stats'!$B$3:$B$205,'Raw Stats'!C$3:C$205)) ->  | CN15: =IF($CI15="","",LOOKUP($CI15,'Raw Stats'!$B$3:$B$205,'Raw Stats'!AK$3:AK$205)) ->  | CO15: =IF($CI15="","",LOOKUP($CI15,'Raw Stats'!$B$3:$B$205,'Raw Stats'!AL$3:AL$205)) ->  | CP15: =IF($CI15="","",LOOKUP($CI15,'Raw Stats'!$B$3:$B$205,'Raw Stats'!AM$3:AM$205)) ->  | CQ15: =IF($CI15="","",LOOKUP($CI15,'Raw Stats'!$B$3:$B$205,'Raw Stats'!AN$3:AN$205)) ->  | CR15: =IF($CI15="","",LOOKUP($CI15,'Raw Stats'!$B$3:$B$205,'Raw Stats'!AO$3:AO$205)) ->  | CS15: =IF($CI15="","",LOOKUP($CI15,'Raw Stats'!$B$3:$B$205,'Raw Stats'!AP$3:AP$205)) ->  | CT15: =IF($CI15="","",LOOKUP($CI15,'Raw Stats'!$B$3:$B$205,'Raw Stats'!AQ$3:AQ$205)) ->  | CU15: =IF($CI15="","",LOOKUP($CI15,'Raw Stats'!$B$3:$B$205,'Raw Stats'!AR$3:AR$205)) ->  | CV15: =IF($CI15="","",LOOKUP($CI15,'Raw Stats'!$B$3:$B$205,'Raw Stats'!AS$3:AS$205)) ->  | CW15: =IF($CI15="","",LOOKUP($CI15,'Raw Stats'!$B$3:$B$205,'Raw Stats'!AT$3:AT$205)) ->  | CX15: =IF($CI15="","",LOOKUP($CI15,'Raw Stats'!$B$3:$B$205,'Raw Stats'!AU$3:AU$205)) ->  | CY15: =IF($CI15="","",LOOKUP($CI15,'Raw Stats'!$B$3:$B$205,'Raw Stats'!AV$3:AV$205)) ->  | CZ15: =IF($CI15="","",LOOKUP($CI15,'Raw Stats'!$B$3:$B$205,'Raw Stats'!AW$3:AW$205)) ->  | DA15: =IF($CI15="","",LOOKUP($CI15,'Raw Stats'!$B$3:$B$205,'Raw Stats'!AX$3:AX$205)) ->  | DB15: =IF($CI15="","",LOOKUP($CI15,'Raw Stats'!$B$3:$B$205,'Raw Stats'!AY$3:AY$205)) ->  | DC15: =IF($CI15="","",LOOKUP($CI15,'Raw Stats'!$B$3:$B$205,'Raw Stats'!AZ$3:AZ$205)) ->  | DD15: =IF($CI15="","",LOOKUP($CI15,'Raw Stats'!$B$3:$B$205,'Raw Stats'!BA$3:BA$205)) ->  | DE15: =IF('Play-by-Play Summary'!AZ20<>"",'Play-by-Play Summary'!AZ20,IF('Play-by-Play Summary'!BA20<>"",'Play-by-Play Summary'!BA20,IF('Play-by-Play Summary'!BD20<>"",'Play-by-Play Summary'!BD20,IF('Play-by-Play Summary'!BE20<>"",'Play-by-Play Summary'!BE20,IF('Play-by-Play Summary'!BF20<>"",'Play-by-Play Summary'!BF20,IF('Play-by-Play Summary'!BI20<>"",'Play-by-Play Summary'!BI20,"")))))) ->  | DF15: =IF($DE15="","",LOOKUP($DE15,'Raw Stats'!$B$3:$B$205,'Raw Stats'!A$3:A$205)) ->  | DG15: =IF($DE15="","",LOOKUP($DE15,'Raw Stats'!$B$3:$B$205,'Raw Stats'!C$3:C$205)) ->  | DH15: =IF($DE15="","",LOOKUP($DE15,'Raw Stats'!$B$3:$B$205,'Raw Stats'!Q$3:Q$205)) ->  | DI15: =IF($DE15="","",LOOKUP($DE15,'Raw Stats'!$B$3:$B$205,'Raw Stats'!R$3:R$205)) ->  | DJ15: =IF($DE15="","",LOOKUP($DE15,'Raw Stats'!$B$3:$B$205,'Raw Stats'!S$3:S$205)) ->  | DK15: =IF($DE15="","",LOOKUP($DE15,'Raw Stats'!$B$3:$B$205,'Raw Stats'!T$3:T$205)) ->  | DL15: =IF($DE15="","",LOOKUP($DE15,'Raw Stats'!$B$3:$B$205,'Raw Stats'!U$3:U$205)) ->  | DM15: =IF($DE15="","",LOOKUP($DE15,'Raw Stats'!$B$3:$B$205,'Raw Stats'!V$3:V$205)) ->  | DN15: =IF($DE15="","",LOOKUP($DE15,'Raw Stats'!$B$3:$B$205,'Raw Stats'!W$3:W$205)) ->  | DO15: =IF($DE15="","",LOOKUP($DE15,'Raw Stats'!$B$3:$B$205,'Raw Stats'!X$3:X$205)) ->  | DP15: =IF($DE15="","",LOOKUP($DE15,'Raw Stats'!$B$3:$B$205,'Raw Stats'!Y$3:Y$205)) ->  | DQ15: =IF($DE15="","",LOOKUP($DE15,'Raw Stats'!$B$3:$B$205,'Raw Stats'!Z$3:Z$205)) ->  | DR15: =IF($DE15="","",LOOKUP($DE15,'Raw Stats'!$B$3:$B$205,'Raw Stats'!AA$3:AA$205)) ->  | DS15: =IF($DE15="","",LOOKUP($DE15,'Raw Stats'!$B$3:$B$205,'Raw Stats'!AB$3:AB$205)) ->  | DT15: =IF($DE15="","",LOOKUP($DE15,'Raw Stats'!$B$3:$B$205,'Raw Stats'!AC$3:AC$205)) ->  | DU15: =IF($DE15="","",LOOKUP($DE15,'Raw Stats'!$B$3:$B$205,'Raw Stats'!AD$3:AD$205)) -> 
A16: =IF('Play Entry'!J22="","",+'Play-by-Play Summary'!C21) -> 15 | B16: ='Play Entry'!I22 -> 2 | C16: =+'Play-by-Play Summary'!Q21 -> 0 | D16: =+'Play-by-Play Summary'!P21 -> 0 | E16: =+'Play-by-Play Summary'!J21 ->  | F16: =+'Play Entry'!L22 ->  | G16: =+'Play Entry'!J22 -> CastleV | H16: =+'Play-by-Play Summary'!R21 ->  | I16: =+'Play-by-Play Summary'!AE21 -> Kicked off by 20 (Sean Fields) to the 10; returned by 7 (Blake Haggerty) to the 22 yard line | T16: =LOOKUP(LARGE($A$1:$A$397,14),$A$1:$A$397,$G$1:$G$397) -> CastleV | U16: =IF(MAX(A$1:A$397)<14,"",LOOKUP(LARGE($A$1:$A$397,14),$A$1:$A$397,$E$1:$E$397)) -> 2nd | V16: =LOOKUP(LARGE($A$1:$A$397,14),$A$1:$A$397,$F$1:$F$397) -> 6 | W16: =LOOKUP(LARGE($A$1:$A$397,14),$A$1:$A$397,$H$1:$H$397) -> from the 29 yard line | X16: =IF(MAX(A$1:A$397)<14,"",LOOKUP(LARGE($A$1:$A$397,14),$A$1:$A$397,$I$1:$I$397)) -> Rush (left) by 14 (Marc Wessbecker) for a gain of 71 and a touchdown! | Y16: Number | Z16: Name | AA16: Field Goals Made | AB16: Field Goals Missed | AC16: Max FG | AD16: Xtra PTs Made | AE16: Xtra PTs Missed | AF16: Kickoffs | AG16: K-off Yards Total | AH16: Touch-backs | AI16: Punts | AJ16: Punt Yards Total | AK16: Punts Inside 20 | AL16: Punts Fair Caught | AM16: Punts T-backs | AN16: Punts Downed | AR16: =IF('Play-by-Play Summary'!AS21="","",'Play-by-Play Summary'!AS21) ->  | AS16: =IF($AR16="","",LOOKUP($AR16,'Raw Stats'!$B$3:$B$205,'Raw Stats'!A$3:A$205)) ->  | AT16: =IF($AR16="","",LOOKUP($AR16,'Raw Stats'!$B$3:$B$205,'Raw Stats'!C$3:C$205)) ->  | AU16: =IF($AR16="","",LOOKUP($AR16,'Raw Stats'!$B$3:$B$205,'Raw Stats'!J$3:J$205)) ->  | AV16: =IF($AR16="","",LOOKUP($AR16,'Raw Stats'!$B$3:$B$205,'Raw Stats'!K$3:K$205)) ->  | AW16: =IF($AR16="","",LOOKUP($AR16,'Raw Stats'!$B$3:$B$205,'Raw Stats'!L$3:L$205)) ->  | AX16: =IF('Play-by-Play Summary'!AN21="","",'Play-by-Play Summary'!AN21) ->  | AY16: =IF($AX16="","",LOOKUP($AX16,'Raw Stats'!$B$3:$B$205,'Raw Stats'!A$3:A$205)) ->  | AZ16: =IF($AX16="","",LOOKUP($AX16,'Raw Stats'!$B$3:$B$205,'Raw Stats'!C$3:C$205)) ->  | BA16: =IF($AX16="","",LOOKUP($AX16,'Raw Stats'!$B$3:$B$205,'Raw Stats'!D$3:D$205)) ->  | BB16: =IF($AX16="","",LOOKUP($AX16,'Raw Stats'!$B$3:$B$205,'Raw Stats'!F$3:F$205)) ->  | BC16: =IF($AX16="","",LOOKUP($AX16,'Raw Stats'!$B$3:$B$205,'Raw Stats'!H$3:H$205)) ->  | BD16: =IF($AX16="","",LOOKUP($AX16,'Raw Stats'!$B$3:$B$205,'Raw Stats'!I$3:I$205)) ->  | BE16: =IF($AX16="","",LOOKUP($AX16,'Raw Stats'!$B$3:$B$205,'Raw Stats'!G$3:G$205)) ->  | BF16: =IF('Play-by-Play Summary'!AV21="","",'Play-by-Play Summary'!AV21) ->  | BG16: =IF($BF16="","",LOOKUP($BF16,'Raw Stats'!$B$3:$B$205,'Raw Stats'!A$3:A$205)) ->  | BH16: =IF($BF16="","",LOOKUP($BF16,'Raw Stats'!$B$3:$B$205,'Raw Stats'!C$3:C$205)) ->  | BI16: =IF($BF16="","",LOOKUP($BF16,'Raw Stats'!$B$3:$B$205,'Raw Stats'!M$3:M$205)) ->  | BJ16: =IF($BF16="","",LOOKUP($BF16,'Raw Stats'!$B$3:$B$205,'Raw Stats'!N$3:N$205)) ->  | BK16: =IF($BF16="","",LOOKUP($BF16,'Raw Stats'!$B$3:$B$205,'Raw Stats'!O$3:O$205)) ->  | BL16: =IF($BF16="","",LOOKUP($BF16,'Raw Stats'!$B$3:$B$205,'Raw Stats'!P$3:P$205)) ->  | BM16: 7 | BN16: =IF('Play Entry'!$W22="","",IF($G16=Teams!$B$13,'Play Entry'!$W22,IF($G16=Teams!$A$13,'Play Entry'!$W22+100,""))) -> 7 | BO16: =IF('Play Entry'!$Z22="","",IF($G16=Teams!$B$13,'Play Entry'!$Z22,IF($G16=Teams!$A$13,'Play Entry'!$Z22+100,""))) ->  | BP16: =IF($BM16="","",LOOKUP($BM16,'Raw Stats'!$B$3:$B$205,'Raw Stats'!A$3:A$205)) -> 7 | BQ16: =IF($BM16="","",LOOKUP($BM16,'Raw Stats'!$B$3:$B$205,'Raw Stats'!C$3:C$205)) -> Eli Hamilton | BR16: =IF($BM16="","",LOOKUP($BM16,'Raw Stats'!$B$3:$B$205,'Raw Stats'!AK$3:AK$205)) -> 3 | BS16: =IF($BM16="","",LOOKUP($BM16,'Raw Stats'!$B$3:$B$205,'Raw Stats'!AL$3:AL$205)) -> 14 | BT16: =IF($BM16="","",LOOKUP($BM16,'Raw Stats'!$B$3:$B$205,'Raw Stats'!AM$3:AM$205)) -> 0 | BU16: =IF($BM16="","",LOOKUP($BM16,'Raw Stats'!$B$3:$B$205,'Raw Stats'!AN$3:AN$205)) -> 0 | BV16: =IF($BM16="","",LOOKUP($BM16,'Raw Stats'!$B$3:$B$205,'Raw Stats'!AO$3:AO$205)) -> 0 | BW16: =IF($BM16="","",LOOKUP($BM16,'Raw Stats'!$B$3:$B$205,'Raw Stats'!AP$3:AP$205)) -> 1 | BX16: =IF($BM16="","",LOOKUP($BM16,'Raw Stats'!$B$3:$B$205,'Raw Stats'!AQ$3:AQ$205)) -> 0 | BY16: =IF($BM16="","",LOOKUP($BM16,'Raw Stats'!$B$3:$B$205,'Raw Stats'!AR$3:AR$205)) -> -2 | BZ16: =IF($BM16="","",LOOKUP($BM16,'Raw Stats'!$B$3:$B$205,'Raw Stats'!AS$3:AS$205)) -> 0 | CA16: =IF($BM16="","",LOOKUP($BM16,'Raw Stats'!$B$3:$B$205,'Raw Stats'!AT$3:AT$205)) -> 0 | CB16: =IF($BM16="","",LOOKUP($BM16,'Raw Stats'!$B$3:$B$205,'Raw Stats'!AU$3:AU$205)) -> 0 | CC16: =IF($BM16="","",LOOKUP($BM16,'Raw Stats'!$B$3:$B$205,'Raw Stats'!AV$3:AV$205)) -> 0 | CD16: =IF($BM16="","",LOOKUP($BM16,'Raw Stats'!$B$3:$B$205,'Raw Stats'!AW$3:AW$205)) -> 0 | CE16: =IF($BM16="","",LOOKUP($BM16,'Raw Stats'!$B$3:$B$205,'Raw Stats'!AX$3:AX$205)) -> 1 | CF16: =IF($BM16="","",LOOKUP($BM16,'Raw Stats'!$B$3:$B$205,'Raw Stats'!AY$3:AY$205)) -> 0 | CG16: =IF($BM16="","",LOOKUP($BM16,'Raw Stats'!$B$3:$B$205,'Raw Stats'!AZ$3:AZ$205)) -> 0 | CH16: =IF($BM16="","",LOOKUP($BM16,'Raw Stats'!$B$3:$B$205,'Raw Stats'!BA$3:BA$205)) -> 0 | CI16: 44 | CJ16: =IF('Play Entry'!$X22="","",IF($G16=Teams!$B$13,'Play Entry'!$X22,IF($G16=Teams!$A$13,'Play Entry'!$X22+100,""))) -> 44 | CK16: =IF('Play Entry'!$AA22="","",IF($G16=Teams!$B$13,'Play Entry'!$AA22,IF($G16=Teams!$A$13,'Play Entry'!$AA22+100,""))) ->  | CL16: =IF($CI16="","",LOOKUP($CI16,'Raw Stats'!$B$3:$B$205,'Raw Stats'!A$3:A$205)) -> 44 | CM16: =IF($CI16="","",LOOKUP($CI16,'Raw Stats'!$B$3:$B$205,'Raw Stats'!C$3:C$205)) -> Sims Hunter | CN16: =IF($CI16="","",LOOKUP($CI16,'Raw Stats'!$B$3:$B$205,'Raw Stats'!AK$3:AK$205)) -> 1 | CO16: =IF($CI16="","",LOOKUP($CI16,'Raw Stats'!$B$3:$B$205,'Raw Stats'!AL$3:AL$205)) -> 4 | CP16: =IF($CI16="","",LOOKUP($CI16,'Raw Stats'!$B$3:$B$205,'Raw Stats'!AM$3:AM$205)) -> 1 | CQ16: =IF($CI16="","",LOOKUP($CI16,'Raw Stats'!$B$3:$B$205,'Raw Stats'!AN$3:AN$205)) -> 0 | CR16: =IF($CI16="","",LOOKUP($CI16,'Raw Stats'!$B$3:$B$205,'Raw Stats'!AO$3:AO$205)) -> -2 | CS16: =IF($CI16="","",LOOKUP($CI16,'Raw Stats'!$B$3:$B$205,'Raw Stats'!AP$3:AP$205)) -> 0 | CT16: =IF($CI16="","",LOOKUP($CI16,'Raw Stats'!$B$3:$B$205,'Raw Stats'!AQ$3:AQ$205)) -> 0 | CU16: =IF($CI16="","",LOOKUP($CI16,'Raw Stats'!$B$3:$B$205,'Raw Stats'!AR$3:AR$205)) -> 0 | CV16: =IF($CI16="","",LOOKUP($CI16,'Raw Stats'!$B$3:$B$205,'Raw Stats'!AS$3:AS$205)) -> 0 | CW16: =IF($CI16="","",LOOKUP($CI16,'Raw Stats'!$B$3:$B$205,'Raw Stats'!AT$3:AT$205)) -> 0 | CX16: =IF($CI16="","",LOOKUP($CI16,'Raw Stats'!$B$3:$B$205,'Raw Stats'!AU$3:AU$205)) -> 0 | CY16: =IF($CI16="","",LOOKUP($CI16,'Raw Stats'!$B$3:$B$205,'Raw Stats'!AV$3:AV$205)) -> 0 | CZ16: =IF($CI16="","",LOOKUP($CI16,'Raw Stats'!$B$3:$B$205,'Raw Stats'!AW$3:AW$205)) -> 0 | DA16: =IF($CI16="","",LOOKUP($CI16,'Raw Stats'!$B$3:$B$205,'Raw Stats'!AX$3:AX$205)) -> 0 | DB16: =IF($CI16="","",LOOKUP($CI16,'Raw Stats'!$B$3:$B$205,'Raw Stats'!AY$3:AY$205)) -> 0 | DC16: =IF($CI16="","",LOOKUP($CI16,'Raw Stats'!$B$3:$B$205,'Raw Stats'!AZ$3:AZ$205)) -> 0 | DD16: =IF($CI16="","",LOOKUP($CI16,'Raw Stats'!$B$3:$B$205,'Raw Stats'!BA$3:BA$205)) -> 0 | DE16: =IF('Play-by-Play Summary'!AZ21<>"",'Play-by-Play Summary'!AZ21,IF('Play-by-Play Summary'!BA21<>"",'Play-by-Play Summary'!BA21,IF('Play-by-Play Summary'!BD21<>"",'Play-by-Play Summary'!BD21,IF('Play-by-Play Summary'!BE21<>"",'Play-by-Play Summary'!BE21,IF('Play-by-Play Summary'!BF21<>"",'Play-by-Play Summary'!BF21,IF('Play-by-Play Summary'!BI21<>"",'Play-by-Play Summary'!BI21,"")))))) -> 20 | DF16: =IF($DE16="","",LOOKUP($DE16,'Raw Stats'!$B$3:$B$205,'Raw Stats'!A$3:A$205)) -> 20 | DG16: =IF($DE16="","",LOOKUP($DE16,'Raw Stats'!$B$3:$B$205,'Raw Stats'!C$3:C$205)) -> Sean Fields | DH16: =IF($DE16="","",LOOKUP($DE16,'Raw Stats'!$B$3:$B$205,'Raw Stats'!Q$3:Q$205)) -> 0 | DI16: =IF($DE16="","",LOOKUP($DE16,'Raw Stats'!$B$3:$B$205,'Raw Stats'!R$3:R$205)) -> 0 | DJ16: =IF($DE16="","",LOOKUP($DE16,'Raw Stats'!$B$3:$B$205,'Raw Stats'!S$3:S$205)) -> 0 | DK16: =IF($DE16="","",LOOKUP($DE16,'Raw Stats'!$B$3:$B$205,'Raw Stats'!T$3:T$205)) -> 9 | DL16: =IF($DE16="","",LOOKUP($DE16,'Raw Stats'!$B$3:$B$205,'Raw Stats'!U$3:U$205)) -> 0 | DM16: =IF($DE16="","",LOOKUP($DE16,'Raw Stats'!$B$3:$B$205,'Raw Stats'!V$3:V$205)) -> 4 | DN16: =IF($DE16="","",LOOKUP($DE16,'Raw Stats'!$B$3:$B$205,'Raw Stats'!W$3:W$205)) -> 192 | DO16: =IF($DE16="","",LOOKUP($DE16,'Raw Stats'!$B$3:$B$205,'Raw Stats'!X$3:X$205)) -> 0 | DP16: =IF($DE16="","",LOOKUP($DE16,'Raw Stats'!$B$3:$B$205,'Raw Stats'!Y$3:Y$205)) -> 0 | DQ16: =IF($DE16="","",LOOKUP($DE16,'Raw Stats'!$B$3:$B$205,'Raw Stats'!Z$3:Z$205)) -> 0 | DR16: =IF($DE16="","",LOOKUP($DE16,'Raw Stats'!$B$3:$B$205,'Raw Stats'!AA$3:AA$205)) -> 0 | DS16: =IF($DE16="","",LOOKUP($DE16,'Raw Stats'!$B$3:$B$205,'Raw Stats'!AB$3:AB$205)) -> 0 | DT16: =IF($DE16="","",LOOKUP($DE16,'Raw Stats'!$B$3:$B$205,'Raw Stats'!AC$3:AC$205)) -> 0 | DU16: =IF($DE16="","",LOOKUP($DE16,'Raw Stats'!$B$3:$B$205,'Raw Stats'!AD$3:AD$205)) -> 0
A17: =IF('Play Entry'!J23="","",+'Play-by-Play Summary'!C22) -> 16 | B17: ='Play Entry'!I23 -> 2 | C17: =+'Play-by-Play Summary'!Q22 -> 1 | D17: =+'Play-by-Play Summary'!P22 -> 5 | E17: =+'Play-by-Play Summary'!J22 -> 1st | F17: =+'Play Entry'!L23 -> 10 | G17: =+'Play Entry'!J23 -> CastleV | H17: =+'Play-by-Play Summary'!R22 -> from the 22 yard line | I17: =+'Play-by-Play Summary'!AE22 -> Rush (right) by 28 (Noah Jamero) for a gain of 5. Tackle by 21 (Andrew Hale) | T17: =LOOKUP(LARGE($A$1:$A$397,15),$A$1:$A$397,$G$1:$G$397) -> CastleV | U17: =IF(MAX(A$1:A$397)<15,"",LOOKUP(LARGE($A$1:$A$397,15),$A$1:$A$397,$E$1:$E$397)) -> 1st | V17: =LOOKUP(LARGE($A$1:$A$397,15),$A$1:$A$397,$F$1:$F$397) -> 10 | W17: =LOOKUP(LARGE($A$1:$A$397,15),$A$1:$A$397,$H$1:$H$397) -> from the 25 yard line | X17: =IF(MAX(A$1:A$397)<15,"",LOOKUP(LARGE($A$1:$A$397,15),$A$1:$A$397,$I$1:$I$397)) -> Rush (left) by 14 (Marc Wessbecker) for a gain of 4. Tackles by 43 (Carter Forsythe), 7 (Eli Hamilton) | Y17: =IF(MAX($A$1:$A$397)<1,"",LOOKUP(LARGE($A$1:$A$397,1),$A$1:$A$397,DF$1:DF$397)) ->  | AO17: =IF(AI17=0,"",AJ17/AI17) ->  | AR17: =IF('Play-by-Play Summary'!AS22="","",'Play-by-Play Summary'!AS22) -> 128 | AS17: =IF($AR17="","",LOOKUP($AR17,'Raw Stats'!$B$3:$B$205,'Raw Stats'!A$3:A$205)) -> 28 | AT17: =IF($AR17="","",LOOKUP($AR17,'Raw Stats'!$B$3:$B$205,'Raw Stats'!C$3:C$205)) -> Noah Jamero | AU17: =IF($AR17="","",LOOKUP($AR17,'Raw Stats'!$B$3:$B$205,'Raw Stats'!J$3:J$205)) -> 18 | AV17: =IF($AR17="","",LOOKUP($AR17,'Raw Stats'!$B$3:$B$205,'Raw Stats'!K$3:K$205)) -> 53 | AW17: =IF($AR17="","",LOOKUP($AR17,'Raw Stats'!$B$3:$B$205,'Raw Stats'!L$3:L$205)) -> 1 | AX17: =IF('Play-by-Play Summary'!AN22="","",'Play-by-Play Summary'!AN22) ->  | AY17: =IF($AX17="","",LOOKUP($AX17,'Raw Stats'!$B$3:$B$205,'Raw Stats'!A$3:A$205)) ->  | AZ17: =IF($AX17="","",LOOKUP($AX17,'Raw Stats'!$B$3:$B$205,'Raw Stats'!C$3:C$205)) ->  | BA17: =IF($AX17="","",LOOKUP($AX17,'Raw Stats'!$B$3:$B$205,'Raw Stats'!D$3:D$205)) ->  | BB17: =IF($AX17="","",LOOKUP($AX17,'Raw Stats'!$B$3:$B$205,'Raw Stats'!F$3:F$205)) ->  | BC17: =IF($AX17="","",LOOKUP($AX17,'Raw Stats'!$B$3:$B$205,'Raw Stats'!H$3:H$205)) ->  | BD17: =IF($AX17="","",LOOKUP($AX17,'Raw Stats'!$B$3:$B$205,'Raw Stats'!I$3:I$205)) ->  | BE17: =IF($AX17="","",LOOKUP($AX17,'Raw Stats'!$B$3:$B$205,'Raw Stats'!G$3:G$205)) ->  | BF17: =IF('Play-by-Play Summary'!AV22="","",'Play-by-Play Summary'!AV22) ->  | BG17: =IF($BF17="","",LOOKUP($BF17,'Raw Stats'!$B$3:$B$205,'Raw Stats'!A$3:A$205)) ->  | BH17: =IF($BF17="","",LOOKUP($BF17,'Raw Stats'!$B$3:$B$205,'Raw Stats'!C$3:C$205)) ->  | BI17: =IF($BF17="","",LOOKUP($BF17,'Raw Stats'!$B$3:$B$205,'Raw Stats'!M$3:M$205)) ->  | BJ17: =IF($BF17="","",LOOKUP($BF17,'Raw Stats'!$B$3:$B$205,'Raw Stats'!N$3:N$205)) ->  | BK17: =IF($BF17="","",LOOKUP($BF17,'Raw Stats'!$B$3:$B$205,'Raw Stats'!O$3:O$205)) ->  | BL17: =IF($BF17="","",LOOKUP($BF17,'Raw Stats'!$B$3:$B$205,'Raw Stats'!P$3:P$205)) ->  | BM17: 21 | BN17: =IF('Play Entry'!$W23="","",IF($G17=Teams!$B$13,'Play Entry'!$W23,IF($G17=Teams!$A$13,'Play Entry'!$W23+100,""))) -> 21 | BO17: =IF('Play Entry'!$Z23="","",IF($G17=Teams!$B$13,'Play Entry'!$Z23,IF($G17=Teams!$A$13,'Play Entry'!$Z23+100,""))) ->  | BP17: =IF($BM17="","",LOOKUP($BM17,'Raw Stats'!$B$3:$B$205,'Raw Stats'!A$3:A$205)) -> 21 | BQ17: =IF($BM17="","",LOOKUP($BM17,'Raw Stats'!$B$3:$B$205,'Raw Stats'!C$3:C$205)) -> Andrew Hale | BR17: =IF($BM17="","",LOOKUP($BM17,'Raw Stats'!$B$3:$B$205,'Raw Stats'!AK$3:AK$205)) -> 3 | BS17: =IF($BM17="","",LOOKUP($BM17,'Raw Stats'!$B$3:$B$205,'Raw Stats'!AL$3:AL$205)) -> 7 | BT17: =IF($BM17="","",LOOKUP($BM17,'Raw Stats'!$B$3:$B$205,'Raw Stats'!AM$3:AM$205)) -> 0 | BU17: =IF($BM17="","",LOOKUP($BM17,'Raw Stats'!$B$3:$B$205,'Raw Stats'!AN$3:AN$205)) -> 0 | BV17: =IF($BM17="","",LOOKUP($BM17,'Raw Stats'!$B$3:$B$205,'Raw Stats'!AO$3:AO$205)) -> 0 | BW17: =IF($BM17="","",LOOKUP($BM17,'Raw Stats'!$B$3:$B$205,'Raw Stats'!AP$3:AP$205)) -> 1 | BX17: =IF($BM17="","",LOOKUP($BM17,'Raw Stats'!$B$3:$B$205,'Raw Stats'!AQ$3:AQ$205)) -> 0 | BY17: =IF($BM17="","",LOOKUP($BM17,'Raw Stats'!$B$3:$B$205,'Raw Stats'!AR$3:AR$205)) -> -2 | BZ17: =IF($BM17="","",LOOKUP($BM17,'Raw Stats'!$B$3:$B$205,'Raw Stats'!AS$3:AS$205)) -> 0 | CA17: =IF($BM17="","",LOOKUP($BM17,'Raw Stats'!$B$3:$B$205,'Raw Stats'!AT$3:AT$205)) -> 0 | CB17: =IF($BM17="","",LOOKUP($BM17,'Raw Stats'!$B$3:$B$205,'Raw Stats'!AU$3:AU$205)) -> 0 | CC17: =IF($BM17="","",LOOKUP($BM17,'Raw Stats'!$B$3:$B$205,'Raw Stats'!AV$3:AV$205)) -> 0 | CD17: =IF($BM17="","",LOOKUP($BM17,'Raw Stats'!$B$3:$B$205,'Raw Stats'!AW$3:AW$205)) -> 0 | CE17: =IF($BM17="","",LOOKUP($BM17,'Raw Stats'!$B$3:$B$205,'Raw Stats'!AX$3:AX$205)) -> 0 | CF17: =IF($BM17="","",LOOKUP($BM17,'Raw Stats'!$B$3:$B$205,'Raw Stats'!AY$3:AY$205)) -> 0 | CG17: =IF($BM17="","",LOOKUP($BM17,'Raw Stats'!$B$3:$B$205,'Raw Stats'!AZ$3:AZ$205)) -> 0 | CH17: =IF($BM17="","",LOOKUP($BM17,'Raw Stats'!$B$3:$B$205,'Raw Stats'!BA$3:BA$205)) -> 0 | CJ17: =IF('Play Entry'!$X23="","",IF($G17=Teams!$B$13,'Play Entry'!$X23,IF($G17=Teams!$A$13,'Play Entry'!$X23+100,""))) ->  | CK17: =IF('Play Entry'!$AA23="","",IF($G17=Teams!$B$13,'Play Entry'!$AA23,IF($G17=Teams!$A$13,'Play Entry'!$AA23+100,""))) ->  | CL17: =IF($CI17="","",LOOKUP($CI17,'Raw Stats'!$B$3:$B$205,'Raw Stats'!A$3:A$205)) ->  | CM17: =IF($CI17="","",LOOKUP($CI17,'Raw Stats'!$B$3:$B$205,'Raw Stats'!C$3:C$205)) ->  | CN17: =IF($CI17="","",LOOKUP($CI17,'Raw Stats'!$B$3:$B$205,'Raw Stats'!AK$3:AK$205)) ->  | CO17: =IF($CI17="","",LOOKUP($CI17,'Raw Stats'!$B$3:$B$205,'Raw Stats'!AL$3:AL$205)) ->  | CP17: =IF($CI17="","",LOOKUP($CI17,'Raw Stats'!$B$3:$B$205,'Raw Stats'!AM$3:AM$205)) ->  | CQ17: =IF($CI17="","",LOOKUP($CI17,'Raw Stats'!$B$3:$B$205,'Raw Stats'!AN$3:AN$205)) ->  | CR17: =IF($CI17="","",LOOKUP($CI17,'Raw Stats'!$B$3:$B$205,'Raw Stats'!AO$3:AO$205)) ->  | CS17: =IF($CI17="","",LOOKUP($CI17,'Raw Stats'!$B$3:$B$205,'Raw Stats'!AP$3:AP$205)) ->  | CT17: =IF($CI17="","",LOOKUP($CI17,'Raw Stats'!$B$3:$B$205,'Raw Stats'!AQ$3:AQ$205)) ->  | CU17: =IF($CI17="","",LOOKUP($CI17,'Raw Stats'!$B$3:$B$205,'Raw Stats'!AR$3:AR$205)) ->  | CV17: =IF($CI17="","",LOOKUP($CI17,'Raw Stats'!$B$3:$B$205,'Raw Stats'!AS$3:AS$205)) ->  | CW17: =IF($CI17="","",LOOKUP($CI17,'Raw Stats'!$B$3:$B$205,'Raw Stats'!AT$3:AT$205)) ->  | CX17: =IF($CI17="","",LOOKUP($CI17,'Raw Stats'!$B$3:$B$205,'Raw Stats'!AU$3:AU$205)) ->  | CY17: =IF($CI17="","",LOOKUP($CI17,'Raw Stats'!$B$3:$B$205,'Raw Stats'!AV$3:AV$205)) ->  | CZ17: =IF($CI17="","",LOOKUP($CI17,'Raw Stats'!$B$3:$B$205,'Raw Stats'!AW$3:AW$205)) ->  | DA17: =IF($CI17="","",LOOKUP($CI17,'Raw Stats'!$B$3:$B$205,'Raw Stats'!AX$3:AX$205)) ->  | DB17: =IF($CI17="","",LOOKUP($CI17,'Raw Stats'!$B$3:$B$205,'Raw Stats'!AY$3:AY$205)) ->  | DC17: =IF($CI17="","",LOOKUP($CI17,'Raw Stats'!$B$3:$B$205,'Raw Stats'!AZ$3:AZ$205)) ->  | DD17: =IF($CI17="","",LOOKUP($CI17,'Raw Stats'!$B$3:$B$205,'Raw Stats'!BA$3:BA$205)) ->  | DE17: =IF('Play-by-Play Summary'!AZ22<>"",'Play-by-Play Summary'!AZ22,IF('Play-by-Play Summary'!BA22<>"",'Play-by-Play Summary'!BA22,IF('Play-by-Play Summary'!BD22<>"",'Play-by-Play Summary'!BD22,IF('Play-by-Play Summary'!BE22<>"",'Play-by-Play Summary'!BE22,IF('Play-by-Play Summary'!BF22<>"",'Play-by-Play Summary'!BF22,IF('Play-by-Play Summary'!BI22<>"",'Play-by-Play Summary'!BI22,"")))))) ->  | DF17: =IF($DE17="","",LOOKUP($DE17,'Raw Stats'!$B$3:$B$205,'Raw Stats'!A$3:A$205)) ->  | DG17: =IF($DE17="","",LOOKUP($DE17,'Raw Stats'!$B$3:$B$205,'Raw Stats'!C$3:C$205)) ->  | DH17: =IF($DE17="","",LOOKUP($DE17,'Raw Stats'!$B$3:$B$205,'Raw Stats'!Q$3:Q$205)) ->  | DI17: =IF($DE17="","",LOOKUP($DE17,'Raw Stats'!$B$3:$B$205,'Raw Stats'!R$3:R$205)) ->  | DJ17: =IF($DE17="","",LOOKUP($DE17,'Raw Stats'!$B$3:$B$205,'Raw Stats'!S$3:S$205)) ->  | DK17: =IF($DE17="","",LOOKUP($DE17,'Raw Stats'!$B$3:$B$205,'Raw Stats'!T$3:T$205)) ->  | DL17: =IF($DE17="","",LOOKUP($DE17,'Raw Stats'!$B$3:$B$205,'Raw Stats'!U$3:U$205)) ->  | DM17: =IF($DE17="","",LOOKUP($DE17,'Raw Stats'!$B$3:$B$205,'Raw Stats'!V$3:V$205)) ->  | DN17: =IF($DE17="","",LOOKUP($DE17,'Raw Stats'!$B$3:$B$205,'Raw Stats'!W$3:W$205)) ->  | DO17: =IF($DE17="","",LOOKUP($DE17,'Raw Stats'!$B$3:$B$205,'Raw Stats'!X$3:X$205)) ->  | DP17: =IF($DE17="","",LOOKUP($DE17,'Raw Stats'!$B$3:$B$205,'Raw Stats'!Y$3:Y$205)) ->  | DQ17: =IF($DE17="","",LOOKUP($DE17,'Raw Stats'!$B$3:$B$205,'Raw Stats'!Z$3:Z$205)) ->  | DR17: =IF($DE17="","",LOOKUP($DE17,'Raw Stats'!$B$3:$B$205,'Raw Stats'!AA$3:AA$205)) ->  | DS17: =IF($DE17="","",LOOKUP($DE17,'Raw Stats'!$B$3:$B$205,'Raw Stats'!AB$3:AB$205)) ->  | DT17: =IF($DE17="","",LOOKUP($DE17,'Raw Stats'!$B$3:$B$205,'Raw Stats'!AC$3:AC$205)) ->  | DU17: =IF($DE17="","",LOOKUP($DE17,'Raw Stats'!$B$3:$B$205,'Raw Stats'!AD$3:AD$205)) -> 
A18: =IF('Play Entry'!J24="","",+'Play-by-Play Summary'!C23) -> 17 | B18: ='Play Entry'!I24 -> 2 | C18: =+'Play-by-Play Summary'!Q23 -> 2 | D18: =+'Play-by-Play Summary'!P23 -> 5 | E18: =+'Play-by-Play Summary'!J23 -> 2nd | F18: =+'Play Entry'!L24 -> 5 | G18: =+'Play Entry'!J24 -> CastleV | H18: =+'Play-by-Play Summary'!R23 -> from the 27 yard line | I18: =+'Play-by-Play Summary'!AE23 -> Pass (medium center) from 6 (Johnny Colombi) intended for 4 (Jens Anderson) incomplete | T18: =LOOKUP(LARGE($A$1:$A$397,16),$A$1:$A$397,$G$1:$G$397) -> CastleV | U18: =IF(MAX(A$1:A$397)<16,"",LOOKUP(LARGE($A$1:$A$397,16),$A$1:$A$397,$E$1:$E$397)) ->  | V18: =LOOKUP(LARGE($A$1:$A$397,16),$A$1:$A$397,$F$1:$F$397) ->  | W18: =LOOKUP(LARGE($A$1:$A$397,16),$A$1:$A$397,$H$1:$H$397) ->  | X18: =IF(MAX(A$1:A$397)<16,"",LOOKUP(LARGE($A$1:$A$397,16),$A$1:$A$397,$I$1:$I$397)) -> Kicked off by 89 (Jeremy Claycamp) to the 6; returned by 28 (Noah Jamero) to the 25 yard line | Y18: =IF(MAX($A$1:$A$397)<2,"",LOOKUP(LARGE($A$1:$A$397,1),$A$1:$A$397,DE$1:DE$397)) ->  | Z18: =IF($Y$18="","",LOOKUP($Y$18,'Raw Stats'!$B$1:'Raw Stats'!$B$205,'Raw Stats'!$BV$1:'Raw Stats'!$BV$205)) ->  | AA18: =IF($Y$18="","",LOOKUP($Y$18,'Raw Stats'!$B$1:'Raw Stats'!$B$205,'Raw Stats'!$BW$1:'Raw Stats'!$BW$205)) ->  | AB18: =IF($Y$18="","",LOOKUP($Y$18,'Raw Stats'!$B$1:'Raw Stats'!$B$205,'Raw Stats'!$BX$1:'Raw Stats'!$BX$205)) ->  | AR18: =IF('Play-by-Play Summary'!AS23="","",'Play-by-Play Summary'!AS23) ->  | AS18: =IF($AR18="","",LOOKUP($AR18,'Raw Stats'!$B$3:$B$205,'Raw Stats'!A$3:A$205)) ->  | AT18: =IF($AR18="","",LOOKUP($AR18,'Raw Stats'!$B$3:$B$205,'Raw Stats'!C$3:C$205)) ->  | AU18: =IF($AR18="","",LOOKUP($AR18,'Raw Stats'!$B$3:$B$205,'Raw Stats'!J$3:J$205)) ->  | AV18: =IF($AR18="","",LOOKUP($AR18,'Raw Stats'!$B$3:$B$205,'Raw Stats'!K$3:K$205)) ->  | AW18: =IF($AR18="","",LOOKUP($AR18,'Raw Stats'!$B$3:$B$205,'Raw Stats'!L$3:L$205)) ->  | AX18: =IF('Play-by-Play Summary'!AN23="","",'Play-by-Play Summary'!AN23) -> 106 | AY18: =IF($AX18="","",LOOKUP($AX18,'Raw Stats'!$B$3:$B$205,'Raw Stats'!A$3:A$205)) -> 6 | AZ18: =IF($AX18="","",LOOKUP($AX18,'Raw Stats'!$B$3:$B$205,'Raw Stats'!C$3:C$205)) -> Johnny Colombi | BA18: =IF($AX18="","",LOOKUP($AX18,'Raw Stats'!$B$3:$B$205,'Raw Stats'!D$3:D$205)) -> 15 | BB18: =IF($AX18="","",LOOKUP($AX18,'Raw Stats'!$B$3:$B$205,'Raw Stats'!F$3:F$205)) -> 8 | BC18: =IF($AX18="","",LOOKUP($AX18,'Raw Stats'!$B$3:$B$205,'Raw Stats'!H$3:H$205)) -> 88 | BD18: =IF($AX18="","",LOOKUP($AX18,'Raw Stats'!$B$3:$B$205,'Raw Stats'!I$3:I$205)) -> 0 | BE18: =IF($AX18="","",LOOKUP($AX18,'Raw Stats'!$B$3:$B$205,'Raw Stats'!G$3:G$205)) -> 1 | BF18: =IF('Play-by-Play Summary'!AV23="","",'Play-by-Play Summary'!AV23) -> 104 | BG18: =IF($BF18="","",LOOKUP($BF18,'Raw Stats'!$B$3:$B$205,'Raw Stats'!A$3:A$205)) -> 4 | BH18: =IF($BF18="","",LOOKUP($BF18,'Raw Stats'!$B$3:$B$205,'Raw Stats'!C$3:C$205)) -> Jens Anderson | BI18: =IF($BF18="","",LOOKUP($BF18,'Raw Stats'!$B$3:$B$205,'Raw Stats'!M$3:M$205)) -> 6 | BJ18: =IF($BF18="","",LOOKUP($BF18,'Raw Stats'!$B$3:$B$205,'Raw Stats'!N$3:N$205)) -> 4 | BK18: =IF($BF18="","",LOOKUP($BF18,'Raw Stats'!$B$3:$B$205,'Raw Stats'!O$3:O$205)) -> 32 | BL18: =IF($BF18="","",LOOKUP($BF18,'Raw Stats'!$B$3:$B$205,'Raw Stats'!P$3:P$205)) -> 0 | BN18: =IF('Play Entry'!$W24="","",IF($G18=Teams!$B$13,'Play Entry'!$W24,IF($G18=Teams!$A$13,'Play Entry'!$W24+100,""))) ->  | BO18: =IF('Play Entry'!$Z24="","",IF($G18=Teams!$B$13,'Play Entry'!$Z24,IF($G18=Teams!$A$13,'Play Entry'!$Z24+100,""))) ->  | BP18: =IF($BM18="","",LOOKUP($BM18,'Raw Stats'!$B$3:$B$205,'Raw Stats'!A$3:A$205)) ->  | BQ18: =IF($BM18="","",LOOKUP($BM18,'Raw Stats'!$B$3:$B$205,'Raw Stats'!C$3:C$205)) ->  | BR18: =IF($BM18="","",LOOKUP($BM18,'Raw Stats'!$B$3:$B$205,'Raw Stats'!AK$3:AK$205)) ->  | BS18: =IF($BM18="","",LOOKUP($BM18,'Raw Stats'!$B$3:$B$205,'Raw Stats'!AL$3:AL$205)) ->  | BT18: =IF($BM18="","",LOOKUP($BM18,'Raw Stats'!$B$3:$B$205,'Raw Stats'!AM$3:AM$205)) ->  | BU18: =IF($BM18="","",LOOKUP($BM18,'Raw Stats'!$B$3:$B$205,'Raw Stats'!AN$3:AN$205)) ->  | BV18: =IF($BM18="","",LOOKUP($BM18,'Raw Stats'!$B$3:$B$205,'Raw Stats'!AO$3:AO$205)) ->  | BW18: =IF($BM18="","",LOOKUP($BM18,'Raw Stats'!$B$3:$B$205,'Raw Stats'!AP$3:AP$205)) ->  | BX18: =IF($BM18="","",LOOKUP($BM18,'Raw Stats'!$B$3:$B$205,'Raw Stats'!AQ$3:AQ$205)) ->  | BY18: =IF($BM18="","",LOOKUP($BM18,'Raw Stats'!$B$3:$B$205,'Raw Stats'!AR$3:AR$205)) ->  | BZ18: =IF($BM18="","",LOOKUP($BM18,'Raw Stats'!$B$3:$B$205,'Raw Stats'!AS$3:AS$205)) ->  | CA18: =IF($BM18="","",LOOKUP($BM18,'Raw Stats'!$B$3:$B$205,'Raw Stats'!AT$3:AT$205)) ->  | CB18: =IF($BM18="","",LOOKUP($BM18,'Raw Stats'!$B$3:$B$205,'Raw Stats'!AU$3:AU$205)) ->  | CC18: =IF($BM18="","",LOOKUP($BM18,'Raw Stats'!$B$3:$B$205,'Raw Stats'!AV$3:AV$205)) ->  | CD18: =IF($BM18="","",LOOKUP($BM18,'Raw Stats'!$B$3:$B$205,'Raw Stats'!AW$3:AW$205)) ->  | CE18: =IF($BM18="","",LOOKUP($BM18,'Raw Stats'!$B$3:$B$205,'Raw Stats'!AX$3:AX$205)) ->  | CF18: =IF($BM18="","",LOOKUP($BM18,'Raw Stats'!$B$3:$B$205,'Raw Stats'!AY$3:AY$205)) ->  | CG18: =IF($BM18="","",LOOKUP($BM18,'Raw Stats'!$B$3:$B$205,'Raw Stats'!AZ$3:AZ$205)) ->  | CH18: =IF($BM18="","",LOOKUP($BM18,'Raw Stats'!$B$3:$B$205,'Raw Stats'!BA$3:BA$205)) ->  | CJ18: =IF('Play Entry'!$X24="","",IF($G18=Teams!$B$13,'Play Entry'!$X24,IF($G18=Teams!$A$13,'Play Entry'!$X24+100,""))) ->  | CK18: =IF('Play Entry'!$AA24="","",IF($G18=Teams!$B$13,'Play Entry'!$AA24,IF($G18=Teams!$A$13,'Play Entry'!$AA24+100,""))) ->  | CL18: =IF($CI18="","",LOOKUP($CI18,'Raw Stats'!$B$3:$B$205,'Raw Stats'!A$3:A$205)) ->  | CM18: =IF($CI18="","",LOOKUP($CI18,'Raw Stats'!$B$3:$B$205,'Raw Stats'!C$3:C$205)) ->  | CN18: =IF($CI18="","",LOOKUP($CI18,'Raw Stats'!$B$3:$B$205,'Raw Stats'!AK$3:AK$205)) ->  | CO18: =IF($CI18="","",LOOKUP($CI18,'Raw Stats'!$B$3:$B$205,'Raw Stats'!AL$3:AL$205)) ->  | CP18: =IF($CI18="","",LOOKUP($CI18,'Raw Stats'!$B$3:$B$205,'Raw Stats'!AM$3:AM$205)) ->  | CQ18: =IF($CI18="","",LOOKUP($CI18,'Raw Stats'!$B$3:$B$205,'Raw Stats'!AN$3:AN$205)) ->  | CR18: =IF($CI18="","",LOOKUP($CI18,'Raw Stats'!$B$3:$B$205,'Raw Stats'!AO$3:AO$205)) ->  | CS18: =IF($CI18="","",LOOKUP($CI18,'Raw Stats'!$B$3:$B$205,'Raw Stats'!AP$3:AP$205)) ->  | CT18: =IF($CI18="","",LOOKUP($CI18,'Raw Stats'!$B$3:$B$205,'Raw Stats'!AQ$3:AQ$205)) ->  | CU18: =IF($CI18="","",LOOKUP($CI18,'Raw Stats'!$B$3:$B$205,'Raw Stats'!AR$3:AR$205)) ->  | CV18: =IF($CI18="","",LOOKUP($CI18,'Raw Stats'!$B$3:$B$205,'Raw Stats'!AS$3:AS$205)) ->  | CW18: =IF($CI18="","",LOOKUP($CI18,'Raw Stats'!$B$3:$B$205,'Raw Stats'!AT$3:AT$205)) ->  | CX18: =IF($CI18="","",LOOKUP($CI18,'Raw Stats'!$B$3:$B$205,'Raw Stats'!AU$3:AU$205)) ->  | CY18: =IF($CI18="","",LOOKUP($CI18,'Raw Stats'!$B$3:$B$205,'Raw Stats'!AV$3:AV$205)) ->  | CZ18: =IF($CI18="","",LOOKUP($CI18,'Raw Stats'!$B$3:$B$205,'Raw Stats'!AW$3:AW$205)) ->  | DA18: =IF($CI18="","",LOOKUP($CI18,'Raw Stats'!$B$3:$B$205,'Raw Stats'!AX$3:AX$205)) ->  | DB18: =IF($CI18="","",LOOKUP($CI18,'Raw Stats'!$B$3:$B$205,'Raw Stats'!AY$3:AY$205)) ->  | DC18: =IF($CI18="","",LOOKUP($CI18,'Raw Stats'!$B$3:$B$205,'Raw Stats'!AZ$3:AZ$205)) ->  | DD18: =IF($CI18="","",LOOKUP($CI18,'Raw Stats'!$B$3:$B$205,'Raw Stats'!BA$3:BA$205)) ->  | DE18: =IF('Play-by-Play Summary'!AZ23<>"",'Play-by-Play Summary'!AZ23,IF('Play-by-Play Summary'!BA23<>"",'Play-by-Play Summary'!BA23,IF('Play-by-Play Summary'!BD23<>"",'Play-by-Play Summary'!BD23,IF('Play-by-Play Summary'!BE23<>"",'Play-by-Play Summary'!BE23,IF('Play-by-Play Summary'!BF23<>"",'Play-by-Play Summary'!BF23,IF('Play-by-Play Summary'!BI23<>"",'Play-by-Play Summary'!BI23,"")))))) ->  | DF18: =IF($DE18="","",LOOKUP($DE18,'Raw Stats'!$B$3:$B$205,'Raw Stats'!A$3:A$205)) ->  | DG18: =IF($DE18="","",LOOKUP($DE18,'Raw Stats'!$B$3:$B$205,'Raw Stats'!C$3:C$205)) ->  | DH18: =IF($DE18="","",LOOKUP($DE18,'Raw Stats'!$B$3:$B$205,'Raw Stats'!Q$3:Q$205)) ->  | DI18: =IF($DE18="","",LOOKUP($DE18,'Raw Stats'!$B$3:$B$205,'Raw Stats'!R$3:R$205)) ->  | DJ18: =IF($DE18="","",LOOKUP($DE18,'Raw Stats'!$B$3:$B$205,'Raw Stats'!S$3:S$205)) ->  | DK18: =IF($DE18="","",LOOKUP($DE18,'Raw Stats'!$B$3:$B$205,'Raw Stats'!T$3:T$205)) ->  | DL18: =IF($DE18="","",LOOKUP($DE18,'Raw Stats'!$B$3:$B$205,'Raw Stats'!U$3:U$205)) ->  | DM18: =IF($DE18="","",LOOKUP($DE18,'Raw Stats'!$B$3:$B$205,'Raw Stats'!V$3:V$205)) ->  | DN18: =IF($DE18="","",LOOKUP($DE18,'Raw Stats'!$B$3:$B$205,'Raw Stats'!W$3:W$205)) ->  | DO18: =IF($DE18="","",LOOKUP($DE18,'Raw Stats'!$B$3:$B$205,'Raw Stats'!X$3:X$205)) ->  | DP18: =IF($DE18="","",LOOKUP($DE18,'Raw Stats'!$B$3:$B$205,'Raw Stats'!Y$3:Y$205)) ->  | DQ18: =IF($DE18="","",LOOKUP($DE18,'Raw Stats'!$B$3:$B$205,'Raw Stats'!Z$3:Z$205)) ->  | DR18: =IF($DE18="","",LOOKUP($DE18,'Raw Stats'!$B$3:$B$205,'Raw Stats'!AA$3:AA$205)) ->  | DS18: =IF($DE18="","",LOOKUP($DE18,'Raw Stats'!$B$3:$B$205,'Raw Stats'!AB$3:AB$205)) ->  | DT18: =IF($DE18="","",LOOKUP($DE18,'Raw Stats'!$B$3:$B$205,'Raw Stats'!AC$3:AC$205)) ->  | DU18: =IF($DE18="","",LOOKUP($DE18,'Raw Stats'!$B$3:$B$205,'Raw Stats'!AD$3:AD$205)) -> 
A19: =IF('Play Entry'!J25="","",+'Play-by-Play Summary'!C24) -> 18 | B19: ='Play Entry'!I25 -> 2 | C19: =+'Play-by-Play Summary'!Q24 -> 3 | D19: =+'Play-by-Play Summary'!P24 -> 20 | E19: =+'Play-by-Play Summary'!J24 -> 3rd | F19: =+'Play Entry'!L25 -> 5 | G19: =+'Play Entry'!J25 -> CastleV | H19: =+'Play-by-Play Summary'!R24 -> from the 27 yard line | I19: =+'Play-by-Play Summary'!AE24 -> Pass (medium right) from 6 (Johnny Colombi) intended for 4 (Jens Anderson) complete for a gain of 15. Tackle by 11 (Matt Smith) | T19: =LOOKUP(LARGE($A$1:$A$397,17),$A$1:$A$397,$G$1:$G$397) -> Valor | U19: =IF(MAX(A$1:A$397)<17,"",LOOKUP(LARGE($A$1:$A$397,17),$A$1:$A$397,$E$1:$E$397)) ->  | V19: =LOOKUP(LARGE($A$1:$A$397,17),$A$1:$A$397,$F$1:$F$397) ->  | W19: =LOOKUP(LARGE($A$1:$A$397,17),$A$1:$A$397,$H$1:$H$397) ->  | X19: =IF(MAX(A$1:A$397)<17,"",LOOKUP(LARGE($A$1:$A$397,17),$A$1:$A$397,$I$1:$I$397)) -> Extra point attempt by Sean Fields is good | AR19: =IF('Play-by-Play Summary'!AS24="","",'Play-by-Play Summary'!AS24) ->  | AS19: =IF($AR19="","",LOOKUP($AR19,'Raw Stats'!$B$3:$B$205,'Raw Stats'!A$3:A$205)) ->  | AT19: =IF($AR19="","",LOOKUP($AR19,'Raw Stats'!$B$3:$B$205,'Raw Stats'!C$3:C$205)) ->  | AU19: =IF($AR19="","",LOOKUP($AR19,'Raw Stats'!$B$3:$B$205,'Raw Stats'!J$3:J$205)) ->  | AV19: =IF($AR19="","",LOOKUP($AR19,'Raw Stats'!$B$3:$B$205,'Raw Stats'!K$3:K$205)) ->  | AW19: =IF($AR19="","",LOOKUP($AR19,'Raw Stats'!$B$3:$B$205,'Raw Stats'!L$3:L$205)) ->  | AX19: =IF('Play-by-Play Summary'!AN24="","",'Play-by-Play Summary'!AN24) -> 106 | AY19: =IF($AX19="","",LOOKUP($AX19,'Raw Stats'!$B$3:$B$205,'Raw Stats'!A$3:A$205)) -> 6 | AZ19: =IF($AX19="","",LOOKUP($AX19,'Raw Stats'!$B$3:$B$205,'Raw Stats'!C$3:C$205)) -> Johnny Colombi | BA19: =IF($AX19="","",LOOKUP($AX19,'Raw Stats'!$B$3:$B$205,'Raw Stats'!D$3:D$205)) -> 15 | BB19: =IF($AX19="","",LOOKUP($AX19,'Raw Stats'!$B$3:$B$205,'Raw Stats'!F$3:F$205)) -> 8 | BC19: =IF($AX19="","",LOOKUP($AX19,'Raw Stats'!$B$3:$B$205,'Raw Stats'!H$3:H$205)) -> 88 | BD19: =IF($AX19="","",LOOKUP($AX19,'Raw Stats'!$B$3:$B$205,'Raw Stats'!I$3:I$205)) -> 0 | BE19: =IF($AX19="","",LOOKUP($AX19,'Raw Stats'!$B$3:$B$205,'Raw Stats'!G$3:G$205)) -> 1 | BF19: =IF('Play-by-Play Summary'!AV24="","",'Play-by-Play Summary'!AV24) -> 104 | BG19: =IF($BF19="","",LOOKUP($BF19,'Raw Stats'!$B$3:$B$205,'Raw Stats'!A$3:A$205)) -> 4 | BH19: =IF($BF19="","",LOOKUP($BF19,'Raw Stats'!$B$3:$B$205,'Raw Stats'!C$3:C$205)) -> Jens Anderson | BI19: =IF($BF19="","",LOOKUP($BF19,'Raw Stats'!$B$3:$B$205,'Raw Stats'!M$3:M$205)) -> 6 | BJ19: =IF($BF19="","",LOOKUP($BF19,'Raw Stats'!$B$3:$B$205,'Raw Stats'!N$3:N$205)) -> 4 | BK19: =IF($BF19="","",LOOKUP($BF19,'Raw Stats'!$B$3:$B$205,'Raw Stats'!O$3:O$205)) -> 32 | BL19: =IF($BF19="","",LOOKUP($BF19,'Raw Stats'!$B$3:$B$205,'Raw Stats'!P$3:P$205)) -> 0 | BM19: 11 | BN19: =IF('Play Entry'!$W25="","",IF($G19=Teams!$B$13,'Play Entry'!$W25,IF($G19=Teams!$A$13,'Play Entry'!$W25+100,""))) -> 11 | BO19: =IF('Play Entry'!$Z25="","",IF($G19=Teams!$B$13,'Play Entry'!$Z25,IF($G19=Teams!$A$13,'Play Entry'!$Z25+100,""))) ->  | BP19: =IF($BM19="","",LOOKUP($BM19,'Raw Stats'!$B$3:$B$205,'Raw Stats'!A$3:A$205)) -> 11 | BQ19: =IF($BM19="","",LOOKUP($BM19,'Raw Stats'!$B$3:$B$205,'Raw Stats'!C$3:C$205)) -> Matt Smith | BR19: =IF($BM19="","",LOOKUP($BM19,'Raw Stats'!$B$3:$B$205,'Raw Stats'!AK$3:AK$205)) -> 2 | BS19: =IF($BM19="","",LOOKUP($BM19,'Raw Stats'!$B$3:$B$205,'Raw Stats'!AL$3:AL$205)) -> 0 | BT19: =IF($BM19="","",LOOKUP($BM19,'Raw Stats'!$B$3:$B$205,'Raw Stats'!AM$3:AM$205)) -> 0 | BU19: =IF($BM19="","",LOOKUP($BM19,'Raw Stats'!$B$3:$B$205,'Raw Stats'!AN$3:AN$205)) -> 0 | BV19: =IF($BM19="","",LOOKUP($BM19,'Raw Stats'!$B$3:$B$205,'Raw Stats'!AO$3:AO$205)) -> 0 | BW19: =IF($BM19="","",LOOKUP($BM19,'Raw Stats'!$B$3:$B$205,'Raw Stats'!AP$3:AP$205)) -> 0 | BX19: =IF($BM19="","",LOOKUP($BM19,'Raw Stats'!$B$3:$B$205,'Raw Stats'!AQ$3:AQ$205)) -> 0 | BY19: =IF($BM19="","",LOOKUP($BM19,'Raw Stats'!$B$3:$B$205,'Raw Stats'!AR$3:AR$205)) -> 0 | BZ19: =IF($BM19="","",LOOKUP($BM19,'Raw Stats'!$B$3:$B$205,'Raw Stats'!AS$3:AS$205)) -> 0 | CA19: =IF($BM19="","",LOOKUP($BM19,'Raw Stats'!$B$3:$B$205,'Raw Stats'!AT$3:AT$205)) -> 0 | CB19: =IF($BM19="","",LOOKUP($BM19,'Raw Stats'!$B$3:$B$205,'Raw Stats'!AU$3:AU$205)) -> 0 | CC19: =IF($BM19="","",LOOKUP($BM19,'Raw Stats'!$B$3:$B$205,'Raw Stats'!AV$3:AV$205)) -> 0 | CD19: =IF($BM19="","",LOOKUP($BM19,'Raw Stats'!$B$3:$B$205,'Raw Stats'!AW$3:AW$205)) -> 0 | CE19: =IF($BM19="","",LOOKUP($BM19,'Raw Stats'!$B$3:$B$205,'Raw Stats'!AX$3:AX$205)) -> 0 | CF19: =IF($BM19="","",LOOKUP($BM19,'Raw Stats'!$B$3:$B$205,'Raw Stats'!AY$3:AY$205)) -> 0 | CG19: =IF($BM19="","",LOOKUP($BM19,'Raw Stats'!$B$3:$B$205,'Raw Stats'!AZ$3:AZ$205)) -> 0 | CH19: =IF($BM19="","",LOOKUP($BM19,'Raw Stats'!$B$3:$B$205,'Raw Stats'!BA$3:BA$205)) -> 0 | CJ19: =IF('Play Entry'!$X25="","",IF($G19=Teams!$B$13,'Play Entry'!$X25,IF($G19=Teams!$A$13,'Play Entry'!$X25+100,""))) ->  | CK19: =IF('Play Entry'!$AA25="","",IF($G19=Teams!$B$13,'Play Entry'!$AA25,IF($G19=Teams!$A$13,'Play Entry'!$AA25+100,""))) ->  | CL19: =IF($CI19="","",LOOKUP($CI19,'Raw Stats'!$B$3:$B$205,'Raw Stats'!A$3:A$205)) ->  | CM19: =IF($CI19="","",LOOKUP($CI19,'Raw Stats'!$B$3:$B$205,'Raw Stats'!C$3:C$205)) ->  | CN19: =IF($CI19="","",LOOKUP($CI19,'Raw Stats'!$B$3:$B$205,'Raw Stats'!AK$3:AK$205)) ->  | CO19: =IF($CI19="","",LOOKUP($CI19,'Raw Stats'!$B$3:$B$205,'Raw Stats'!AL$3:AL$205)) ->  | CP19: =IF($CI19="","",LOOKUP($CI19,'Raw Stats'!$B$3:$B$205,'Raw Stats'!AM$3:AM$205)) ->  | CQ19: =IF($CI19="","",LOOKUP($CI19,'Raw Stats'!$B$3:$B$205,'Raw Stats'!AN$3:AN$205)) ->  | CR19: =IF($CI19="","",LOOKUP($CI19,'Raw Stats'!$B$3:$B$205,'Raw Stats'!AO$3:AO$205)) ->  | CS19: =IF($CI19="","",LOOKUP($CI19,'Raw Stats'!$B$3:$B$205,'Raw Stats'!AP$3:AP$205)) ->  | CT19: =IF($CI19="","",LOOKUP($CI19,'Raw Stats'!$B$3:$B$205,'Raw Stats'!AQ$3:AQ$205)) ->  | CU19: =IF($CI19="","",LOOKUP($CI19,'Raw Stats'!$B$3:$B$205,'Raw Stats'!AR$3:AR$205)) ->  | CV19: =IF($CI19="","",LOOKUP($CI19,'Raw Stats'!$B$3:$B$205,'Raw Stats'!AS$3:AS$205)) ->  | CW19: =IF($CI19="","",LOOKUP($CI19,'Raw Stats'!$B$3:$B$205,'Raw Stats'!AT$3:AT$205)) ->  | CX19: =IF($CI19="","",LOOKUP($CI19,'Raw Stats'!$B$3:$B$205,'Raw Stats'!AU$3:AU$205)) ->  | CY19: =IF($CI19="","",LOOKUP($CI19,'Raw Stats'!$B$3:$B$205,'Raw Stats'!AV$3:AV$205)) ->  | CZ19: =IF($CI19="","",LOOKUP($CI19,'Raw Stats'!$B$3:$B$205,'Raw Stats'!AW$3:AW$205)) ->  | DA19: =IF($CI19="","",LOOKUP($CI19,'Raw Stats'!$B$3:$B$205,'Raw Stats'!AX$3:AX$205)) ->  | DB19: =IF($CI19="","",LOOKUP($CI19,'Raw Stats'!$B$3:$B$205,'Raw Stats'!AY$3:AY$205)) ->  | DC19: =IF($CI19="","",LOOKUP($CI19,'Raw Stats'!$B$3:$B$205,'Raw Stats'!AZ$3:AZ$205)) ->  | DD19: =IF($CI19="","",LOOKUP($CI19,'Raw Stats'!$B$3:$B$205,'Raw Stats'!BA$3:BA$205)) ->  | DE19: =IF('Play-by-Play Summary'!AZ24<>"",'Play-by-Play Summary'!AZ24,IF('Play-by-Play Summary'!BA24<>"",'Play-by-Play Summary'!BA24,IF('Play-by-Play Summary'!BD24<>"",'Play-by-Play Summary'!BD24,IF('Play-by-Play Summary'!BE24<>"",'Play-by-Play Summary'!BE24,IF('Play-by-Play Summary'!BF24<>"",'Play-by-Play Summary'!BF24,IF('Play-by-Play Summary'!BI24<>"",'Play-by-Play Summary'!BI24,"")))))) ->  | DF19: =IF($DE19="","",LOOKUP($DE19,'Raw Stats'!$B$3:$B$205,'Raw Stats'!A$3:A$205)) ->  | DG19: =IF($DE19="","",LOOKUP($DE19,'Raw Stats'!$B$3:$B$205,'Raw Stats'!C$3:C$205)) ->  | DH19: =IF($DE19="","",LOOKUP($DE19,'Raw Stats'!$B$3:$B$205,'Raw Stats'!Q$3:Q$205)) ->  | DI19: =IF($DE19="","",LOOKUP($DE19,'Raw Stats'!$B$3:$B$205,'Raw Stats'!R$3:R$205)) ->  | DJ19: =IF($DE19="","",LOOKUP($DE19,'Raw Stats'!$B$3:$B$205,'Raw Stats'!S$3:S$205)) ->  | DK19: =IF($DE19="","",LOOKUP($DE19,'Raw Stats'!$B$3:$B$205,'Raw Stats'!T$3:T$205)) ->  | DL19: =IF($DE19="","",LOOKUP($DE19,'Raw Stats'!$B$3:$B$205,'Raw Stats'!U$3:U$205)) ->  | DM19: =IF($DE19="","",LOOKUP($DE19,'Raw Stats'!$B$3:$B$205,'Raw Stats'!V$3:V$205)) ->  | DN19: =IF($DE19="","",LOOKUP($DE19,'Raw Stats'!$B$3:$B$205,'Raw Stats'!W$3:W$205)) ->  | DO19: =IF($DE19="","",LOOKUP($DE19,'Raw Stats'!$B$3:$B$205,'Raw Stats'!X$3:X$205)) ->  | DP19: =IF($DE19="","",LOOKUP($DE19,'Raw Stats'!$B$3:$B$205,'Raw Stats'!Y$3:Y$205)) ->  | DQ19: =IF($DE19="","",LOOKUP($DE19,'Raw Stats'!$B$3:$B$205,'Raw Stats'!Z$3:Z$205)) ->  | DR19: =IF($DE19="","",LOOKUP($DE19,'Raw Stats'!$B$3:$B$205,'Raw Stats'!AA$3:AA$205)) ->  | DS19: =IF($DE19="","",LOOKUP($DE19,'Raw Stats'!$B$3:$B$205,'Raw Stats'!AB$3:AB$205)) ->  | DT19: =IF($DE19="","",LOOKUP($DE19,'Raw Stats'!$B$3:$B$205,'Raw Stats'!AC$3:AC$205)) ->  | DU19: =IF($DE19="","",LOOKUP($DE19,'Raw Stats'!$B$3:$B$205,'Raw Stats'!AD$3:AD$205)) -> 
A20: =IF('Play Entry'!J26="","",+'Play-by-Play Summary'!C25) -> 19 | B20: ='Play Entry'!I26 -> 2 | C20: =+'Play-by-Play Summary'!Q25 -> 4 | D20: =+'Play-by-Play Summary'!P25 -> 27 | E20: =+'Play-by-Play Summary'!J25 -> 1st | F20: =+'Play Entry'!L26 -> 10 | G20: =+'Play Entry'!J26 -> CastleV | H20: =+'Play-by-Play Summary'!R25 -> from the 42 yard line | I20: =+'Play-by-Play Summary'!AE25 -> Rush (left) by 15 (Beto Ledezma) for a gain of 7. Tackles by 44 (Sims Hunter), 7 (Eli Hamilton) | T20: =LOOKUP(LARGE($A$1:$A$397,18),$A$1:$A$397,$G$1:$G$397) -> Valor | U20: =IF(MAX(A$1:A$397)<18,"",LOOKUP(LARGE($A$1:$A$397,18),$A$1:$A$397,$E$1:$E$397)) -> 1st | V20: =LOOKUP(LARGE($A$1:$A$397,18),$A$1:$A$397,$F$1:$F$397) -> 10 | W20: =LOOKUP(LARGE($A$1:$A$397,18),$A$1:$A$397,$H$1:$H$397) -> from the +20 yard line | X20: =IF(MAX(A$1:A$397)<18,"",LOOKUP(LARGE($A$1:$A$397,18),$A$1:$A$397,$I$1:$I$397)) -> Rush (around the right end) by 32 (Zach Wiley) for a gain of 20 and a touchdown! | AR20: =IF('Play-by-Play Summary'!AS25="","",'Play-by-Play Summary'!AS25) -> 115 | AS20: =IF($AR20="","",LOOKUP($AR20,'Raw Stats'!$B$3:$B$205,'Raw Stats'!A$3:A$205)) -> 15 | AT20: =IF($AR20="","",LOOKUP($AR20,'Raw Stats'!$B$3:$B$205,'Raw Stats'!C$3:C$205)) -> Beto Ledezma | AU20: =IF($AR20="","",LOOKUP($AR20,'Raw Stats'!$B$3:$B$205,'Raw Stats'!J$3:J$205)) -> 2 | AV20: =IF($AR20="","",LOOKUP($AR20,'Raw Stats'!$B$3:$B$205,'Raw Stats'!K$3:K$205)) -> 8 | AW20: =IF($AR20="","",LOOKUP($AR20,'Raw Stats'!$B$3:$B$205,'Raw Stats'!L$3:L$205)) -> 0 | AX20: =IF('Play-by-Play Summary'!AN25="","",'Play-by-Play Summary'!AN25) ->  | AY20: =IF($AX20="","",LOOKUP($AX20,'Raw Stats'!$B$3:$B$205,'Raw Stats'!A$3:A$205)) ->  | AZ20: =IF($AX20="","",LOOKUP($AX20,'Raw Stats'!$B$3:$B$205,'Raw Stats'!C$3:C$205)) ->  | BA20: =IF($AX20="","",LOOKUP($AX20,'Raw Stats'!$B$3:$B$205,'Raw Stats'!D$3:D$205)) ->  | BB20: =IF($AX20="","",LOOKUP($AX20,'Raw Stats'!$B$3:$B$205,'Raw Stats'!F$3:F$205)) ->  | BC20: =IF($AX20="","",LOOKUP($AX20,'Raw Stats'!$B$3:$B$205,'Raw Stats'!H$3:H$205)) ->  | BD20: =IF($AX20="","",LOOKUP($AX20,'Raw Stats'!$B$3:$B$205,'Raw Stats'!I$3:I$205)) ->  | BE20: =IF($AX20="","",LOOKUP($AX20,'Raw Stats'!$B$3:$B$205,'Raw Stats'!G$3:G$205)) ->  | BF20: =IF('Play-by-Play Summary'!AV25="","",'Play-by-Play Summary'!AV25) ->  | BG20: =IF($BF20="","",LOOKUP($BF20,'Raw Stats'!$B$3:$B$205,'Raw Stats'!A$3:A$205)) ->  | BH20: =IF($BF20="","",LOOKUP($BF20,'Raw Stats'!$B$3:$B$205,'Raw Stats'!C$3:C$205)) ->  | BI20: =IF($BF20="","",LOOKUP($BF20,'Raw Stats'!$B$3:$B$205,'Raw Stats'!M$3:M$205)) ->  | BJ20: =IF($BF20="","",LOOKUP($BF20,'Raw Stats'!$B$3:$B$205,'Raw Stats'!N$3:N$205)) ->  | BK20: =IF($BF20="","",LOOKUP($BF20,'Raw Stats'!$B$3:$B$205,'Raw Stats'!O$3:O$205)) ->  | BL20: =IF($BF20="","",LOOKUP($BF20,'Raw Stats'!$B$3:$B$205,'Raw Stats'!P$3:P$205)) ->  | BM20: 44 | BN20: =IF('Play Entry'!$W26="","",IF($G20=Teams!$B$13,'Play Entry'!$W26,IF($G20=Teams!$A$13,'Play Entry'!$W26+100,""))) -> 44 | BO20: =IF('Play Entry'!$Z26="","",IF($G20=Teams!$B$13,'Play Entry'!$Z26,IF($G20=Teams!$A$13,'Play Entry'!$Z26+100,""))) ->  | BP20: =IF($BM20="","",LOOKUP($BM20,'Raw Stats'!$B$3:$B$205,'Raw Stats'!A$3:A$205)) -> 44 | BQ20: =IF($BM20="","",LOOKUP($BM20,'Raw Stats'!$B$3:$B$205,'Raw Stats'!C$3:C$205)) -> Sims Hunter | BR20: =IF($BM20="","",LOOKUP($BM20,'Raw Stats'!$B$3:$B$205,'Raw Stats'!AK$3:AK$205)) -> 1 | BS20: =IF($BM20="","",LOOKUP($BM20,'Raw Stats'!$B$3:$B$205,'Raw Stats'!AL$3:AL$205)) -> 4 | BT20: =IF($BM20="","",LOOKUP($BM20,'Raw Stats'!$B$3:$B$205,'Raw Stats'!AM$3:AM$205)) -> 1 | BU20: =IF($BM20="","",LOOKUP($BM20,'Raw Stats'!$B$3:$B$205,'Raw Stats'!AN$3:AN$205)) -> 0 | BV20: =IF($BM20="","",LOOKUP($BM20,'Raw Stats'!$B$3:$B$205,'Raw Stats'!AO$3:AO$205)) -> -2 | BW20: =IF($BM20="","",LOOKUP($BM20,'Raw Stats'!$B$3:$B$205,'Raw Stats'!AP$3:AP$205)) -> 0 | BX20: =IF($BM20="","",LOOKUP($BM20,'Raw Stats'!$B$3:$B$205,'Raw Stats'!AQ$3:AQ$205)) -> 0 | BY20: =IF($BM20="","",LOOKUP($BM20,'Raw Stats'!$B$3:$B$205,'Raw Stats'!AR$3:AR$205)) -> 0 | BZ20: =IF($BM20="","",LOOKUP($BM20,'Raw Stats'!$B$3:$B$205,'Raw Stats'!AS$3:AS$205)) -> 0 | CA20: =IF($BM20="","",LOOKUP($BM20,'Raw Stats'!$B$3:$B$205,'Raw Stats'!AT$3:AT$205)) -> 0 | CB20: =IF($BM20="","",LOOKUP($BM20,'Raw Stats'!$B$3:$B$205,'Raw Stats'!AU$3:AU$205)) -> 0 | CC20: =IF($BM20="","",LOOKUP($BM20,'Raw Stats'!$B$3:$B$205,'Raw Stats'!AV$3:AV$205)) -> 0 | CD20: =IF($BM20="","",LOOKUP($BM20,'Raw Stats'!$B$3:$B$205,'Raw Stats'!AW$3:AW$205)) -> 0 | CE20: =IF($BM20="","",LOOKUP($BM20,'Raw Stats'!$B$3:$B$205,'Raw Stats'!AX$3:AX$205)) -> 0 | CF20: =IF($BM20="","",LOOKUP($BM20,'Raw Stats'!$B$3:$B$205,'Raw Stats'!AY$3:AY$205)) -> 0 | CG20: =IF($BM20="","",LOOKUP($BM20,'Raw Stats'!$B$3:$B$205,'Raw Stats'!AZ$3:AZ$205)) -> 0 | CH20: =IF($BM20="","",LOOKUP($BM20,'Raw Stats'!$B$3:$B$205,'Raw Stats'!BA$3:BA$205)) -> 0 | CI20: 7 | CJ20: =IF('Play Entry'!$X26="","",IF($G20=Teams!$B$13,'Play Entry'!$X26,IF($G20=Teams!$A$13,'Play Entry'!$X26+100,""))) -> 7 | CK20: =IF('Play Entry'!$AA26="","",IF($G20=Teams!$B$13,'Play Entry'!$AA26,IF($G20=Teams!$A$13,'Play Entry'!$AA26+100,""))) ->  | CL20: =IF($CI20="","",LOOKUP($CI20,'Raw Stats'!$B$3:$B$205,'Raw Stats'!A$3:A$205)) -> 7 | CM20: =IF($CI20="","",LOOKUP($CI20,'Raw Stats'!$B$3:$B$205,'Raw Stats'!C$3:C$205)) -> Eli Hamilton | CN20: =IF($CI20="","",LOOKUP($CI20,'Raw Stats'!$B$3:$B$205,'Raw Stats'!AK$3:AK$205)) -> 3 | CO20: =IF($CI20="","",LOOKUP($CI20,'Raw Stats'!$B$3:$B$205,'Raw Stats'!AL$3:AL$205)) -> 14 | CP20: =IF($CI20="","",LOOKUP($CI20,'Raw Stats'!$B$3:$B$205,'Raw Stats'!AM$3:AM$205)) -> 0 | CQ20: =IF($CI20="","",LOOKUP($CI20,'Raw Stats'!$B$3:$B$205,'Raw Stats'!AN$3:AN$205)) -> 0 | CR20: =IF($CI20="","",LOOKUP($CI20,'Raw Stats'!$B$3:$B$205,'Raw Stats'!AO$3:AO$205)) -> 0 | CS20: =IF($CI20="","",LOOKUP($CI20,'Raw Stats'!$B$3:$B$205,'Raw Stats'!AP$3:AP$205)) -> 1 | CT20: =IF($CI20="","",LOOKUP($CI20,'Raw Stats'!$B$3:$B$205,'Raw Stats'!AQ$3:AQ$205)) -> 0 | CU20: =IF($CI20="","",LOOKUP($CI20,'Raw Stats'!$B$3:$B$205,'Raw Stats'!AR$3:AR$205)) -> -2 | CV20: =IF($CI20="","",LOOKUP($CI20,'Raw Stats'!$B$3:$B$205,'Raw Stats'!AS$3:AS$205)) -> 0 | CW20: =IF($CI20="","",LOOKUP($CI20,'Raw Stats'!$B$3:$B$205,'Raw Stats'!AT$3:AT$205)) -> 0 | CX20: =IF($CI20="","",LOOKUP($CI20,'Raw Stats'!$B$3:$B$205,'Raw Stats'!AU$3:AU$205)) -> 0 | CY20: =IF($CI20="","",LOOKUP($CI20,'Raw Stats'!$B$3:$B$205,'Raw Stats'!AV$3:AV$205)) -> 0 | CZ20: =IF($CI20="","",LOOKUP($CI20,'Raw Stats'!$B$3:$B$205,'Raw Stats'!AW$3:AW$205)) -> 0 | DA20: =IF($CI20="","",LOOKUP($CI20,'Raw Stats'!$B$3:$B$205,'Raw Stats'!AX$3:AX$205)) -> 1 | DB20: =IF($CI20="","",LOOKUP($CI20,'Raw Stats'!$B$3:$B$205,'Raw Stats'!AY$3:AY$205)) -> 0 | DC20: =IF($CI20="","",LOOKUP($CI20,'Raw Stats'!$B$3:$B$205,'Raw Stats'!AZ$3:AZ$205)) -> 0 | DD20: =IF($CI20="","",LOOKUP($CI20,'Raw Stats'!$B$3:$B$205,'Raw Stats'!BA$3:BA$205)) -> 0 | DE20: =IF('Play-by-Play Summary'!AZ25<>"",'Play-by-Play Summary'!AZ25,IF('Play-by-Play Summary'!BA25<>"",'Play-by-Play Summary'!BA25,IF('Play-by-Play Summary'!BD25<>"",'Play-by-Play Summary'!BD25,IF('Play-by-Play Summary'!BE25<>"",'Play-by-Play Summary'!BE25,IF('Play-by-Play Summary'!BF25<>"",'Play-by-Play Summary'!BF25,IF('Play-by-Play Summary'!BI25<>"",'Play-by-Play Summary'!BI25,"")))))) ->  | DF20: =IF($DE20="","",LOOKUP($DE20,'Raw Stats'!$B$3:$B$205,'Raw Stats'!A$3:A$205)) ->  | DG20: =IF($DE20="","",LOOKUP($DE20,'Raw Stats'!$B$3:$B$205,'Raw Stats'!C$3:C$205)) ->  | DH20: =IF($DE20="","",LOOKUP($DE20,'Raw Stats'!$B$3:$B$205,'Raw Stats'!Q$3:Q$205)) ->  | DI20: =IF($DE20="","",LOOKUP($DE20,'Raw Stats'!$B$3:$B$205,'Raw Stats'!R$3:R$205)) ->  | DJ20: =IF($DE20="","",LOOKUP($DE20,'Raw Stats'!$B$3:$B$205,'Raw Stats'!S$3:S$205)) ->  | DK20: =IF($DE20="","",LOOKUP($DE20,'Raw Stats'!$B$3:$B$205,'Raw Stats'!T$3:T$205)) ->  | DL20: =IF($DE20="","",LOOKUP($DE20,'Raw Stats'!$B$3:$B$205,'Raw Stats'!U$3:U$205)) ->  | DM20: =IF($DE20="","",LOOKUP($DE20,'Raw Stats'!$B$3:$B$205,'Raw Stats'!V$3:V$205)) ->  | DN20: =IF($DE20="","",LOOKUP($DE20,'Raw Stats'!$B$3:$B$205,'Raw Stats'!W$3:W$205)) ->  | DO20: =IF($DE20="","",LOOKUP($DE20,'Raw Stats'!$B$3:$B$205,'Raw Stats'!X$3:X$205)) ->  | DP20: =IF($DE20="","",LOOKUP($DE20,'Raw Stats'!$B$3:$B$205,'Raw Stats'!Y$3:Y$205)) ->  | DQ20: =IF($DE20="","",LOOKUP($DE20,'Raw Stats'!$B$3:$B$205,'Raw Stats'!Z$3:Z$205)) ->  | DR20: =IF($DE20="","",LOOKUP($DE20,'Raw Stats'!$B$3:$B$205,'Raw Stats'!AA$3:AA$205)) ->  | DS20: =IF($DE20="","",LOOKUP($DE20,'Raw Stats'!$B$3:$B$205,'Raw Stats'!AB$3:AB$205)) ->  | DT20: =IF($DE20="","",LOOKUP($DE20,'Raw Stats'!$B$3:$B$205,'Raw Stats'!AC$3:AC$205)) ->  | DU20: =IF($DE20="","",LOOKUP($DE20,'Raw Stats'!$B$3:$B$205,'Raw Stats'!AD$3:AD$205)) -> 
A21: =IF('Play Entry'!J27="","",+'Play-by-Play Summary'!C26) -> 20 | B21: ='Play Entry'!I27 -> 2 | C21: =+'Play-by-Play Summary'!Q26 -> 5 | D21: =+'Play-by-Play Summary'!P26 -> 57 | E21: =+'Play-by-Play Summary'!J26 -> 2nd | F21: =+'Play Entry'!L27 -> 3 | G21: =+'Play Entry'!J27 -> CastleV | H21: =+'Play-by-Play Summary'!R26 -> from the 49 yard line | I21: =+'Play-by-Play Summary'!AE26 -> Rush (left) by 14 (Marc Wessbecker) for a gain of 30. Tackles by 21 (Andrew Hale), 16 (Griffin Meier) | T21: =LOOKUP(LARGE($A$1:$A$397,19),$A$1:$A$397,$G$1:$G$397) -> Valor | U21: =IF(MAX(A$1:A$397)<19,"",LOOKUP(LARGE($A$1:$A$397,19),$A$1:$A$397,$E$1:$E$397)) -> 1st | V21: =LOOKUP(LARGE($A$1:$A$397,19),$A$1:$A$397,$F$1:$F$397) -> 10 | W21: =LOOKUP(LARGE($A$1:$A$397,19),$A$1:$A$397,$H$1:$H$397) -> from the +31 yard line | X21: =IF(MAX(A$1:A$397)<19,"",LOOKUP(LARGE($A$1:$A$397,19),$A$1:$A$397,$I$1:$I$397)) -> Rush (right) by 32 (Zach Wiley) for a gain of 11. Tackles by 15 (Beto Ledezma), 56 (Quin Samuelson) | AR21: =IF('Play-by-Play Summary'!AS26="","",'Play-by-Play Summary'!AS26) -> 114 | AS21: =IF($AR21="","",LOOKUP($AR21,'Raw Stats'!$B$3:$B$205,'Raw Stats'!A$3:A$205)) -> 14 | AT21: =IF($AR21="","",LOOKUP($AR21,'Raw Stats'!$B$3:$B$205,'Raw Stats'!C$3:C$205)) -> Marc Wessbecker | AU21: =IF($AR21="","",LOOKUP($AR21,'Raw Stats'!$B$3:$B$205,'Raw Stats'!J$3:J$205)) -> 18 | AV21: =IF($AR21="","",LOOKUP($AR21,'Raw Stats'!$B$3:$B$205,'Raw Stats'!K$3:K$205)) -> 158 | AW21: =IF($AR21="","",LOOKUP($AR21,'Raw Stats'!$B$3:$B$205,'Raw Stats'!L$3:L$205)) -> 2 | AX21: =IF('Play-by-Play Summary'!AN26="","",'Play-by-Play Summary'!AN26) ->  | AY21: =IF($AX21="","",LOOKUP($AX21,'Raw Stats'!$B$3:$B$205,'Raw Stats'!A$3:A$205)) ->  | AZ21: =IF($AX21="","",LOOKUP($AX21,'Raw Stats'!$B$3:$B$205,'Raw Stats'!C$3:C$205)) ->  | BA21: =IF($AX21="","",LOOKUP($AX21,'Raw Stats'!$B$3:$B$205,'Raw Stats'!D$3:D$205)) ->  | BB21: =IF($AX21="","",LOOKUP($AX21,'Raw Stats'!$B$3:$B$205,'Raw Stats'!F$3:F$205)) ->  | BC21: =IF($AX21="","",LOOKUP($AX21,'Raw Stats'!$B$3:$B$205,'Raw Stats'!H$3:H$205)) ->  | BD21: =IF($AX21="","",LOOKUP($AX21,'Raw Stats'!$B$3:$B$205,'Raw Stats'!I$3:I$205)) ->  | BE21: =IF($AX21="","",LOOKUP($AX21,'Raw Stats'!$B$3:$B$205,'Raw Stats'!G$3:G$205)) ->  | BF21: =IF('Play-by-Play Summary'!AV26="","",'Play-by-Play Summary'!AV26) ->  | BG21: =IF($BF21="","",LOOKUP($BF21,'Raw Stats'!$B$3:$B$205,'Raw Stats'!A$3:A$205)) ->  | BH21: =IF($BF21="","",LOOKUP($BF21,'Raw Stats'!$B$3:$B$205,'Raw Stats'!C$3:C$205)) ->  | BI21: =IF($BF21="","",LOOKUP($BF21,'Raw Stats'!$B$3:$B$205,'Raw Stats'!M$3:M$205)) ->  | BJ21: =IF($BF21="","",LOOKUP($BF21,'Raw Stats'!$B$3:$B$205,'Raw Stats'!N$3:N$205)) ->  | BK21: =IF($BF21="","",LOOKUP($BF21,'Raw Stats'!$B$3:$B$205,'Raw Stats'!O$3:O$205)) ->  | BL21: =IF($BF21="","",LOOKUP($BF21,'Raw Stats'!$B$3:$B$205,'Raw Stats'!P$3:P$205)) ->  | BM21: 21 | BN21: =IF('Play Entry'!$W27="","",IF($G21=Teams!$B$13,'Play Entry'!$W27,IF($G21=Teams!$A$13,'Play Entry'!$W27+100,""))) -> 21 | BO21: =IF('Play Entry'!$Z27="","",IF($G21=Teams!$B$13,'Play Entry'!$Z27,IF($G21=Teams!$A$13,'Play Entry'!$Z27+100,""))) ->  | BP21: =IF($BM21="","",LOOKUP($BM21,'Raw Stats'!$B$3:$B$205,'Raw Stats'!A$3:A$205)) -> 21 | BQ21: =IF($BM21="","",LOOKUP($BM21,'Raw Stats'!$B$3:$B$205,'Raw Stats'!C$3:C$205)) -> Andrew Hale | BR21: =IF($BM21="","",LOOKUP($BM21,'Raw Stats'!$B$3:$B$205,'Raw Stats'!AK$3:AK$205)) -> 3 | BS21: =IF($BM21="","",LOOKUP($BM21,'Raw Stats'!$B$3:$B$205,'Raw Stats'!AL$3:AL$205)) -> 7 | BT21: =IF($BM21="","",LOOKUP($BM21,'Raw Stats'!$B$3:$B$205,'Raw Stats'!AM$3:AM$205)) -> 0 | BU21: =IF($BM21="","",LOOKUP($BM21,'Raw Stats'!$B$3:$B$205,'Raw Stats'!AN$3:AN$205)) -> 0 | BV21: =IF($BM21="","",LOOKUP($BM21,'Raw Stats'!$B$3:$B$205,'Raw Stats'!AO$3:AO$205)) -> 0 | BW21: =IF($BM21="","",LOOKUP($BM21,'Raw Stats'!$B$3:$B$205,'Raw Stats'!AP$3:AP$205)) -> 1 | BX21: =IF($BM21="","",LOOKUP($BM21,'Raw Stats'!$B$3:$B$205,'Raw Stats'!AQ$3:AQ$205)) -> 0 | BY21: =IF($BM21="","",LOOKUP($BM21,'Raw Stats'!$B$3:$B$205,'Raw Stats'!AR$3:AR$205)) -> -2 | BZ21: =IF($BM21="","",LOOKUP($BM21,'Raw Stats'!$B$3:$B$205,'Raw Stats'!AS$3:AS$205)) -> 0 | CA21: =IF($BM21="","",LOOKUP($BM21,'Raw Stats'!$B$3:$B$205,'Raw Stats'!AT$3:AT$205)) -> 0 | CB21: =IF($BM21="","",LOOKUP($BM21,'Raw Stats'!$B$3:$B$205,'Raw Stats'!AU$3:AU$205)) -> 0 | CC21: =IF($BM21="","",LOOKUP($BM21,'Raw Stats'!$B$3:$B$205,'Raw Stats'!AV$3:AV$205)) -> 0 | CD21: =IF($BM21="","",LOOKUP($BM21,'Raw Stats'!$B$3:$B$205,'Raw Stats'!AW$3:AW$205)) -> 0 | CE21: =IF($BM21="","",LOOKUP($BM21,'Raw Stats'!$B$3:$B$205,'Raw Stats'!AX$3:AX$205)) -> 0 | CF21: =IF($BM21="","",LOOKUP($BM21,'Raw Stats'!$B$3:$B$205,'Raw Stats'!AY$3:AY$205)) -> 0 | CG21: =IF($BM21="","",LOOKUP($BM21,'Raw Stats'!$B$3:$B$205,'Raw Stats'!AZ$3:AZ$205)) -> 0 | CH21: =IF($BM21="","",LOOKUP($BM21,'Raw Stats'!$B$3:$B$205,'Raw Stats'!BA$3:BA$205)) -> 0 | CI21: 16 | CJ21: =IF('Play Entry'!$X27="","",IF($G21=Teams!$B$13,'Play Entry'!$X27,IF($G21=Teams!$A$13,'Play Entry'!$X27+100,""))) -> 16 | CK21: =IF('Play Entry'!$AA27="","",IF($G21=Teams!$B$13,'Play Entry'!$AA27,IF($G21=Teams!$A$13,'Play Entry'!$AA27+100,""))) ->  | CL21: =IF($CI21="","",LOOKUP($CI21,'Raw Stats'!$B$3:$B$205,'Raw Stats'!A$3:A$205)) -> 16 | CM21: =IF($CI21="","",LOOKUP($CI21,'Raw Stats'!$B$3:$B$205,'Raw Stats'!C$3:C$205)) -> Griffin Meier | CN21: =IF($CI21="","",LOOKUP($CI21,'Raw Stats'!$B$3:$B$205,'Raw Stats'!AK$3:AK$205)) -> 2 | CO21: =IF($CI21="","",LOOKUP($CI21,'Raw Stats'!$B$3:$B$205,'Raw Stats'!AL$3:AL$205)) -> 3 | CP21: =IF($CI21="","",LOOKUP($CI21,'Raw Stats'!$B$3:$B$205,'Raw Stats'!AM$3:AM$205)) -> 0 | CQ21: =IF($CI21="","",LOOKUP($CI21,'Raw Stats'!$B$3:$B$205,'Raw Stats'!AN$3:AN$205)) -> 0 | CR21: =IF($CI21="","",LOOKUP($CI21,'Raw Stats'!$B$3:$B$205,'Raw Stats'!AO$3:AO$205)) -> 0 | CS21: =IF($CI21="","",LOOKUP($CI21,'Raw Stats'!$B$3:$B$205,'Raw Stats'!AP$3:AP$205)) -> 0 | CT21: =IF($CI21="","",LOOKUP($CI21,'Raw Stats'!$B$3:$B$205,'Raw Stats'!AQ$3:AQ$205)) -> 0 | CU21: =IF($CI21="","",LOOKUP($CI21,'Raw Stats'!$B$3:$B$205,'Raw Stats'!AR$3:AR$205)) -> 0 | CV21: =IF($CI21="","",LOOKUP($CI21,'Raw Stats'!$B$3:$B$205,'Raw Stats'!AS$3:AS$205)) -> 0 | CW21: =IF($CI21="","",LOOKUP($CI21,'Raw Stats'!$B$3:$B$205,'Raw Stats'!AT$3:AT$205)) -> 1 | CX21: =IF($CI21="","",LOOKUP($CI21,'Raw Stats'!$B$3:$B$205,'Raw Stats'!AU$3:AU$205)) -> 0 | CY21: =IF($CI21="","",LOOKUP($CI21,'Raw Stats'!$B$3:$B$205,'Raw Stats'!AV$3:AV$205)) -> 0 | CZ21: =IF($CI21="","",LOOKUP($CI21,'Raw Stats'!$B$3:$B$205,'Raw Stats'!AW$3:AW$205)) -> 0 | DA21: =IF($CI21="","",LOOKUP($CI21,'Raw Stats'!$B$3:$B$205,'Raw Stats'!AX$3:AX$205)) -> 0 | DB21: =IF($CI21="","",LOOKUP($CI21,'Raw Stats'!$B$3:$B$205,'Raw Stats'!AY$3:AY$205)) -> 0 | DC21: =IF($CI21="","",LOOKUP($CI21,'Raw Stats'!$B$3:$B$205,'Raw Stats'!AZ$3:AZ$205)) -> 0 | DD21: =IF($CI21="","",LOOKUP($CI21,'Raw Stats'!$B$3:$B$205,'Raw Stats'!BA$3:BA$205)) -> 0 | DE21: =IF('Play-by-Play Summary'!AZ26<>"",'Play-by-Play Summary'!AZ26,IF('Play-by-Play Summary'!BA26<>"",'Play-by-Play Summary'!BA26,IF('Play-by-Play Summary'!BD26<>"",'Play-by-Play Summary'!BD26,IF('Play-by-Play Summary'!BE26<>"",'Play-by-Play Summary'!BE26,IF('Play-by-Play Summary'!BF26<>"",'Play-by-Play Summary'!BF26,IF('Play-by-Play Summary'!BI26<>"",'Play-by-Play Summary'!BI26,"")))))) ->  | DF21: =IF($DE21="","",LOOKUP($DE21,'Raw Stats'!$B$3:$B$205,'Raw Stats'!A$3:A$205)) ->  | DG21: =IF($DE21="","",LOOKUP($DE21,'Raw Stats'!$B$3:$B$205,'Raw Stats'!C$3:C$205)) ->  | DH21: =IF($DE21="","",LOOKUP($DE21,'Raw Stats'!$B$3:$B$205,'Raw Stats'!Q$3:Q$205)) ->  | DI21: =IF($DE21="","",LOOKUP($DE21,'Raw Stats'!$B$3:$B$205,'Raw Stats'!R$3:R$205)) ->  | DJ21: =IF($DE21="","",LOOKUP($DE21,'Raw Stats'!$B$3:$B$205,'Raw Stats'!S$3:S$205)) ->  | DK21: =IF($DE21="","",LOOKUP($DE21,'Raw Stats'!$B$3:$B$205,'Raw Stats'!T$3:T$205)) ->  | DL21: =IF($DE21="","",LOOKUP($DE21,'Raw Stats'!$B$3:$B$205,'Raw Stats'!U$3:U$205)) ->  | DM21: =IF($DE21="","",LOOKUP($DE21,'Raw Stats'!$B$3:$B$205,'Raw Stats'!V$3:V$205)) ->  | DN21: =IF($DE21="","",LOOKUP($DE21,'Raw Stats'!$B$3:$B$205,'Raw Stats'!W$3:W$205)) ->  | DO21: =IF($DE21="","",LOOKUP($DE21,'Raw Stats'!$B$3:$B$205,'Raw Stats'!X$3:X$205)) ->  | DP21: =IF($DE21="","",LOOKUP($DE21,'Raw Stats'!$B$3:$B$205,'Raw Stats'!Y$3:Y$205)) ->  | DQ21: =IF($DE21="","",LOOKUP($DE21,'Raw Stats'!$B$3:$B$205,'Raw Stats'!Z$3:Z$205)) ->  | DR21: =IF($DE21="","",LOOKUP($DE21,'Raw Stats'!$B$3:$B$205,'Raw Stats'!AA$3:AA$205)) ->  | DS21: =IF($DE21="","",LOOKUP($DE21,'Raw Stats'!$B$3:$B$205,'Raw Stats'!AB$3:AB$205)) ->  | DT21: =IF($DE21="","",LOOKUP($DE21,'Raw Stats'!$B$3:$B$205,'Raw Stats'!AC$3:AC$205)) ->  | DU21: =IF($DE21="","",LOOKUP($DE21,'Raw Stats'!$B$3:$B$205,'Raw Stats'!AD$3:AD$205)) -> 
A22: =IF('Play Entry'!J28="","",+'Play-by-Play Summary'!C27) -> 21 | B22: ='Play Entry'!I28 -> 2 | C22: =+'Play-by-Play Summary'!Q27 -> 6 | D22: =+'Play-by-Play Summary'!P27 -> 61 | E22: =+'Play-by-Play Summary'!J27 -> 1st | F22: =+'Play Entry'!L28 -> 10 | G22: =+'Play Entry'!J28 -> CastleV | H22: =+'Play-by-Play Summary'!R27 -> from the +21 yard line | I22: =+'Play-by-Play Summary'!AE27 -> Rush (center) by 14 (Marc Wessbecker) for a gain of 4. Tackles by 21 (Andrew Hale), 44 (Sims Hunter) | T22: =LOOKUP(LARGE($A$1:$A$397,21),$A$1:$A$397,$G$1:$G$397) -> CastleV | U22: =IF(MAX(A$1:A$397)<20,"",LOOKUP(LARGE($A$1:$A$397,20),$A$1:$A$397,$E$1:$E$397)) -> 4th | V22: =LOOKUP(LARGE($A$1:$A$397,21),$A$1:$A$397,$F$1:$F$397) -> 10 | W22: =LOOKUP(LARGE($A$1:$A$397,21),$A$1:$A$397,$H$1:$H$397) -> from the 24 yard line | X22: =IF(MAX(A$1:A$397)<20,"",LOOKUP(LARGE($A$1:$A$397,20),$A$1:$A$397,$I$1:$I$397)) -> Rush (center) by 28 (Noah Jamero) for a gain of 0. Tackles by 30 (Jordan Norwood), 55 (Cruz Masten) | AR22: =IF('Play-by-Play Summary'!AS27="","",'Play-by-Play Summary'!AS27) -> 114 | AS22: =IF($AR22="","",LOOKUP($AR22,'Raw Stats'!$B$3:$B$205,'Raw Stats'!A$3:A$205)) -> 14 | AT22: =IF($AR22="","",LOOKUP($AR22,'Raw Stats'!$B$3:$B$205,'Raw Stats'!C$3:C$205)) -> Marc Wessbecker | AU22: =IF($AR22="","",LOOKUP($AR22,'Raw Stats'!$B$3:$B$205,'Raw Stats'!J$3:J$205)) -> 18 | AV22: =IF($AR22="","",LOOKUP($AR22,'Raw Stats'!$B$3:$B$205,'Raw Stats'!K$3:K$205)) -> 158 | AW22: =IF($AR22="","",LOOKUP($AR22,'Raw Stats'!$B$3:$B$205,'Raw Stats'!L$3:L$205)) -> 2 | AX22: =IF('Play-by-Play Summary'!AN27="","",'Play-by-Play Summary'!AN27) ->  | AY22: =IF($AX22="","",LOOKUP($AX22,'Raw Stats'!$B$3:$B$205,'Raw Stats'!A$3:A$205)) ->  | AZ22: =IF($AX22="","",LOOKUP($AX22,'Raw Stats'!$B$3:$B$205,'Raw Stats'!C$3:C$205)) ->  | BA22: =IF($AX22="","",LOOKUP($AX22,'Raw Stats'!$B$3:$B$205,'Raw Stats'!D$3:D$205)) ->  | BB22: =IF($AX22="","",LOOKUP($AX22,'Raw Stats'!$B$3:$B$205,'Raw Stats'!F$3:F$205)) ->  | BC22: =IF($AX22="","",LOOKUP($AX22,'Raw Stats'!$B$3:$B$205,'Raw Stats'!H$3:H$205)) ->  | BD22: =IF($AX22="","",LOOKUP($AX22,'Raw Stats'!$B$3:$B$205,'Raw Stats'!I$3:I$205)) ->  | BE22: =IF($AX22="","",LOOKUP($AX22,'Raw Stats'!$B$3:$B$205,'Raw Stats'!G$3:G$205)) ->  | BF22: =IF('Play-by-Play Summary'!AV27="","",'Play-by-Play Summary'!AV27) ->  | BG22: =IF($BF22="","",LOOKUP($BF22,'Raw Stats'!$B$3:$B$205,'Raw Stats'!A$3:A$205)) ->  | BH22: =IF($BF22="","",LOOKUP($BF22,'Raw Stats'!$B$3:$B$205,'Raw Stats'!C$3:C$205)) ->  | BI22: =IF($BF22="","",LOOKUP($BF22,'Raw Stats'!$B$3:$B$205,'Raw Stats'!M$3:M$205)) ->  | BJ22: =IF($BF22="","",LOOKUP($BF22,'Raw Stats'!$B$3:$B$205,'Raw Stats'!N$3:N$205)) ->  | BK22: =IF($BF22="","",LOOKUP($BF22,'Raw Stats'!$B$3:$B$205,'Raw Stats'!O$3:O$205)) ->  | BL22: =IF($BF22="","",LOOKUP($BF22,'Raw Stats'!$B$3:$B$205,'Raw Stats'!P$3:P$205)) ->  | BM22: 21 | BN22: =IF('Play Entry'!$W28="","",IF($G22=Teams!$B$13,'Play Entry'!$W28,IF($G22=Teams!$A$13,'Play Entry'!$W28+100,""))) -> 21 | BO22: =IF('Play Entry'!$Z28="","",IF($G22=Teams!$B$13,'Play Entry'!$Z28,IF($G22=Teams!$A$13,'Play Entry'!$Z28+100,""))) ->  | BP22: =IF($BM22="","",LOOKUP($BM22,'Raw Stats'!$B$3:$B$205,'Raw Stats'!A$3:A$205)) -> 21 | BQ22: =IF($BM22="","",LOOKUP($BM22,'Raw Stats'!$B$3:$B$205,'Raw Stats'!C$3:C$205)) -> Andrew Hale | BR22: =IF($BM22="","",LOOKUP($BM22,'Raw Stats'!$B$3:$B$205,'Raw Stats'!AK$3:AK$205)) -> 3 | BS22: =IF($BM22="","",LOOKUP($BM22,'Raw Stats'!$B$3:$B$205,'Raw Stats'!AL$3:AL$205)) -> 7 | BT22: =IF($BM22="","",LOOKUP($BM22,'Raw Stats'!$B$3:$B$205,'Raw Stats'!AM$3:AM$205)) -> 0 | BU22: =IF($BM22="","",LOOKUP($BM22,'Raw Stats'!$B$3:$B$205,'Raw Stats'!AN$3:AN$205)) -> 0 | BV22: =IF($BM22="","",LOOKUP($BM22,'Raw Stats'!$B$3:$B$205,'Raw Stats'!AO$3:AO$205)) -> 0 | BW22: =IF($BM22="","",LOOKUP($BM22,'Raw Stats'!$B$3:$B$205,'Raw Stats'!AP$3:AP$205)) -> 1 | BX22: =IF($BM22="","",LOOKUP($BM22,'Raw Stats'!$B$3:$B$205,'Raw Stats'!AQ$3:AQ$205)) -> 0 | BY22: =IF($BM22="","",LOOKUP($BM22,'Raw Stats'!$B$3:$B$205,'Raw Stats'!AR$3:AR$205)) -> -2 | BZ22: =IF($BM22="","",LOOKUP($BM22,'Raw Stats'!$B$3:$B$205,'Raw Stats'!AS$3:AS$205)) -> 0 | CA22: =IF($BM22="","",LOOKUP($BM22,'Raw Stats'!$B$3:$B$205,'Raw Stats'!AT$3:AT$205)) -> 0 | CB22: =IF($BM22="","",LOOKUP($BM22,'Raw Stats'!$B$3:$B$205,'Raw Stats'!AU$3:AU$205)) -> 0 | CC22: =IF($BM22="","",LOOKUP($BM22,'Raw Stats'!$B$3:$B$205,'Raw Stats'!AV$3:AV$205)) -> 0 | CD22: =IF($BM22="","",LOOKUP($BM22,'Raw Stats'!$B$3:$B$205,'Raw Stats'!AW$3:AW$205)) -> 0 | CE22: =IF($BM22="","",LOOKUP($BM22,'Raw Stats'!$B$3:$B$205,'Raw Stats'!AX$3:AX$205)) -> 0 | CF22: =IF($BM22="","",LOOKUP($BM22,'Raw Stats'!$B$3:$B$205,'Raw Stats'!AY$3:AY$205)) -> 0 | CG22: =IF($BM22="","",LOOKUP($BM22,'Raw Stats'!$B$3:$B$205,'Raw Stats'!AZ$3:AZ$205)) -> 0 | CH22: =IF($BM22="","",LOOKUP($BM22,'Raw Stats'!$B$3:$B$205,'Raw Stats'!BA$3:BA$205)) -> 0 | CI22: 44 | CJ22: =IF('Play Entry'!$X28="","",IF($G22=Teams!$B$13,'Play Entry'!$X28,IF($G22=Teams!$A$13,'Play Entry'!$X28+100,""))) -> 44 | CK22: =IF('Play Entry'!$AA28="","",IF($G22=Teams!$B$13,'Play Entry'!$AA28,IF($G22=Teams!$A$13,'Play Entry'!$AA28+100,""))) ->  | CL22: =IF($CI22="","",LOOKUP($CI22,'Raw Stats'!$B$3:$B$205,'Raw Stats'!A$3:A$205)) -> 44 | CM22: =IF($CI22="","",LOOKUP($CI22,'Raw Stats'!$B$3:$B$205,'Raw Stats'!C$3:C$205)) -> Sims Hunter | CN22: =IF($CI22="","",LOOKUP($CI22,'Raw Stats'!$B$3:$B$205,'Raw Stats'!AK$3:AK$205)) -> 1 | CO22: =IF($CI22="","",LOOKUP($CI22,'Raw Stats'!$B$3:$B$205,'Raw Stats'!AL$3:AL$205)) -> 4 | CP22: =IF($CI22="","",LOOKUP($CI22,'Raw Stats'!$B$3:$B$205,'Raw Stats'!AM$3:AM$205)) -> 1 | CQ22: =IF($CI22="","",LOOKUP($CI22,'Raw Stats'!$B$3:$B$205,'Raw Stats'!AN$3:AN$205)) -> 0 | CR22: =IF($CI22="","",LOOKUP($CI22,'Raw Stats'!$B$3:$B$205,'Raw Stats'!AO$3:AO$205)) -> -2 | CS22: =IF($CI22="","",LOOKUP($CI22,'Raw Stats'!$B$3:$B$205,'Raw Stats'!AP$3:AP$205)) -> 0 | CT22: =IF($CI22="","",LOOKUP($CI22,'Raw Stats'!$B$3:$B$205,'Raw Stats'!AQ$3:AQ$205)) -> 0 | CU22: =IF($CI22="","",LOOKUP($CI22,'Raw Stats'!$B$3:$B$205,'Raw Stats'!AR$3:AR$205)) -> 0 | CV22: =IF($CI22="","",LOOKUP($CI22,'Raw Stats'!$B$3:$B$205,'Raw Stats'!AS$3:AS$205)) -> 0 | CW22: =IF($CI22="","",LOOKUP($CI22,'Raw Stats'!$B$3:$B$205,'Raw Stats'!AT$3:AT$205)) -> 0 | CX22: =IF($CI22="","",LOOKUP($CI22,'Raw Stats'!$B$3:$B$205,'Raw Stats'!AU$3:AU$205)) -> 0 | CY22: =IF($CI22="","",LOOKUP($CI22,'Raw Stats'!$B$3:$B$205,'Raw Stats'!AV$3:AV$205)) -> 0 | CZ22: =IF($CI22="","",LOOKUP($CI22,'Raw Stats'!$B$3:$B$205,'Raw Stats'!AW$3:AW$205)) -> 0 | DA22: =IF($CI22="","",LOOKUP($CI22,'Raw Stats'!$B$3:$B$205,'Raw Stats'!AX$3:AX$205)) -> 0 | DB22: =IF($CI22="","",LOOKUP($CI22,'Raw Stats'!$B$3:$B$205,'Raw Stats'!AY$3:AY$205)) -> 0 | DC22: =IF($CI22="","",LOOKUP($CI22,'Raw Stats'!$B$3:$B$205,'Raw Stats'!AZ$3:AZ$205)) -> 0 | DD22: =IF($CI22="","",LOOKUP($CI22,'Raw Stats'!$B$3:$B$205,'Raw Stats'!BA$3:BA$205)) -> 0 | DE22: =IF('Play-by-Play Summary'!AZ27<>"",'Play-by-Play Summary'!AZ27,IF('Play-by-Play Summary'!BA27<>"",'Play-by-Play Summary'!BA27,IF('Play-by-Play Summary'!BD27<>"",'Play-by-Play Summary'!BD27,IF('Play-by-Play Summary'!BE27<>"",'Play-by-Play Summary'!BE27,IF('Play-by-Play Summary'!BF27<>"",'Play-by-Play Summary'!BF27,IF('Play-by-Play Summary'!BI27<>"",'Play-by-Play Summary'!BI27,"")))))) ->  | DF22: =IF($DE22="","",LOOKUP($DE22,'Raw Stats'!$B$3:$B$205,'Raw Stats'!A$3:A$205)) ->  | DG22: =IF($DE22="","",LOOKUP($DE22,'Raw Stats'!$B$3:$B$205,'Raw Stats'!C$3:C$205)) ->  | DH22: =IF($DE22="","",LOOKUP($DE22,'Raw Stats'!$B$3:$B$205,'Raw Stats'!Q$3:Q$205)) ->  | DI22: =IF($DE22="","",LOOKUP($DE22,'Raw Stats'!$B$3:$B$205,'Raw Stats'!R$3:R$205)) ->  | DJ22: =IF($DE22="","",LOOKUP($DE22,'Raw Stats'!$B$3:$B$205,'Raw Stats'!S$3:S$205)) ->  | DK22: =IF($DE22="","",LOOKUP($DE22,'Raw Stats'!$B$3:$B$205,'Raw Stats'!T$3:T$205)) ->  | DL22: =IF($DE22="","",LOOKUP($DE22,'Raw Stats'!$B$3:$B$205,'Raw Stats'!U$3:U$205)) ->  | DM22: =IF($DE22="","",LOOKUP($DE22,'Raw Stats'!$B$3:$B$205,'Raw Stats'!V$3:V$205)) ->  | DN22: =IF($DE22="","",LOOKUP($DE22,'Raw Stats'!$B$3:$B$205,'Raw Stats'!W$3:W$205)) ->  | DO22: =IF($DE22="","",LOOKUP($DE22,'Raw Stats'!$B$3:$B$205,'Raw Stats'!X$3:X$205)) ->  | DP22: =IF($DE22="","",LOOKUP($DE22,'Raw Stats'!$B$3:$B$205,'Raw Stats'!Y$3:Y$205)) ->  | DQ22: =IF($DE22="","",LOOKUP($DE22,'Raw Stats'!$B$3:$B$205,'Raw Stats'!Z$3:Z$205)) ->  | DR22: =IF($DE22="","",LOOKUP($DE22,'Raw Stats'!$B$3:$B$205,'Raw Stats'!AA$3:AA$205)) ->  | DS22: =IF($DE22="","",LOOKUP($DE22,'Raw Stats'!$B$3:$B$205,'Raw Stats'!AB$3:AB$205)) ->  | DT22: =IF($DE22="","",LOOKUP($DE22,'Raw Stats'!$B$3:$B$205,'Raw Stats'!AC$3:AC$205)) ->  | DU22: =IF($DE22="","",LOOKUP($DE22,'Raw Stats'!$B$3:$B$205,'Raw Stats'!AD$3:AD$205)) -> 
A23: =IF('Play Entry'!J29="","",+'Play-by-Play Summary'!C28) -> 22 | B23: ='Play Entry'!I29 -> 2 | C23: =+'Play-by-Play Summary'!Q28 -> 7 | D23: =+'Play-by-Play Summary'!P28 -> 63 | E23: =+'Play-by-Play Summary'!J28 -> 2nd | F23: =+'Play Entry'!L29 -> 6 | G23: =+'Play Entry'!J29 -> CastleV | H23: =+'Play-by-Play Summary'!R28 -> from the +17 yard line | I23: =+'Play-by-Play Summary'!AE28 -> Rush (right) by 28 (Noah Jamero) for a gain of 2. Tackle by 93 (Brody Bliek) | T23: =LOOKUP(LARGE($A$1:$A$397,22),$A$1:$A$397,$G$1:$G$397) -> CastleV | U23: =IF(MAX(A$1:A$397)<21,"",LOOKUP(LARGE($A$1:$A$397,21),$A$1:$A$397,$E$1:$E$397)) -> 3rd | V23: =LOOKUP(LARGE($A$1:$A$397,22),$A$1:$A$397,$F$1:$F$397) -> 8 | W23: =LOOKUP(LARGE($A$1:$A$397,22),$A$1:$A$397,$H$1:$H$397) -> from the 26 yard line | X23: =IF(MAX(A$1:A$397)<21,"",LOOKUP(LARGE($A$1:$A$397,21),$A$1:$A$397,$I$1:$I$397)) -> Pass (short right) from 6 (Johnny Colombi) intended for 4 (Jens Anderson) complete for a gain of 7. Comment: CV Timeout 2:26. Tackle by 16 (Griffin Meier) | AR23: =IF('Play-by-Play Summary'!AS28="","",'Play-by-Play Summary'!AS28) -> 128 | AS23: =IF($AR23="","",LOOKUP($AR23,'Raw Stats'!$B$3:$B$205,'Raw Stats'!A$3:A$205)) -> 28 | AT23: =IF($AR23="","",LOOKUP($AR23,'Raw Stats'!$B$3:$B$205,'Raw Stats'!C$3:C$205)) -> Noah Jamero | AU23: =IF($AR23="","",LOOKUP($AR23,'Raw Stats'!$B$3:$B$205,'Raw Stats'!J$3:J$205)) -> 18 | AV23: =IF($AR23="","",LOOKUP($AR23,'Raw Stats'!$B$3:$B$205,'Raw Stats'!K$3:K$205)) -> 53 | AW23: =IF($AR23="","",LOOKUP($AR23,'Raw Stats'!$B$3:$B$205,'Raw Stats'!L$3:L$205)) -> 1 | AX23: =IF('Play-by-Play Summary'!AN28="","",'Play-by-Play Summary'!AN28) ->  | AY23: =IF($AX23="","",LOOKUP($AX23,'Raw Stats'!$B$3:$B$205,'Raw Stats'!A$3:A$205)) ->  | AZ23: =IF($AX23="","",LOOKUP($AX23,'Raw Stats'!$B$3:$B$205,'Raw Stats'!C$3:C$205)) ->  | BA23: =IF($AX23="","",LOOKUP($AX23,'Raw Stats'!$B$3:$B$205,'Raw Stats'!D$3:D$205)) ->  | BB23: =IF($AX23="","",LOOKUP($AX23,'Raw Stats'!$B$3:$B$205,'Raw Stats'!F$3:F$205)) ->  | BC23: =IF($AX23="","",LOOKUP($AX23,'Raw Stats'!$B$3:$B$205,'Raw Stats'!H$3:H$205)) ->  | BD23: =IF($AX23="","",LOOKUP($AX23,'Raw Stats'!$B$3:$B$205,'Raw Stats'!I$3:I$205)) ->  | BE23: =IF($AX23="","",LOOKUP($AX23,'Raw Stats'!$B$3:$B$205,'Raw Stats'!G$3:G$205)) ->  | BF23: =IF('Play-by-Play Summary'!AV28="","",'Play-by-Play Summary'!AV28) ->  | BG23: =IF($BF23="","",LOOKUP($BF23,'Raw Stats'!$B$3:$B$205,'Raw Stats'!A$3:A$205)) ->  | BH23: =IF($BF23="","",LOOKUP($BF23,'Raw Stats'!$B$3:$B$205,'Raw Stats'!C$3:C$205)) ->  | BI23: =IF($BF23="","",LOOKUP($BF23,'Raw Stats'!$B$3:$B$205,'Raw Stats'!M$3:M$205)) ->  | BJ23: =IF($BF23="","",LOOKUP($BF23,'Raw Stats'!$B$3:$B$205,'Raw Stats'!N$3:N$205)) ->  | BK23: =IF($BF23="","",LOOKUP($BF23,'Raw Stats'!$B$3:$B$205,'Raw Stats'!O$3:O$205)) ->  | BL23: =IF($BF23="","",LOOKUP($BF23,'Raw Stats'!$B$3:$B$205,'Raw Stats'!P$3:P$205)) ->  | BM23: 93 | BN23: =IF('Play Entry'!$W29="","",IF($G23=Teams!$B$13,'Play Entry'!$W29,IF($G23=Teams!$A$13,'Play Entry'!$W29+100,""))) -> 93 | BO23: =IF('Play Entry'!$Z29="","",IF($G23=Teams!$B$13,'Play Entry'!$Z29,IF($G23=Teams!$A$13,'Play Entry'!$Z29+100,""))) ->  | BP23: =IF($BM23="","",LOOKUP($BM23,'Raw Stats'!$B$3:$B$205,'Raw Stats'!A$3:A$205)) -> 93 | BQ23: =IF($BM23="","",LOOKUP($BM23,'Raw Stats'!$B$3:$B$205,'Raw Stats'!C$3:C$205)) -> Brody Bliek | BR23: =IF($BM23="","",LOOKUP($BM23,'Raw Stats'!$B$3:$B$205,'Raw Stats'!AK$3:AK$205)) -> 3 | BS23: =IF($BM23="","",LOOKUP($BM23,'Raw Stats'!$B$3:$B$205,'Raw Stats'!AL$3:AL$205)) -> 4 | BT23: =IF($BM23="","",LOOKUP($BM23,'Raw Stats'!$B$3:$B$205,'Raw Stats'!AM$3:AM$205)) -> 0 | BU23: =IF($BM23="","",LOOKUP($BM23,'Raw Stats'!$B$3:$B$205,'Raw Stats'!AN$3:AN$205)) -> 0 | BV23: =IF($BM23="","",LOOKUP($BM23,'Raw Stats'!$B$3:$B$205,'Raw Stats'!AO$3:AO$205)) -> 0 | BW23: =IF($BM23="","",LOOKUP($BM23,'Raw Stats'!$B$3:$B$205,'Raw Stats'!AP$3:AP$205)) -> 0 | BX23: =IF($BM23="","",LOOKUP($BM23,'Raw Stats'!$B$3:$B$205,'Raw Stats'!AQ$3:AQ$205)) -> 0 | BY23: =IF($BM23="","",LOOKUP($BM23,'Raw Stats'!$B$3:$B$205,'Raw Stats'!AR$3:AR$205)) -> 0 | BZ23: =IF($BM23="","",LOOKUP($BM23,'Raw Stats'!$B$3:$B$205,'Raw Stats'!AS$3:AS$205)) -> 0 | CA23: =IF($BM23="","",LOOKUP($BM23,'Raw Stats'!$B$3:$B$205,'Raw Stats'!AT$3:AT$205)) -> 0 | CB23: =IF($BM23="","",LOOKUP($BM23,'Raw Stats'!$B$3:$B$205,'Raw Stats'!AU$3:AU$205)) -> 0 | CC23: =IF($BM23="","",LOOKUP($BM23,'Raw Stats'!$B$3:$B$205,'Raw Stats'!AV$3:AV$205)) -> 0 | CD23: =IF($BM23="","",LOOKUP($BM23,'Raw Stats'!$B$3:$B$205,'Raw Stats'!AW$3:AW$205)) -> 0 | CE23: =IF($BM23="","",LOOKUP($BM23,'Raw Stats'!$B$3:$B$205,'Raw Stats'!AX$3:AX$205)) -> 0 | CF23: =IF($BM23="","",LOOKUP($BM23,'Raw Stats'!$B$3:$B$205,'Raw Stats'!AY$3:AY$205)) -> 0 | CG23: =IF($BM23="","",LOOKUP($BM23,'Raw Stats'!$B$3:$B$205,'Raw Stats'!AZ$3:AZ$205)) -> 0 | CH23: =IF($BM23="","",LOOKUP($BM23,'Raw Stats'!$B$3:$B$205,'Raw Stats'!BA$3:BA$205)) -> 0 | CJ23: =IF('Play Entry'!$X29="","",IF($G23=Teams!$B$13,'Play Entry'!$X29,IF($G23=Teams!$A$13,'Play Entry'!$X29+100,""))) ->  | CK23: =IF('Play Entry'!$AA29="","",IF($G23=Teams!$B$13,'Play Entry'!$AA29,IF($G23=Teams!$A$13,'Play Entry'!$AA29+100,""))) ->  | CL23: =IF($CI23="","",LOOKUP($CI23,'Raw Stats'!$B$3:$B$205,'Raw Stats'!A$3:A$205)) ->  | CM23: =IF($CI23="","",LOOKUP($CI23,'Raw Stats'!$B$3:$B$205,'Raw Stats'!C$3:C$205)) ->  | CN23: =IF($CI23="","",LOOKUP($CI23,'Raw Stats'!$B$3:$B$205,'Raw Stats'!AK$3:AK$205)) ->  | CO23: =IF($CI23="","",LOOKUP($CI23,'Raw Stats'!$B$3:$B$205,'Raw Stats'!AL$3:AL$205)) ->  | CP23: =IF($CI23="","",LOOKUP($CI23,'Raw Stats'!$B$3:$B$205,'Raw Stats'!AM$3:AM$205)) ->  | CQ23: =IF($CI23="","",LOOKUP($CI23,'Raw Stats'!$B$3:$B$205,'Raw Stats'!AN$3:AN$205)) ->  | CR23: =IF($CI23="","",LOOKUP($CI23,'Raw Stats'!$B$3:$B$205,'Raw Stats'!AO$3:AO$205)) ->  | CS23: =IF($CI23="","",LOOKUP($CI23,'Raw Stats'!$B$3:$B$205,'Raw Stats'!AP$3:AP$205)) ->  | CT23: =IF($CI23="","",LOOKUP($CI23,'Raw Stats'!$B$3:$B$205,'Raw Stats'!AQ$3:AQ$205)) ->  | CU23: =IF($CI23="","",LOOKUP($CI23,'Raw Stats'!$B$3:$B$205,'Raw Stats'!AR$3:AR$205)) ->  | CV23: =IF($CI23="","",LOOKUP($CI23,'Raw Stats'!$B$3:$B$205,'Raw Stats'!AS$3:AS$205)) ->  | CW23: =IF($CI23="","",LOOKUP($CI23,'Raw Stats'!$B$3:$B$205,'Raw Stats'!AT$3:AT$205)) ->  | CX23: =IF($CI23="","",LOOKUP($CI23,'Raw Stats'!$B$3:$B$205,'Raw Stats'!AU$3:AU$205)) ->  | CY23: =IF($CI23="","",LOOKUP($CI23,'Raw Stats'!$B$3:$B$205,'Raw Stats'!AV$3:AV$205)) ->  | CZ23: =IF($CI23="","",LOOKUP($CI23,'Raw Stats'!$B$3:$B$205,'Raw Stats'!AW$3:AW$205)) ->  | DA23: =IF($CI23="","",LOOKUP($CI23,'Raw Stats'!$B$3:$B$205,'Raw Stats'!AX$3:AX$205)) ->  | DB23: =IF($CI23="","",LOOKUP($CI23,'Raw Stats'!$B$3:$B$205,'Raw Stats'!AY$3:AY$205)) ->  | DC23: =IF($CI23="","",LOOKUP($CI23,'Raw Stats'!$B$3:$B$205,'Raw Stats'!AZ$3:AZ$205)) ->  | DD23: =IF($CI23="","",LOOKUP($CI23,'Raw Stats'!$B$3:$B$205,'Raw Stats'!BA$3:BA$205)) ->  | DE23: =IF('Play-by-Play Summary'!AZ28<>"",'Play-by-Play Summary'!AZ28,IF('Play-by-Play Summary'!BA28<>"",'Play-by-Play Summary'!BA28,IF('Play-by-Play Summary'!BD28<>"",'Play-by-Play Summary'!BD28,IF('Play-by-Play Summary'!BE28<>"",'Play-by-Play Summary'!BE28,IF('Play-by-Play Summary'!BF28<>"",'Play-by-Play Summary'!BF28,IF('Play-by-Play Summary'!BI28<>"",'Play-by-Play Summary'!BI28,"")))))) ->  | DF23: =IF($DE23="","",LOOKUP($DE23,'Raw Stats'!$B$3:$B$205,'Raw Stats'!A$3:A$205)) ->  | DG23: =IF($DE23="","",LOOKUP($DE23,'Raw Stats'!$B$3:$B$205,'Raw Stats'!C$3:C$205)) ->  | DH23: =IF($DE23="","",LOOKUP($DE23,'Raw Stats'!$B$3:$B$205,'Raw Stats'!Q$3:Q$205)) ->  | DI23: =IF($DE23="","",LOOKUP($DE23,'Raw Stats'!$B$3:$B$205,'Raw Stats'!R$3:R$205)) ->  | DJ23: =IF($DE23="","",LOOKUP($DE23,'Raw Stats'!$B$3:$B$205,'Raw Stats'!S$3:S$205)) ->  | DK23: =IF($DE23="","",LOOKUP($DE23,'Raw Stats'!$B$3:$B$205,'Raw Stats'!T$3:T$205)) ->  | DL23: =IF($DE23="","",LOOKUP($DE23,'Raw Stats'!$B$3:$B$205,'Raw Stats'!U$3:U$205)) ->  | DM23: =IF($DE23="","",LOOKUP($DE23,'Raw Stats'!$B$3:$B$205,'Raw Stats'!V$3:V$205)) ->  | DN23: =IF($DE23="","",LOOKUP($DE23,'Raw Stats'!$B$3:$B$205,'Raw Stats'!W$3:W$205)) ->  | DO23: =IF($DE23="","",LOOKUP($DE23,'Raw Stats'!$B$3:$B$205,'Raw Stats'!X$3:X$205)) ->  | DP23: =IF($DE23="","",LOOKUP($DE23,'Raw Stats'!$B$3:$B$205,'Raw Stats'!Y$3:Y$205)) ->  | DQ23: =IF($DE23="","",LOOKUP($DE23,'Raw Stats'!$B$3:$B$205,'Raw Stats'!Z$3:Z$205)) ->  | DR23: =IF($DE23="","",LOOKUP($DE23,'Raw Stats'!$B$3:$B$205,'Raw Stats'!AA$3:AA$205)) ->  | DS23: =IF($DE23="","",LOOKUP($DE23,'Raw Stats'!$B$3:$B$205,'Raw Stats'!AB$3:AB$205)) ->  | DT23: =IF($DE23="","",LOOKUP($DE23,'Raw Stats'!$B$3:$B$205,'Raw Stats'!AC$3:AC$205)) ->  | DU23: =IF($DE23="","",LOOKUP($DE23,'Raw Stats'!$B$3:$B$205,'Raw Stats'!AD$3:AD$205)) -> 
A24: =IF('Play Entry'!J30="","",+'Play-by-Play Summary'!C29) -> 23 | B24: ='Play Entry'!I30 -> 2 | C24: =+'Play-by-Play Summary'!Q29 -> 8 | D24: =+'Play-by-Play Summary'!P29 -> 66 | E24: =+'Play-by-Play Summary'!J29 -> 3rd | F24: =+'Play Entry'!L30 -> 4 | G24: =+'Play Entry'!J30 -> CastleV | H24: =+'Play-by-Play Summary'!R29 -> from the +15 yard line | I24: =+'Play-by-Play Summary'!AE29 -> Rush (right) by 28 (Noah Jamero) for a gain of 3. Tackles by 47 (Luke Meyer), 16 (Griffin Meier) | AR24: =IF('Play-by-Play Summary'!AS29="","",'Play-by-Play Summary'!AS29) -> 128 | AS24: =IF($AR24="","",LOOKUP($AR24,'Raw Stats'!$B$3:$B$205,'Raw Stats'!A$3:A$205)) -> 28 | AT24: =IF($AR24="","",LOOKUP($AR24,'Raw Stats'!$B$3:$B$205,'Raw Stats'!C$3:C$205)) -> Noah Jamero | AU24: =IF($AR24="","",LOOKUP($AR24,'Raw Stats'!$B$3:$B$205,'Raw Stats'!J$3:J$205)) -> 18 | AV24: =IF($AR24="","",LOOKUP($AR24,'Raw Stats'!$B$3:$B$205,'Raw Stats'!K$3:K$205)) -> 53 | AW24: =IF($AR24="","",LOOKUP($AR24,'Raw Stats'!$B$3:$B$205,'Raw Stats'!L$3:L$205)) -> 1 | AX24: =IF('Play-by-Play Summary'!AN29="","",'Play-by-Play Summary'!AN29) ->  | AY24: =IF($AX24="","",LOOKUP($AX24,'Raw Stats'!$B$3:$B$205,'Raw Stats'!A$3:A$205)) ->  | AZ24: =IF($AX24="","",LOOKUP($AX24,'Raw Stats'!$B$3:$B$205,'Raw Stats'!C$3:C$205)) ->  | BA24: =IF($AX24="","",LOOKUP($AX24,'Raw Stats'!$B$3:$B$205,'Raw Stats'!D$3:D$205)) ->  | BB24: =IF($AX24="","",LOOKUP($AX24,'Raw Stats'!$B$3:$B$205,'Raw Stats'!F$3:F$205)) ->  | BC24: =IF($AX24="","",LOOKUP($AX24,'Raw Stats'!$B$3:$B$205,'Raw Stats'!H$3:H$205)) ->  | BD24: =IF($AX24="","",LOOKUP($AX24,'Raw Stats'!$B$3:$B$205,'Raw Stats'!I$3:I$205)) ->  | BE24: =IF($AX24="","",LOOKUP($AX24,'Raw Stats'!$B$3:$B$205,'Raw Stats'!G$3:G$205)) ->  | BF24: =IF('Play-by-Play Summary'!AV29="","",'Play-by-Play Summary'!AV29) ->  | BG24: =IF($BF24="","",LOOKUP($BF24,'Raw Stats'!$B$3:$B$205,'Raw Stats'!A$3:A$205)) ->  | BH24: =IF($BF24="","",LOOKUP($BF24,'Raw Stats'!$B$3:$B$205,'Raw Stats'!C$3:C$205)) ->  | BI24: =IF($BF24="","",LOOKUP($BF24,'Raw Stats'!$B$3:$B$205,'Raw Stats'!M$3:M$205)) ->  | BJ24: =IF($BF24="","",LOOKUP($BF24,'Raw Stats'!$B$3:$B$205,'Raw Stats'!N$3:N$205)) ->  | BK24: =IF($BF24="","",LOOKUP($BF24,'Raw Stats'!$B$3:$B$205,'Raw Stats'!O$3:O$205)) ->  | BL24: =IF($BF24="","",LOOKUP($BF24,'Raw Stats'!$B$3:$B$205,'Raw Stats'!P$3:P$205)) ->  | BM24: 47 | BN24: =IF('Play Entry'!$W30="","",IF($G24=Teams!$B$13,'Play Entry'!$W30,IF($G24=Teams!$A$13,'Play Entry'!$W30+100,""))) -> 47 | BO24: =IF('Play Entry'!$Z30="","",IF($G24=Teams!$B$13,'Play Entry'!$Z30,IF($G24=Teams!$A$13,'Play Entry'!$Z30+100,""))) ->  | BP24: =IF($BM24="","",LOOKUP($BM24,'Raw Stats'!$B$3:$B$205,'Raw Stats'!A$3:A$205)) -> 47 | BQ24: =IF($BM24="","",LOOKUP($BM24,'Raw Stats'!$B$3:$B$205,'Raw Stats'!C$3:C$205)) -> Luke Meyer | BR24: =IF($BM24="","",LOOKUP($BM24,'Raw Stats'!$B$3:$B$205,'Raw Stats'!AK$3:AK$205)) -> 1 | BS24: =IF($BM24="","",LOOKUP($BM24,'Raw Stats'!$B$3:$B$205,'Raw Stats'!AL$3:AL$205)) -> 2 | BT24: =IF($BM24="","",LOOKUP($BM24,'Raw Stats'!$B$3:$B$205,'Raw Stats'!AM$3:AM$205)) -> 0 | BU24: =IF($BM24="","",LOOKUP($BM24,'Raw Stats'!$B$3:$B$205,'Raw Stats'!AN$3:AN$205)) -> 0 | BV24: =IF($BM24="","",LOOKUP($BM24,'Raw Stats'!$B$3:$B$205,'Raw Stats'!AO$3:AO$205)) -> 0 | BW24: =IF($BM24="","",LOOKUP($BM24,'Raw Stats'!$B$3:$B$205,'Raw Stats'!AP$3:AP$205)) -> 0 | BX24: =IF($BM24="","",LOOKUP($BM24,'Raw Stats'!$B$3:$B$205,'Raw Stats'!AQ$3:AQ$205)) -> 0 | BY24: =IF($BM24="","",LOOKUP($BM24,'Raw Stats'!$B$3:$B$205,'Raw Stats'!AR$3:AR$205)) -> 0 | BZ24: =IF($BM24="","",LOOKUP($BM24,'Raw Stats'!$B$3:$B$205,'Raw Stats'!AS$3:AS$205)) -> 0 | CA24: =IF($BM24="","",LOOKUP($BM24,'Raw Stats'!$B$3:$B$205,'Raw Stats'!AT$3:AT$205)) -> 0 | CB24: =IF($BM24="","",LOOKUP($BM24,'Raw Stats'!$B$3:$B$205,'Raw Stats'!AU$3:AU$205)) -> 0 | CC24: =IF($BM24="","",LOOKUP($BM24,'Raw Stats'!$B$3:$B$205,'Raw Stats'!AV$3:AV$205)) -> 0 | CD24: =IF($BM24="","",LOOKUP($BM24,'Raw Stats'!$B$3:$B$205,'Raw Stats'!AW$3:AW$205)) -> 0 | CE24: =IF($BM24="","",LOOKUP($BM24,'Raw Stats'!$B$3:$B$205,'Raw Stats'!AX$3:AX$205)) -> 0 | CF24: =IF($BM24="","",LOOKUP($BM24,'Raw Stats'!$B$3:$B$205,'Raw Stats'!AY$3:AY$205)) -> 0 | CG24: =IF($BM24="","",LOOKUP($BM24,'Raw Stats'!$B$3:$B$205,'Raw Stats'!AZ$3:AZ$205)) -> 0 | CH24: =IF($BM24="","",LOOKUP($BM24,'Raw Stats'!$B$3:$B$205,'Raw Stats'!BA$3:BA$205)) -> 0 | CI24: 16 | CJ24: =IF('Play Entry'!$X30="","",IF($G24=Teams!$B$13,'Play Entry'!$X30,IF($G24=Teams!$A$13,'Play Entry'!$X30+100,""))) -> 16 | CK24: =IF('Play Entry'!$AA30="","",IF($G24=Teams!$B$13,'Play Entry'!$AA30,IF($G24=Teams!$A$13,'Play Entry'!$AA30+100,""))) ->  | CL24: =IF($CI24="","",LOOKUP($CI24,'Raw Stats'!$B$3:$B$205,'Raw Stats'!A$3:A$205)) -> 16 | CM24: =IF($CI24="","",LOOKUP($CI24,'Raw Stats'!$B$3:$B$205,'Raw Stats'!C$3:C$205)) -> Griffin Meier | CN24: =IF($CI24="","",LOOKUP($CI24,'Raw Stats'!$B$3:$B$205,'Raw Stats'!AK$3:AK$205)) -> 2 | CO24: =IF($CI24="","",LOOKUP($CI24,'Raw Stats'!$B$3:$B$205,'Raw Stats'!AL$3:AL$205)) -> 3 | CP24: =IF($CI24="","",LOOKUP($CI24,'Raw Stats'!$B$3:$B$205,'Raw Stats'!AM$3:AM$205)) -> 0 | CQ24: =IF($CI24="","",LOOKUP($CI24,'Raw Stats'!$B$3:$B$205,'Raw Stats'!AN$3:AN$205)) -> 0 | CR24: =IF($CI24="","",LOOKUP($CI24,'Raw Stats'!$B$3:$B$205,'Raw Stats'!AO$3:AO$205)) -> 0 | CS24: =IF($CI24="","",LOOKUP($CI24,'Raw Stats'!$B$3:$B$205,'Raw Stats'!AP$3:AP$205)) -> 0 | CT24: =IF($CI24="","",LOOKUP($CI24,'Raw Stats'!$B$3:$B$205,'Raw Stats'!AQ$3:AQ$205)) -> 0 | CU24: =IF($CI24="","",LOOKUP($CI24,'Raw Stats'!$B$3:$B$205,'Raw Stats'!AR$3:AR$205)) -> 0 | CV24: =IF($CI24="","",LOOKUP($CI24,'Raw Stats'!$B$3:$B$205,'Raw Stats'!AS$3:AS$205)) -> 0 | CW24: =IF($CI24="","",LOOKUP($CI24,'Raw Stats'!$B$3:$B$205,'Raw Stats'!AT$3:AT$205)) -> 1 | CX24: =IF($CI24="","",LOOKUP($CI24,'Raw Stats'!$B$3:$B$205,'Raw Stats'!AU$3:AU$205)) -> 0 | CY24: =IF($CI24="","",LOOKUP($CI24,'Raw Stats'!$B$3:$B$205,'Raw Stats'!AV$3:AV$205)) -> 0 | CZ24: =IF($CI24="","",LOOKUP($CI24,'Raw Stats'!$B$3:$B$205,'Raw Stats'!AW$3:AW$205)) -> 0 | DA24: =IF($CI24="","",LOOKUP($CI24,'Raw Stats'!$B$3:$B$205,'Raw Stats'!AX$3:AX$205)) -> 0 | DB24: =IF($CI24="","",LOOKUP($CI24,'Raw Stats'!$B$3:$B$205,'Raw Stats'!AY$3:AY$205)) -> 0 | DC24: =IF($CI24="","",LOOKUP($CI24,'Raw Stats'!$B$3:$B$205,'Raw Stats'!AZ$3:AZ$205)) -> 0 | DD24: =IF($CI24="","",LOOKUP($CI24,'Raw Stats'!$B$3:$B$205,'Raw Stats'!BA$3:BA$205)) -> 0 | DE24: =IF('Play-by-Play Summary'!AZ29<>"",'Play-by-Play Summary'!AZ29,IF('Play-by-Play Summary'!BA29<>"",'Play-by-Play Summary'!BA29,IF('Play-by-Play Summary'!BD29<>"",'Play-by-Play Summary'!BD29,IF('Play-by-Play Summary'!BE29<>"",'Play-by-Play Summary'!BE29,IF('Play-by-Play Summary'!BF29<>"",'Play-by-Play Summary'!BF29,IF('Play-by-Play Summary'!BI29<>"",'Play-by-Play Summary'!BI29,"")))))) ->  | DF24: =IF($DE24="","",LOOKUP($DE24,'Raw Stats'!$B$3:$B$205,'Raw Stats'!A$3:A$205)) ->  | DG24: =IF($DE24="","",LOOKUP($DE24,'Raw Stats'!$B$3:$B$205,'Raw Stats'!C$3:C$205)) ->  | DH24: =IF($DE24="","",LOOKUP($DE24,'Raw Stats'!$B$3:$B$205,'Raw Stats'!Q$3:Q$205)) ->  | DI24: =IF($DE24="","",LOOKUP($DE24,'Raw Stats'!$B$3:$B$205,'Raw Stats'!R$3:R$205)) ->  | DJ24: =IF($DE24="","",LOOKUP($DE24,'Raw Stats'!$B$3:$B$205,'Raw Stats'!S$3:S$205)) ->  | DK24: =IF($DE24="","",LOOKUP($DE24,'Raw Stats'!$B$3:$B$205,'Raw Stats'!T$3:T$205)) ->  | DL24: =IF($DE24="","",LOOKUP($DE24,'Raw Stats'!$B$3:$B$205,'Raw Stats'!U$3:U$205)) ->  | DM24: =IF($DE24="","",LOOKUP($DE24,'Raw Stats'!$B$3:$B$205,'Raw Stats'!V$3:V$205)) ->  | DN24: =IF($DE24="","",LOOKUP($DE24,'Raw Stats'!$B$3:$B$205,'Raw Stats'!W$3:W$205)) ->  | DO24: =IF($DE24="","",LOOKUP($DE24,'Raw Stats'!$B$3:$B$205,'Raw Stats'!X$3:X$205)) ->  | DP24: =IF($DE24="","",LOOKUP($DE24,'Raw Stats'!$B$3:$B$205,'Raw Stats'!Y$3:Y$205)) ->  | DQ24: =IF($DE24="","",LOOKUP($DE24,'Raw Stats'!$B$3:$B$205,'Raw Stats'!Z$3:Z$205)) ->  | DR24: =IF($DE24="","",LOOKUP($DE24,'Raw Stats'!$B$3:$B$205,'Raw Stats'!AA$3:AA$205)) ->  | DS24: =IF($DE24="","",LOOKUP($DE24,'Raw Stats'!$B$3:$B$205,'Raw Stats'!AB$3:AB$205)) ->  | DT24: =IF($DE24="","",LOOKUP($DE24,'Raw Stats'!$B$3:$B$205,'Raw Stats'!AC$3:AC$205)) ->  | DU24: =IF($DE24="","",LOOKUP($DE24,'Raw Stats'!$B$3:$B$205,'Raw Stats'!AD$3:AD$205)) -> 
A25: =IF('Play Entry'!J31="","",+'Play-by-Play Summary'!C30) -> 24 | B25: ='Play Entry'!I31 -> 2 | C25: =+'Play-by-Play Summary'!Q30 -> 9 | D25: =+'Play-by-Play Summary'!P30 -> 69 | E25: =+'Play-by-Play Summary'!J30 -> 4th | F25: =+'Play Entry'!L31 -> 1 | G25: =+'Play Entry'!J31 -> CastleV | H25: =+'Play-by-Play Summary'!R30 -> from the +12 yard line | I25: =+'Play-by-Play Summary'!AE30 -> Rush (right) by 28 (Noah Jamero) for a gain of 3. Tackles by 7 (Eli Hamilton), 93 (Brody Bliek) | AR25: =IF('Play-by-Play Summary'!AS30="","",'Play-by-Play Summary'!AS30) -> 128 | AS25: =IF($AR25="","",LOOKUP($AR25,'Raw Stats'!$B$3:$B$205,'Raw Stats'!A$3:A$205)) -> 28 | AT25: =IF($AR25="","",LOOKUP($AR25,'Raw Stats'!$B$3:$B$205,'Raw Stats'!C$3:C$205)) -> Noah Jamero | AU25: =IF($AR25="","",LOOKUP($AR25,'Raw Stats'!$B$3:$B$205,'Raw Stats'!J$3:J$205)) -> 18 | AV25: =IF($AR25="","",LOOKUP($AR25,'Raw Stats'!$B$3:$B$205,'Raw Stats'!K$3:K$205)) -> 53 | AW25: =IF($AR25="","",LOOKUP($AR25,'Raw Stats'!$B$3:$B$205,'Raw Stats'!L$3:L$205)) -> 1 | AX25: =IF('Play-by-Play Summary'!AN30="","",'Play-by-Play Summary'!AN30) ->  | AY25: =IF($AX25="","",LOOKUP($AX25,'Raw Stats'!$B$3:$B$205,'Raw Stats'!A$3:A$205)) ->  | AZ25: =IF($AX25="","",LOOKUP($AX25,'Raw Stats'!$B$3:$B$205,'Raw Stats'!C$3:C$205)) ->  | BA25: =IF($AX25="","",LOOKUP($AX25,'Raw Stats'!$B$3:$B$205,'Raw Stats'!D$3:D$205)) ->  | BB25: =IF($AX25="","",LOOKUP($AX25,'Raw Stats'!$B$3:$B$205,'Raw Stats'!F$3:F$205)) ->  | BC25: =IF($AX25="","",LOOKUP($AX25,'Raw Stats'!$B$3:$B$205,'Raw Stats'!H$3:H$205)) ->  | BD25: =IF($AX25="","",LOOKUP($AX25,'Raw Stats'!$B$3:$B$205,'Raw Stats'!I$3:I$205)) ->  | BE25: =IF($AX25="","",LOOKUP($AX25,'Raw Stats'!$B$3:$B$205,'Raw Stats'!G$3:G$205)) ->  | BF25: =IF('Play-by-Play Summary'!AV30="","",'Play-by-Play Summary'!AV30) ->  | BG25: =IF($BF25="","",LOOKUP($BF25,'Raw Stats'!$B$3:$B$205,'Raw Stats'!A$3:A$205)) ->  | BH25: =IF($BF25="","",LOOKUP($BF25,'Raw Stats'!$B$3:$B$205,'Raw Stats'!C$3:C$205)) ->  | BI25: =IF($BF25="","",LOOKUP($BF25,'Raw Stats'!$B$3:$B$205,'Raw Stats'!M$3:M$205)) ->  | BJ25: =IF($BF25="","",LOOKUP($BF25,'Raw Stats'!$B$3:$B$205,'Raw Stats'!N$3:N$205)) ->  | BK25: =IF($BF25="","",LOOKUP($BF25,'Raw Stats'!$B$3:$B$205,'Raw Stats'!O$3:O$205)) ->  | BL25: =IF($BF25="","",LOOKUP($BF25,'Raw Stats'!$B$3:$B$205,'Raw Stats'!P$3:P$205)) ->  | BM25: 7 | BN25: =IF('Play Entry'!$W31="","",IF($G25=Teams!$B$13,'Play Entry'!$W31,IF($G25=Teams!$A$13,'Play Entry'!$W31+100,""))) -> 7 | BO25: =IF('Play Entry'!$Z31="","",IF($G25=Teams!$B$13,'Play Entry'!$Z31,IF($G25=Teams!$A$13,'Play Entry'!$Z31+100,""))) ->  | BP25: =IF($BM25="","",LOOKUP($BM25,'Raw Stats'!$B$3:$B$205,'Raw Stats'!A$3:A$205)) -> 7 | BQ25: =IF($BM25="","",LOOKUP($BM25,'Raw Stats'!$B$3:$B$205,'Raw Stats'!C$3:C$205)) -> Eli Hamilton | BR25: =IF($BM25="","",LOOKUP($BM25,'Raw Stats'!$B$3:$B$205,'Raw Stats'!AK$3:AK$205)) -> 3 | BS25: =IF($BM25="","",LOOKUP($BM25,'Raw Stats'!$B$3:$B$205,'Raw Stats'!AL$3:AL$205)) -> 14 | BT25: =IF($BM25="","",LOOKUP($BM25,'Raw Stats'!$B$3:$B$205,'Raw Stats'!AM$3:AM$205)) -> 0 | BU25: =IF($BM25="","",LOOKUP($BM25,'Raw Stats'!$B$3:$B$205,'Raw Stats'!AN$3:AN$205)) -> 0 | BV25: =IF($BM25="","",LOOKUP($BM25,'Raw Stats'!$B$3:$B$205,'Raw Stats'!AO$3:AO$205)) -> 0 | BW25: =IF($BM25="","",LOOKUP($BM25,'Raw Stats'!$B$3:$B$205,'Raw Stats'!AP$3:AP$205)) -> 1 | BX25: =IF($BM25="","",LOOKUP($BM25,'Raw Stats'!$B$3:$B$205,'Raw Stats'!AQ$3:AQ$205)) -> 0 | BY25: =IF($BM25="","",LOOKUP($BM25,'Raw Stats'!$B$3:$B$205,'Raw Stats'!AR$3:AR$205)) -> -2 | BZ25: =IF($BM25="","",LOOKUP($BM25,'Raw Stats'!$B$3:$B$205,'Raw Stats'!AS$3:AS$205)) -> 0 | CA25: =IF($BM25="","",LOOKUP($BM25,'Raw Stats'!$B$3:$B$205,'Raw Stats'!AT$3:AT$205)) -> 0 | CB25: =IF($BM25="","",LOOKUP($BM25,'Raw Stats'!$B$3:$B$205,'Raw Stats'!AU$3:AU$205)) -> 0 | CC25: =IF($BM25="","",LOOKUP($BM25,'Raw Stats'!$B$3:$B$205,'Raw Stats'!AV$3:AV$205)) -> 0 | CD25: =IF($BM25="","",LOOKUP($BM25,'Raw Stats'!$B$3:$B$205,'Raw Stats'!AW$3:AW$205)) -> 0 | CE25: =IF($BM25="","",LOOKUP($BM25,'Raw Stats'!$B$3:$B$205,'Raw Stats'!AX$3:AX$205)) -> 1 | CF25: =IF($BM25="","",LOOKUP($BM25,'Raw Stats'!$B$3:$B$205,'Raw Stats'!AY$3:AY$205)) -> 0 | CG25: =IF($BM25="","",LOOKUP($BM25,'Raw Stats'!$B$3:$B$205,'Raw Stats'!AZ$3:AZ$205)) -> 0 | CH25: =IF($BM25="","",LOOKUP($BM25,'Raw Stats'!$B$3:$B$205,'Raw Stats'!BA$3:BA$205)) -> 0 | CI25: 93 | CJ25: =IF('Play Entry'!$X31="","",IF($G25=Teams!$B$13,'Play Entry'!$X31,IF($G25=Teams!$A$13,'Play Entry'!$X31+100,""))) -> 93 | CK25: =IF('Play Entry'!$AA31="","",IF($G25=Teams!$B$13,'Play Entry'!$AA31,IF($G25=Teams!$A$13,'Play Entry'!$AA31+100,""))) ->  | CL25: =IF($CI25="","",LOOKUP($CI25,'Raw Stats'!$B$3:$B$205,'Raw Stats'!A$3:A$205)) -> 93 | CM25: =IF($CI25="","",LOOKUP($CI25,'Raw Stats'!$B$3:$B$205,'Raw Stats'!C$3:C$205)) -> Brody Bliek | CN25: =IF($CI25="","",LOOKUP($CI25,'Raw Stats'!$B$3:$B$205,'Raw Stats'!AK$3:AK$205)) -> 3 | CO25: =IF($CI25="","",LOOKUP($CI25,'Raw Stats'!$B$3:$B$205,'Raw Stats'!AL$3:AL$205)) -> 4 | CP25: =IF($CI25="","",LOOKUP($CI25,'Raw Stats'!$B$3:$B$205,'Raw Stats'!AM$3:AM$205)) -> 0 | CQ25: =IF($CI25="","",LOOKUP($CI25,'Raw Stats'!$B$3:$B$205,'Raw Stats'!AN$3:AN$205)) -> 0 | CR25: =IF($CI25="","",LOOKUP($CI25,'Raw Stats'!$B$3:$B$205,'Raw Stats'!AO$3:AO$205)) -> 0 | CS25: =IF($CI25="","",LOOKUP($CI25,'Raw Stats'!$B$3:$B$205,'Raw Stats'!AP$3:AP$205)) -> 0 | CT25: =IF($CI25="","",LOOKUP($CI25,'Raw Stats'!$B$3:$B$205,'Raw Stats'!AQ$3:AQ$205)) -> 0 | CU25: =IF($CI25="","",LOOKUP($CI25,'Raw Stats'!$B$3:$B$205,'Raw Stats'!AR$3:AR$205)) -> 0 | CV25: =IF($CI25="","",LOOKUP($CI25,'Raw Stats'!$B$3:$B$205,'Raw Stats'!AS$3:AS$205)) -> 0 | CW25: =IF($CI25="","",LOOKUP($CI25,'Raw Stats'!$B$3:$B$205,'Raw Stats'!AT$3:AT$205)) -> 0 | CX25: =IF($CI25="","",LOOKUP($CI25,'Raw Stats'!$B$3:$B$205,'Raw Stats'!AU$3:AU$205)) -> 0 | CY25: =IF($CI25="","",LOOKUP($CI25,'Raw Stats'!$B$3:$B$205,'Raw Stats'!AV$3:AV$205)) -> 0 | CZ25: =IF($CI25="","",LOOKUP($CI25,'Raw Stats'!$B$3:$B$205,'Raw Stats'!AW$3:AW$205)) -> 0 | DA25: =IF($CI25="","",LOOKUP($CI25,'Raw Stats'!$B$3:$B$205,'Raw Stats'!AX$3:AX$205)) -> 0 | DB25: =IF($CI25="","",LOOKUP($CI25,'Raw Stats'!$B$3:$B$205,'Raw Stats'!AY$3:AY$205)) -> 0 | DC25: =IF($CI25="","",LOOKUP($CI25,'Raw Stats'!$B$3:$B$205,'Raw Stats'!AZ$3:AZ$205)) -> 0 | DD25: =IF($CI25="","",LOOKUP($CI25,'Raw Stats'!$B$3:$B$205,'Raw Stats'!BA$3:BA$205)) -> 0 | DE25: =IF('Play-by-Play Summary'!AZ30<>"",'Play-by-Play Summary'!AZ30,IF('Play-by-Play Summary'!BA30<>"",'Play-by-Play Summary'!BA30,IF('Play-by-Play Summary'!BD30<>"",'Play-by-Play Summary'!BD30,IF('Play-by-Play Summary'!BE30<>"",'Play-by-Play Summary'!BE30,IF('Play-by-Play Summary'!BF30<>"",'Play-by-Play Summary'!BF30,IF('Play-by-Play Summary'!BI30<>"",'Play-by-Play Summary'!BI30,"")))))) ->  | DF25: =IF($DE25="","",LOOKUP($DE25,'Raw Stats'!$B$3:$B$205,'Raw Stats'!A$3:A$205)) ->  | DG25: =IF($DE25="","",LOOKUP($DE25,'Raw Stats'!$B$3:$B$205,'Raw Stats'!C$3:C$205)) ->  | DH25: =IF($DE25="","",LOOKUP($DE25,'Raw Stats'!$B$3:$B$205,'Raw Stats'!Q$3:Q$205)) ->  | DI25: =IF($DE25="","",LOOKUP($DE25,'Raw Stats'!$B$3:$B$205,'Raw Stats'!R$3:R$205)) ->  | DJ25: =IF($DE25="","",LOOKUP($DE25,'Raw Stats'!$B$3:$B$205,'Raw Stats'!S$3:S$205)) ->  | DK25: =IF($DE25="","",LOOKUP($DE25,'Raw Stats'!$B$3:$B$205,'Raw Stats'!T$3:T$205)) ->  | DL25: =IF($DE25="","",LOOKUP($DE25,'Raw Stats'!$B$3:$B$205,'Raw Stats'!U$3:U$205)) ->  | DM25: =IF($DE25="","",LOOKUP($DE25,'Raw Stats'!$B$3:$B$205,'Raw Stats'!V$3:V$205)) ->  | DN25: =IF($DE25="","",LOOKUP($DE25,'Raw Stats'!$B$3:$B$205,'Raw Stats'!W$3:W$205)) ->  | DO25: =IF($DE25="","",LOOKUP($DE25,'Raw Stats'!$B$3:$B$205,'Raw Stats'!X$3:X$205)) ->  | DP25: =IF($DE25="","",LOOKUP($DE25,'Raw Stats'!$B$3:$B$205,'Raw Stats'!Y$3:Y$205)) ->  | DQ25: =IF($DE25="","",LOOKUP($DE25,'Raw Stats'!$B$3:$B$205,'Raw Stats'!Z$3:Z$205)) ->  | DR25: =IF($DE25="","",LOOKUP($DE25,'Raw Stats'!$B$3:$B$205,'Raw Stats'!AA$3:AA$205)) ->  | DS25: =IF($DE25="","",LOOKUP($DE25,'Raw Stats'!$B$3:$B$205,'Raw Stats'!AB$3:AB$205)) ->  | DT25: =IF($DE25="","",LOOKUP($DE25,'Raw Stats'!$B$3:$B$205,'Raw Stats'!AC$3:AC$205)) ->  | DU25: =IF($DE25="","",LOOKUP($DE25,'Raw Stats'!$B$3:$B$205,'Raw Stats'!AD$3:AD$205)) -> 
A26: =IF('Play Entry'!J32="","",+'Play-by-Play Summary'!C31) -> 25 | B26: ='Play Entry'!I32 -> 2 | C26: =+'Play-by-Play Summary'!Q31 -> 10 | D26: =+'Play-by-Play Summary'!P31 -> 73 | E26: =+'Play-by-Play Summary'!J31 -> 1st | F26: =+'Play Entry'!L32 -> Goal | G26: =+'Play Entry'!J32 -> CastleV | H26: =+'Play-by-Play Summary'!R31 -> from the +9 yard line | I26: =+'Play-by-Play Summary'!AE31 -> Rush (left) by 14 (Marc Wessbecker) for a gain of 4. Tackle by 90 (Watson McBride) | AR26: =IF('Play-by-Play Summary'!AS31="","",'Play-by-Play Summary'!AS31) -> 114 | AS26: =IF($AR26="","",LOOKUP($AR26,'Raw Stats'!$B$3:$B$205,'Raw Stats'!A$3:A$205)) -> 14 | AT26: =IF($AR26="","",LOOKUP($AR26,'Raw Stats'!$B$3:$B$205,'Raw Stats'!C$3:C$205)) -> Marc Wessbecker | AU26: =IF($AR26="","",LOOKUP($AR26,'Raw Stats'!$B$3:$B$205,'Raw Stats'!J$3:J$205)) -> 18 | AV26: =IF($AR26="","",LOOKUP($AR26,'Raw Stats'!$B$3:$B$205,'Raw Stats'!K$3:K$205)) -> 158 | AW26: =IF($AR26="","",LOOKUP($AR26,'Raw Stats'!$B$3:$B$205,'Raw Stats'!L$3:L$205)) -> 2 | AX26: =IF('Play-by-Play Summary'!AN31="","",'Play-by-Play Summary'!AN31) ->  | AY26: =IF($AX26="","",LOOKUP($AX26,'Raw Stats'!$B$3:$B$205,'Raw Stats'!A$3:A$205)) ->  | AZ26: =IF($AX26="","",LOOKUP($AX26,'Raw Stats'!$B$3:$B$205,'Raw Stats'!C$3:C$205)) ->  | BA26: =IF($AX26="","",LOOKUP($AX26,'Raw Stats'!$B$3:$B$205,'Raw Stats'!D$3:D$205)) ->  | BB26: =IF($AX26="","",LOOKUP($AX26,'Raw Stats'!$B$3:$B$205,'Raw Stats'!F$3:F$205)) ->  | BC26: =IF($AX26="","",LOOKUP($AX26,'Raw Stats'!$B$3:$B$205,'Raw Stats'!H$3:H$205)) ->  | BD26: =IF($AX26="","",LOOKUP($AX26,'Raw Stats'!$B$3:$B$205,'Raw Stats'!I$3:I$205)) ->  | BE26: =IF($AX26="","",LOOKUP($AX26,'Raw Stats'!$B$3:$B$205,'Raw Stats'!G$3:G$205)) ->  | BF26: =IF('Play-by-Play Summary'!AV31="","",'Play-by-Play Summary'!AV31) ->  | BG26: =IF($BF26="","",LOOKUP($BF26,'Raw Stats'!$B$3:$B$205,'Raw Stats'!A$3:A$205)) ->  | BH26: =IF($BF26="","",LOOKUP($BF26,'Raw Stats'!$B$3:$B$205,'Raw Stats'!C$3:C$205)) ->  | BI26: =IF($BF26="","",LOOKUP($BF26,'Raw Stats'!$B$3:$B$205,'Raw Stats'!M$3:M$205)) ->  | BJ26: =IF($BF26="","",LOOKUP($BF26,'Raw Stats'!$B$3:$B$205,'Raw Stats'!N$3:N$205)) ->  | BK26: =IF($BF26="","",LOOKUP($BF26,'Raw Stats'!$B$3:$B$205,'Raw Stats'!O$3:O$205)) ->  | BL26: =IF($BF26="","",LOOKUP($BF26,'Raw Stats'!$B$3:$B$205,'Raw Stats'!P$3:P$205)) ->  | BM26: 90 | BN26: =IF('Play Entry'!$W32="","",IF($G26=Teams!$B$13,'Play Entry'!$W32,IF($G26=Teams!$A$13,'Play Entry'!$W32+100,""))) -> 90 | BO26: =IF('Play Entry'!$Z32="","",IF($G26=Teams!$B$13,'Play Entry'!$Z32,IF($G26=Teams!$A$13,'Play Entry'!$Z32+100,""))) ->  | BP26: =IF($BM26="","",LOOKUP($BM26,'Raw Stats'!$B$3:$B$205,'Raw Stats'!A$3:A$205)) -> 90 | BQ26: =IF($BM26="","",LOOKUP($BM26,'Raw Stats'!$B$3:$B$205,'Raw Stats'!C$3:C$205)) -> Watson McBride | BR26: =IF($BM26="","",LOOKUP($BM26,'Raw Stats'!$B$3:$B$205,'Raw Stats'!AK$3:AK$205)) -> 4 | BS26: =IF($BM26="","",LOOKUP($BM26,'Raw Stats'!$B$3:$B$205,'Raw Stats'!AL$3:AL$205)) -> 0 | BT26: =IF($BM26="","",LOOKUP($BM26,'Raw Stats'!$B$3:$B$205,'Raw Stats'!AM$3:AM$205)) -> 0 | BU26: =IF($BM26="","",LOOKUP($BM26,'Raw Stats'!$B$3:$B$205,'Raw Stats'!AN$3:AN$205)) -> 0 | BV26: =IF($BM26="","",LOOKUP($BM26,'Raw Stats'!$B$3:$B$205,'Raw Stats'!AO$3:AO$205)) -> 0 | BW26: =IF($BM26="","",LOOKUP($BM26,'Raw Stats'!$B$3:$B$205,'Raw Stats'!AP$3:AP$205)) -> 1 | BX26: =IF($BM26="","",LOOKUP($BM26,'Raw Stats'!$B$3:$B$205,'Raw Stats'!AQ$3:AQ$205)) -> 0 | BY26: =IF($BM26="","",LOOKUP($BM26,'Raw Stats'!$B$3:$B$205,'Raw Stats'!AR$3:AR$205)) -> -2 | BZ26: =IF($BM26="","",LOOKUP($BM26,'Raw Stats'!$B$3:$B$205,'Raw Stats'!AS$3:AS$205)) -> 1 | CA26: =IF($BM26="","",LOOKUP($BM26,'Raw Stats'!$B$3:$B$205,'Raw Stats'!AT$3:AT$205)) -> 0 | CB26: =IF($BM26="","",LOOKUP($BM26,'Raw Stats'!$B$3:$B$205,'Raw Stats'!AU$3:AU$205)) -> 0 | CC26: =IF($BM26="","",LOOKUP($BM26,'Raw Stats'!$B$3:$B$205,'Raw Stats'!AV$3:AV$205)) -> 0 | CD26: =IF($BM26="","",LOOKUP($BM26,'Raw Stats'!$B$3:$B$205,'Raw Stats'!AW$3:AW$205)) -> 0 | CE26: =IF($BM26="","",LOOKUP($BM26,'Raw Stats'!$B$3:$B$205,'Raw Stats'!AX$3:AX$205)) -> 0 | CF26: =IF($BM26="","",LOOKUP($BM26,'Raw Stats'!$B$3:$B$205,'Raw Stats'!AY$3:AY$205)) -> 0 | CG26: =IF($BM26="","",LOOKUP($BM26,'Raw Stats'!$B$3:$B$205,'Raw Stats'!AZ$3:AZ$205)) -> 0 | CH26: =IF($BM26="","",LOOKUP($BM26,'Raw Stats'!$B$3:$B$205,'Raw Stats'!BA$3:BA$205)) -> 0 | CJ26: =IF('Play Entry'!$X32="","",IF($G26=Teams!$B$13,'Play Entry'!$X32,IF($G26=Teams!$A$13,'Play Entry'!$X32+100,""))) ->  | CK26: =IF('Play Entry'!$AA32="","",IF($G26=Teams!$B$13,'Play Entry'!$AA32,IF($G26=Teams!$A$13,'Play Entry'!$AA32+100,""))) ->  | CL26: =IF($CI26="","",LOOKUP($CI26,'Raw Stats'!$B$3:$B$205,'Raw Stats'!A$3:A$205)) ->  | CM26: =IF($CI26="","",LOOKUP($CI26,'Raw Stats'!$B$3:$B$205,'Raw Stats'!C$3:C$205)) ->  | CN26: =IF($CI26="","",LOOKUP($CI26,'Raw Stats'!$B$3:$B$205,'Raw Stats'!AK$3:AK$205)) ->  | CO26: =IF($CI26="","",LOOKUP($CI26,'Raw Stats'!$B$3:$B$205,'Raw Stats'!AL$3:AL$205)) ->  | CP26: =IF($CI26="","",LOOKUP($CI26,'Raw Stats'!$B$3:$B$205,'Raw Stats'!AM$3:AM$205)) ->  | CQ26: =IF($CI26="","",LOOKUP($CI26,'Raw Stats'!$B$3:$B$205,'Raw Stats'!AN$3:AN$205)) ->  | CR26: =IF($CI26="","",LOOKUP($CI26,'Raw Stats'!$B$3:$B$205,'Raw Stats'!AO$3:AO$205)) ->  | CS26: =IF($CI26="","",LOOKUP($CI26,'Raw Stats'!$B$3:$B$205,'Raw Stats'!AP$3:AP$205)) ->  | CT26: =IF($CI26="","",LOOKUP($CI26,'Raw Stats'!$B$3:$B$205,'Raw Stats'!AQ$3:AQ$205)) ->  | CU26: =IF($CI26="","",LOOKUP($CI26,'Raw Stats'!$B$3:$B$205,'Raw Stats'!AR$3:AR$205)) ->  | CV26: =IF($CI26="","",LOOKUP($CI26,'Raw Stats'!$B$3:$B$205,'Raw Stats'!AS$3:AS$205)) ->  | CW26: =IF($CI26="","",LOOKUP($CI26,'Raw Stats'!$B$3:$B$205,'Raw Stats'!AT$3:AT$205)) ->  | CX26: =IF($CI26="","",LOOKUP($CI26,'Raw Stats'!$B$3:$B$205,'Raw Stats'!AU$3:AU$205)) ->  | CY26: =IF($CI26="","",LOOKUP($CI26,'Raw Stats'!$B$3:$B$205,'Raw Stats'!AV$3:AV$205)) ->  | CZ26: =IF($CI26="","",LOOKUP($CI26,'Raw Stats'!$B$3:$B$205,'Raw Stats'!AW$3:AW$205)) ->  | DA26: =IF($CI26="","",LOOKUP($CI26,'Raw Stats'!$B$3:$B$205,'Raw Stats'!AX$3:AX$205)) ->  | DB26: =IF($CI26="","",LOOKUP($CI26,'Raw Stats'!$B$3:$B$205,'Raw Stats'!AY$3:AY$205)) ->  | DC26: =IF($CI26="","",LOOKUP($CI26,'Raw Stats'!$B$3:$B$205,'Raw Stats'!AZ$3:AZ$205)) ->  | DD26: =IF($CI26="","",LOOKUP($CI26,'Raw Stats'!$B$3:$B$205,'Raw Stats'!BA$3:BA$205)) ->  | DE26: =IF('Play-by-Play Summary'!AZ31<>"",'Play-by-Play Summary'!AZ31,IF('Play-by-Play Summary'!BA31<>"",'Play-by-Play Summary'!BA31,IF('Play-by-Play Summary'!BD31<>"",'Play-by-Play Summary'!BD31,IF('Play-by-Play Summary'!BE31<>"",'Play-by-Play Summary'!BE31,IF('Play-by-Play Summary'!BF31<>"",'Play-by-Play Summary'!BF31,IF('Play-by-Play Summary'!BI31<>"",'Play-by-Play Summary'!BI31,"")))))) ->  | DF26: =IF($DE26="","",LOOKUP($DE26,'Raw Stats'!$B$3:$B$205,'Raw Stats'!A$3:A$205)) ->  | DG26: =IF($DE26="","",LOOKUP($DE26,'Raw Stats'!$B$3:$B$205,'Raw Stats'!C$3:C$205)) ->  | DH26: =IF($DE26="","",LOOKUP($DE26,'Raw Stats'!$B$3:$B$205,'Raw Stats'!Q$3:Q$205)) ->  | DI26: =IF($DE26="","",LOOKUP($DE26,'Raw Stats'!$B$3:$B$205,'Raw Stats'!R$3:R$205)) ->  | DJ26: =IF($DE26="","",LOOKUP($DE26,'Raw Stats'!$B$3:$B$205,'Raw Stats'!S$3:S$205)) ->  | DK26: =IF($DE26="","",LOOKUP($DE26,'Raw Stats'!$B$3:$B$205,'Raw Stats'!T$3:T$205)) ->  | DL26: =IF($DE26="","",LOOKUP($DE26,'Raw Stats'!$B$3:$B$205,'Raw Stats'!U$3:U$205)) ->  | DM26: =IF($DE26="","",LOOKUP($DE26,'Raw Stats'!$B$3:$B$205,'Raw Stats'!V$3:V$205)) ->  | DN26: =IF($DE26="","",LOOKUP($DE26,'Raw Stats'!$B$3:$B$205,'Raw Stats'!W$3:W$205)) ->  | DO26: =IF($DE26="","",LOOKUP($DE26,'Raw Stats'!$B$3:$B$205,'Raw Stats'!X$3:X$205)) ->  | DP26: =IF($DE26="","",LOOKUP($DE26,'Raw Stats'!$B$3:$B$205,'Raw Stats'!Y$3:Y$205)) ->  | DQ26: =IF($DE26="","",LOOKUP($DE26,'Raw Stats'!$B$3:$B$205,'Raw Stats'!Z$3:Z$205)) ->  | DR26: =IF($DE26="","",LOOKUP($DE26,'Raw Stats'!$B$3:$B$205,'Raw Stats'!AA$3:AA$205)) ->  | DS26: =IF($DE26="","",LOOKUP($DE26,'Raw Stats'!$B$3:$B$205,'Raw Stats'!AB$3:AB$205)) ->  | DT26: =IF($DE26="","",LOOKUP($DE26,'Raw Stats'!$B$3:$B$205,'Raw Stats'!AC$3:AC$205)) ->  | DU26: =IF($DE26="","",LOOKUP($DE26,'Raw Stats'!$B$3:$B$205,'Raw Stats'!AD$3:AD$205)) -> 
A27: =IF('Play Entry'!J33="","",+'Play-by-Play Summary'!C32) -> 26 | B27: ='Play Entry'!I33 -> 2 | C27: =+'Play-by-Play Summary'!Q32 -> 11 | D27: =+'Play-by-Play Summary'!P32 -> 73 | E27: =+'Play-by-Play Summary'!J32 -> 2nd | F27: =+'Play Entry'!L33 -> Goal | G27: =+'Play Entry'!J33 -> CastleV | H27: =+'Play-by-Play Summary'!R32 -> from the +5 yard line | I27: =+'Play-by-Play Summary'!AE32 -> Pass (medium right) from 6 (Johnny Colombi) intended for 7 (Blake Haggerty) incomplete | AR27: =IF('Play-by-Play Summary'!AS32="","",'Play-by-Play Summary'!AS32) ->  | AS27: =IF($AR27="","",LOOKUP($AR27,'Raw Stats'!$B$3:$B$205,'Raw Stats'!A$3:A$205)) ->  | AT27: =IF($AR27="","",LOOKUP($AR27,'Raw Stats'!$B$3:$B$205,'Raw Stats'!C$3:C$205)) ->  | AU27: =IF($AR27="","",LOOKUP($AR27,'Raw Stats'!$B$3:$B$205,'Raw Stats'!J$3:J$205)) ->  | AV27: =IF($AR27="","",LOOKUP($AR27,'Raw Stats'!$B$3:$B$205,'Raw Stats'!K$3:K$205)) ->  | AW27: =IF($AR27="","",LOOKUP($AR27,'Raw Stats'!$B$3:$B$205,'Raw Stats'!L$3:L$205)) ->  | AX27: =IF('Play-by-Play Summary'!AN32="","",'Play-by-Play Summary'!AN32) -> 106 | AY27: =IF($AX27="","",LOOKUP($AX27,'Raw Stats'!$B$3:$B$205,'Raw Stats'!A$3:A$205)) -> 6 | AZ27: =IF($AX27="","",LOOKUP($AX27,'Raw Stats'!$B$3:$B$205,'Raw Stats'!C$3:C$205)) -> Johnny Colombi | BA27: =IF($AX27="","",LOOKUP($AX27,'Raw Stats'!$B$3:$B$205,'Raw Stats'!D$3:D$205)) -> 15 | BB27: =IF($AX27="","",LOOKUP($AX27,'Raw Stats'!$B$3:$B$205,'Raw Stats'!F$3:F$205)) -> 8 | BC27: =IF($AX27="","",LOOKUP($AX27,'Raw Stats'!$B$3:$B$205,'Raw Stats'!H$3:H$205)) -> 88 | BD27: =IF($AX27="","",LOOKUP($AX27,'Raw Stats'!$B$3:$B$205,'Raw Stats'!I$3:I$205)) -> 0 | BE27: =IF($AX27="","",LOOKUP($AX27,'Raw Stats'!$B$3:$B$205,'Raw Stats'!G$3:G$205)) -> 1 | BF27: =IF('Play-by-Play Summary'!AV32="","",'Play-by-Play Summary'!AV32) -> 107 | BG27: =IF($BF27="","",LOOKUP($BF27,'Raw Stats'!$B$3:$B$205,'Raw Stats'!A$3:A$205)) -> 7 | BH27: =IF($BF27="","",LOOKUP($BF27,'Raw Stats'!$B$3:$B$205,'Raw Stats'!C$3:C$205)) -> Blake Haggerty | BI27: =IF($BF27="","",LOOKUP($BF27,'Raw Stats'!$B$3:$B$205,'Raw Stats'!M$3:M$205)) -> 5 | BJ27: =IF($BF27="","",LOOKUP($BF27,'Raw Stats'!$B$3:$B$205,'Raw Stats'!N$3:N$205)) -> 2 | BK27: =IF($BF27="","",LOOKUP($BF27,'Raw Stats'!$B$3:$B$205,'Raw Stats'!O$3:O$205)) -> 30 | BL27: =IF($BF27="","",LOOKUP($BF27,'Raw Stats'!$B$3:$B$205,'Raw Stats'!P$3:P$205)) -> 0 | BN27: =IF('Play Entry'!$W33="","",IF($G27=Teams!$B$13,'Play Entry'!$W33,IF($G27=Teams!$A$13,'Play Entry'!$W33+100,""))) ->  | BO27: =IF('Play Entry'!$Z33="","",IF($G27=Teams!$B$13,'Play Entry'!$Z33,IF($G27=Teams!$A$13,'Play Entry'!$Z33+100,""))) ->  | BP27: =IF($BM27="","",LOOKUP($BM27,'Raw Stats'!$B$3:$B$205,'Raw Stats'!A$3:A$205)) ->  | BQ27: =IF($BM27="","",LOOKUP($BM27,'Raw Stats'!$B$3:$B$205,'Raw Stats'!C$3:C$205)) ->  | BR27: =IF($BM27="","",LOOKUP($BM27,'Raw Stats'!$B$3:$B$205,'Raw Stats'!AK$3:AK$205)) ->  | BS27: =IF($BM27="","",LOOKUP($BM27,'Raw Stats'!$B$3:$B$205,'Raw Stats'!AL$3:AL$205)) ->  | BT27: =IF($BM27="","",LOOKUP($BM27,'Raw Stats'!$B$3:$B$205,'Raw Stats'!AM$3:AM$205)) ->  | BU27: =IF($BM27="","",LOOKUP($BM27,'Raw Stats'!$B$3:$B$205,'Raw Stats'!AN$3:AN$205)) ->  | BV27: =IF($BM27="","",LOOKUP($BM27,'Raw Stats'!$B$3:$B$205,'Raw Stats'!AO$3:AO$205)) ->  | BW27: =IF($BM27="","",LOOKUP($BM27,'Raw Stats'!$B$3:$B$205,'Raw Stats'!AP$3:AP$205)) ->  | BX27: =IF($BM27="","",LOOKUP($BM27,'Raw Stats'!$B$3:$B$205,'Raw Stats'!AQ$3:AQ$205)) ->  | BY27: =IF($BM27="","",LOOKUP($BM27,'Raw Stats'!$B$3:$B$205,'Raw Stats'!AR$3:AR$205)) ->  | BZ27: =IF($BM27="","",LOOKUP($BM27,'Raw Stats'!$B$3:$B$205,'Raw Stats'!AS$3:AS$205)) ->  | CA27: =IF($BM27="","",LOOKUP($BM27,'Raw Stats'!$B$3:$B$205,'Raw Stats'!AT$3:AT$205)) ->  | CB27: =IF($BM27="","",LOOKUP($BM27,'Raw Stats'!$B$3:$B$205,'Raw Stats'!AU$3:AU$205)) ->  | CC27: =IF($BM27="","",LOOKUP($BM27,'Raw Stats'!$B$3:$B$205,'Raw Stats'!AV$3:AV$205)) ->  | CD27: =IF($BM27="","",LOOKUP($BM27,'Raw Stats'!$B$3:$B$205,'Raw Stats'!AW$3:AW$205)) ->  | CE27: =IF($BM27="","",LOOKUP($BM27,'Raw Stats'!$B$3:$B$205,'Raw Stats'!AX$3:AX$205)) ->  | CF27: =IF($BM27="","",LOOKUP($BM27,'Raw Stats'!$B$3:$B$205,'Raw Stats'!AY$3:AY$205)) ->  | CG27: =IF($BM27="","",LOOKUP($BM27,'Raw Stats'!$B$3:$B$205,'Raw Stats'!AZ$3:AZ$205)) ->  | CH27: =IF($BM27="","",LOOKUP($BM27,'Raw Stats'!$B$3:$B$205,'Raw Stats'!BA$3:BA$205)) ->  | CJ27: =IF('Play Entry'!$X33="","",IF($G27=Teams!$B$13,'Play Entry'!$X33,IF($G27=Teams!$A$13,'Play Entry'!$X33+100,""))) ->  | CK27: =IF('Play Entry'!$AA33="","",IF($G27=Teams!$B$13,'Play Entry'!$AA33,IF($G27=Teams!$A$13,'Play Entry'!$AA33+100,""))) ->  | CL27: =IF($CI27="","",LOOKUP($CI27,'Raw Stats'!$B$3:$B$205,'Raw Stats'!A$3:A$205)) ->  | CM27: =IF($CI27="","",LOOKUP($CI27,'Raw Stats'!$B$3:$B$205,'Raw Stats'!C$3:C$205)) ->  | CN27: =IF($CI27="","",LOOKUP($CI27,'Raw Stats'!$B$3:$B$205,'Raw Stats'!AK$3:AK$205)) ->  | CO27: =IF($CI27="","",LOOKUP($CI27,'Raw Stats'!$B$3:$B$205,'Raw Stats'!AL$3:AL$205)) ->  | CP27: =IF($CI27="","",LOOKUP($CI27,'Raw Stats'!$B$3:$B$205,'Raw Stats'!AM$3:AM$205)) ->  | CQ27: =IF($CI27="","",LOOKUP($CI27,'Raw Stats'!$B$3:$B$205,'Raw Stats'!AN$3:AN$205)) ->  | CR27: =IF($CI27="","",LOOKUP($CI27,'Raw Stats'!$B$3:$B$205,'Raw Stats'!AO$3:AO$205)) ->  | CS27: =IF($CI27="","",LOOKUP($CI27,'Raw Stats'!$B$3:$B$205,'Raw Stats'!AP$3:AP$205)) ->  | CT27: =IF($CI27="","",LOOKUP($CI27,'Raw Stats'!$B$3:$B$205,'Raw Stats'!AQ$3:AQ$205)) ->  | CU27: =IF($CI27="","",LOOKUP($CI27,'Raw Stats'!$B$3:$B$205,'Raw Stats'!AR$3:AR$205)) ->  | CV27: =IF($CI27="","",LOOKUP($CI27,'Raw Stats'!$B$3:$B$205,'Raw Stats'!AS$3:AS$205)) ->  | CW27: =IF($CI27="","",LOOKUP($CI27,'Raw Stats'!$B$3:$B$205,'Raw Stats'!AT$3:AT$205)) ->  | CX27: =IF($CI27="","",LOOKUP($CI27,'Raw Stats'!$B$3:$B$205,'Raw Stats'!AU$3:AU$205)) ->  | CY27: =IF($CI27="","",LOOKUP($CI27,'Raw Stats'!$B$3:$B$205,'Raw Stats'!AV$3:AV$205)) ->  | CZ27: =IF($CI27="","",LOOKUP($CI27,'Raw Stats'!$B$3:$B$205,'Raw Stats'!AW$3:AW$205)) ->  | DA27: =IF($CI27="","",LOOKUP($CI27,'Raw Stats'!$B$3:$B$205,'Raw Stats'!AX$3:AX$205)) ->  | DB27: =IF($CI27="","",LOOKUP($CI27,'Raw Stats'!$B$3:$B$205,'Raw Stats'!AY$3:AY$205)) ->  | DC27: =IF($CI27="","",LOOKUP($CI27,'Raw Stats'!$B$3:$B$205,'Raw Stats'!AZ$3:AZ$205)) ->  | DD27: =IF($CI27="","",LOOKUP($CI27,'Raw Stats'!$B$3:$B$205,'Raw Stats'!BA$3:BA$205)) ->  | DE27: =IF('Play-by-Play Summary'!AZ32<>"",'Play-by-Play Summary'!AZ32,IF('Play-by-Play Summary'!BA32<>"",'Play-by-Play Summary'!BA32,IF('Play-by-Play Summary'!BD32<>"",'Play-by-Play Summary'!BD32,IF('Play-by-Play Summary'!BE32<>"",'Play-by-Play Summary'!BE32,IF('Play-by-Play Summary'!BF32<>"",'Play-by-Play Summary'!BF32,IF('Play-by-Play Summary'!BI32<>"",'Play-by-Play Summary'!BI32,"")))))) ->  | DF27: =IF($DE27="","",LOOKUP($DE27,'Raw Stats'!$B$3:$B$205,'Raw Stats'!A$3:A$205)) ->  | DG27: =IF($DE27="","",LOOKUP($DE27,'Raw Stats'!$B$3:$B$205,'Raw Stats'!C$3:C$205)) ->  | DH27: =IF($DE27="","",LOOKUP($DE27,'Raw Stats'!$B$3:$B$205,'Raw Stats'!Q$3:Q$205)) ->  | DI27: =IF($DE27="","",LOOKUP($DE27,'Raw Stats'!$B$3:$B$205,'Raw Stats'!R$3:R$205)) ->  | DJ27: =IF($DE27="","",LOOKUP($DE27,'Raw Stats'!$B$3:$B$205,'Raw Stats'!S$3:S$205)) ->  | DK27: =IF($DE27="","",LOOKUP($DE27,'Raw Stats'!$B$3:$B$205,'Raw Stats'!T$3:T$205)) ->  | DL27: =IF($DE27="","",LOOKUP($DE27,'Raw Stats'!$B$3:$B$205,'Raw Stats'!U$3:U$205)) ->  | DM27: =IF($DE27="","",LOOKUP($DE27,'Raw Stats'!$B$3:$B$205,'Raw Stats'!V$3:V$205)) ->  | DN27: =IF($DE27="","",LOOKUP($DE27,'Raw Stats'!$B$3:$B$205,'Raw Stats'!W$3:W$205)) ->  | DO27: =IF($DE27="","",LOOKUP($DE27,'Raw Stats'!$B$3:$B$205,'Raw Stats'!X$3:X$205)) ->  | DP27: =IF($DE27="","",LOOKUP($DE27,'Raw Stats'!$B$3:$B$205,'Raw Stats'!Y$3:Y$205)) ->  | DQ27: =IF($DE27="","",LOOKUP($DE27,'Raw Stats'!$B$3:$B$205,'Raw Stats'!Z$3:Z$205)) ->  | DR27: =IF($DE27="","",LOOKUP($DE27,'Raw Stats'!$B$3:$B$205,'Raw Stats'!AA$3:AA$205)) ->  | DS27: =IF($DE27="","",LOOKUP($DE27,'Raw Stats'!$B$3:$B$205,'Raw Stats'!AB$3:AB$205)) ->  | DT27: =IF($DE27="","",LOOKUP($DE27,'Raw Stats'!$B$3:$B$205,'Raw Stats'!AC$3:AC$205)) ->  | DU27: =IF($DE27="","",LOOKUP($DE27,'Raw Stats'!$B$3:$B$205,'Raw Stats'!AD$3:AD$205)) -> 
A28: =IF('Play Entry'!J34="","",+'Play-by-Play Summary'!C33) -> 27 | B28: ='Play Entry'!I34 -> 2 | C28: =+'Play-by-Play Summary'!Q33 -> 12 | D28: =+'Play-by-Play Summary'!P33 -> 77 | E28: =+'Play-by-Play Summary'!J33 -> 3rd | F28: =+'Play Entry'!L34 -> Goal | G28: =+'Play Entry'!J34 -> CastleV | H28: =+'Play-by-Play Summary'!R33 -> from the +5 yard line | I28: =+'Play-by-Play Summary'!AE33 -> Rush (around the right end) by 14 (Marc Wessbecker) for a gain of 4. Tackle by 5 (Zaire Jackson) | AR28: =IF('Play-by-Play Summary'!AS33="","",'Play-by-Play Summary'!AS33) -> 114 | AS28: =IF($AR28="","",LOOKUP($AR28,'Raw Stats'!$B$3:$B$205,'Raw Stats'!A$3:A$205)) -> 14 | AT28: =IF($AR28="","",LOOKUP($AR28,'Raw Stats'!$B$3:$B$205,'Raw Stats'!C$3:C$205)) -> Marc Wessbecker | AU28: =IF($AR28="","",LOOKUP($AR28,'Raw Stats'!$B$3:$B$205,'Raw Stats'!J$3:J$205)) -> 18 | AV28: =IF($AR28="","",LOOKUP($AR28,'Raw Stats'!$B$3:$B$205,'Raw Stats'!K$3:K$205)) -> 158 | AW28: =IF($AR28="","",LOOKUP($AR28,'Raw Stats'!$B$3:$B$205,'Raw Stats'!L$3:L$205)) -> 2 | AX28: =IF('Play-by-Play Summary'!AN33="","",'Play-by-Play Summary'!AN33) ->  | AY28: =IF($AX28="","",LOOKUP($AX28,'Raw Stats'!$B$3:$B$205,'Raw Stats'!A$3:A$205)) ->  | AZ28: =IF($AX28="","",LOOKUP($AX28,'Raw Stats'!$B$3:$B$205,'Raw Stats'!C$3:C$205)) ->  | BA28: =IF($AX28="","",LOOKUP($AX28,'Raw Stats'!$B$3:$B$205,'Raw Stats'!D$3:D$205)) ->  | BB28: =IF($AX28="","",LOOKUP($AX28,'Raw Stats'!$B$3:$B$205,'Raw Stats'!F$3:F$205)) ->  | BC28: =IF($AX28="","",LOOKUP($AX28,'Raw Stats'!$B$3:$B$205,'Raw Stats'!H$3:H$205)) ->  | BD28: =IF($AX28="","",LOOKUP($AX28,'Raw Stats'!$B$3:$B$205,'Raw Stats'!I$3:I$205)) ->  | BE28: =IF($AX28="","",LOOKUP($AX28,'Raw Stats'!$B$3:$B$205,'Raw Stats'!G$3:G$205)) ->  | BF28: =IF('Play-by-Play Summary'!AV33="","",'Play-by-Play Summary'!AV33) ->  | BG28: =IF($BF28="","",LOOKUP($BF28,'Raw Stats'!$B$3:$B$205,'Raw Stats'!A$3:A$205)) ->  | BH28: =IF($BF28="","",LOOKUP($BF28,'Raw Stats'!$B$3:$B$205,'Raw Stats'!C$3:C$205)) ->  | BI28: =IF($BF28="","",LOOKUP($BF28,'Raw Stats'!$B$3:$B$205,'Raw Stats'!M$3:M$205)) ->  | BJ28: =IF($BF28="","",LOOKUP($BF28,'Raw Stats'!$B$3:$B$205,'Raw Stats'!N$3:N$205)) ->  | BK28: =IF($BF28="","",LOOKUP($BF28,'Raw Stats'!$B$3:$B$205,'Raw Stats'!O$3:O$205)) ->  | BL28: =IF($BF28="","",LOOKUP($BF28,'Raw Stats'!$B$3:$B$205,'Raw Stats'!P$3:P$205)) ->  | BM28: 5 | BN28: =IF('Play Entry'!$W34="","",IF($G28=Teams!$B$13,'Play Entry'!$W34,IF($G28=Teams!$A$13,'Play Entry'!$W34+100,""))) -> 5 | BO28: =IF('Play Entry'!$Z34="","",IF($G28=Teams!$B$13,'Play Entry'!$Z34,IF($G28=Teams!$A$13,'Play Entry'!$Z34+100,""))) ->  | BP28: =IF($BM28="","",LOOKUP($BM28,'Raw Stats'!$B$3:$B$205,'Raw Stats'!A$3:A$205)) -> 5 | BQ28: =IF($BM28="","",LOOKUP($BM28,'Raw Stats'!$B$3:$B$205,'Raw Stats'!C$3:C$205)) -> Zaire Jackson | BR28: =IF($BM28="","",LOOKUP($BM28,'Raw Stats'!$B$3:$B$205,'Raw Stats'!AK$3:AK$205)) -> 3 | BS28: =IF($BM28="","",LOOKUP($BM28,'Raw Stats'!$B$3:$B$205,'Raw Stats'!AL$3:AL$205)) -> 1 | BT28: =IF($BM28="","",LOOKUP($BM28,'Raw Stats'!$B$3:$B$205,'Raw Stats'!AM$3:AM$205)) -> 0 | BU28: =IF($BM28="","",LOOKUP($BM28,'Raw Stats'!$B$3:$B$205,'Raw Stats'!AN$3:AN$205)) -> 0 | BV28: =IF($BM28="","",LOOKUP($BM28,'Raw Stats'!$B$3:$B$205,'Raw Stats'!AO$3:AO$205)) -> 0 | BW28: =IF($BM28="","",LOOKUP($BM28,'Raw Stats'!$B$3:$B$205,'Raw Stats'!AP$3:AP$205)) -> 0 | BX28: =IF($BM28="","",LOOKUP($BM28,'Raw Stats'!$B$3:$B$205,'Raw Stats'!AQ$3:AQ$205)) -> 0 | BY28: =IF($BM28="","",LOOKUP($BM28,'Raw Stats'!$B$3:$B$205,'Raw Stats'!AR$3:AR$205)) -> 0 | BZ28: =IF($BM28="","",LOOKUP($BM28,'Raw Stats'!$B$3:$B$205,'Raw Stats'!AS$3:AS$205)) -> 0 | CA28: =IF($BM28="","",LOOKUP($BM28,'Raw Stats'!$B$3:$B$205,'Raw Stats'!AT$3:AT$205)) -> 0 | CB28: =IF($BM28="","",LOOKUP($BM28,'Raw Stats'!$B$3:$B$205,'Raw Stats'!AU$3:AU$205)) -> 1 | CC28: =IF($BM28="","",LOOKUP($BM28,'Raw Stats'!$B$3:$B$205,'Raw Stats'!AV$3:AV$205)) -> 0 | CD28: =IF($BM28="","",LOOKUP($BM28,'Raw Stats'!$B$3:$B$205,'Raw Stats'!AW$3:AW$205)) -> 0 | CE28: =IF($BM28="","",LOOKUP($BM28,'Raw Stats'!$B$3:$B$205,'Raw Stats'!AX$3:AX$205)) -> 0 | CF28: =IF($BM28="","",LOOKUP($BM28,'Raw Stats'!$B$3:$B$205,'Raw Stats'!AY$3:AY$205)) -> 0 | CG28: =IF($BM28="","",LOOKUP($BM28,'Raw Stats'!$B$3:$B$205,'Raw Stats'!AZ$3:AZ$205)) -> 0 | CH28: =IF($BM28="","",LOOKUP($BM28,'Raw Stats'!$B$3:$B$205,'Raw Stats'!BA$3:BA$205)) -> 0 | CJ28: =IF('Play Entry'!$X34="","",IF($G28=Teams!$B$13,'Play Entry'!$X34,IF($G28=Teams!$A$13,'Play Entry'!$X34+100,""))) ->  | CK28: =IF('Play Entry'!$AA34="","",IF($G28=Teams!$B$13,'Play Entry'!$AA34,IF($G28=Teams!$A$13,'Play Entry'!$AA34+100,""))) ->  | CL28: =IF($CI28="","",LOOKUP($CI28,'Raw Stats'!$B$3:$B$205,'Raw Stats'!A$3:A$205)) ->  | CM28: =IF($CI28="","",LOOKUP($CI28,'Raw Stats'!$B$3:$B$205,'Raw Stats'!C$3:C$205)) ->  | CN28: =IF($CI28="","",LOOKUP($CI28,'Raw Stats'!$B$3:$B$205,'Raw Stats'!AK$3:AK$205)) ->  | CO28: =IF($CI28="","",LOOKUP($CI28,'Raw Stats'!$B$3:$B$205,'Raw Stats'!AL$3:AL$205)) ->  | CP28: =IF($CI28="","",LOOKUP($CI28,'Raw Stats'!$B$3:$B$205,'Raw Stats'!AM$3:AM$205)) ->  | CQ28: =IF($CI28="","",LOOKUP($CI28,'Raw Stats'!$B$3:$B$205,'Raw Stats'!AN$3:AN$205)) ->  | CR28: =IF($CI28="","",LOOKUP($CI28,'Raw Stats'!$B$3:$B$205,'Raw Stats'!AO$3:AO$205)) ->  | CS28: =IF($CI28="","",LOOKUP($CI28,'Raw Stats'!$B$3:$B$205,'Raw Stats'!AP$3:AP$205)) ->  | CT28: =IF($CI28="","",LOOKUP($CI28,'Raw Stats'!$B$3:$B$205,'Raw Stats'!AQ$3:AQ$205)) ->  | CU28: =IF($CI28="","",LOOKUP($CI28,'Raw Stats'!$B$3:$B$205,'Raw Stats'!AR$3:AR$205)) ->  | CV28: =IF($CI28="","",LOOKUP($CI28,'Raw Stats'!$B$3:$B$205,'Raw Stats'!AS$3:AS$205)) ->  | CW28: =IF($CI28="","",LOOKUP($CI28,'Raw Stats'!$B$3:$B$205,'Raw Stats'!AT$3:AT$205)) ->  | CX28: =IF($CI28="","",LOOKUP($CI28,'Raw Stats'!$B$3:$B$205,'Raw Stats'!AU$3:AU$205)) ->  | CY28: =IF($CI28="","",LOOKUP($CI28,'Raw Stats'!$B$3:$B$205,'Raw Stats'!AV$3:AV$205)) ->  | CZ28: =IF($CI28="","",LOOKUP($CI28,'Raw Stats'!$B$3:$B$205,'Raw Stats'!AW$3:AW$205)) ->  | DA28: =IF($CI28="","",LOOKUP($CI28,'Raw Stats'!$B$3:$B$205,'Raw Stats'!AX$3:AX$205)) ->  | DB28: =IF($CI28="","",LOOKUP($CI28,'Raw Stats'!$B$3:$B$205,'Raw Stats'!AY$3:AY$205)) ->  | DC28: =IF($CI28="","",LOOKUP($CI28,'Raw Stats'!$B$3:$B$205,'Raw Stats'!AZ$3:AZ$205)) ->  | DD28: =IF($CI28="","",LOOKUP($CI28,'Raw Stats'!$B$3:$B$205,'Raw Stats'!BA$3:BA$205)) ->  | DE28: =IF('Play-by-Play Summary'!AZ33<>"",'Play-by-Play Summary'!AZ33,IF('Play-by-Play Summary'!BA33<>"",'Play-by-Play Summary'!BA33,IF('Play-by-Play Summary'!BD33<>"",'Play-by-Play Summary'!BD33,IF('Play-by-Play Summary'!BE33<>"",'Play-by-Play Summary'!BE33,IF('Play-by-Play Summary'!BF33<>"",'Play-by-Play Summary'!BF33,IF('Play-by-Play Summary'!BI33<>"",'Play-by-Play Summary'!BI33,"")))))) ->  | DF28: =IF($DE28="","",LOOKUP($DE28,'Raw Stats'!$B$3:$B$205,'Raw Stats'!A$3:A$205)) ->  | DG28: =IF($DE28="","",LOOKUP($DE28,'Raw Stats'!$B$3:$B$205,'Raw Stats'!C$3:C$205)) ->  | DH28: =IF($DE28="","",LOOKUP($DE28,'Raw Stats'!$B$3:$B$205,'Raw Stats'!Q$3:Q$205)) ->  | DI28: =IF($DE28="","",LOOKUP($DE28,'Raw Stats'!$B$3:$B$205,'Raw Stats'!R$3:R$205)) ->  | DJ28: =IF($DE28="","",LOOKUP($DE28,'Raw Stats'!$B$3:$B$205,'Raw Stats'!S$3:S$205)) ->  | DK28: =IF($DE28="","",LOOKUP($DE28,'Raw Stats'!$B$3:$B$205,'Raw Stats'!T$3:T$205)) ->  | DL28: =IF($DE28="","",LOOKUP($DE28,'Raw Stats'!$B$3:$B$205,'Raw Stats'!U$3:U$205)) ->  | DM28: =IF($DE28="","",LOOKUP($DE28,'Raw Stats'!$B$3:$B$205,'Raw Stats'!V$3:V$205)) ->  | DN28: =IF($DE28="","",LOOKUP($DE28,'Raw Stats'!$B$3:$B$205,'Raw Stats'!W$3:W$205)) ->  | DO28: =IF($DE28="","",LOOKUP($DE28,'Raw Stats'!$B$3:$B$205,'Raw Stats'!X$3:X$205)) ->  | DP28: =IF($DE28="","",LOOKUP($DE28,'Raw Stats'!$B$3:$B$205,'Raw Stats'!Y$3:Y$205)) ->  | DQ28: =IF($DE28="","",LOOKUP($DE28,'Raw Stats'!$B$3:$B$205,'Raw Stats'!Z$3:Z$205)) ->  | DR28: =IF($DE28="","",LOOKUP($DE28,'Raw Stats'!$B$3:$B$205,'Raw Stats'!AA$3:AA$205)) ->  | DS28: =IF($DE28="","",LOOKUP($DE28,'Raw Stats'!$B$3:$B$205,'Raw Stats'!AB$3:AB$205)) ->  | DT28: =IF($DE28="","",LOOKUP($DE28,'Raw Stats'!$B$3:$B$205,'Raw Stats'!AC$3:AC$205)) ->  | DU28: =IF($DE28="","",LOOKUP($DE28,'Raw Stats'!$B$3:$B$205,'Raw Stats'!AD$3:AD$205)) -> 
A29: =IF('Play Entry'!J35="","",+'Play-by-Play Summary'!C34) -> 28 | B29: ='Play Entry'!I35 -> 2 | C29: =+'Play-by-Play Summary'!Q34 -> 13 | D29: =+'Play-by-Play Summary'!P34 -> 78 | E29: =+'Play-by-Play Summary'!J34 -> 4th | F29: =+'Play Entry'!L35 -> Goal | G29: =+'Play Entry'!J35 -> CastleV | H29: =+'Play-by-Play Summary'!R34 -> from the +1 yard line | I29: =+'Play-by-Play Summary'!AE34 -> Rush (left) by 14 (Marc Wessbecker) for a gain of 1 and a touchdown! | AR29: =IF('Play-by-Play Summary'!AS34="","",'Play-by-Play Summary'!AS34) -> 114 | AS29: =IF($AR29="","",LOOKUP($AR29,'Raw Stats'!$B$3:$B$205,'Raw Stats'!A$3:A$205)) -> 14 | AT29: =IF($AR29="","",LOOKUP($AR29,'Raw Stats'!$B$3:$B$205,'Raw Stats'!C$3:C$205)) -> Marc Wessbecker | AU29: =IF($AR29="","",LOOKUP($AR29,'Raw Stats'!$B$3:$B$205,'Raw Stats'!J$3:J$205)) -> 18 | AV29: =IF($AR29="","",LOOKUP($AR29,'Raw Stats'!$B$3:$B$205,'Raw Stats'!K$3:K$205)) -> 158 | AW29: =IF($AR29="","",LOOKUP($AR29,'Raw Stats'!$B$3:$B$205,'Raw Stats'!L$3:L$205)) -> 2 | AX29: =IF('Play-by-Play Summary'!AN34="","",'Play-by-Play Summary'!AN34) ->  | AY29: =IF($AX29="","",LOOKUP($AX29,'Raw Stats'!$B$3:$B$205,'Raw Stats'!A$3:A$205)) ->  | AZ29: =IF($AX29="","",LOOKUP($AX29,'Raw Stats'!$B$3:$B$205,'Raw Stats'!C$3:C$205)) ->  | BA29: =IF($AX29="","",LOOKUP($AX29,'Raw Stats'!$B$3:$B$205,'Raw Stats'!D$3:D$205)) ->  | BB29: =IF($AX29="","",LOOKUP($AX29,'Raw Stats'!$B$3:$B$205,'Raw Stats'!F$3:F$205)) ->  | BC29: =IF($AX29="","",LOOKUP($AX29,'Raw Stats'!$B$3:$B$205,'Raw Stats'!H$3:H$205)) ->  | BD29: =IF($AX29="","",LOOKUP($AX29,'Raw Stats'!$B$3:$B$205,'Raw Stats'!I$3:I$205)) ->  | BE29: =IF($AX29="","",LOOKUP($AX29,'Raw Stats'!$B$3:$B$205,'Raw Stats'!G$3:G$205)) ->  | BF29: =IF('Play-by-Play Summary'!AV34="","",'Play-by-Play Summary'!AV34) ->  | BG29: =IF($BF29="","",LOOKUP($BF29,'Raw Stats'!$B$3:$B$205,'Raw Stats'!A$3:A$205)) ->  | BH29: =IF($BF29="","",LOOKUP($BF29,'Raw Stats'!$B$3:$B$205,'Raw Stats'!C$3:C$205)) ->  | BI29: =IF($BF29="","",LOOKUP($BF29,'Raw Stats'!$B$3:$B$205,'Raw Stats'!M$3:M$205)) ->  | BJ29: =IF($BF29="","",LOOKUP($BF29,'Raw Stats'!$B$3:$B$205,'Raw Stats'!N$3:N$205)) ->  | BK29: =IF($BF29="","",LOOKUP($BF29,'Raw Stats'!$B$3:$B$205,'Raw Stats'!O$3:O$205)) ->  | BL29: =IF($BF29="","",LOOKUP($BF29,'Raw Stats'!$B$3:$B$205,'Raw Stats'!P$3:P$205)) ->  | BN29: =IF('Play Entry'!$W35="","",IF($G29=Teams!$B$13,'Play Entry'!$W35,IF($G29=Teams!$A$13,'Play Entry'!$W35+100,""))) ->  | BO29: =IF('Play Entry'!$Z35="","",IF($G29=Teams!$B$13,'Play Entry'!$Z35,IF($G29=Teams!$A$13,'Play Entry'!$Z35+100,""))) ->  | BP29: =IF($BM29="","",LOOKUP($BM29,'Raw Stats'!$B$3:$B$205,'Raw Stats'!A$3:A$205)) ->  | BQ29: =IF($BM29="","",LOOKUP($BM29,'Raw Stats'!$B$3:$B$205,'Raw Stats'!C$3:C$205)) ->  | BR29: =IF($BM29="","",LOOKUP($BM29,'Raw Stats'!$B$3:$B$205,'Raw Stats'!AK$3:AK$205)) ->  | BS29: =IF($BM29="","",LOOKUP($BM29,'Raw Stats'!$B$3:$B$205,'Raw Stats'!AL$3:AL$205)) ->  | BT29: =IF($BM29="","",LOOKUP($BM29,'Raw Stats'!$B$3:$B$205,'Raw Stats'!AM$3:AM$205)) ->  | BU29: =IF($BM29="","",LOOKUP($BM29,'Raw Stats'!$B$3:$B$205,'Raw Stats'!AN$3:AN$205)) ->  | BV29: =IF($BM29="","",LOOKUP($BM29,'Raw Stats'!$B$3:$B$205,'Raw Stats'!AO$3:AO$205)) ->  | BW29: =IF($BM29="","",LOOKUP($BM29,'Raw Stats'!$B$3:$B$205,'Raw Stats'!AP$3:AP$205)) ->  | BX29: =IF($BM29="","",LOOKUP($BM29,'Raw Stats'!$B$3:$B$205,'Raw Stats'!AQ$3:AQ$205)) ->  | BY29: =IF($BM29="","",LOOKUP($BM29,'Raw Stats'!$B$3:$B$205,'Raw Stats'!AR$3:AR$205)) ->  | BZ29: =IF($BM29="","",LOOKUP($BM29,'Raw Stats'!$B$3:$B$205,'Raw Stats'!AS$3:AS$205)) ->  | CA29: =IF($BM29="","",LOOKUP($BM29,'Raw Stats'!$B$3:$B$205,'Raw Stats'!AT$3:AT$205)) ->  | CB29: =IF($BM29="","",LOOKUP($BM29,'Raw Stats'!$B$3:$B$205,'Raw Stats'!AU$3:AU$205)) ->  | CC29: =IF($BM29="","",LOOKUP($BM29,'Raw Stats'!$B$3:$B$205,'Raw Stats'!AV$3:AV$205)) ->  | CD29: =IF($BM29="","",LOOKUP($BM29,'Raw Stats'!$B$3:$B$205,'Raw Stats'!AW$3:AW$205)) ->  | CE29: =IF($BM29="","",LOOKUP($BM29,'Raw Stats'!$B$3:$B$205,'Raw Stats'!AX$3:AX$205)) ->  | CF29: =IF($BM29="","",LOOKUP($BM29,'Raw Stats'!$B$3:$B$205,'Raw Stats'!AY$3:AY$205)) ->  | CG29: =IF($BM29="","",LOOKUP($BM29,'Raw Stats'!$B$3:$B$205,'Raw Stats'!AZ$3:AZ$205)) ->  | CH29: =IF($BM29="","",LOOKUP($BM29,'Raw Stats'!$B$3:$B$205,'Raw Stats'!BA$3:BA$205)) ->  | CJ29: =IF('Play Entry'!$X35="","",IF($G29=Teams!$B$13,'Play Entry'!$X35,IF($G29=Teams!$A$13,'Play Entry'!$X35+100,""))) ->  | CK29: =IF('Play Entry'!$AA35="","",IF($G29=Teams!$B$13,'Play Entry'!$AA35,IF($G29=Teams!$A$13,'Play Entry'!$AA35+100,""))) ->  | CL29: =IF($CI29="","",LOOKUP($CI29,'Raw Stats'!$B$3:$B$205,'Raw Stats'!A$3:A$205)) ->  | CM29: =IF($CI29="","",LOOKUP($CI29,'Raw Stats'!$B$3:$B$205,'Raw Stats'!C$3:C$205)) ->  | CN29: =IF($CI29="","",LOOKUP($CI29,'Raw Stats'!$B$3:$B$205,'Raw Stats'!AK$3:AK$205)) ->  | CO29: =IF($CI29="","",LOOKUP($CI29,'Raw Stats'!$B$3:$B$205,'Raw Stats'!AL$3:AL$205)) ->  | CP29: =IF($CI29="","",LOOKUP($CI29,'Raw Stats'!$B$3:$B$205,'Raw Stats'!AM$3:AM$205)) ->  | CQ29: =IF($CI29="","",LOOKUP($CI29,'Raw Stats'!$B$3:$B$205,'Raw Stats'!AN$3:AN$205)) ->  | CR29: =IF($CI29="","",LOOKUP($CI29,'Raw Stats'!$B$3:$B$205,'Raw Stats'!AO$3:AO$205)) ->  | CS29: =IF($CI29="","",LOOKUP($CI29,'Raw Stats'!$B$3:$B$205,'Raw Stats'!AP$3:AP$205)) ->  | CT29: =IF($CI29="","",LOOKUP($CI29,'Raw Stats'!$B$3:$B$205,'Raw Stats'!AQ$3:AQ$205)) ->  | CU29: =IF($CI29="","",LOOKUP($CI29,'Raw Stats'!$B$3:$B$205,'Raw Stats'!AR$3:AR$205)) ->  | CV29: =IF($CI29="","",LOOKUP($CI29,'Raw Stats'!$B$3:$B$205,'Raw Stats'!AS$3:AS$205)) ->  | CW29: =IF($CI29="","",LOOKUP($CI29,'Raw Stats'!$B$3:$B$205,'Raw Stats'!AT$3:AT$205)) ->  | CX29: =IF($CI29="","",LOOKUP($CI29,'Raw Stats'!$B$3:$B$205,'Raw Stats'!AU$3:AU$205)) ->  | CY29: =IF($CI29="","",LOOKUP($CI29,'Raw Stats'!$B$3:$B$205,'Raw Stats'!AV$3:AV$205)) ->  | CZ29: =IF($CI29="","",LOOKUP($CI29,'Raw Stats'!$B$3:$B$205,'Raw Stats'!AW$3:AW$205)) ->  | DA29: =IF($CI29="","",LOOKUP($CI29,'Raw Stats'!$B$3:$B$205,'Raw Stats'!AX$3:AX$205)) ->  | DB29: =IF($CI29="","",LOOKUP($CI29,'Raw Stats'!$B$3:$B$205,'Raw Stats'!AY$3:AY$205)) ->  | DC29: =IF($CI29="","",LOOKUP($CI29,'Raw Stats'!$B$3:$B$205,'Raw Stats'!AZ$3:AZ$205)) ->  | DD29: =IF($CI29="","",LOOKUP($CI29,'Raw Stats'!$B$3:$B$205,'Raw Stats'!BA$3:BA$205)) ->  | DE29: =IF('Play-by-Play Summary'!AZ34<>"",'Play-by-Play Summary'!AZ34,IF('Play-by-Play Summary'!BA34<>"",'Play-by-Play Summary'!BA34,IF('Play-by-Play Summary'!BD34<>"",'Play-by-Play Summary'!BD34,IF('Play-by-Play Summary'!BE34<>"",'Play-by-Play Summary'!BE34,IF('Play-by-Play Summary'!BF34<>"",'Play-by-Play Summary'!BF34,IF('Play-by-Play Summary'!BI34<>"",'Play-by-Play Summary'!BI34,"")))))) ->  | DF29: =IF($DE29="","",LOOKUP($DE29,'Raw Stats'!$B$3:$B$205,'Raw Stats'!A$3:A$205)) ->  | DG29: =IF($DE29="","",LOOKUP($DE29,'Raw Stats'!$B$3:$B$205,'Raw Stats'!C$3:C$205)) ->  | DH29: =IF($DE29="","",LOOKUP($DE29,'Raw Stats'!$B$3:$B$205,'Raw Stats'!Q$3:Q$205)) ->  | DI29: =IF($DE29="","",LOOKUP($DE29,'Raw Stats'!$B$3:$B$205,'Raw Stats'!R$3:R$205)) ->  | DJ29: =IF($DE29="","",LOOKUP($DE29,'Raw Stats'!$B$3:$B$205,'Raw Stats'!S$3:S$205)) ->  | DK29: =IF($DE29="","",LOOKUP($DE29,'Raw Stats'!$B$3:$B$205,'Raw Stats'!T$3:T$205)) ->  | DL29: =IF($DE29="","",LOOKUP($DE29,'Raw Stats'!$B$3:$B$205,'Raw Stats'!U$3:U$205)) ->  | DM29: =IF($DE29="","",LOOKUP($DE29,'Raw Stats'!$B$3:$B$205,'Raw Stats'!V$3:V$205)) ->  | DN29: =IF($DE29="","",LOOKUP($DE29,'Raw Stats'!$B$3:$B$205,'Raw Stats'!W$3:W$205)) ->  | DO29: =IF($DE29="","",LOOKUP($DE29,'Raw Stats'!$B$3:$B$205,'Raw Stats'!X$3:X$205)) ->  | DP29: =IF($DE29="","",LOOKUP($DE29,'Raw Stats'!$B$3:$B$205,'Raw Stats'!Y$3:Y$205)) ->  | DQ29: =IF($DE29="","",LOOKUP($DE29,'Raw Stats'!$B$3:$B$205,'Raw Stats'!Z$3:Z$205)) ->  | DR29: =IF($DE29="","",LOOKUP($DE29,'Raw Stats'!$B$3:$B$205,'Raw Stats'!AA$3:AA$205)) ->  | DS29: =IF($DE29="","",LOOKUP($DE29,'Raw Stats'!$B$3:$B$205,'Raw Stats'!AB$3:AB$205)) ->  | DT29: =IF($DE29="","",LOOKUP($DE29,'Raw Stats'!$B$3:$B$205,'Raw Stats'!AC$3:AC$205)) ->  | DU29: =IF($DE29="","",LOOKUP($DE29,'Raw Stats'!$B$3:$B$205,'Raw Stats'!AD$3:AD$205)) -> 
A30: =IF('Play Entry'!J36="","",+'Play-by-Play Summary'!C35) -> 29 | B30: ='Play Entry'!I36 -> 2 | C30: =+'Play-by-Play Summary'!Q35 -> 13 | D30: =+'Play-by-Play Summary'!P35 -> 78 | E30: =+'Play-by-Play Summary'!J35 ->  | F30: =+'Play Entry'!L36 ->  | G30: =+'Play Entry'!J36 -> CastleV | H30: =+'Play-by-Play Summary'!R35 ->  | I30: =+'Play-by-Play Summary'!AE35 -> Extra point attempt by Toby McTamney is good | AR30: =IF('Play-by-Play Summary'!AS35="","",'Play-by-Play Summary'!AS35) ->  | AS30: =IF($AR30="","",LOOKUP($AR30,'Raw Stats'!$B$3:$B$205,'Raw Stats'!A$3:A$205)) ->  | AT30: =IF($AR30="","",LOOKUP($AR30,'Raw Stats'!$B$3:$B$205,'Raw Stats'!C$3:C$205)) ->  | AU30: =IF($AR30="","",LOOKUP($AR30,'Raw Stats'!$B$3:$B$205,'Raw Stats'!J$3:J$205)) ->  | AV30: =IF($AR30="","",LOOKUP($AR30,'Raw Stats'!$B$3:$B$205,'Raw Stats'!K$3:K$205)) ->  | AW30: =IF($AR30="","",LOOKUP($AR30,'Raw Stats'!$B$3:$B$205,'Raw Stats'!L$3:L$205)) ->  | AX30: =IF('Play-by-Play Summary'!AN35="","",'Play-by-Play Summary'!AN35) ->  | AY30: =IF($AX30="","",LOOKUP($AX30,'Raw Stats'!$B$3:$B$205,'Raw Stats'!A$3:A$205)) ->  | AZ30: =IF($AX30="","",LOOKUP($AX30,'Raw Stats'!$B$3:$B$205,'Raw Stats'!C$3:C$205)) ->  | BA30: =IF($AX30="","",LOOKUP($AX30,'Raw Stats'!$B$3:$B$205,'Raw Stats'!D$3:D$205)) ->  | BB30: =IF($AX30="","",LOOKUP($AX30,'Raw Stats'!$B$3:$B$205,'Raw Stats'!F$3:F$205)) ->  | BC30: =IF($AX30="","",LOOKUP($AX30,'Raw Stats'!$B$3:$B$205,'Raw Stats'!H$3:H$205)) ->  | BD30: =IF($AX30="","",LOOKUP($AX30,'Raw Stats'!$B$3:$B$205,'Raw Stats'!I$3:I$205)) ->  | BE30: =IF($AX30="","",LOOKUP($AX30,'Raw Stats'!$B$3:$B$205,'Raw Stats'!G$3:G$205)) ->  | BF30: =IF('Play-by-Play Summary'!AV35="","",'Play-by-Play Summary'!AV35) ->  | BG30: =IF($BF30="","",LOOKUP($BF30,'Raw Stats'!$B$3:$B$205,'Raw Stats'!A$3:A$205)) ->  | BH30: =IF($BF30="","",LOOKUP($BF30,'Raw Stats'!$B$3:$B$205,'Raw Stats'!C$3:C$205)) ->  | BI30: =IF($BF30="","",LOOKUP($BF30,'Raw Stats'!$B$3:$B$205,'Raw Stats'!M$3:M$205)) ->  | BJ30: =IF($BF30="","",LOOKUP($BF30,'Raw Stats'!$B$3:$B$205,'Raw Stats'!N$3:N$205)) ->  | BK30: =IF($BF30="","",LOOKUP($BF30,'Raw Stats'!$B$3:$B$205,'Raw Stats'!O$3:O$205)) ->  | BL30: =IF($BF30="","",LOOKUP($BF30,'Raw Stats'!$B$3:$B$205,'Raw Stats'!P$3:P$205)) ->  | BN30: =IF('Play Entry'!$W36="","",IF($G30=Teams!$B$13,'Play Entry'!$W36,IF($G30=Teams!$A$13,'Play Entry'!$W36+100,""))) ->  | BO30: =IF('Play Entry'!$Z36="","",IF($G30=Teams!$B$13,'Play Entry'!$Z36,IF($G30=Teams!$A$13,'Play Entry'!$Z36+100,""))) ->  | BP30: =IF($BM30="","",LOOKUP($BM30,'Raw Stats'!$B$3:$B$205,'Raw Stats'!A$3:A$205)) ->  | BQ30: =IF($BM30="","",LOOKUP($BM30,'Raw Stats'!$B$3:$B$205,'Raw Stats'!C$3:C$205)) ->  | BR30: =IF($BM30="","",LOOKUP($BM30,'Raw Stats'!$B$3:$B$205,'Raw Stats'!AK$3:AK$205)) ->  | BS30: =IF($BM30="","",LOOKUP($BM30,'Raw Stats'!$B$3:$B$205,'Raw Stats'!AL$3:AL$205)) ->  | BT30: =IF($BM30="","",LOOKUP($BM30,'Raw Stats'!$B$3:$B$205,'Raw Stats'!AM$3:AM$205)) ->  | BU30: =IF($BM30="","",LOOKUP($BM30,'Raw Stats'!$B$3:$B$205,'Raw Stats'!AN$3:AN$205)) ->  | BV30: =IF($BM30="","",LOOKUP($BM30,'Raw Stats'!$B$3:$B$205,'Raw Stats'!AO$3:AO$205)) ->  | BW30: =IF($BM30="","",LOOKUP($BM30,'Raw Stats'!$B$3:$B$205,'Raw Stats'!AP$3:AP$205)) ->  | BX30: =IF($BM30="","",LOOKUP($BM30,'Raw Stats'!$B$3:$B$205,'Raw Stats'!AQ$3:AQ$205)) ->  | BY30: =IF($BM30="","",LOOKUP($BM30,'Raw Stats'!$B$3:$B$205,'Raw Stats'!AR$3:AR$205)) ->  | BZ30: =IF($BM30="","",LOOKUP($BM30,'Raw Stats'!$B$3:$B$205,'Raw Stats'!AS$3:AS$205)) ->  | CA30: =IF($BM30="","",LOOKUP($BM30,'Raw Stats'!$B$3:$B$205,'Raw Stats'!AT$3:AT$205)) ->  | CB30: =IF($BM30="","",LOOKUP($BM30,'Raw Stats'!$B$3:$B$205,'Raw Stats'!AU$3:AU$205)) ->  | CC30: =IF($BM30="","",LOOKUP($BM30,'Raw Stats'!$B$3:$B$205,'Raw Stats'!AV$3:AV$205)) ->  | CD30: =IF($BM30="","",LOOKUP($BM30,'Raw Stats'!$B$3:$B$205,'Raw Stats'!AW$3:AW$205)) ->  | CE30: =IF($BM30="","",LOOKUP($BM30,'Raw Stats'!$B$3:$B$205,'Raw Stats'!AX$3:AX$205)) ->  | CF30: =IF($BM30="","",LOOKUP($BM30,'Raw Stats'!$B$3:$B$205,'Raw Stats'!AY$3:AY$205)) ->  | CG30: =IF($BM30="","",LOOKUP($BM30,'Raw Stats'!$B$3:$B$205,'Raw Stats'!AZ$3:AZ$205)) ->  | CH30: =IF($BM30="","",LOOKUP($BM30,'Raw Stats'!$B$3:$B$205,'Raw Stats'!BA$3:BA$205)) ->  | CJ30: =IF('Play Entry'!$X36="","",IF($G30=Teams!$B$13,'Play Entry'!$X36,IF($G30=Teams!$A$13,'Play Entry'!$X36+100,""))) ->  | CK30: =IF('Play Entry'!$AA36="","",IF($G30=Teams!$B$13,'Play Entry'!$AA36,IF($G30=Teams!$A$13,'Play Entry'!$AA36+100,""))) ->  | CL30: =IF($CI30="","",LOOKUP($CI30,'Raw Stats'!$B$3:$B$205,'Raw Stats'!A$3:A$205)) ->  | CM30: =IF($CI30="","",LOOKUP($CI30,'Raw Stats'!$B$3:$B$205,'Raw Stats'!C$3:C$205)) ->  | CN30: =IF($CI30="","",LOOKUP($CI30,'Raw Stats'!$B$3:$B$205,'Raw Stats'!AK$3:AK$205)) ->  | CO30: =IF($CI30="","",LOOKUP($CI30,'Raw Stats'!$B$3:$B$205,'Raw Stats'!AL$3:AL$205)) ->  | CP30: =IF($CI30="","",LOOKUP($CI30,'Raw Stats'!$B$3:$B$205,'Raw Stats'!AM$3:AM$205)) ->  | CQ30: =IF($CI30="","",LOOKUP($CI30,'Raw Stats'!$B$3:$B$205,'Raw Stats'!AN$3:AN$205)) ->  | CR30: =IF($CI30="","",LOOKUP($CI30,'Raw Stats'!$B$3:$B$205,'Raw Stats'!AO$3:AO$205)) ->  | CS30: =IF($CI30="","",LOOKUP($CI30,'Raw Stats'!$B$3:$B$205,'Raw Stats'!AP$3:AP$205)) ->  | CT30: =IF($CI30="","",LOOKUP($CI30,'Raw Stats'!$B$3:$B$205,'Raw Stats'!AQ$3:AQ$205)) ->  | CU30: =IF($CI30="","",LOOKUP($CI30,'Raw Stats'!$B$3:$B$205,'Raw Stats'!AR$3:AR$205)) ->  | CV30: =IF($CI30="","",LOOKUP($CI30,'Raw Stats'!$B$3:$B$205,'Raw Stats'!AS$3:AS$205)) ->  | CW30: =IF($CI30="","",LOOKUP($CI30,'Raw Stats'!$B$3:$B$205,'Raw Stats'!AT$3:AT$205)) ->  | CX30: =IF($CI30="","",LOOKUP($CI30,'Raw Stats'!$B$3:$B$205,'Raw Stats'!AU$3:AU$205)) ->  | CY30: =IF($CI30="","",LOOKUP($CI30,'Raw Stats'!$B$3:$B$205,'Raw Stats'!AV$3:AV$205)) ->  | CZ30: =IF($CI30="","",LOOKUP($CI30,'Raw Stats'!$B$3:$B$205,'Raw Stats'!AW$3:AW$205)) ->  | DA30: =IF($CI30="","",LOOKUP($CI30,'Raw Stats'!$B$3:$B$205,'Raw Stats'!AX$3:AX$205)) ->  | DB30: =IF($CI30="","",LOOKUP($CI30,'Raw Stats'!$B$3:$B$205,'Raw Stats'!AY$3:AY$205)) ->  | DC30: =IF($CI30="","",LOOKUP($CI30,'Raw Stats'!$B$3:$B$205,'Raw Stats'!AZ$3:AZ$205)) ->  | DD30: =IF($CI30="","",LOOKUP($CI30,'Raw Stats'!$B$3:$B$205,'Raw Stats'!BA$3:BA$205)) ->  | DE30: =IF('Play-by-Play Summary'!AZ35<>"",'Play-by-Play Summary'!AZ35,IF('Play-by-Play Summary'!BA35<>"",'Play-by-Play Summary'!BA35,IF('Play-by-Play Summary'!BD35<>"",'Play-by-Play Summary'!BD35,IF('Play-by-Play Summary'!BE35<>"",'Play-by-Play Summary'!BE35,IF('Play-by-Play Summary'!BF35<>"",'Play-by-Play Summary'!BF35,IF('Play-by-Play Summary'!BI35<>"",'Play-by-Play Summary'!BI35,"")))))) -> 199 | DF30: =IF($DE30="","",LOOKUP($DE30,'Raw Stats'!$B$3:$B$205,'Raw Stats'!A$3:A$205)) -> 99 | DG30: =IF($DE30="","",LOOKUP($DE30,'Raw Stats'!$B$3:$B$205,'Raw Stats'!C$3:C$205)) -> Toby McTamney | DH30: =IF($DE30="","",LOOKUP($DE30,'Raw Stats'!$B$3:$B$205,'Raw Stats'!Q$3:Q$205)) -> 0 | DI30: =IF($DE30="","",LOOKUP($DE30,'Raw Stats'!$B$3:$B$205,'Raw Stats'!R$3:R$205)) -> 0 | DJ30: =IF($DE30="","",LOOKUP($DE30,'Raw Stats'!$B$3:$B$205,'Raw Stats'!S$3:S$205)) -> 0 | DK30: =IF($DE30="","",LOOKUP($DE30,'Raw Stats'!$B$3:$B$205,'Raw Stats'!T$3:T$205)) -> 3 | DL30: =IF($DE30="","",LOOKUP($DE30,'Raw Stats'!$B$3:$B$205,'Raw Stats'!U$3:U$205)) -> 0 | DM30: =IF($DE30="","",LOOKUP($DE30,'Raw Stats'!$B$3:$B$205,'Raw Stats'!V$3:V$205)) -> 4 | DN30: =IF($DE30="","",LOOKUP($DE30,'Raw Stats'!$B$3:$B$205,'Raw Stats'!W$3:W$205)) -> 123 | DO30: =IF($DE30="","",LOOKUP($DE30,'Raw Stats'!$B$3:$B$205,'Raw Stats'!X$3:X$205)) -> 0 | DP30: =IF($DE30="","",LOOKUP($DE30,'Raw Stats'!$B$3:$B$205,'Raw Stats'!Y$3:Y$205)) -> 0 | DQ30: =IF($DE30="","",LOOKUP($DE30,'Raw Stats'!$B$3:$B$205,'Raw Stats'!Z$3:Z$205)) -> 0 | DR30: =IF($DE30="","",LOOKUP($DE30,'Raw Stats'!$B$3:$B$205,'Raw Stats'!AA$3:AA$205)) -> 0 | DS30: =IF($DE30="","",LOOKUP($DE30,'Raw Stats'!$B$3:$B$205,'Raw Stats'!AB$3:AB$205)) -> 0 | DT30: =IF($DE30="","",LOOKUP($DE30,'Raw Stats'!$B$3:$B$205,'Raw Stats'!AC$3:AC$205)) -> 0 | DU30: =IF($DE30="","",LOOKUP($DE30,'Raw Stats'!$B$3:$B$205,'Raw Stats'!AD$3:AD$205)) -> 0
A31: =IF('Play Entry'!J37="","",+'Play-by-Play Summary'!C36) ->  | B31: ='Play Entry'!I37 -> 3 | C31: =+'Play-by-Play Summary'!Q36 -> 0 | D31: =+'Play-by-Play Summary'!P36 -> 78 | E31: =+'Play-by-Play Summary'!J36 ->  | F31: =+'Play Entry'!L37 ->  | G31: =+'Play Entry'!J37 ->  | H31: =+'Play-by-Play Summary'!R36 ->  | I31: =+'Play-by-Play Summary'!AE36 -> Drive Summary: 78 yards in 13 plays. Score: Valor 7, CastleV 7 | AR31: =IF('Play-by-Play Summary'!AS36="","",'Play-by-Play Summary'!AS36) ->  | AS31: =IF($AR31="","",LOOKUP($AR31,'Raw Stats'!$B$3:$B$205,'Raw Stats'!A$3:A$205)) ->  | AT31: =IF($AR31="","",LOOKUP($AR31,'Raw Stats'!$B$3:$B$205,'Raw Stats'!C$3:C$205)) ->  | AU31: =IF($AR31="","",LOOKUP($AR31,'Raw Stats'!$B$3:$B$205,'Raw Stats'!J$3:J$205)) ->  | AV31: =IF($AR31="","",LOOKUP($AR31,'Raw Stats'!$B$3:$B$205,'Raw Stats'!K$3:K$205)) ->  | AW31: =IF($AR31="","",LOOKUP($AR31,'Raw Stats'!$B$3:$B$205,'Raw Stats'!L$3:L$205)) ->  | AX31: =IF('Play-by-Play Summary'!AN36="","",'Play-by-Play Summary'!AN36) ->  | AY31: =IF($AX31="","",LOOKUP($AX31,'Raw Stats'!$B$3:$B$205,'Raw Stats'!A$3:A$205)) ->  | AZ31: =IF($AX31="","",LOOKUP($AX31,'Raw Stats'!$B$3:$B$205,'Raw Stats'!C$3:C$205)) ->  | BA31: =IF($AX31="","",LOOKUP($AX31,'Raw Stats'!$B$3:$B$205,'Raw Stats'!D$3:D$205)) ->  | BB31: =IF($AX31="","",LOOKUP($AX31,'Raw Stats'!$B$3:$B$205,'Raw Stats'!F$3:F$205)) ->  | BC31: =IF($AX31="","",LOOKUP($AX31,'Raw Stats'!$B$3:$B$205,'Raw Stats'!H$3:H$205)) ->  | BD31: =IF($AX31="","",LOOKUP($AX31,'Raw Stats'!$B$3:$B$205,'Raw Stats'!I$3:I$205)) ->  | BE31: =IF($AX31="","",LOOKUP($AX31,'Raw Stats'!$B$3:$B$205,'Raw Stats'!G$3:G$205)) ->  | BF31: =IF('Play-by-Play Summary'!AV36="","",'Play-by-Play Summary'!AV36) ->  | BG31: =IF($BF31="","",LOOKUP($BF31,'Raw Stats'!$B$3:$B$205,'Raw Stats'!A$3:A$205)) ->  | BH31: =IF($BF31="","",LOOKUP($BF31,'Raw Stats'!$B$3:$B$205,'Raw Stats'!C$3:C$205)) ->  | BI31: =IF($BF31="","",LOOKUP($BF31,'Raw Stats'!$B$3:$B$205,'Raw Stats'!M$3:M$205)) ->  | BJ31: =IF($BF31="","",LOOKUP($BF31,'Raw Stats'!$B$3:$B$205,'Raw Stats'!N$3:N$205)) ->  | BK31: =IF($BF31="","",LOOKUP($BF31,'Raw Stats'!$B$3:$B$205,'Raw Stats'!O$3:O$205)) ->  | BL31: =IF($BF31="","",LOOKUP($BF31,'Raw Stats'!$B$3:$B$205,'Raw Stats'!P$3:P$205)) ->  | BN31: =IF('Play Entry'!$W37="","",IF($G31=Teams!$B$13,'Play Entry'!$W37,IF($G31=Teams!$A$13,'Play Entry'!$W37+100,""))) ->  | BO31: =IF('Play Entry'!$Z37="","",IF($G31=Teams!$B$13,'Play Entry'!$Z37,IF($G31=Teams!$A$13,'Play Entry'!$Z37+100,""))) ->  | BP31: =IF($BM31="","",LOOKUP($BM31,'Raw Stats'!$B$3:$B$205,'Raw Stats'!A$3:A$205)) ->  | BQ31: =IF($BM31="","",LOOKUP($BM31,'Raw Stats'!$B$3:$B$205,'Raw Stats'!C$3:C$205)) ->  | BR31: =IF($BM31="","",LOOKUP($BM31,'Raw Stats'!$B$3:$B$205,'Raw Stats'!AK$3:AK$205)) ->  | BS31: =IF($BM31="","",LOOKUP($BM31,'Raw Stats'!$B$3:$B$205,'Raw Stats'!AL$3:AL$205)) ->  | BT31: =IF($BM31="","",LOOKUP($BM31,'Raw Stats'!$B$3:$B$205,'Raw Stats'!AM$3:AM$205)) ->  | BU31: =IF($BM31="","",LOOKUP($BM31,'Raw Stats'!$B$3:$B$205,'Raw Stats'!AN$3:AN$205)) ->  | BV31: =IF($BM31="","",LOOKUP($BM31,'Raw Stats'!$B$3:$B$205,'Raw Stats'!AO$3:AO$205)) ->  | BW31: =IF($BM31="","",LOOKUP($BM31,'Raw Stats'!$B$3:$B$205,'Raw Stats'!AP$3:AP$205)) ->  | BX31: =IF($BM31="","",LOOKUP($BM31,'Raw Stats'!$B$3:$B$205,'Raw Stats'!AQ$3:AQ$205)) ->  | BY31: =IF($BM31="","",LOOKUP($BM31,'Raw Stats'!$B$3:$B$205,'Raw Stats'!AR$3:AR$205)) ->  | BZ31: =IF($BM31="","",LOOKUP($BM31,'Raw Stats'!$B$3:$B$205,'Raw Stats'!AS$3:AS$205)) ->  | CA31: =IF($BM31="","",LOOKUP($BM31,'Raw Stats'!$B$3:$B$205,'Raw Stats'!AT$3:AT$205)) ->  | CB31: =IF($BM31="","",LOOKUP($BM31,'Raw Stats'!$B$3:$B$205,'Raw Stats'!AU$3:AU$205)) ->  | CC31: =IF($BM31="","",LOOKUP($BM31,'Raw Stats'!$B$3:$B$205,'Raw Stats'!AV$3:AV$205)) ->  | CD31: =IF($BM31="","",LOOKUP($BM31,'Raw Stats'!$B$3:$B$205,'Raw Stats'!AW$3:AW$205)) ->  | CE31: =IF($BM31="","",LOOKUP($BM31,'Raw Stats'!$B$3:$B$205,'Raw Stats'!AX$3:AX$205)) ->  | CF31: =IF($BM31="","",LOOKUP($BM31,'Raw Stats'!$B$3:$B$205,'Raw Stats'!AY$3:AY$205)) ->  | CG31: =IF($BM31="","",LOOKUP($BM31,'Raw Stats'!$B$3:$B$205,'Raw Stats'!AZ$3:AZ$205)) ->  | CH31: =IF($BM31="","",LOOKUP($BM31,'Raw Stats'!$B$3:$B$205,'Raw Stats'!BA$3:BA$205)) ->  | CJ31: =IF('Play Entry'!$X37="","",IF($G31=Teams!$B$13,'Play Entry'!$X37,IF($G31=Teams!$A$13,'Play Entry'!$X37+100,""))) ->  | CK31: =IF('Play Entry'!$AA37="","",IF($G31=Teams!$B$13,'Play Entry'!$AA37,IF($G31=Teams!$A$13,'Play Entry'!$AA37+100,""))) ->  | CL31: =IF($CI31="","",LOOKUP($CI31,'Raw Stats'!$B$3:$B$205,'Raw Stats'!A$3:A$205)) ->  | CM31: =IF($CI31="","",LOOKUP($CI31,'Raw Stats'!$B$3:$B$205,'Raw Stats'!C$3:C$205)) ->  | CN31: =IF($CI31="","",LOOKUP($CI31,'Raw Stats'!$B$3:$B$205,'Raw Stats'!AK$3:AK$205)) ->  | CO31: =IF($CI31="","",LOOKUP($CI31,'Raw Stats'!$B$3:$B$205,'Raw Stats'!AL$3:AL$205)) ->  | CP31: =IF($CI31="","",LOOKUP($CI31,'Raw Stats'!$B$3:$B$205,'Raw Stats'!AM$3:AM$205)) ->  | CQ31: =IF($CI31="","",LOOKUP($CI31,'Raw Stats'!$B$3:$B$205,'Raw Stats'!AN$3:AN$205)) ->  | CR31: =IF($CI31="","",LOOKUP($CI31,'Raw Stats'!$B$3:$B$205,'Raw Stats'!AO$3:AO$205)) ->  | CS31: =IF($CI31="","",LOOKUP($CI31,'Raw Stats'!$B$3:$B$205,'Raw Stats'!AP$3:AP$205)) ->  | CT31: =IF($CI31="","",LOOKUP($CI31,'Raw Stats'!$B$3:$B$205,'Raw Stats'!AQ$3:AQ$205)) ->  | CU31: =IF($CI31="","",LOOKUP($CI31,'Raw Stats'!$B$3:$B$205,'Raw Stats'!AR$3:AR$205)) ->  | CV31: =IF($CI31="","",LOOKUP($CI31,'Raw Stats'!$B$3:$B$205,'Raw Stats'!AS$3:AS$205)) ->  | CW31: =IF($CI31="","",LOOKUP($CI31,'Raw Stats'!$B$3:$B$205,'Raw Stats'!AT$3:AT$205)) ->  | CX31: =IF($CI31="","",LOOKUP($CI31,'Raw Stats'!$B$3:$B$205,'Raw Stats'!AU$3:AU$205)) ->  | CY31: =IF($CI31="","",LOOKUP($CI31,'Raw Stats'!$B$3:$B$205,'Raw Stats'!AV$3:AV$205)) ->  | CZ31: =IF($CI31="","",LOOKUP($CI31,'Raw Stats'!$B$3:$B$205,'Raw Stats'!AW$3:AW$205)) ->  | DA31: =IF($CI31="","",LOOKUP($CI31,'Raw Stats'!$B$3:$B$205,'Raw Stats'!AX$3:AX$205)) ->  | DB31: =IF($CI31="","",LOOKUP($CI31,'Raw Stats'!$B$3:$B$205,'Raw Stats'!AY$3:AY$205)) ->  | DC31: =IF($CI31="","",LOOKUP($CI31,'Raw Stats'!$B$3:$B$205,'Raw Stats'!AZ$3:AZ$205)) ->  | DD31: =IF($CI31="","",LOOKUP($CI31,'Raw Stats'!$B$3:$B$205,'Raw Stats'!BA$3:BA$205)) ->  | DE31: =IF('Play-by-Play Summary'!AZ36<>"",'Play-by-Play Summary'!AZ36,IF('Play-by-Play Summary'!BA36<>"",'Play-by-Play Summary'!BA36,IF('Play-by-Play Summary'!BD36<>"",'Play-by-Play Summary'!BD36,IF('Play-by-Play Summary'!BE36<>"",'Play-by-Play Summary'!BE36,IF('Play-by-Play Summary'!BF36<>"",'Play-by-Play Summary'!BF36,IF('Play-by-Play Summary'!BI36<>"",'Play-by-Play Summary'!BI36,"")))))) ->  | DF31: =IF($DE31="","",LOOKUP($DE31,'Raw Stats'!$B$3:$B$205,'Raw Stats'!A$3:A$205)) ->  | DG31: =IF($DE31="","",LOOKUP($DE31,'Raw Stats'!$B$3:$B$205,'Raw Stats'!C$3:C$205)) ->  | DH31: =IF($DE31="","",LOOKUP($DE31,'Raw Stats'!$B$3:$B$205,'Raw Stats'!Q$3:Q$205)) ->  | DI31: =IF($DE31="","",LOOKUP($DE31,'Raw Stats'!$B$3:$B$205,'Raw Stats'!R$3:R$205)) ->  | DJ31: =IF($DE31="","",LOOKUP($DE31,'Raw Stats'!$B$3:$B$205,'Raw Stats'!S$3:S$205)) ->  | DK31: =IF($DE31="","",LOOKUP($DE31,'Raw Stats'!$B$3:$B$205,'Raw Stats'!T$3:T$205)) ->  | DL31: =IF($DE31="","",LOOKUP($DE31,'Raw Stats'!$B$3:$B$205,'Raw Stats'!U$3:U$205)) ->  | DM31: =IF($DE31="","",LOOKUP($DE31,'Raw Stats'!$B$3:$B$205,'Raw Stats'!V$3:V$205)) ->  | DN31: =IF($DE31="","",LOOKUP($DE31,'Raw Stats'!$B$3:$B$205,'Raw Stats'!W$3:W$205)) ->  | DO31: =IF($DE31="","",LOOKUP($DE31,'Raw Stats'!$B$3:$B$205,'Raw Stats'!X$3:X$205)) ->  | DP31: =IF($DE31="","",LOOKUP($DE31,'Raw Stats'!$B$3:$B$205,'Raw Stats'!Y$3:Y$205)) ->  | DQ31: =IF($DE31="","",LOOKUP($DE31,'Raw Stats'!$B$3:$B$205,'Raw Stats'!Z$3:Z$205)) ->  | DR31: =IF($DE31="","",LOOKUP($DE31,'Raw Stats'!$B$3:$B$205,'Raw Stats'!AA$3:AA$205)) ->  | DS31: =IF($DE31="","",LOOKUP($DE31,'Raw Stats'!$B$3:$B$205,'Raw Stats'!AB$3:AB$205)) ->  | DT31: =IF($DE31="","",LOOKUP($DE31,'Raw Stats'!$B$3:$B$205,'Raw Stats'!AC$3:AC$205)) ->  | DU31: =IF($DE31="","",LOOKUP($DE31,'Raw Stats'!$B$3:$B$205,'Raw Stats'!AD$3:AD$205)) -> 
